{"text_format":"1","workbook":"xlsx","n_sheets":14,"sheets":["Инструкция","Титульный","Отпуск ЭЭ сет организациями","TECHSHEET","TECH_HORISONTAL","DICTIONARIES","AUTHORIZATION","REESTR_ORG","REESTR_MO","EGR_BY_ORGN_DATA","FILE_STORE_DATA","LIST_SUBSIDIARY","LIST_OKOPF","RPT_STATISTICS"],"not_rendered":{"charts":0,"images":5,"macros":0,"external_links":0,"defined_names":186,"comments":0,"pivot_tables":0},"unopened":[],"bounds":{"document_bytes":16777216,"sheet_cells":100000,"rows_first":2000,"rows_last":500,"rows_between":2000,"halvings":0,"cell_chars":16384,"cell_head_chars":4096},"cells_cut":0,"cells_raw":0,"read":"whole","date_system":"1900"}

{"sheet":"Инструкция","index":0,"n_rows":14,"n_cols":27,"rows_kept":14,"cut":false,"hidden":false,"merged":[[10,1,11,2],[11,4,11,23],[12,1,14,2],[13,4,13,23],[1,1,1,6],[2,1,2,6],[4,1,4,24],[5,1,9,2],[7,5,7,12],[7,15,7,23],[8,5,8,12],[8,15,8,23]]}
[null,null,null,null,null,null,null,null,null,null,null,null,null,null,null,null,null,null,null,null,null,null,null,null,null,null," (требуется обновление)"]
[null,"Код отчёта: 46EP.STX.EIAS"]
[null,"Версия отчёта: 1.0.0"]
[]
[null,"Сведения об отпуске (передаче) электроэнергии распределительными сетевыми организациями отдельным категориям потребителей Приказ Росстата: Об утверждении формы от 05.09.2018 № 543"]
[null,"Условные обозначения"]
[]
[null,null,null,null,"A"," - предназначенные для заполнения",null,null,null,null,null,null,null,null,"A"," - ссылки и автозаполняемые поля"]
[null,null,null,null,"A"," - с формулами и константами",null,null,null,null,null,null,null,null,"A"," - обязательные для заполнения"]
[]
[null,"Работа с реестрами"]
[null,null,null,null,"Если в предложенном Вам списке необходимая организация или наименование отсутствуют, обновите списки с помощью элементов управления на листах. Если после обновления Вам не удалось найти необходимую позицию в списке, обратитесь к ответственному за поддержание реестра Вашего региона либо в Отдел сопровождения пользователей ЕИАС."]
[null,"Проверка отчёта"]
[null,null,null,null,"• При сохранении отчётной формы осуществляется проверка корректности данных\r\n• Для каждого сообщения возможны 2 статуса: ошибка и предупреждение\r\n• При наличии сообщений со статусом «Ошибка» файл будет отклонён системой и не будет загружен в хранилище данных, сообщения со статусом «Предупреждение» носят информационный характер, и такой файл будет принят к обработке системой"]

{"sheet":"Титульный","index":1,"n_rows":112,"n_cols":22,"rows_kept":112,"cut":false,"hidden":false,"merged":[[105,4,106,4],[107,4,108,4],[95,4,96,4],[97,4,98,4],[99,4,100,4],[101,4,102,4],[103,4,104,4],[85,4,86,4],[87,4,88,4],[89,4,90,4],[91,4,92,4],[93,4,94,4],[36,4,36,5],[74,4,74,7],[59,4,59,5],[61,4,62,4],[63,4,64,4],[65,4,66,4],[67,4,70,4],[3,4,3,7],[5,4,5,5],[15,4,15,5],[17,4,17,5],[20,4,20,5],[10,4,10,5],[11,4,11,5],[19,4,19,5],[111,4,111,5],[14,18,29,18],[9,18,12,18],[21,4,21,5],[22,4,22,5],[24,4,24,5],[26,4,26,5],[28,4,28,5],[34,4,34,5],[32,4,32,5],[79,4,79,5],[77,4,77,5],[44,4,44,5],[42,4,42,5],[40,4,40,5],[38,4,38,5]]}
[]
[]
[null,null,null,null,"   обновление данных для проверки отчёта"]
[null,null,null,null,"Сведения об отпуске (передаче) электроэнергии распределительными сетевыми организациями отдельным категориям потребителей",null,null,null,null,null,null,null,null,null,null,null,null,null,"Форма № 46-ЭЭ (передача)"]
[]
[null,null,null,null,"Субъект РФ",null,null,"Тюменская область",null,null,null,null,null,null,null,"MANDATORY",null,null,"Приказ Росстата:\r\nОб утверждении формы от 05.09.2018 № 543",null,null,"region"]
[]
[null,null,null,null,{"$f":"HYPERLINK(\"https://sp.eias.ru/knowledgebase.php?article=125\",\"Как использовать?\")","v":"Как использовать?"},null,null,"Отчётный период",null,null,null,null,null,null,null,null,null,null,"Месячная, годовая"]
[]
[null,null,null,null,null,null,null,null,null,null,null,null,null,null,null,null,null,null,"Сроки предоставления: \r\n25 числа после отчётного месяца,\r\n10 февраля - за отчётный год"]
[null,null,null,null,"Год",null,null,"2024",null,null,null,null,null,null,null,"MANDATORY",null,null,null,null,null,"rptYear"]
[null,null,null,null,"Месяц",null,null,"Март",null,null,null,null,null,null,null,"MANDATORY",null,null,null,null,null,"rptMonth"]
[]
[]
[null,null,null,null,null,null,null,null,null,null,null,null,null,null,null,null,null,null,"Предоставляют: \r\n  - юридические лица, кроме субъектов малого предпринимательства - сетевые организации, осуществляющие оказание услуг по передаче и распределению электрической энергии (мощности);\r\n  - ПАО \"ФСК ЕЭС\"\r\nФедеральной антимонопольной службе по установленному адресу"]
[null,null,null,null,"RST_ORG_ID"]
[]
[null,null,null,null,"Наименование ЮЛ / ИП",null,null,"ООО \"Агентство Интеллект-Сервис\"",null,null,null,null,null,null,null,"MANDATORY",null,null,null,null,null,"org"]
[]
[null,null,null,null,"ИНН",null,null,"7202082778",null,null,null,null,null,null,null,"MANDATORY",null,null,null,null,null,"inn"]
[null,null,null,null,"КПП",null,null,"720301001",null,null,null,null,null,null,null,"MANDATORY",null,null,null,null,null,"kpp"]
[null,null,null,null,"ОГРН",null,null,"1037200562200",null,null,null,null,null,null,null,"MANDATORY",null,null,null,null,null,"ogrn"]
[null,null,null,null,"Организационно-правовая форма",null,null,"1 23 00 | Общества с ограниченной ответственностью",null,null,null,null,null,null,null,"MANDATORY",null,null,null,null,null,"opf"]
[]
[null,null,null,null,"Вид(-ы) деятельности",null,null,"РСО",null,null,null,null,null,null,null,"MANDATORY",null,null,null,null,null,"activity"]
[]
[null,null,null,null,"Тип отчёта",null,null,"В целом по организации",null,null,null,null,null,null,null,"MANDATORY",null,null,null,null,null,"rptType"]
[]
[null,null,null,null,"Наименование обособленного подразделения",null,null,null,null,null,null,null,null,null,null,{"$f":"IF(H27=\"По обособленному подразделению\",\"MANDATORY\",\"OPTIONAL\")","v":"OPTIONAL"},null,null,null,null,null,"subsidiary"]
[]
[]
[]
[null,null,null,null,"Код по ОКПО",null,null,"47063924",null,null,null,null,null,null,null,"MANDATORY",null,null,"ОКПО - Общероссийский Классификатор Предприятий и Организаций",null,null,"okpo"]
[]
[null,null,null,null,"ОКАТО",null,null,"71401000000",null,null,null,null,null,null,null,"MANDATORY",null,null,"ОКАТО - Общероссийский Классификатор Административно-Территориальных Образований",null,null,"okato"]
[]
[null,null,null,null,"Муниципальный район",null,null,"город Тюмень",null,null,null,null,null,null,null,"MANDATORY",null,null,null,null,null,"mr"]
[]
[null,null,null,null,"Муниципальное образование",null,null,"город Тюмень",null,null,null,null,null,null,null,"MANDATORY",null,null,null,null,null,"mo"]
[]
[null,null,null,null,"ОКТМО",null,null,"71701000",null,null,null,null,null,null,null,"MANDATORY",null,null,"ОКТМО - Общероссийский Классификатор Территорий Муниципальных Образований",null,null,"oktmo"]
[]
[null,null,null,null,"Котлодержатель",null,null,"Нет",null,null,null,null,null,null,null,"MANDATORY",null,null,null,null,null,"ktlKeeper"]
[]
[null,null,null,null,"Система налогообложения",null,null,"ОСН",null,null,null,null,null,null,null,"MANDATORY",null,null,"ОСН - общая система налогообложения\r\nУСН - упрощенная система налогообложения\r\nПСН - патентная система налогообложения\r\nЕНВД - вмененная система налогообложения или единый налог на вмененный доход\r\nЕСХН - единый сельскохозяйственный налог",null,null,"taxSystem"]
[]
[]
[]
[]
[]
[]
[]
[]
[]
[]
[]
[]
[]
[]
[null,null,null,null,"Контактные данные"]
[]
[null,null,null,null,"Адрес организации","Юридический",null,"625048 Тюменская область город Тюмень улица Новгородская д.10 стр.76",null,null,null,null,null,null,null,"MANDATORY",null,null,null,null,null,"addressLegal"]
[null,null,null,null,null,"Почтовый",null,"625048 Тюменская область город Тюмень улица Новгородская д.10 стр.76",null,null,null,null,null,null,null,"MANDATORY",null,null,null,null,null,"addressPost"]
[null,null,null,null,"Руководитель","ФИО",null,"Федоров Андрей Владимирович",null,null,null,null,null,null,null,"MANDATORY",null,null,null,null,null,"nameCEO"]
[null,null,null,null,null,"Контактный телефон",null,"8 (3452) 56-86-58",null,null,null,null,null,null,null,"MANDATORY",null,null,null,null,null,"phoneCEO"]
[null,null,null,null,"Главный бухгалтер","ФИО",null,"Рябкова Татьяна Петровна",null,null,null,null,null,null,null,"MANDATORY",null,null,null,null,null,"nameAccountant"]
[null,null,null,null,null,"Контактный телефон",null,"8-919-938-94-89",null,null,null,null,null,null,null,"MANDATORY",null,null,null,null,null,"phoneAccountant"]
[null,null,null,null,"Должностное лицо, ответственное за составление формы","ФИО",null,"Андреева Любовь Леонтьевна",null,null,null,null,null,null,null,"MANDATORY",null,null,null,null,null,"nameReporting"]
[null,null,null,null,null,"Должность",null,"экономист",null,null,null,null,null,null,null,"MANDATORY",null,null,null,null,null,"positionReporting"]
[null,null,null,null,null,"Контактный телефон",null,"8 (3452) 56-86-58",null,null,null,null,null,null,null,"MANDATORY",null,null,null,null,null,"phoneReporting"]
[null,null,null,null,null,"e-mail",null,"ais7213@mail.ru",null,null,null,null,null,null,null,"MANDATORY",null,null,null,null,null,"emailReporting"]
[]
[]
[]
[null,null,null,null,"Дата последнего обновления реестра организаций: 19.02.2024, 09:56:05"]
[]
[]
[null,null,null,null,"Если срок представления отчёта за период истёк, необходимо указать URL-ссылку на пояснительную записку (документ)",null,null,null,null,null,null,null,null,null,null,null,null,null,"URL-ссылку на пояснительную записку (документ)  необходимо указывать только в случае, если срок представления отчёта за период истёк"]
[]
[null,null,null,null,"Образец пояснительной записки (документа) можно скачать по ссылке",null,null,{"$f":"HYPERLINK(\"https://eias.ru/files/46ep.stx.eias.justification.rtf\",\"Загрузить\")","v":"Загрузить"}]
[]
[]
[]
[]
[null,null,null,null,null,null,null,{"$f":"\"Статистика предоставления отчётов за \"&IF(YEAR=\"\",\"(год не выбран)\",YEAR&\" год\")","v":"Статистика предоставления отчётов за 2024 год"}]
[null,null,null,null,"Январь","Дата отчёта",null,"19.02.2024 09:16:11"]
[null,null,null,null,null,"Статус отчёта",null,"Принят"]
[null,null,null,null,"Февраль","Дата отчёта",null,"20.03.2024 12:10:23"]
[null,null,null,null,null,"Статус отчёта",null,"Принят"]
[null,null,null,null,"Март","Дата отчёта"]
[null,null,null,null,null,"Статус отчёта"]
[null,null,null,null,"Апрель","Дата отчёта"]
[null,null,null,null,null,"Статус отчёта"]
[null,null,null,null,"Май","Дата отчёта"]
[null,null,null,null,null,"Статус отчёта"]
[null,null,null,null,"Июнь","Дата отчёта"]
[null,null,null,null,null,"Статус отчёта"]
[null,null,null,null,"Июль","Дата отчёта"]
[null,null,null,null,null,"Статус отчёта"]
[null,null,null,null,"Август","Дата отчёта"]
[null,null,null,null,null,"Статус отчёта"]
[null,null,null,null,"Сентябрь","Дата отчёта"]
[null,null,null,null,null,"Статус отчёта"]
[null,null,null,null,"Октябрь","Дата отчёта"]
[null,null,null,null,null,"Статус отчёта"]
[null,null,null,null,"Ноябрь","Дата отчёта"]
[null,null,null,null,null,"Статус отчёта"]
[null,null,null,null,"Декабрь","Дата отчёта"]
[null,null,null,null,null,"Статус отчёта"]
[]
[]
[null,null,null,null,"Источник данных для выбора организаций на листе \"Отпуск ЭЭ сет организациями\"",null,null,"Реестр ФГИС ЕИАС"]

{"sheet":"Отпуск ЭЭ сет организациями","index":2,"n_rows":164,"n_cols":20,"rows_kept":164,"cut":false,"hidden":false,"merged":[[13,3,13,5],[59,3,59,5],[105,3,105,5],[109,3,109,5],[142,3,142,5],[10,3,11,3],[10,6,11,6],[10,8,10,11],[10,7,11,7],[10,4,11,4],[10,5,11,5]]}
[]
[]
[null,null,null,null,null,null,null,"issueTtl","issueHV","issueAV1","issueAV2","issueLV",null,"splrNumber","splrName","splrOgrn","splrInn","splrKpp","splrSource","rowType"]
[]
[]
[]
[]
[null,null,null,"Сведения об отпуске (передаче) электроэнергии распределительными сетевыми организациями отдельным категориям потребителей"]
[null,null,null,{"$f":"IF(ORG=\"\",\"Не определено\",ORG)","v":"ООО \"Агентство Интеллект-Сервис\""}]
[null,null,null,null,null,null,null,null,null,null,null,"Коды по ОКЕИ: 1000 киловатт-часов – 245, мегаватт – 215, тысяча рублей – 384"]
[null,null,null,"№ п/п","Потребители","Единица измерения","Код строки","Всего","В том числе по уровню напряжения"]
[null,null,null,null,null,null,null,null,"ВН","СН1","СН2","НН"]
[null,null,null,0,1,2,3,4,5,6,7,8]
[null,null,null,"I. Электроэнергия"]
[null,null,null,"1","Поступление в сеть из других организаций:","тыс.кВт*ч",10,{"$f":"SUM(I15:L15)","v":11154.275},{"$f":"SUM(I16,I17,I21,I24)","v":8606.1589999999997},{"$f":"SUM(J16,J17,J21,J24)","v":0},{"$f":"SUM(K16,K17,K21,K24)","v":2548.116},{"$f":"SUM(L16,L17,L21,L24)","v":0},null,null,null,null,null,null,null,"STATIC"]
[null,null,null,"1.1","из сетей ПАО \"ФСК ЕЭС\"","тыс.кВт*ч",20,{"$f":"SUM(I16:L16)","v":0},0,0,0,0,null,null,null,null,null,null,null,"STATIC"]
[null,null,null,"1.2","от генерирующих компаний и блок-станций:","тыс.кВт*ч",30,{"$f":"SUM(I17:L17)","v":1369.549},{"$f":"SUM(I18:I20)","v":1369.549},{"$f":"SUM(J18:J20)","v":0},{"$f":"SUM(K18:K20)","v":0},{"$f":"SUM(L18:L20)","v":0},null,null,null,null,null,null,null,"STATIC"]
[null,null,null,null,null,null,null,null,null,null,null,null,null,"0"]
[null,null,"×",{"$f":"\"1.2.\"&N19","v":"1.2.1"},"ПАО \"Форвард Энерго\" (Тюменская ТЭЦ-1)","тыс.кВт*ч",30,{"$f":"SUM(I19:L19)","v":1369.549},1369.549,0,0,0,null,"1","ПАО \"Форвард Энерго\" (Тюменская ТЭЦ-1)","1058602102437","7203162698","720302001","RST_ORG","DYNAMIC.ENR.INCOME.GEN"]
[null,null,null,null,"Добавить организацию",null,null,null,null,null,null,null,null,null,null,null,null,null,null,"INSERT.ENR.INCOME.GEN"]
[null,null,null,"1.3","от несетевых организаций:","тыс.кВт*ч","230",{"$f":"SUM(I21:L21)","v":0},{"$f":"SUM(I22:I23)","v":0},{"$f":"SUM(J22:J23)","v":0},{"$f":"SUM(K22:K23)","v":0},{"$f":"SUM(L22:L23)","v":0},null,null,null,null,null,null,null,"STATIC"]
[null,null,null,null,null,null,null,null,null,null,null,null,null,"0"]
[null,null,null,null,"Добавить организацию",null,null,null,null,null,null,null,null,null,null,null,null,null,null,"INSERT.ENR.INCOME.NON.NET"]
[null,null,null,"1.4","от смежных сетевых организаций:","тыс.кВт*ч","430",{"$f":"SUM(I24:L24)","v":9784.7259999999987},{"$f":"SUM(I25:I32)","v":7236.61},{"$f":"SUM(J25:J32)","v":0},{"$f":"SUM(K25:K32)","v":2548.116},{"$f":"SUM(L25:L32)","v":0},null,null,null,null,null,null,null,"STATIC"]
[null,null,null,null,null,null,null,null,null,null,null,null,null,"0"]
[null,null,"×",{"$f":"\"1.4.\"&N26","v":"1.4.1"},"АО \"Россети Тюмень\"","тыс.кВт*ч","430",{"$f":"SUM(I26:L26)","v":7373.1629999999996},7236.61,0,136.553,0,null,"1","АО \"Россети Тюмень\"","1028600587399","8602060185","997650001","RST_ORG","DYNAMIC.ENR.INCOME.ADJACENT.NET"]
[null,null,"×","1.4.2","ООО \"ЭЛЕКОНТ\"","тыс.кВт*ч","430",80.162000000000006,0,0,80.162000000000006,0,null,"2","ООО \"ЭЛЕКОНТ\"","1127232000488","7224046773","722401001","RST_ORG","DYNAMIC.ENR.INCOME.ADJACENT.NET"]
[null,null,"×","1.4.3","АО \"СУЭНКО\"","тыс.кВт*ч","430",1479.1780000000001,0,0,1479.1780000000001,0,null,"3","АО \"СУЭНКО\"","1027201233620","7205011944","720301001","RST_ORG","DYNAMIC.ENR.INCOME.ADJACENT.NET"]
[null,null,"×","1.4.4","ООО \"Дорстрой\"","тыс.кВт*ч","430",187.971,0,0,187.971,0,null,"4","ООО \"Дорстрой\"","1037200650937","7204080494","720301001","RST_ORG","DYNAMIC.ENR.INCOME.ADJACENT.NET"]
[null,null,"×","1.4.5","ООО \"Региональная энергетическая компания\"","тыс.кВт*ч","430",344.96800000000002,0,0,344.96800000000002,0,null,"5","ООО \"Региональная энергетическая компания\"","1177232006104","7203412147","720301001","RST_ORG","DYNAMIC.ENR.INCOME.ADJACENT.NET"]
[null,null,"×","1.4.6","ООО «Газпром энерго» в зоне деятельности Сургутского филиала Общества с ограниченной ответственностью «Газпром энерго»","тыс.кВт*ч","430",319.28399999999999,0,0,319.28399999999999,0,null,"6","ООО «Газпром энерго» в зоне деятельности Сургутского филиала Общества с ограниченной ответственностью «Газпром энерго»","1027739841370","7736186950","860202001","RST_ORG","DYNAMIC.ENR.INCOME.ADJACENT.NET"]
[null,null,null,null,"Добавить организацию",null,null,null,null,null,null,null,null,null,null,null,null,null,null,"INSERT.ENR.INCOME.ADJACENT.NET"]
[null,null,null,"2","Поступление в сеть из других уровней напряжения (трансформация)","тыс.кВт*ч","630",{"$f":"SUM(I33:L33)","v":8427.8430000000008},{"$f":"SUM(I35,I36,I37)","v":0},{"$f":"SUM(J34,J36,J37)","v":0},{"$f":"SUM(K34,K35,K37)","v":4420.2690000000002},{"$f":"SUM(L34,L35,L36)","v":4007.5740000000001},null,null,null,null,null,null,null,"STATIC"]
[null,null,null,"2.1","ВН","тыс.кВт*ч","640",4420.2690000000002,null,0,4420.2690000000002,0,null,null,null,null,null,null,null,"STATIC"]
[null,null,null,"2.2","СН1","тыс.кВт*ч","650",0,null,null,0,0,null,null,null,null,null,null,null,"STATIC"]
[null,null,null,"2.3","СН2","тыс.кВт*ч","660",4007.5740000000001,null,null,null,4007.5740000000001,null,null,null,null,null,null,null,"STATIC"]
[null,null,null,"2.4","НН ","тыс.кВт*ч","670",0,null,null,null,null,null,null,null,null,null,null,null,"STATIC"]
[null,null,null,"3","Генерация на установках организации (совмещение деятельности)","тыс.кВт*ч","680",0,null,null,null,null,null,null,null,null,null,null,null,"STATIC"]
[null,null,null,"4","Отпуск из сети:","тыс.кВт*ч","690",10285.41,{"$f":"SUM(I40,I42,I45,I51)","v":4016.24},{"$f":"SUM(J40,J42,J45,J51)","v":0},{"$f":"SUM(K40,K42,K45,K51)","v":2735.7580000000003},{"$f":"SUM(L40,L42,L45,L51)","v":3533.4119999999998},null,null,null,null,null,null,null,"STATIC"]
[null,null,null,"4.1","прямым прочим потребителям по договорам оказания услуг по передаче электрической энергии","тыс.кВт*ч","700",0,0,0,0,0,null,null,null,null,null,null,null,"STATIC"]
[null,null,null,"4.1.1","из них потребителям, опосредованно подключённым к шинам генераторов","тыс.кВт*ч","710",0,0,0,0,0,null,null,null,null,null,null,null,"STATIC"]
[null,null,null,"4.2","потребителям ГП, ЭСО, ЭСК, в том числе:","тыс.кВт*ч","720",3412.8559999999998,367.25,0,1984.816,1060.79,null,null,null,null,null,null,null,"STATIC"]
[null,null,null,"4.2.1","прочим потребителям, в том числе:","тыс.кВт*ч","730",3412.8559999999998,367.25,0,1984.816,1060.79,null,null,null,null,null,null,null,"STATIC"]
[null,null,null,"4.2.1.1","потребителям, опосредованно подключённым к шинам генераторов","тыс.кВт*ч","740",0,0,0,0,0,null,null,null,null,null,null,null,"STATIC"]
[null,null,null,"4.3","смежным сетевым организациям:","тыс.кВт*ч","750",4251.3089999999993,{"$f":"SUM(I46:I50)","v":3648.99},{"$f":"SUM(J46:J50)","v":0},{"$f":"SUM(K46:K50)","v":602.31899999999996},{"$f":"SUM(L46:L50)","v":0},null,null,null,null,null,null,null,"STATIC"]
[null,null,null,null,null,null,null,null,null,null,null,null,null,"0"]
[null,null,"×",{"$f":"\"4.3.\"&N47","v":"4.3.1"},"АО \"СУЭНКО\"","тыс.кВт*ч","750",{"$f":"SUM(I47:L47)","v":3664.6679999999997},3124.3539999999998,0,540.31399999999996,0,null,"1","АО \"СУЭНКО\"","1027201233620","7205011944","720301001","RST_ORG","DYNAMIC.ENR.OUTCOME.ADJACENT.NET"]
[null,null,"×",{"$f":"\"4.3.\"&N48","v":"4.3.2"},"ООО \"Региональная энергетическая компания\"","тыс.кВт*ч","750",{"$f":"SUM(I48:L48)","v":570.32799999999997},524.63599999999997,0,45.692,0,null,"2","ООО \"Региональная энергетическая компания\"","1177232006104","7203412147","720301001","RST_ORG","DYNAMIC.ENR.OUTCOME.ADJACENT.NET"]
[null,null,"×",{"$f":"\"4.3.\"&N49","v":"4.3.3"},"ООО \"Дорстрой\"","тыс.кВт*ч","750",{"$f":"SUM(I49:L49)","v":16.312999999999999},0,0,16.312999999999999,0,null,"3","ООО \"Дорстрой\"","1037200650937","7204080494","720301001","RST_ORG","DYNAMIC.ENR.OUTCOME.ADJACENT.NET"]
[null,null,null,null,"Добавить организацию",null,null,null,null,null,null,null,null,null,null,null,null,null,null,"INSERT.ENR.OUTCOME.ADJACENT.NET"]
[null,null,null,"4.4","население и приравненные к ним группы","тыс.кВт*ч","950",{"$f":"SUM(I51:L51)","v":2621.2449999999999},0,0,148.62299999999999,2472.6219999999998,null,null,null,null,null,null,null,"STATIC"]
[null,null,null,"5","Отпуск в сеть других уровней напряжения","тыс.кВт*ч","960",8427.8430000000008,4420.2690000000002,0,4007.5740000000001,0,null,null,null,null,null,null,null,"STATIC"]
[null,null,null,"6","Хозяйственные нужды организации","тыс.кВт*ч","970",0,0,0,0,0,null,null,null,null,null,null,null,"STATIC"]
[null,null,null,"7","Собственное потребление (совмещение деятельности)","тыс.кВт*ч","980",0,0,0,0,0,null,null,null,null,null,null,null,"STATIC"]
[null,null,null,"8","Общий объём потерь (фактические объёмы), в том числе:","тыс.кВт*ч","990",868.86500000000001,169.65,0,225.053,474.16199999999998,null,null,null,null,null,null,null,"STATIC"]
[null,null,null,"8.1","относимые на собственное потребление (фактическое значение)","тыс.кВт*ч","1000",0,0,0,0,0,null,null,null,null,null,null,null,"STATIC"]
[null,null,null,"9","Нормативные потери (объёмы потерь, учтённые в сводном прогнозном балансе)","тыс.кВт*ч","1010",430,7,0,97,326,null,null,null,null,null,null,null,"STATIC"]
[null,null,null,"10","Объём превышения фактических объёмов потерь электрической энергии над объёмами потерь, учтёнными в сводном прогнозном балансе за соответствующий расчётный период","тыс.кВт*ч","1020",438.86499999999995,{"$f":"I55-I57","v":162.65},{"$f":"J55-J57","v":0},{"$f":"K55-K57","v":128.053},{"$f":"L55-L57","v":148.16199999999998},null,null,null,null,null,null,null,"STATIC"]
[null,null,null,"11","Небаланс","тыс.кВт*ч","1030",0,{"$f":"SUM(I15,I33,I38)-SUM(I39,I52:I55)","v":0},{"$f":"SUM(J15,J33,J38)-SUM(J39,J52:J55)","v":0},{"$f":"SUM(K15,K33,K38)-SUM(K39,K52:K55)","v":0},{"$f":"SUM(L15,L33,L38)-SUM(L39,L52:L55)","v":0},null,null,null,null,null,null,null,"STATIC"]
[null,null,null,"II. Мощность"]
[null,null,null,"12","Поступление в сеть из других организаций:","МВт","1040",{"$f":"SUM(I61:L61)","v":19.231000000000002},{"$f":"SUM(I62,I63,I67,I70)","v":14.838000000000001},{"$f":"SUM(J62,J63,J67,J70)","v":0},{"$f":"SUM(K62,K63,K67,K70)","v":4.3929999999999998},{"$f":"SUM(L62,L63,L67,L70)","v":0},null,null,null,null,null,null,null,"STATIC"]
[null,null,null,"12.1","из сетей ПАО \"ФСК ЕЭС\"","МВт","1050",{"$f":"SUM(I62:L62)","v":0},0,0,0,0,null,null,null,null,null,null,null,"STATIC"]
[null,null,null,"12.2","от генерирующих компаний и блок-станций:","МВт","1060",{"$f":"SUM(I63:L63)","v":2.3610000000000002},{"$f":"SUM(I64:I66)","v":2.3610000000000002},{"$f":"SUM(J64:J66)","v":0},{"$f":"SUM(K64:K66)","v":0},{"$f":"SUM(L64:L66)","v":0},null,null,null,null,null,null,null,"STATIC"]
[null,null,null,null,null,null,null,null,null,null,null,null,null,"0"]
[null,null,"×",{"$f":"\"12.2.\"&N65","v":"12.2.1"},"ПАО \"Форвард Энерго\" (Тюменская ТЭЦ-1)","МВт","1060",{"$f":"SUM(I65:L65)","v":2.3610000000000002},2.3610000000000002,0,0,0,null,"1","ПАО \"Форвард Энерго\" (Тюменская ТЭЦ-1)","1058602102437","7203162698","720302001","RST_ORG","DYNAMIC.PWR.INCOME.GEN"]
[null,null,null,null,"Добавить организацию",null,null,null,null,null,null,null,null,null,null,null,null,null,null,"INSERT.PWR.INCOME.GEN"]
[null,null,null,"12.3","от несетевых организаций:","МВт","1260",{"$f":"SUM(I67:L67)","v":0},{"$f":"SUM(I68:I69)","v":0},{"$f":"SUM(J68:J69)","v":0},{"$f":"SUM(K68:K69)","v":0},{"$f":"SUM(L68:L69)","v":0},null,null,null,null,null,null,null,"STATIC"]
[null,null,null,null,null,null,null,null,null,null,null,null,null,"0"]
[null,null,null,null,"Добавить организацию",null,null,null,null,null,null,null,null,null,null,null,null,null,null,"INSERT.PWR.INCOME.NON.NET"]
[null,null,null,"12.4","от смежных сетевых организаций:","МВт","1460",{"$f":"SUM(I70:L70)","v":16.87},{"$f":"SUM(I71:I78)","v":12.477},{"$f":"SUM(J71:J78)","v":0},{"$f":"SUM(K71:K78)","v":4.3929999999999998},{"$f":"SUM(L71:L78)","v":0},null,null,null,null,null,null,null,"STATIC"]
[null,null,null,null,null,null,null,null,null,null,null,null,null,"0"]
[null,null,"×",{"$f":"\"12.4.\"&N72","v":"12.4.1"},"АО \"Россети Тюмень\"","МВт","1460",{"$f":"SUM(I72:L72)","v":12.712},12.477,0,0.23499999999999999,0,null,"1","АО \"Россети Тюмень\"","1028600587399","8602060185","997650001","RST_ORG","DYNAMIC.PWR.INCOME.ADJACENT.NET"]
[null,null,"×","12.4.2","ООО \"ЭЛЕКОНТ\"","МВт","1460",0.13800000000000001,0,0,0.13800000000000001,0,null,"2","ООО \"ЭЛЕКОНТ\"","1127232000488","7224046773","722401001","RST_ORG","DYNAMIC.PWR.INCOME.ADJACENT.NET"]
[null,null,"×","12.4.3","АО \"СУЭНКО\"","МВт","1460",2.5499999999999998,0,0,2.5499999999999998,0,null,"3","АО \"СУЭНКО\"","1027201233620","7205011944","720301001","RST_ORG","DYNAMIC.PWR.INCOME.ADJACENT.NET"]
[null,null,"×","12.4.4","ООО \"Дорстрой\"","МВт","1460",0.32400000000000001,0,0,0.32400000000000001,0,null,"4","ООО \"Дорстрой\"","1037200650937","7204080494","720301001","RST_ORG","DYNAMIC.PWR.INCOME.ADJACENT.NET"]
[null,null,"×","12.4.5","ООО \"Региональная энергетическая компания\"","МВт","1460",0.59499999999999997,0,0,0.59499999999999997,0,null,"5","ООО \"Региональная энергетическая компания\"","1177232006104","7203412147","720301001","RST_ORG","DYNAMIC.PWR.INCOME.ADJACENT.NET"]
[null,null,"×","12.4.6","ООО «Газпром энерго» в зоне деятельности Сургутского филиала Общества с ограниченной ответственностью «Газпром энерго»","МВт","1460",0.55100000000000005,0,0,0.55100000000000005,0,null,"6","ООО «Газпром энерго» в зоне деятельности Сургутского филиала Общества с ограниченной ответственностью «Газпром энерго»","1027739841370","7736186950","860202001","RST_ORG","DYNAMIC.PWR.INCOME.ADJACENT.NET"]
[null,null,null,null,"Добавить организацию",null,null,null,null,null,null,null,null,null,null,null,null,null,null,"INSERT.PWR.INCOME.ADJACENT.NET"]
[null,null,null,"13","Поступление в сеть из других уровней напряжения (трансформация)","МВт","1660",{"$f":"SUM(I79:L79)","v":14.531000000000001},{"$f":"SUM(I81,I82,I83)","v":0},{"$f":"SUM(J80,J82,J83)","v":0},{"$f":"SUM(K80,K81,K83)","v":7.6210000000000004},{"$f":"SUM(L80,L81,L82)","v":6.91},null,null,null,null,null,null,null,"STATIC"]
[null,null,null,"13.1","ВН","МВт","1670",7.6210000000000004,null,0,7.6210000000000004,0,null,null,null,null,null,null,null,"STATIC"]
[null,null,null,"13.2","СН1","МВт","1680",0,null,null,0,0,null,null,null,null,null,null,null,"STATIC"]
[null,null,null,"13.3","СН2","МВт","1690",6.91,null,null,null,6.91,null,null,null,null,null,null,null,"STATIC"]
[null,null,null,"13.4","НН ","МВт","1700",0,null,null,null,null,null,null,null,null,null,null,null,"STATIC"]
[null,null,null,"14","Генерация на установках организации (совмещение деятельности)","МВт","1710",0,null,null,null,null,null,null,null,null,null,null,null,"STATIC"]
[null,null,null,"15","Отпуск из сети:","МВт","1720",17.733999999999998,{"$f":"SUM(I86,I88,I91,I97)","v":6.9249999999999998},{"$f":"SUM(J86,J88,J91,J97)","v":0},{"$f":"SUM(K86,K88,K91,K97)","v":4.7170000000000005},{"$f":"SUM(L86,L88,L91,L97)","v":6.0919999999999996},null,null,null,null,null,null,null,"STATIC"]
[null,null,null,"15.1","прямым прочим потребителям по договорам оказания услуг по передаче электрической энергии","МВт","1730",0,0,0,0,0,null,null,null,null,null,null,null,"STATIC"]
[null,null,null,"15.1.1","из них потребителям, опосредованно подключённым к шинам генераторов","МВт","1740",0,0,0,0,0,null,null,null,null,null,null,null,"STATIC"]
[null,null,null,"15.2","потребителям ГП, ЭСО, ЭСК, в том числе:","МВт","1750",5.8839999999999995,0.63300000000000001,0,3.4220000000000002,1.829,null,null,null,null,null,null,null,"STATIC"]
[null,null,null,"15.2.1","прочим потребителям, в том числе:","МВт","1760",5.8839999999999995,0.63300000000000001,0,3.4220000000000002,1.829,null,null,null,null,null,null,null,"STATIC"]
[null,null,null,"15.2.1.1","потребителям, опосредованно подключённым к шинам генераторов","МВт","1770",0,0,0,0,0,null,null,null,null,null,null,null,"STATIC"]
[null,null,null,"15.3","смежным сетевым организациям:","МВт","1780",7.3309999999999995,{"$f":"SUM(I92:I96)","v":6.2919999999999998},{"$f":"SUM(J92:J96)","v":0},{"$f":"SUM(K92:K96)","v":1.0390000000000001},{"$f":"SUM(L92:L96)","v":0},null,null,null,null,null,null,null,"STATIC"]
[null,null,null,null,null,null,null,null,null,null,null,null,null,"0"]
[null,null,"×",{"$f":"\"15.3.\"&N93","v":"15.3.1"},"АО \"СУЭНКО\"","МВт","1780",{"$f":"SUM(I93:L93)","v":6.319},5.3869999999999996,0,0.93200000000000005,0,null,"1","АО \"СУЭНКО\"","1027201233620","7205011944","720301001","RST_ORG","DYNAMIC.PWR.OUTCOME.ADJACENT.NET"]
[null,null,"×",{"$f":"\"15.3.\"&N94","v":"15.3.2"},"ООО \"Региональная энергетическая компания\"","МВт","1780",{"$f":"SUM(I94:L94)","v":0.98399999999999999},0.90500000000000003,0,7.9000000000000001E-2,0,null,"2","ООО \"Региональная энергетическая компания\"","1177232006104","7203412147","720301001","RST_ORG","DYNAMIC.PWR.OUTCOME.ADJACENT.NET"]
[null,null,"×",{"$f":"\"15.3.\"&N95","v":"15.3.3"},"ООО \"Дорстрой\"","МВт","1780",{"$f":"SUM(I95:L95)","v":2.8000000000000001E-2},0,0,2.8000000000000001E-2,0,null,"3","ООО \"Дорстрой\"","1037200650937","7204080494","720301001","RST_ORG","DYNAMIC.PWR.OUTCOME.ADJACENT.NET"]
[null,null,null,null,"Добавить организацию",null,null,null,null,null,null,null,null,null,null,null,null,null,null,"INSERT.PWR.OUTCOME.ADJACENT.NET"]
[null,null,null,"15.4","население и приравненные к ним группы","МВт","1980",{"$f":"SUM(I97:L97)","v":4.5190000000000001},0,0,0.25600000000000001,4.2629999999999999,null,null,null,null,null,null,null,"STATIC"]
[null,null,null,"16","Отпуск в сеть других уровней напряжения","МВт","1990",14.531000000000001,7.6210000000000004,0,6.91,0,null,null,null,null,null,null,null,"STATIC"]
[null,null,null,"17","Хозяйственные нужды организации","МВт","2000",0,0,0,0,0,null,null,null,null,null,null,null,"STATIC"]
[null,null,null,"18","Собственное потребление (совмещение деятельности)","МВт","2010",0,0,0,0,0,null,null,null,null,null,null,null,"STATIC"]
[null,null,null,"19","Общий объём потерь (фактические объёмы), в том числе:","МВт","2020",1.4990000000000001,0.29299999999999998,0,0.38800000000000001,0.81799999999999995,null,null,null,null,null,null,null,"STATIC"]
[null,null,null,"19.1","относимые на собственное потребление","МВт","2030",0,0,0,0,0,null,null,null,null,null,null,null,"STATIC"]
[null,null,null,"20","Нормативные потери (объёмы потерь, учтённые в сводном прогнозном балансе)","МВт","2040",0.7410000000000001,1.2E-2,0,0.16700000000000001,0.56200000000000006,null,null,null,null,null,null,null,"STATIC"]
[null,null,null,"21","Объём превышения фактических объёмов потерь электрической энергии над объёмами потерь, учтёнными в сводном прогнозном балансе за соответствующий расчётный период","МВт","2050",0.7579999999999999,{"$f":"I101-I103","v":0.28099999999999997},{"$f":"J101-J103","v":0},{"$f":"K101-K103","v":0.221},{"$f":"L101-L103","v":0.25599999999999989},null,null,null,null,null,null,null,"STATIC"]
[null,null,null,"22","Небаланс","МВт","2060",-1.9999999999988916E-3,{"$f":"SUM(I61,I79,I84)-SUM(I85,I98:I101)","v":-9.9999999999766942E-4},{"$f":"SUM(J61,J79,J84)-SUM(J85,J98:J101)","v":0},{"$f":"SUM(K61,K79,K84)-SUM(K85,K98:K101)","v":-1.0000000000012221E-3},{"$f":"SUM(L61,L79,L84)-SUM(L85,L98:L101)","v":0},null,null,null,null,null,null,null,"STATIC"]
[null,null,null,"III. Мощность"]
[null,null,null,"23","Заявленная мощность","МВт","2070",{"$f":"SUM(I107:L107)","v":19.230999999999998},14.837999999999999,0,4.3929999999999998,0,null,null,null,null,null,null,null,"STATIC"]
[null,null,null,"24","Максимальная мощность","МВт","2080",{"$f":"SUM(I108:L108)","v":35.076999999999998},30.684000000000001,0,4.3929999999999998,0,null,null,null,null,null,null,null,"STATIC"]
[null,null,null,"25","Резервируемая мощность","МВт","2090",{"$f":"SUM(I109:L109)","v":15.846},15.846,0,0,0,null,null,null,null,null,null,null,"STATIC"]
[null,null,null,"IV. Фактический полезный отпуск конечным потребителям"]
[null,null,null,"26","Полезный отпуск конечным потребителям:","тыс.кВт*ч","2100",{"$f":"SUM(I111:L111)","v":0},{"$f":"SUM(I112,I113)","v":0},{"$f":"SUM(J112,J113)","v":0},{"$f":"SUM(K112,K113)","v":0},{"$f":"SUM(L112,L113)","v":0},null,null,null,null,null,null,null,"STATIC"]
[null,null,null,"26.1","по одноставочному тарифу","тыс.кВт*ч","2110",0,0,0,0,0,null,null,null,null,null,null,null,"STATIC"]
[null,null,null,"26.2","по двухставочному тарифу:","тыс.кВт*ч","2120",0,{"$f":"I116","v":0},{"$f":"J116","v":0},{"$f":"K116","v":0},{"$f":"L116","v":0},null,null,null,null,null,null,null,"STATIC"]
[null,null,null,"26.2.1","мощность, в том числе:","МВт","2130",0,0,0,0,0,null,null,null,null,null,null,null,"STATIC"]
[null,null,null,"26.2.1.1","опосредованно подключённым к шинам генераторов","МВт","2140",0,0,0,0,0,null,null,null,null,null,null,null,"STATIC"]
[null,null,null,"26.2.2","компенсация потерь","тыс.кВт*ч","2150",0,0,0,0,0,null,null,null,null,null,null,null,"STATIC"]
[null,null,null,"27","Полезный отпуск потребителям ГП, ЭСО:","тыс.кВт*ч","2160",6034.1009999999997,{"$f":"SUM(I118,I134)","v":367.25},{"$f":"SUM(J118,J134)","v":0},{"$f":"SUM(K118,K134)","v":2133.4389999999999},{"$f":"SUM(L118,L134)","v":3533.4119999999998},null,null,null,null,null,null,null,"STATIC"]
[null,null,null,"27.1","по одноставочному тарифу:","тыс.кВт*ч","2170",5908.1919999999991,{"$f":"SUM(I119:I120)","v":363.529},{"$f":"SUM(J119:J120)","v":0},{"$f":"SUM(K119:K120)","v":2108.3539999999998},{"$f":"SUM(L119:L120)","v":3436.3089999999997},null,null,null,null,null,null,null,"STATIC"]
[null,null,null,"27.1.1","прочим потребителям","тыс.кВт*ч","2180",3286.9470000000001,363.529,0,1959.731,963.68700000000001,null,null,null,null,null,null,null,"STATIC"]
[null,null,null,"27.1.2","населению и приравненным к нему категориям потребителей:","тыс.кВт*ч","2190",2621.2449999999999,{"$f":"SUM(I121,I124,I127,I130:I133)","v":0},{"$f":"SUM(J121,J124,J127,J130:J133)","v":0},{"$f":"SUM(K121,K124,K127,K130:K133)","v":148.62299999999999},{"$f":"SUM(L121,L124,L127,L130:L133)","v":2472.6219999999998},null,null,null,null,null,null,null,"STATIC"]
[null,null,null,"27.1.2.1","Населению, проживающему в городских населенных пунктах в домах, не оборудованных в установленном порядке стационарными электроплитами и (или) электроотопительными установками и приравненным к нему категориям потребителей:","тыс.кВт*ч","2200",122.03700000000001,{"$f":"SUM(I122:I123)","v":0},{"$f":"SUM(J122:J123)","v":0},{"$f":"SUM(K122:K123)","v":81.182000000000002},{"$f":"SUM(L122:L123)","v":40.854999999999997},null,null,null,null,null,null,null,"STATIC"]
[null,null,null,"27.1.2.1.1","в пределах социальной нормы потребления","тыс.кВт*ч","2210",122.03700000000001,0,0,81.182000000000002,40.854999999999997,null,null,null,null,null,null,null,"STATIC"]
[null,null,null,"27.1.2.1.2","сверх социальной нормы потребления","тыс.кВт*ч","2220",0,0,0,0,0,null,null,null,null,null,null,null,"STATIC"]
[null,null,null,"27.1.2.2","Населению, проживающему в городских населенных пунктах в домах, оборудованных в установленном порядке стационарными электроплитами и электроотопительными установками и приравненным к нему категориям потребителей:","тыс.кВт*ч","2230",1849.92,{"$f":"SUM(I125:I126)","v":0},{"$f":"SUM(J125:J126)","v":0},{"$f":"SUM(K125:K126)","v":56.64},{"$f":"SUM(L125:L126)","v":1793.28},null,null,null,null,null,null,null,"STATIC"]
[null,null,null,"27.1.2.2.1","в пределах социальной нормы потребления","тыс.кВт*ч","2240",1849.92,0,0,56.64,1793.28,null,null,null,null,null,null,null,"STATIC"]
[null,null,null,"27.1.2.2.2","сверх социальной нормы потребления","тыс.кВт*ч","2250",0,0,0,0,0,null,null,null,null,null,null,null,"STATIC"]
[null,null,null,"27.1.2.3","Населению, проживающему в сельских населенных пунктах и приравненным к нему потребителям:","тыс.кВт*ч","2260",0,{"$f":"SUM(I128:I129)","v":0},{"$f":"SUM(J128:J129)","v":0},{"$f":"SUM(K128:K129)","v":0},{"$f":"SUM(L128:L129)","v":0},null,null,null,null,null,null,null,"STATIC"]
[null,null,null,"27.1.2.3.1","в пределах социальной нормы потребления","тыс.кВт*ч","2270",0,0,0,0,0,null,null,null,null,null,null,null,"STATIC"]
[null,null,null,"27.1.2.3.2","сверх социальной нормы потребления","тыс.кВт*ч","2280",0,0,0,0,0,null,null,null,null,null,null,null,"STATIC"]
[null,null,null,"27.1.2.4","Садоводческим, огородническим или дачным некоммерческим объединениям граждан","тыс.кВт*ч","2290",0,0,0,0,0,null,null,null,null,null,null,null,"STATIC"]
[null,null,null,"27.1.2.5","Религиозным организациям","тыс.кВт*ч","2300",0,0,0,0,0,null,null,null,null,null,null,null,"STATIC"]
[null,null,null,"27.1.2.6","Юридическим лицам приобретающим электроэнергию в целях потребления на коммунально-бытовые нужды в населенных пунктах, жилых зонах при воинских частях и в целях потребления осужденными в помещениях для их содержания","тыс.кВт*ч","2310",649.28800000000001,0,0,10.801,638.48699999999997,null,null,null,null,null,null,null,"STATIC"]
[null,null,null,"27.1.2.7","Некоммерческим объединениям граждан (гаражно-строительные, гаражные кооперативы) и хозяйственные постройки физических лиц","тыс.кВт*ч","2320",0,0,0,0,0,null,null,null,null,null,null,null,"STATIC"]
[null,null,null,"27.2","по двухставочному тарифу (прочие потребители):","тыс.кВт*ч","2330",125.90899999999999,{"$f":"I137","v":3.7210000000000001},{"$f":"J137","v":0},{"$f":"K137","v":25.085000000000001},{"$f":"L137","v":97.102999999999994},null,null,null,null,null,null,null,"STATIC"]
[null,null,null,"27.2.1","мощность, в том числе:","МВт","2340",0.16300000000000001,6.0000000000000001E-3,0,3.5000000000000003E-2,0.122,null,null,null,null,null,null,null,"STATIC"]
[null,null,null,"27.2.1.1","опосредованно подключённым к шинам генераторов","МВт","2350",0,0,0,0,0,null,null,null,null,null,null,null,"STATIC"]
[null,null,null,"27.2.2","компенсация потерь","тыс.кВт*ч","2360",125.90899999999999,3.7210000000000001,0,25.085000000000001,97.102999999999994,null,null,null,null,null,null,null,"STATIC"]
[null,null,null,"28","Оплачиваемый сетевыми организациями объём оказанных услуг по индивидуальному тарифу:","тыс.кВт*ч","2370",7373.1629999999996,{"$f":"SUM(I139,I140)","v":7236.61},{"$f":"SUM(J139,J140)","v":0},{"$f":"SUM(K139,K140)","v":136.553},{"$f":"SUM(L139,L140)","v":0},null,null,null,null,null,null,null,"STATIC"]
[null,null,null,"28.1","по одноставочному тарифу","тыс.кВт*ч","2380",7373.1629999999996,7236.61,0,136.553,0,null,null,null,null,null,null,null,"STATIC"]
[null,null,null,"28.2","по двухставочному тарифу:","тыс.кВт*ч","2390",0,{"$f":"I142","v":0},{"$f":"J142","v":0},{"$f":"K142","v":0},{"$f":"L142","v":0},null,null,null,null,null,null,null,"STATIC"]
[null,null,null,"28.2.1","мощность","МВт","2400",0,0,0,0,0,null,null,null,null,null,null,null,"STATIC"]
[null,null,null,"28.2.2","компенсация потерь","тыс.кВт*ч","2410",0,0,0,0,0,null,null,null,null,null,null,null,"STATIC"]
[null,null,null,"V. Стоимость услуг"]
[null,null,null,"29","Стоимость услуг, оплачиваемая потребителями (конечными потребителями по прямым договорам и ТСО):","тыс.руб.","2420",{"$f":"SUM(I144:L144)","v":0},{"$f":"SUM(I145:I146)","v":0},{"$f":"SUM(J145:J146)","v":0},{"$f":"SUM(K145:K146)","v":0},{"$f":"SUM(L145:L146)","v":0},null,null,null,null,null,null,null,"STATIC"]
[null,null,null,"29.1","по одноставочному тарифу","тыс.руб.","2430",0,0,0,0,0,null,null,null,null,null,null,null,"STATIC"]
[null,null,null,"29.2","по двухставочному тарифу:","тыс.руб.","2440",0,{"$f":"SUM(I147,I149)","v":0},{"$f":"SUM(J147,J149)","v":0},{"$f":"SUM(K147,K149)","v":0},{"$f":"SUM(L147,L149)","v":0},null,null,null,null,null,null,null,"STATIC"]
[null,null,null,"29.2.1","мощность, в том числе:","тыс.руб.","2450",0,0,0,0,0,null,null,null,null,null,null,null,"STATIC"]
[null,null,null,"29.2.1.1","опосредованно потребителям с шин генераторов","тыс.руб.","2460",0,0,0,0,0,null,null,null,null,null,null,null,"STATIC"]
[null,null,null,"29.2.2","компенсация потерь","тыс.руб.","2470",0,0,0,0,0,null,null,null,null,null,null,null,"STATIC"]
[null,null,null,"30","Стоимость услуг, оплачиваемая ГП, ЭСО:","тыс.руб.","2480",13319.536,{"$f":"SUM(I151,I156)","v":840.97699999999998},{"$f":"SUM(J151,J156)","v":0},{"$f":"SUM(K151,K156)","v":8002.9170000000004},{"$f":"SUM(L151,L156)","v":4475.6419999999998},null,null,null,null,null,null,null,"STATIC"]
[null,null,null,"30.1","по одноставочному тарифу","тыс.руб.","2490",12988.099000000002,{"$f":"SUM(I152:I153)","v":831.06200000000001},{"$f":"SUM(J152:J153)","v":0},{"$f":"SUM(K152:K153)","v":7909.692},{"$f":"SUM(L152:L153)","v":4247.3450000000003},null,null,null,null,null,null,null,"STATIC"]
[null,null,null,"30.1.1","прочим потребителям","тыс.руб.","2500",12738.005000000001,831.06200000000001,0,7839.8329999999996,4067.11,null,null,null,null,null,null,null,"STATIC"]
[null,null,null,"30.1.2","населению и приравненным к нему категориям потребителей:","тыс.руб.","2510",250.09399999999999,{"$f":"SUM(I154:I155)","v":0},{"$f":"SUM(J154:J155)","v":0},{"$f":"SUM(K154:K155)","v":69.858999999999995},{"$f":"SUM(L154:L155)","v":180.23500000000001},null,null,null,null,null,null,null,"STATIC"]
[null,null,null,"30.1.2.1","в пределах социальной нормы потребления","тыс.руб.","2520",250.09399999999999,0,0,69.858999999999995,180.23500000000001,null,null,null,null,null,null,null,"STATIC"]
[null,null,null,"30.1.2.2","сверх социальной нормы потребления ","тыс.руб.","2530",0,0,0,0,0,null,null,null,null,null,null,null,"STATIC"]
[null,null,null,"30.2","по двухставочному тарифу (прочие потребители):","тыс.руб.","2540",331.43700000000001,{"$f":"SUM(I157,I159)","v":9.9149999999999991},{"$f":"SUM(J157,J159)","v":0},{"$f":"SUM(K157,K159)","v":93.225000000000009},{"$f":"SUM(L157,L159)","v":228.297},null,null,null,null,null,null,null,"STATIC"]
[null,null,null,"30.2.1","мощность, в том числе:","тыс.руб.","2550",263.18799999999999,9.5229999999999997,0,85.852000000000004,167.81299999999999,null,null,null,null,null,null,null,"STATIC"]
[null,null,null,"30.2.1.1","опосредованно потребителям с шин генераторов","тыс.руб.","2560",0,0,0,0,0,null,null,null,null,null,null,null,"STATIC"]
[null,null,null,"30.2.2","компенсация потерь","тыс.руб.","2570",68.248999999999995,0.39200000000000002,0,7.3730000000000002,60.484000000000002,null,null,null,null,null,null,null,"STATIC"]
[null,null,null,"31","Стоимость услуг, оплачиваемых сетевыми организациями по индивидуальному тарифу:","тыс.руб.","2580",1944.2140000000002,{"$f":"SUM(I161:I162)","v":1908.2070000000001},{"$f":"SUM(J161:J162)","v":0},{"$f":"SUM(K161:K162)","v":36.006999999999998},{"$f":"SUM(L161:L162)","v":0},null,null,null,null,null,null,null,"STATIC"]
[null,null,null,"31.1","по одноставочному тарифу","тыс.руб.","2590",1944.2140000000002,1908.2070000000001,0,36.006999999999998,0,null,null,null,null,null,null,null,"STATIC"]
[null,null,null,"31.2","по двухставочному тарифу:","тыс.руб.","2600",0,{"$f":"SUM(I163:I164)","v":0},{"$f":"SUM(J163:J164)","v":0},{"$f":"SUM(K163:K164)","v":0},{"$f":"SUM(L163:L164)","v":0},null,null,null,null,null,null,null,"STATIC"]
[null,null,null,"31.2.1","мощность","тыс.руб.","2610",0,0,0,0,0,null,null,null,null,null,null,null,"STATIC"]
[null,null,null,"31.2.2","компенсация потерь","тыс.руб.","2620",0,0,0,0,0,null,null,null,null,null,null,null,"STATIC"]

{"sheet":"TECHSHEET","index":3,"n_rows":992,"n_cols":15,"rows_kept":992,"cut":false,"hidden":true,"merged":[]}
["Алтайский край","RU22","Алтайский край",null,"YES_NO",null,"PERIOD",null,"Pospelova","LOGIN",null,"MONTH_LIST",null,null,"YEAR_LIST"]
["Амурская область","RU28","Амурская область",null,"Да",null,{"$f":"YEAR","v":"2024"},null,"2FF90388BE3E49C6E675DC955D62D6E5","PASSWORD",null,"Январь",1,null,2022]
["Архангельская область","RU29","Архангельская область",null,"Нет",null,null,null,"MD5","ATH_SCHEME",null,"Февраль",2,null,2023]
["Астраханская область","RU30","Астраханская область",null,null,null,"Организация",null,"YES","RETAIN_PASSWORD",null,"Март",3,null,2024]
["Белгородская область","RU31","Белгородская область",null,null,null,{"$f":"\"01.01.\"&PERIOD","v":"01.01.2024"},null,"YOgEFjopMwxdVAwUFJmpfHTTAkzxsWJqmkWzpGPTWvTglrAvoShhHUIYzfCxGxgz178i236i213i18, 194i226i26i82C04481B289A82E848E4FD7F3D5C6DE819dFEBd2407t56t03t918537000","SESSION_ID",null,"Апрель",4,null,2025]
["Брянская область","RU32","Брянская область",null,"REPORT_TYPE_LIST",null,{"$f":"\"31.12.\"&PERIOD","v":"31.12.2024"},null,null,"OBFUSCATED_PASSWORD",null,"Май",5]
["Владимирская область","RU33","Владимирская область",null,"В целом по организации",null,null,null,null,null,null,"Июнь",6]
["Волгоградская область","RU34","Волгоградская область",null,"По обособленному подразделению",null,"Виды деятельности",null,null,null,null,"Июль",7]
["Вологодская область","RU35","Вологодская область",null,null,null,{"$f":"\"01.01.\"&PERIOD","v":"01.01.2024"},null,null,null,null,"Август",8]
["Воронежская область","RU36","Воронежская область",null,null,null,{"$f":"\"31.12.\"&PERIOD","v":"31.12.2024"},null,null,null,null,"Сентябрь",9]
["г. Москва","RU77","Москва",null,"TAX_SYSTEM_LIST",null,null,null,null,null,null,"Октябрь",10]
["г. Байконур","RU00",null,null,"ОСН",null,"Территории",null,null,null,null,"Ноябрь",11]
["г. Санкт-Петербург","RU78","Cанкт-Петербург",null,"УСН",null,{"$f":"\"01.01.\"&PERIOD","v":"01.01.2024"},null,null,null,null,"Декабрь",12]
["г. Севастополь","RU92","Севастополь",null,"ПСН",null,{"$f":"\"31.12.\"&PERIOD","v":"31.12.2024"},null,null,null,null,"Год",13]
["Донецкая Народная Республика",null,null,null,"ЕНВД"]
["Еврейская автономная область","RU79","Еврейская автономная область",null,"ЕСХН",null,"JUSTIFICATION_SAMPLE_URL"]
["Забайкальский край","RU75","Забайкальский край",null,"налогообложение казённых учреждений",null,"https://eias.ru/files/46ep.stx.eias.justification.rtf"]
["Запорожская область"]
["Ивановская область","RU37","Ивановская область",null,null,null,"IMPORT_DATA_DESCRIPTION_URL"]
["Иркутская область","RU38","Иркутская область",null,null,null,"https://sp.eias.ru/knowledgebase.php?article=125"]
["Кабардино-Балкарская республика","RU07","Республика Кабардино-Балкария"]
["Калининградская область","RU39","Калининградская область"]
["Калужская область","RU40","Калужская область"]
["Камчатский край","RU41","Камчатский край"]
["Карачаево-Черкесская республика","RU09","Республика Карачаево-Черкессия"]
["Кемеровская область","RU42","Кемеровская область"]
["Кировская область","RU43","Кировская область"]
["Костромская область","RU44","Костромская область"]
["Краснодарский край","RU23","Краснодарский край"]
["Красноярский край","RU24","Красноярский край"]
["Курганская область","RU45","Курганская область"]
["Курская область","RU46","Курская область"]
["Ленинградская область","RU47","Ленинградская область"]
["Липецкая область","RU48","Липецкая область"]
["Луганская Народная Республика"]
["Магаданская область","RU49","Магаданская область"]
["Московская область","RU50","Московская область"]
["Мурманская область","RU51","Мурманская область"]
["Ненецкий автономный округ","RU83","Ненецкий автономный округ"]
["Нижегородская область","RU52","Нижегородская область"]
["Новгородская область","RU53","Новгородская область"]
["Новосибирская область","RU54","Новосибирская область"]
["Омская область","RU55","Омская область"]
["Оренбургская область","RU56","Оренбургская область"]
["Орловская область","RU57","Орловская область"]
["Пензенская область","RU58","Пензенская область"]
["Пермский край","RU59","Пермский край"]
["Приморский край","RU25","Приморский край"]
["Псковская область","RU60","Псковская область"]
["Республика Адыгея","RU01","Республика Адыгея"]
["Республика Алтай","RU04","Республика Алтай"]
["Республика Башкортостан","RU02","Республика Башкортостан"]
["Республика Бурятия","RU03","Республика Бурятия"]
["Республика Дагестан","RU05","Республика Дагестан"]
["Республика Ингушетия","RU06","Республика Ингушетия"]
["Республика Калмыкия","RU08","Республика Калмыкия"]
["Республика Карелия","RU10","Республика Карелия"]
["Республика Коми","RU11","Республика Коми"]
["Республика Крым","RU82","Крым"]
["Республика Марий Эл","RU12","Республика Марий Эл"]
["Республика Мордовия","RU13","Республика Мордовия"]
["Республика Саха (Якутия)","RU14","Республика Саха (Якутия)"]
["Республика Северная Осетия-Алания","RU15","Республика Северная Осетия (Алания)"]
["Республика Татарстан","RU16","Республика Татарстан"]
["Республика Тыва","RU17","Республика Тыва (Тува)"]
["Республика Хакасия","RU19","Республика Хакасия"]
["Ростовская область","RU61","Ростовская область"]
["Рязанская область","RU62","Рязанская область"]
["Самарская область","RU63","Самарская область"]
["Саратовская область","RU64","Саратовская область"]
["Сахалинская область","RU65","Сахалинская область"]
["Свердловская область","RU66","Свердловская область"]
["Смоленская область","RU67","Смоленская область"]
["Ставропольский край","RU26","Ставропольский край"]
["Тамбовская область","RU68","Тамбовская область"]
["Тверская область","RU69","Тверская область"]
["Томская область","RU70","Томская область"]
["Тульская область","RU71","Тульская область"]
["Тюменская область","RU72","Тюменская область"]
["Удмуртская республика","RU18","Республика Удмуртия"]
["Ульяновская область","RU73","Ульяновская область"]
["Хабаровский край","RU27","Хабаровский край"]
["Ханты-Мансийский автономный округ","RU86","Ханты-Мансийский автономный округ"]
["Херсонская область"]
["Челябинская область","RU74","Челябинская область"]
["Чеченская республика","RU20","Республика Чечня"]
["Чувашская республика","RU21","Республика Чувашия"]
["Чукотский автономный округ","RU87","Чукотский автономный округ"]
["Ямало-Ненецкий автономный округ","RU89","Ямало-Ненецкий автономный округ"]
["Ярославская область","RU76","Ярославская область"]
[]
[]
[]
[]
[]
[]
[]
[]
[]
[]
[]
[]
[]
[]
[]
[]
[]
[]
[]
[]
[]
[]
[]
[]
[]
[]
[]
[]
[]
[]
[]
[]
[]
[]
[]
[]
[]
[]
[]
[]
[]
[]
[]
[]
[]
[]
[]
[]
[]
[]
[]
[]
[]
[]
[]
[]
[]
[]
[]
[]
[]
[]
[]
[]
[]
[]
[]
[]
[]
[]
[]
[]
[]
[]
[]
[]
[]
[]
[]
[]
[]
[]
[]
[]
[]
[]
[]
[]
[]
[]
[]
[]
[]
[]
[]
[]
[]
[]
[]
[]
[]
[]
[]
[]
[]
[]
[]
[]
[]
[]
[]
[]
[]
[]
[]
[]
[]
[]
[]
[]
[]
[]
[]
[]
[]
[]
[]
[]
[]
[]
[]
[]
[]
[]
[]
[]
[]
[]
[]
[]
[]
[]
[]
[]
[]
[]
[]
[]
[]
[]
[]
[]
[]
[]
[]
[]
[]
[]
[]
[]
[]
[]
[]
[]
[]
[]
[]
[]
[]
[]
[]
[]
[]
[]
[]
[]
[]
[]
[]
[]
[]
[]
[]
[]
[]
[]
[]
[]
[]
[]
[]
[]
[]
[]
[]
[]
[]
[]
[]
[]
[]
[]
[]
[]
[]
[]
[]
[]
[]
[]
[]
[]
[]
[]
[]
[]
[]
[]
[]
[]
[]
[]
[]
[]
[]
[]
[]
[]
[]
[]
[]
[]
[]
[]
[]
[]
[]
[]
[]
[]
[]
[]
[]
[]
[]
[]
[]
[]
[]
[]
[]
[]
[]
[]
[]
[]
[]
[]
[]
[]
[]
[]
[]
[]
[]
[]
[]
[]
[]
[]
[]
[]
[]
[]
[]
[]
[]
[]
[]
[]
[]
[]
[]
[]
[]
[]
[]
[]
[]
[]
[]
[]
[]
[]
[]
[]
[]
[]
[]
[]
[]
[]
[]
[]
[]
[]
[]
[]
[]
[]
[]
[]
[]
[]
[]
[]
[]
[]
[]
[]
[]
[]
[]
[]
[]
[]
[]
[]
[]
[]
[]
[]
[]
[]
[]
[]
[]
[]
[]
[]
[]
[]
[]
[]
[]
[]
[]
[]
[]
[]
[]
[]
[]
[]
[]
[]
[]
[]
[]
[]
[]
[]
[]
[]
[]
[]
[]
[{"$f":"\"HTP.P('<\"&#REF!&\">' || \"&IF(MID(#REF!,1,4)=\"STUB\",\"NULL\",\"REC.\"&#REF!)&\" || '</\"&#REF!&\">');\"","v":{"$error":"#REF!"}},null,{"$f":"\"DECODE(C_T.\"&#REF!&\", 0, NULL, C_T.\"&#REF!&\") AS \"&#REF!&\",\"","v":{"$error":"#REF!"}}]
[{"$f":"\"HTP.P('<\"&#REF!&\">' || \"&IF(MID(#REF!,1,4)=\"STUB\",\"NULL\",\"REC.\"&#REF!)&\" || '</\"&#REF!&\">');\"","v":{"$error":"#REF!"}},null,{"$f":"\"DECODE(C_T.\"&#REF!&\", 0, NULL, C_T.\"&#REF!&\") AS \"&#REF!&\",\"","v":{"$error":"#REF!"}}]
[{"$f":"\"HTP.P('<\"&#REF!&\">' || \"&IF(MID(#REF!,1,4)=\"STUB\",\"NULL\",\"REC.\"&#REF!)&\" || '</\"&#REF!&\">');\"","v":{"$error":"#REF!"}},null,{"$f":"\"DECODE(C_T.\"&#REF!&\", 0, NULL, C_T.\"&#REF!&\") AS \"&#REF!&\",\"","v":{"$error":"#REF!"}}]
[{"$f":"\"HTP.P('<\"&#REF!&\">' || \"&IF(MID(#REF!,1,4)=\"STUB\",\"NULL\",\"REC.\"&#REF!)&\" || '</\"&#REF!&\">');\"","v":{"$error":"#REF!"}},null,{"$f":"\"DECODE(C_T.\"&#REF!&\", 0, NULL, C_T.\"&#REF!&\") AS \"&#REF!&\",\"","v":{"$error":"#REF!"}}]
[{"$f":"\"HTP.P('<\"&#REF!&\">' || \"&IF(MID(#REF!,1,4)=\"STUB\",\"NULL\",\"REC.\"&#REF!)&\" || '</\"&#REF!&\">');\"","v":{"$error":"#REF!"}},null,{"$f":"\"DECODE(C_T.\"&#REF!&\", 0, NULL, C_T.\"&#REF!&\") AS \"&#REF!&\",\"","v":{"$error":"#REF!"}}]
[{"$f":"\"HTP.P('<\"&#REF!&\">' || \"&IF(MID(#REF!,1,4)=\"STUB\",\"NULL\",\"REC.\"&#REF!)&\" || '</\"&#REF!&\">');\"","v":{"$error":"#REF!"}},null,{"$f":"\"DECODE(C_T.\"&#REF!&\", 0, NULL, C_T.\"&#REF!&\") AS \"&#REF!&\",\"","v":{"$error":"#REF!"}}]
[{"$f":"\"HTP.P('<\"&#REF!&\">' || \"&IF(MID(#REF!,1,4)=\"STUB\",\"NULL\",\"REC.\"&#REF!)&\" || '</\"&#REF!&\">');\"","v":{"$error":"#REF!"}},null,{"$f":"\"DECODE(C_T.\"&#REF!&\", 0, NULL, C_T.\"&#REF!&\") AS \"&#REF!&\",\"","v":{"$error":"#REF!"}}]
[{"$f":"\"HTP.P('<\"&#REF!&\">' || \"&IF(MID(#REF!,1,4)=\"STUB\",\"NULL\",\"REC.\"&#REF!)&\" || '</\"&#REF!&\">');\"","v":{"$error":"#REF!"}},null,{"$f":"\"DECODE(C_T.\"&#REF!&\", 0, NULL, C_T.\"&#REF!&\") AS \"&#REF!&\",\"","v":{"$error":"#REF!"}}]
[{"$f":"\"HTP.P('<\"&#REF!&\">' || \"&IF(MID(#REF!,1,4)=\"STUB\",\"NULL\",\"REC.\"&#REF!)&\" || '</\"&#REF!&\">');\"","v":{"$error":"#REF!"}},null,{"$f":"\"DECODE(C_T.\"&#REF!&\", 0, NULL, C_T.\"&#REF!&\") AS \"&#REF!&\",\"","v":{"$error":"#REF!"}}]
[{"$f":"\"HTP.P('<\"&#REF!&\">' || \"&IF(MID(#REF!,1,4)=\"STUB\",\"NULL\",\"REC.\"&#REF!)&\" || '</\"&#REF!&\">');\"","v":{"$error":"#REF!"}},null,{"$f":"\"DECODE(C_T.\"&#REF!&\", 0, NULL, C_T.\"&#REF!&\") AS \"&#REF!&\",\"","v":{"$error":"#REF!"}}]
[{"$f":"\"HTP.P('<\"&#REF!&\">' || \"&IF(MID(#REF!,1,4)=\"STUB\",\"NULL\",\"REC.\"&#REF!)&\" || '</\"&#REF!&\">');\"","v":{"$error":"#REF!"}},null,{"$f":"\"DECODE(C_T.\"&#REF!&\", 0, NULL, C_T.\"&#REF!&\") AS \"&#REF!&\",\"","v":{"$error":"#REF!"}}]
[{"$f":"\"HTP.P('<\"&#REF!&\">' || \"&IF(MID(#REF!,1,4)=\"STUB\",\"NULL\",\"REC.\"&#REF!)&\" || '</\"&#REF!&\">');\"","v":{"$error":"#REF!"}},null,{"$f":"\"DECODE(C_T.\"&#REF!&\", 0, NULL, C_T.\"&#REF!&\") AS \"&#REF!&\",\"","v":{"$error":"#REF!"}}]
[{"$f":"\"HTP.P('<\"&#REF!&\">' || \"&IF(MID(#REF!,1,4)=\"STUB\",\"NULL\",\"REC.\"&#REF!)&\" || '</\"&#REF!&\">');\"","v":{"$error":"#REF!"}},null,{"$f":"\"DECODE(C_T.\"&#REF!&\", 0, NULL, C_T.\"&#REF!&\") AS \"&#REF!&\",\"","v":{"$error":"#REF!"}}]
[{"$f":"\"HTP.P('<\"&#REF!&\">' || \"&IF(MID(#REF!,1,4)=\"STUB\",\"NULL\",\"REC.\"&#REF!)&\" || '</\"&#REF!&\">');\"","v":{"$error":"#REF!"}},null,{"$f":"\"DECODE(C_T.\"&#REF!&\", 0, NULL, C_T.\"&#REF!&\") AS \"&#REF!&\",\"","v":{"$error":"#REF!"}}]
[{"$f":"\"HTP.P('<\"&#REF!&\">' || \"&IF(MID(#REF!,1,4)=\"STUB\",\"NULL\",\"REC.\"&#REF!)&\" || '</\"&#REF!&\">');\"","v":{"$error":"#REF!"}},null,{"$f":"\"DECODE(C_T.\"&#REF!&\", 0, NULL, C_T.\"&#REF!&\") AS \"&#REF!&\",\"","v":{"$error":"#REF!"}}]
[{"$f":"\"HTP.P('<\"&G399&\">' || \"&IF(MID(G399,1,4)=\"STUB\",\"NULL\",\"REC.\"&G399)&\" || '</\"&G399&\">');\"","v":"HTP.P('<>' || REC. || '</>');"},null,{"$f":"\"DECODE(C_T.\"&G399&\", 0, NULL, C_T.\"&G399&\") AS \"&G399&\",\"","v":"DECODE(C_T., 0, NULL, C_T.) AS ,"}]
[{"$f":"\"HTP.P('<\"&#REF!&\">' || \"&IF(MID(#REF!,1,4)=\"STUB\",\"NULL\",\"REC.\"&#REF!)&\" || '</\"&#REF!&\">');\"","v":{"$error":"#REF!"}},null,{"$f":"\"DECODE(C_T.\"&#REF!&\", 0, NULL, C_T.\"&#REF!&\") AS \"&#REF!&\",\"","v":{"$error":"#REF!"}}]
[{"$f":"\"HTP.P('<\"&#REF!&\">' || \"&IF(MID(#REF!,1,4)=\"STUB\",\"NULL\",\"REC.\"&#REF!)&\" || '</\"&#REF!&\">');\"","v":{"$error":"#REF!"}},null,{"$f":"\"DECODE(C_T.\"&#REF!&\", 0, NULL, C_T.\"&#REF!&\") AS \"&#REF!&\",\"","v":{"$error":"#REF!"}}]
[{"$f":"\"HTP.P('<\"&#REF!&\">' || \"&IF(MID(#REF!,1,4)=\"STUB\",\"NULL\",\"REC.\"&#REF!)&\" || '</\"&#REF!&\">');\"","v":{"$error":"#REF!"}},null,{"$f":"\"DECODE(C_T.\"&#REF!&\", 0, NULL, C_T.\"&#REF!&\") AS \"&#REF!&\",\"","v":{"$error":"#REF!"}}]
[{"$f":"\"HTP.P('<\"&#REF!&\">' || \"&IF(MID(#REF!,1,4)=\"STUB\",\"NULL\",\"REC.\"&#REF!)&\" || '</\"&#REF!&\">');\"","v":{"$error":"#REF!"}},null,{"$f":"\"DECODE(C_T.\"&#REF!&\", 0, NULL, C_T.\"&#REF!&\") AS \"&#REF!&\",\"","v":{"$error":"#REF!"}}]
[{"$f":"\"HTP.P('<\"&#REF!&\">' || \"&IF(MID(#REF!,1,4)=\"STUB\",\"NULL\",\"REC.\"&#REF!)&\" || '</\"&#REF!&\">');\"","v":{"$error":"#REF!"}},null,{"$f":"\"DECODE(C_T.\"&#REF!&\", 0, NULL, C_T.\"&#REF!&\") AS \"&#REF!&\",\"","v":{"$error":"#REF!"}}]
[{"$f":"\"HTP.P('<\"&#REF!&\">' || \"&IF(MID(#REF!,1,4)=\"STUB\",\"NULL\",\"REC.\"&#REF!)&\" || '</\"&#REF!&\">');\"","v":{"$error":"#REF!"}},null,{"$f":"\"DECODE(C_T.\"&#REF!&\", 0, NULL, C_T.\"&#REF!&\") AS \"&#REF!&\",\"","v":{"$error":"#REF!"}}]
[{"$f":"\"HTP.P('<\"&#REF!&\">' || \"&IF(MID(#REF!,1,4)=\"STUB\",\"NULL\",\"REC.\"&#REF!)&\" || '</\"&#REF!&\">');\"","v":{"$error":"#REF!"}},null,{"$f":"\"DECODE(C_T.\"&#REF!&\", 0, NULL, C_T.\"&#REF!&\") AS \"&#REF!&\",\"","v":{"$error":"#REF!"}}]
[{"$f":"\"HTP.P('<\"&#REF!&\">' || \"&IF(MID(#REF!,1,4)=\"STUB\",\"NULL\",\"REC.\"&#REF!)&\" || '</\"&#REF!&\">');\"","v":{"$error":"#REF!"}},null,{"$f":"\"DECODE(C_T.\"&#REF!&\", 0, NULL, C_T.\"&#REF!&\") AS \"&#REF!&\",\"","v":{"$error":"#REF!"}}]
[{"$f":"\"HTP.P('<\"&#REF!&\">' || \"&IF(MID(#REF!,1,4)=\"STUB\",\"NULL\",\"REC.\"&#REF!)&\" || '</\"&#REF!&\">');\"","v":{"$error":"#REF!"}},null,{"$f":"\"DECODE(C_T.\"&#REF!&\", 0, NULL, C_T.\"&#REF!&\") AS \"&#REF!&\",\"","v":{"$error":"#REF!"}}]
[{"$f":"\"HTP.P('<\"&#REF!&\">' || \"&IF(MID(#REF!,1,4)=\"STUB\",\"NULL\",\"REC.\"&#REF!)&\" || '</\"&#REF!&\">');\"","v":{"$error":"#REF!"}},null,{"$f":"\"DECODE(C_T.\"&#REF!&\", 0, NULL, C_T.\"&#REF!&\") AS \"&#REF!&\",\"","v":{"$error":"#REF!"}}]
[{"$f":"\"HTP.P('<\"&#REF!&\">' || \"&IF(MID(#REF!,1,4)=\"STUB\",\"NULL\",\"REC.\"&#REF!)&\" || '</\"&#REF!&\">');\"","v":{"$error":"#REF!"}},null,{"$f":"\"DECODE(C_T.\"&#REF!&\", 0, NULL, C_T.\"&#REF!&\") AS \"&#REF!&\",\"","v":{"$error":"#REF!"}}]
[{"$f":"\"HTP.P('<\"&#REF!&\">' || \"&IF(MID(#REF!,1,4)=\"STUB\",\"NULL\",\"REC.\"&#REF!)&\" || '</\"&#REF!&\">');\"","v":{"$error":"#REF!"}},null,{"$f":"\"DECODE(C_T.\"&#REF!&\", 0, NULL, C_T.\"&#REF!&\") AS \"&#REF!&\",\"","v":{"$error":"#REF!"}}]
[{"$f":"\"HTP.P('<\"&#REF!&\">' || \"&IF(MID(#REF!,1,4)=\"STUB\",\"NULL\",\"REC.\"&#REF!)&\" || '</\"&#REF!&\">');\"","v":{"$error":"#REF!"}},null,{"$f":"\"DECODE(C_T.\"&#REF!&\", 0, NULL, C_T.\"&#REF!&\") AS \"&#REF!&\",\"","v":{"$error":"#REF!"}}]
[{"$f":"\"HTP.P('<\"&#REF!&\">' || \"&IF(MID(#REF!,1,4)=\"STUB\",\"NULL\",\"REC.\"&#REF!)&\" || '</\"&#REF!&\">');\"","v":{"$error":"#REF!"}},null,{"$f":"\"DECODE(C_T.\"&#REF!&\", 0, NULL, C_T.\"&#REF!&\") AS \"&#REF!&\",\"","v":{"$error":"#REF!"}}]
[{"$f":"\"HTP.P('<\"&#REF!&\">' || \"&IF(MID(#REF!,1,4)=\"STUB\",\"NULL\",\"REC.\"&#REF!)&\" || '</\"&#REF!&\">');\"","v":{"$error":"#REF!"}},null,{"$f":"\"DECODE(C_T.\"&#REF!&\", 0, NULL, C_T.\"&#REF!&\") AS \"&#REF!&\",\"","v":{"$error":"#REF!"}}]
[{"$f":"\"HTP.P('<\"&#REF!&\">' || \"&IF(MID(#REF!,1,4)=\"STUB\",\"NULL\",\"REC.\"&#REF!)&\" || '</\"&#REF!&\">');\"","v":{"$error":"#REF!"}},null,{"$f":"\"DECODE(C_T.\"&#REF!&\", 0, NULL, C_T.\"&#REF!&\") AS \"&#REF!&\",\"","v":{"$error":"#REF!"}}]
[{"$f":"\"HTP.P('<\"&#REF!&\">' || \"&IF(MID(#REF!,1,4)=\"STUB\",\"NULL\",\"REC.\"&#REF!)&\" || '</\"&#REF!&\">');\"","v":{"$error":"#REF!"}},null,{"$f":"\"DECODE(C_T.\"&#REF!&\", 0, NULL, C_T.\"&#REF!&\") AS \"&#REF!&\",\"","v":{"$error":"#REF!"}}]
[{"$f":"\"HTP.P('<\"&#REF!&\">' || \"&IF(MID(#REF!,1,4)=\"STUB\",\"NULL\",\"REC.\"&#REF!)&\" || '</\"&#REF!&\">');\"","v":{"$error":"#REF!"}},null,{"$f":"\"DECODE(C_T.\"&#REF!&\", 0, NULL, C_T.\"&#REF!&\") AS \"&#REF!&\",\"","v":{"$error":"#REF!"}}]
[{"$f":"\"HTP.P('<\"&#REF!&\">' || \"&IF(MID(#REF!,1,4)=\"STUB\",\"NULL\",\"REC.\"&#REF!)&\" || '</\"&#REF!&\">');\"","v":{"$error":"#REF!"}},null,{"$f":"\"DECODE(C_T.\"&#REF!&\", 0, NULL, C_T.\"&#REF!&\") AS \"&#REF!&\",\"","v":{"$error":"#REF!"}}]
[{"$f":"\"HTP.P('<\"&#REF!&\">' || \"&IF(MID(#REF!,1,4)=\"STUB\",\"NULL\",\"REC.\"&#REF!)&\" || '</\"&#REF!&\">');\"","v":{"$error":"#REF!"}},null,{"$f":"\"DECODE(C_T.\"&#REF!&\", 0, NULL, C_T.\"&#REF!&\") AS \"&#REF!&\",\"","v":{"$error":"#REF!"}}]
[{"$f":"\"HTP.P('<\"&#REF!&\">' || \"&IF(MID(#REF!,1,4)=\"STUB\",\"NULL\",\"REC.\"&#REF!)&\" || '</\"&#REF!&\">');\"","v":{"$error":"#REF!"}},null,{"$f":"\"DECODE(C_T.\"&#REF!&\", 0, NULL, C_T.\"&#REF!&\") AS \"&#REF!&\",\"","v":{"$error":"#REF!"}}]
[{"$f":"\"HTP.P('<\"&#REF!&\">' || \"&IF(MID(#REF!,1,4)=\"STUB\",\"NULL\",\"REC.\"&#REF!)&\" || '</\"&#REF!&\">');\"","v":{"$error":"#REF!"}},null,{"$f":"\"DECODE(C_T.\"&#REF!&\", 0, NULL, C_T.\"&#REF!&\") AS \"&#REF!&\",\"","v":{"$error":"#REF!"}}]
[{"$f":"\"HTP.P('<\"&#REF!&\">' || \"&IF(MID(#REF!,1,4)=\"STUB\",\"NULL\",\"REC.\"&#REF!)&\" || '</\"&#REF!&\">');\"","v":{"$error":"#REF!"}},null,{"$f":"\"DECODE(C_T.\"&#REF!&\", 0, NULL, C_T.\"&#REF!&\") AS \"&#REF!&\",\"","v":{"$error":"#REF!"}}]
[{"$f":"\"HTP.P('<\"&#REF!&\">' || \"&IF(MID(#REF!,1,4)=\"STUB\",\"NULL\",\"REC.\"&#REF!)&\" || '</\"&#REF!&\">');\"","v":{"$error":"#REF!"}},null,{"$f":"\"DECODE(C_T.\"&#REF!&\", 0, NULL, C_T.\"&#REF!&\") AS \"&#REF!&\",\"","v":{"$error":"#REF!"}}]
[{"$f":"\"HTP.P('<\"&#REF!&\">' || \"&IF(MID(#REF!,1,4)=\"STUB\",\"NULL\",\"REC.\"&#REF!)&\" || '</\"&#REF!&\">');\"","v":{"$error":"#REF!"}},null,{"$f":"\"DECODE(C_T.\"&#REF!&\", 0, NULL, C_T.\"&#REF!&\") AS \"&#REF!&\",\"","v":{"$error":"#REF!"}}]
[{"$f":"\"HTP.P('<\"&#REF!&\">' || \"&IF(MID(#REF!,1,4)=\"STUB\",\"NULL\",\"REC.\"&#REF!)&\" || '</\"&#REF!&\">');\"","v":{"$error":"#REF!"}},null,{"$f":"\"DECODE(C_T.\"&#REF!&\", 0, NULL, C_T.\"&#REF!&\") AS \"&#REF!&\",\"","v":{"$error":"#REF!"}}]
[{"$f":"\"HTP.P('<\"&#REF!&\">' || \"&IF(MID(#REF!,1,4)=\"STUB\",\"NULL\",\"REC.\"&#REF!)&\" || '</\"&#REF!&\">');\"","v":{"$error":"#REF!"}},null,{"$f":"\"DECODE(C_T.\"&#REF!&\", 0, NULL, C_T.\"&#REF!&\") AS \"&#REF!&\",\"","v":{"$error":"#REF!"}}]
[{"$f":"\"HTP.P('<\"&#REF!&\">' || \"&IF(MID(#REF!,1,4)=\"STUB\",\"NULL\",\"REC.\"&#REF!)&\" || '</\"&#REF!&\">');\"","v":{"$error":"#REF!"}},null,{"$f":"\"DECODE(C_T.\"&#REF!&\", 0, NULL, C_T.\"&#REF!&\") AS \"&#REF!&\",\"","v":{"$error":"#REF!"}}]
[{"$f":"\"HTP.P('<\"&#REF!&\">' || \"&IF(MID(#REF!,1,4)=\"STUB\",\"NULL\",\"REC.\"&#REF!)&\" || '</\"&#REF!&\">');\"","v":{"$error":"#REF!"}},null,{"$f":"\"DECODE(C_T.\"&#REF!&\", 0, NULL, C_T.\"&#REF!&\") AS \"&#REF!&\",\"","v":{"$error":"#REF!"}}]
[{"$f":"\"HTP.P('<\"&#REF!&\">' || \"&IF(MID(#REF!,1,4)=\"STUB\",\"NULL\",\"REC.\"&#REF!)&\" || '</\"&#REF!&\">');\"","v":{"$error":"#REF!"}},null,{"$f":"\"DECODE(C_T.\"&#REF!&\", 0, NULL, C_T.\"&#REF!&\") AS \"&#REF!&\",\"","v":{"$error":"#REF!"}}]
[{"$f":"\"HTP.P('<\"&#REF!&\">' || \"&IF(MID(#REF!,1,4)=\"STUB\",\"NULL\",\"REC.\"&#REF!)&\" || '</\"&#REF!&\">');\"","v":{"$error":"#REF!"}},null,{"$f":"\"DECODE(C_T.\"&#REF!&\", 0, NULL, C_T.\"&#REF!&\") AS \"&#REF!&\",\"","v":{"$error":"#REF!"}}]
[{"$f":"\"HTP.P('<\"&#REF!&\">' || \"&IF(MID(#REF!,1,4)=\"STUB\",\"NULL\",\"REC.\"&#REF!)&\" || '</\"&#REF!&\">');\"","v":{"$error":"#REF!"}},null,{"$f":"\"DECODE(C_T.\"&#REF!&\", 0, NULL, C_T.\"&#REF!&\") AS \"&#REF!&\",\"","v":{"$error":"#REF!"}}]
[{"$f":"\"HTP.P('<\"&#REF!&\">' || \"&IF(MID(#REF!,1,4)=\"STUB\",\"NULL\",\"REC.\"&#REF!)&\" || '</\"&#REF!&\">');\"","v":{"$error":"#REF!"}},null,{"$f":"\"DECODE(C_T.\"&#REF!&\", 0, NULL, C_T.\"&#REF!&\") AS \"&#REF!&\",\"","v":{"$error":"#REF!"}}]
[{"$f":"\"HTP.P('<\"&#REF!&\">' || \"&IF(MID(#REF!,1,4)=\"STUB\",\"NULL\",\"REC.\"&#REF!)&\" || '</\"&#REF!&\">');\"","v":{"$error":"#REF!"}},null,{"$f":"\"DECODE(C_T.\"&#REF!&\", 0, NULL, C_T.\"&#REF!&\") AS \"&#REF!&\",\"","v":{"$error":"#REF!"}}]
[{"$f":"\"HTP.P('<\"&#REF!&\">' || \"&IF(MID(#REF!,1,4)=\"STUB\",\"NULL\",\"REC.\"&#REF!)&\" || '</\"&#REF!&\">');\"","v":{"$error":"#REF!"}},null,{"$f":"\"DECODE(C_T.\"&#REF!&\", 0, NULL, C_T.\"&#REF!&\") AS \"&#REF!&\",\"","v":{"$error":"#REF!"}}]
[{"$f":"\"HTP.P('<\"&#REF!&\">' || \"&IF(MID(#REF!,1,4)=\"STUB\",\"NULL\",\"REC.\"&#REF!)&\" || '</\"&#REF!&\">');\"","v":{"$error":"#REF!"}},null,{"$f":"\"DECODE(C_T.\"&#REF!&\", 0, NULL, C_T.\"&#REF!&\") AS \"&#REF!&\",\"","v":{"$error":"#REF!"}}]
[{"$f":"\"HTP.P('<\"&#REF!&\">' || \"&IF(MID(#REF!,1,4)=\"STUB\",\"NULL\",\"REC.\"&#REF!)&\" || '</\"&#REF!&\">');\"","v":{"$error":"#REF!"}},null,{"$f":"\"DECODE(C_T.\"&#REF!&\", 0, NULL, C_T.\"&#REF!&\") AS \"&#REF!&\",\"","v":{"$error":"#REF!"}}]
[{"$f":"\"HTP.P('<\"&#REF!&\">' || \"&IF(MID(#REF!,1,4)=\"STUB\",\"NULL\",\"REC.\"&#REF!)&\" || '</\"&#REF!&\">');\"","v":{"$error":"#REF!"}},null,{"$f":"\"DECODE(C_T.\"&#REF!&\", 0, NULL, C_T.\"&#REF!&\") AS \"&#REF!&\",\"","v":{"$error":"#REF!"}}]
[{"$f":"\"HTP.P('<\"&#REF!&\">' || \"&IF(MID(#REF!,1,4)=\"STUB\",\"NULL\",\"REC.\"&#REF!)&\" || '</\"&#REF!&\">');\"","v":{"$error":"#REF!"}},null,{"$f":"\"DECODE(C_T.\"&#REF!&\", 0, NULL, C_T.\"&#REF!&\") AS \"&#REF!&\",\"","v":{"$error":"#REF!"}}]
[{"$f":"\"HTP.P('<\"&#REF!&\">' || \"&IF(MID(#REF!,1,4)=\"STUB\",\"NULL\",\"REC.\"&#REF!)&\" || '</\"&#REF!&\">');\"","v":{"$error":"#REF!"}},null,{"$f":"\"DECODE(C_T.\"&#REF!&\", 0, NULL, C_T.\"&#REF!&\") AS \"&#REF!&\",\"","v":{"$error":"#REF!"}}]
[{"$f":"\"HTP.P('<\"&#REF!&\">' || \"&IF(MID(#REF!,1,4)=\"STUB\",\"NULL\",\"REC.\"&#REF!)&\" || '</\"&#REF!&\">');\"","v":{"$error":"#REF!"}},null,{"$f":"\"DECODE(C_T.\"&#REF!&\", 0, NULL, C_T.\"&#REF!&\") AS \"&#REF!&\",\"","v":{"$error":"#REF!"}}]
[{"$f":"\"HTP.P('<\"&#REF!&\">' || \"&IF(MID(#REF!,1,4)=\"STUB\",\"NULL\",\"REC.\"&#REF!)&\" || '</\"&#REF!&\">');\"","v":{"$error":"#REF!"}},null,{"$f":"\"DECODE(C_T.\"&#REF!&\", 0, NULL, C_T.\"&#REF!&\") AS \"&#REF!&\",\"","v":{"$error":"#REF!"}}]
[{"$f":"\"HTP.P('<\"&#REF!&\">' || \"&IF(MID(#REF!,1,4)=\"STUB\",\"NULL\",\"REC.\"&#REF!)&\" || '</\"&#REF!&\">');\"","v":{"$error":"#REF!"}},null,{"$f":"\"DECODE(C_T.\"&#REF!&\", 0, NULL, C_T.\"&#REF!&\") AS \"&#REF!&\",\"","v":{"$error":"#REF!"}}]
[{"$f":"\"HTP.P('<\"&#REF!&\">' || \"&IF(MID(#REF!,1,4)=\"STUB\",\"NULL\",\"REC.\"&#REF!)&\" || '</\"&#REF!&\">');\"","v":{"$error":"#REF!"}},null,{"$f":"\"DECODE(C_T.\"&#REF!&\", 0, NULL, C_T.\"&#REF!&\") AS \"&#REF!&\",\"","v":{"$error":"#REF!"}}]
[{"$f":"\"HTP.P('<\"&#REF!&\">' || \"&IF(MID(#REF!,1,4)=\"STUB\",\"NULL\",\"REC.\"&#REF!)&\" || '</\"&#REF!&\">');\"","v":{"$error":"#REF!"}},null,{"$f":"\"DECODE(C_T.\"&#REF!&\", 0, NULL, C_T.\"&#REF!&\") AS \"&#REF!&\",\"","v":{"$error":"#REF!"}}]
[{"$f":"\"HTP.P('<\"&#REF!&\">' || \"&IF(MID(#REF!,1,4)=\"STUB\",\"NULL\",\"REC.\"&#REF!)&\" || '</\"&#REF!&\">');\"","v":{"$error":"#REF!"}},null,{"$f":"\"DECODE(C_T.\"&#REF!&\", 0, NULL, C_T.\"&#REF!&\") AS \"&#REF!&\",\"","v":{"$error":"#REF!"}}]
[{"$f":"\"HTP.P('<\"&#REF!&\">' || \"&IF(MID(#REF!,1,4)=\"STUB\",\"NULL\",\"REC.\"&#REF!)&\" || '</\"&#REF!&\">');\"","v":{"$error":"#REF!"}},null,{"$f":"\"DECODE(C_T.\"&#REF!&\", 0, NULL, C_T.\"&#REF!&\") AS \"&#REF!&\",\"","v":{"$error":"#REF!"}}]
[{"$f":"\"HTP.P('<\"&#REF!&\">' || \"&IF(MID(#REF!,1,4)=\"STUB\",\"NULL\",\"REC.\"&#REF!)&\" || '</\"&#REF!&\">');\"","v":{"$error":"#REF!"}},null,{"$f":"\"DECODE(C_T.\"&#REF!&\", 0, NULL, C_T.\"&#REF!&\") AS \"&#REF!&\",\"","v":{"$error":"#REF!"}}]
[{"$f":"\"HTP.P('<\"&#REF!&\">' || \"&IF(MID(#REF!,1,4)=\"STUB\",\"NULL\",\"REC.\"&#REF!)&\" || '</\"&#REF!&\">');\"","v":{"$error":"#REF!"}},null,{"$f":"\"DECODE(C_T.\"&#REF!&\", 0, NULL, C_T.\"&#REF!&\") AS \"&#REF!&\",\"","v":{"$error":"#REF!"}}]
[{"$f":"\"HTP.P('<\"&#REF!&\">' || \"&IF(MID(#REF!,1,4)=\"STUB\",\"NULL\",\"REC.\"&#REF!)&\" || '</\"&#REF!&\">');\"","v":{"$error":"#REF!"}},null,{"$f":"\"DECODE(C_T.\"&#REF!&\", 0, NULL, C_T.\"&#REF!&\") AS \"&#REF!&\",\"","v":{"$error":"#REF!"}}]
[{"$f":"\"HTP.P('<\"&#REF!&\">' || \"&IF(MID(#REF!,1,4)=\"STUB\",\"NULL\",\"REC.\"&#REF!)&\" || '</\"&#REF!&\">');\"","v":{"$error":"#REF!"}},null,{"$f":"\"DECODE(C_T.\"&#REF!&\", 0, NULL, C_T.\"&#REF!&\") AS \"&#REF!&\",\"","v":{"$error":"#REF!"}}]
[{"$f":"\"HTP.P('<\"&#REF!&\">' || \"&IF(MID(#REF!,1,4)=\"STUB\",\"NULL\",\"REC.\"&#REF!)&\" || '</\"&#REF!&\">');\"","v":{"$error":"#REF!"}},null,{"$f":"\"DECODE(C_T.\"&#REF!&\", 0, NULL, C_T.\"&#REF!&\") AS \"&#REF!&\",\"","v":{"$error":"#REF!"}}]
[{"$f":"\"HTP.P('<\"&#REF!&\">' || \"&IF(MID(#REF!,1,4)=\"STUB\",\"NULL\",\"REC.\"&#REF!)&\" || '</\"&#REF!&\">');\"","v":{"$error":"#REF!"}},null,{"$f":"\"DECODE(C_T.\"&#REF!&\", 0, NULL, C_T.\"&#REF!&\") AS \"&#REF!&\",\"","v":{"$error":"#REF!"}}]
[{"$f":"\"HTP.P('<\"&#REF!&\">' || \"&IF(MID(#REF!,1,4)=\"STUB\",\"NULL\",\"REC.\"&#REF!)&\" || '</\"&#REF!&\">');\"","v":{"$error":"#REF!"}},null,{"$f":"\"DECODE(C_T.\"&#REF!&\", 0, NULL, C_T.\"&#REF!&\") AS \"&#REF!&\",\"","v":{"$error":"#REF!"}}]
[{"$f":"\"HTP.P('<\"&#REF!&\">' || \"&IF(MID(#REF!,1,4)=\"STUB\",\"NULL\",\"REC.\"&#REF!)&\" || '</\"&#REF!&\">');\"","v":{"$error":"#REF!"}},null,{"$f":"\"DECODE(C_T.\"&#REF!&\", 0, NULL, C_T.\"&#REF!&\") AS \"&#REF!&\",\"","v":{"$error":"#REF!"}}]
[{"$f":"\"HTP.P('<\"&#REF!&\">' || \"&IF(MID(#REF!,1,4)=\"STUB\",\"NULL\",\"REC.\"&#REF!)&\" || '</\"&#REF!&\">');\"","v":{"$error":"#REF!"}},null,{"$f":"\"DECODE(C_T.\"&#REF!&\", 0, NULL, C_T.\"&#REF!&\") AS \"&#REF!&\",\"","v":{"$error":"#REF!"}}]
[{"$f":"\"HTP.P('<\"&#REF!&\">' || \"&IF(MID(#REF!,1,4)=\"STUB\",\"NULL\",\"REC.\"&#REF!)&\" || '</\"&#REF!&\">');\"","v":{"$error":"#REF!"}},null,{"$f":"\"DECODE(C_T.\"&#REF!&\", 0, NULL, C_T.\"&#REF!&\") AS \"&#REF!&\",\"","v":{"$error":"#REF!"}}]
[{"$f":"\"HTP.P('<\"&#REF!&\">' || \"&IF(MID(#REF!,1,4)=\"STUB\",\"NULL\",\"REC.\"&#REF!)&\" || '</\"&#REF!&\">');\"","v":{"$error":"#REF!"}},null,{"$f":"\"DECODE(C_T.\"&#REF!&\", 0, NULL, C_T.\"&#REF!&\") AS \"&#REF!&\",\"","v":{"$error":"#REF!"}}]
[{"$f":"\"HTP.P('<\"&#REF!&\">' || \"&IF(MID(#REF!,1,4)=\"STUB\",\"NULL\",\"REC.\"&#REF!)&\" || '</\"&#REF!&\">');\"","v":{"$error":"#REF!"}},null,{"$f":"\"DECODE(C_T.\"&#REF!&\", 0, NULL, C_T.\"&#REF!&\") AS \"&#REF!&\",\"","v":{"$error":"#REF!"}}]
[{"$f":"\"HTP.P('<\"&#REF!&\">' || \"&IF(MID(#REF!,1,4)=\"STUB\",\"NULL\",\"REC.\"&#REF!)&\" || '</\"&#REF!&\">');\"","v":{"$error":"#REF!"}},null,{"$f":"\"DECODE(C_T.\"&#REF!&\", 0, NULL, C_T.\"&#REF!&\") AS \"&#REF!&\",\"","v":{"$error":"#REF!"}}]
[{"$f":"\"HTP.P('<\"&#REF!&\">' || \"&IF(MID(#REF!,1,4)=\"STUB\",\"NULL\",\"REC.\"&#REF!)&\" || '</\"&#REF!&\">');\"","v":{"$error":"#REF!"}},null,{"$f":"\"DECODE(C_T.\"&#REF!&\", 0, NULL, C_T.\"&#REF!&\") AS \"&#REF!&\",\"","v":{"$error":"#REF!"}}]
[{"$f":"\"HTP.P('<\"&#REF!&\">' || \"&IF(MID(#REF!,1,4)=\"STUB\",\"NULL\",\"REC.\"&#REF!)&\" || '</\"&#REF!&\">');\"","v":{"$error":"#REF!"}},null,{"$f":"\"DECODE(C_T.\"&#REF!&\", 0, NULL, C_T.\"&#REF!&\") AS \"&#REF!&\",\"","v":{"$error":"#REF!"}}]
[{"$f":"\"HTP.P('<\"&#REF!&\">' || \"&IF(MID(#REF!,1,4)=\"STUB\",\"NULL\",\"REC.\"&#REF!)&\" || '</\"&#REF!&\">');\"","v":{"$error":"#REF!"}},null,{"$f":"\"DECODE(C_T.\"&#REF!&\", 0, NULL, C_T.\"&#REF!&\") AS \"&#REF!&\",\"","v":{"$error":"#REF!"}}]
[{"$f":"\"HTP.P('<\"&#REF!&\">' || \"&IF(MID(#REF!,1,4)=\"STUB\",\"NULL\",\"REC.\"&#REF!)&\" || '</\"&#REF!&\">');\"","v":{"$error":"#REF!"}},null,{"$f":"\"DECODE(C_T.\"&#REF!&\", 0, NULL, C_T.\"&#REF!&\") AS \"&#REF!&\",\"","v":{"$error":"#REF!"}}]
[{"$f":"\"HTP.P('<\"&#REF!&\">' || \"&IF(MID(#REF!,1,4)=\"STUB\",\"NULL\",\"REC.\"&#REF!)&\" || '</\"&#REF!&\">');\"","v":{"$error":"#REF!"}},null,{"$f":"\"DECODE(C_T.\"&#REF!&\", 0, NULL, C_T.\"&#REF!&\") AS \"&#REF!&\",\"","v":{"$error":"#REF!"}}]
[{"$f":"\"HTP.P('<\"&#REF!&\">' || \"&IF(MID(#REF!,1,4)=\"STUB\",\"NULL\",\"REC.\"&#REF!)&\" || '</\"&#REF!&\">');\"","v":{"$error":"#REF!"}},null,{"$f":"\"DECODE(C_T.\"&#REF!&\", 0, NULL, C_T.\"&#REF!&\") AS \"&#REF!&\",\"","v":{"$error":"#REF!"}}]
[{"$f":"\"HTP.P('<\"&#REF!&\">' || \"&IF(MID(#REF!,1,4)=\"STUB\",\"NULL\",\"REC.\"&#REF!)&\" || '</\"&#REF!&\">');\"","v":{"$error":"#REF!"}},null,{"$f":"\"DECODE(C_T.\"&#REF!&\", 0, NULL, C_T.\"&#REF!&\") AS \"&#REF!&\",\"","v":{"$error":"#REF!"}}]
[{"$f":"\"HTP.P('<\"&#REF!&\">' || \"&IF(MID(#REF!,1,4)=\"STUB\",\"NULL\",\"REC.\"&#REF!)&\" || '</\"&#REF!&\">');\"","v":{"$error":"#REF!"}},null,{"$f":"\"DECODE(C_T.\"&#REF!&\", 0, NULL, C_T.\"&#REF!&\") AS \"&#REF!&\",\"","v":{"$error":"#REF!"}}]
[{"$f":"\"HTP.P('<\"&#REF!&\">' || \"&IF(MID(#REF!,1,4)=\"STUB\",\"NULL\",\"REC.\"&#REF!)&\" || '</\"&#REF!&\">');\"","v":{"$error":"#REF!"}},null,{"$f":"\"DECODE(C_T.\"&#REF!&\", 0, NULL, C_T.\"&#REF!&\") AS \"&#REF!&\",\"","v":{"$error":"#REF!"}}]
[{"$f":"\"HTP.P('<\"&#REF!&\">' || \"&IF(MID(#REF!,1,4)=\"STUB\",\"NULL\",\"REC.\"&#REF!)&\" || '</\"&#REF!&\">');\"","v":{"$error":"#REF!"}},null,{"$f":"\"DECODE(C_T.\"&#REF!&\", 0, NULL, C_T.\"&#REF!&\") AS \"&#REF!&\",\"","v":{"$error":"#REF!"}}]
[{"$f":"\"HTP.P('<\"&#REF!&\">' || \"&IF(MID(#REF!,1,4)=\"STUB\",\"NULL\",\"REC.\"&#REF!)&\" || '</\"&#REF!&\">');\"","v":{"$error":"#REF!"}},null,{"$f":"\"DECODE(C_T.\"&#REF!&\", 0, NULL, C_T.\"&#REF!&\") AS \"&#REF!&\",\"","v":{"$error":"#REF!"}}]
[{"$f":"\"HTP.P('<\"&#REF!&\">' || \"&IF(MID(#REF!,1,4)=\"STUB\",\"NULL\",\"REC.\"&#REF!)&\" || '</\"&#REF!&\">');\"","v":{"$error":"#REF!"}},null,{"$f":"\"DECODE(C_T.\"&#REF!&\", 0, NULL, C_T.\"&#REF!&\") AS \"&#REF!&\",\"","v":{"$error":"#REF!"}}]
[{"$f":"\"HTP.P('<\"&#REF!&\">' || \"&IF(MID(#REF!,1,4)=\"STUB\",\"NULL\",\"REC.\"&#REF!)&\" || '</\"&#REF!&\">');\"","v":{"$error":"#REF!"}},null,{"$f":"\"DECODE(C_T.\"&#REF!&\", 0, NULL, C_T.\"&#REF!&\") AS \"&#REF!&\",\"","v":{"$error":"#REF!"}}]
[{"$f":"\"HTP.P('<\"&#REF!&\">' || \"&IF(MID(#REF!,1,4)=\"STUB\",\"NULL\",\"REC.\"&#REF!)&\" || '</\"&#REF!&\">');\"","v":{"$error":"#REF!"}},null,{"$f":"\"DECODE(C_T.\"&#REF!&\", 0, NULL, C_T.\"&#REF!&\") AS \"&#REF!&\",\"","v":{"$error":"#REF!"}}]
[{"$f":"\"HTP.P('<\"&#REF!&\">' || \"&IF(MID(#REF!,1,4)=\"STUB\",\"NULL\",\"REC.\"&#REF!)&\" || '</\"&#REF!&\">');\"","v":{"$error":"#REF!"}},null,{"$f":"\"DECODE(C_T.\"&#REF!&\", 0, NULL, C_T.\"&#REF!&\") AS \"&#REF!&\",\"","v":{"$error":"#REF!"}}]
[{"$f":"\"HTP.P('<\"&#REF!&\">' || \"&IF(MID(#REF!,1,4)=\"STUB\",\"NULL\",\"REC.\"&#REF!)&\" || '</\"&#REF!&\">');\"","v":{"$error":"#REF!"}},null,{"$f":"\"DECODE(C_T.\"&#REF!&\", 0, NULL, C_T.\"&#REF!&\") AS \"&#REF!&\",\"","v":{"$error":"#REF!"}}]
[{"$f":"\"HTP.P('<\"&#REF!&\">' || \"&IF(MID(#REF!,1,4)=\"STUB\",\"NULL\",\"REC.\"&#REF!)&\" || '</\"&#REF!&\">');\"","v":{"$error":"#REF!"}},null,{"$f":"\"DECODE(C_T.\"&#REF!&\", 0, NULL, C_T.\"&#REF!&\") AS \"&#REF!&\",\"","v":{"$error":"#REF!"}}]
[{"$f":"\"HTP.P('<\"&#REF!&\">' || \"&IF(MID(#REF!,1,4)=\"STUB\",\"NULL\",\"REC.\"&#REF!)&\" || '</\"&#REF!&\">');\"","v":{"$error":"#REF!"}},null,{"$f":"\"DECODE(C_T.\"&#REF!&\", 0, NULL, C_T.\"&#REF!&\") AS \"&#REF!&\",\"","v":{"$error":"#REF!"}}]
[{"$f":"\"HTP.P('<\"&#REF!&\">' || \"&IF(MID(#REF!,1,4)=\"STUB\",\"NULL\",\"REC.\"&#REF!)&\" || '</\"&#REF!&\">');\"","v":{"$error":"#REF!"}},null,{"$f":"\"DECODE(C_T.\"&#REF!&\", 0, NULL, C_T.\"&#REF!&\") AS \"&#REF!&\",\"","v":{"$error":"#REF!"}}]
[{"$f":"\"HTP.P('<\"&#REF!&\">' || \"&IF(MID(#REF!,1,4)=\"STUB\",\"NULL\",\"REC.\"&#REF!)&\" || '</\"&#REF!&\">');\"","v":{"$error":"#REF!"}},null,{"$f":"\"DECODE(C_T.\"&#REF!&\", 0, NULL, C_T.\"&#REF!&\") AS \"&#REF!&\",\"","v":{"$error":"#REF!"}}]
[{"$f":"\"HTP.P('<\"&#REF!&\">' || \"&IF(MID(#REF!,1,4)=\"STUB\",\"NULL\",\"REC.\"&#REF!)&\" || '</\"&#REF!&\">');\"","v":{"$error":"#REF!"}},null,{"$f":"\"DECODE(C_T.\"&#REF!&\", 0, NULL, C_T.\"&#REF!&\") AS \"&#REF!&\",\"","v":{"$error":"#REF!"}}]
[{"$f":"\"HTP.P('<\"&#REF!&\">' || \"&IF(MID(#REF!,1,4)=\"STUB\",\"NULL\",\"REC.\"&#REF!)&\" || '</\"&#REF!&\">');\"","v":{"$error":"#REF!"}},null,{"$f":"\"DECODE(C_T.\"&#REF!&\", 0, NULL, C_T.\"&#REF!&\") AS \"&#REF!&\",\"","v":{"$error":"#REF!"}}]
[{"$f":"\"HTP.P('<\"&#REF!&\">' || \"&IF(MID(#REF!,1,4)=\"STUB\",\"NULL\",\"REC.\"&#REF!)&\" || '</\"&#REF!&\">');\"","v":{"$error":"#REF!"}},null,{"$f":"\"DECODE(C_T.\"&#REF!&\", 0, NULL, C_T.\"&#REF!&\") AS \"&#REF!&\",\"","v":{"$error":"#REF!"}}]
[{"$f":"\"HTP.P('<\"&#REF!&\">' || \"&IF(MID(#REF!,1,4)=\"STUB\",\"NULL\",\"REC.\"&#REF!)&\" || '</\"&#REF!&\">');\"","v":{"$error":"#REF!"}},null,{"$f":"\"DECODE(C_T.\"&#REF!&\", 0, NULL, C_T.\"&#REF!&\") AS \"&#REF!&\",\"","v":{"$error":"#REF!"}}]
[{"$f":"\"HTP.P('<\"&#REF!&\">' || \"&IF(MID(#REF!,1,4)=\"STUB\",\"NULL\",\"REC.\"&#REF!)&\" || '</\"&#REF!&\">');\"","v":{"$error":"#REF!"}},null,{"$f":"\"DECODE(C_T.\"&#REF!&\", 0, NULL, C_T.\"&#REF!&\") AS \"&#REF!&\",\"","v":{"$error":"#REF!"}}]
[{"$f":"\"HTP.P('<\"&#REF!&\">' || \"&IF(MID(#REF!,1,4)=\"STUB\",\"NULL\",\"REC.\"&#REF!)&\" || '</\"&#REF!&\">');\"","v":{"$error":"#REF!"}},null,{"$f":"\"DECODE(C_T.\"&#REF!&\", 0, NULL, C_T.\"&#REF!&\") AS \"&#REF!&\",\"","v":{"$error":"#REF!"}}]
[{"$f":"\"HTP.P('<\"&#REF!&\">' || \"&IF(MID(#REF!,1,4)=\"STUB\",\"NULL\",\"REC.\"&#REF!)&\" || '</\"&#REF!&\">');\"","v":{"$error":"#REF!"}},null,{"$f":"\"DECODE(C_T.\"&#REF!&\", 0, NULL, C_T.\"&#REF!&\") AS \"&#REF!&\",\"","v":{"$error":"#REF!"}}]
[{"$f":"\"HTP.P('<\"&#REF!&\">' || \"&IF(MID(#REF!,1,4)=\"STUB\",\"NULL\",\"REC.\"&#REF!)&\" || '</\"&#REF!&\">');\"","v":{"$error":"#REF!"}},null,{"$f":"\"DECODE(C_T.\"&#REF!&\", 0, NULL, C_T.\"&#REF!&\") AS \"&#REF!&\",\"","v":{"$error":"#REF!"}}]
[{"$f":"\"HTP.P('<\"&#REF!&\">' || \"&IF(MID(#REF!,1,4)=\"STUB\",\"NULL\",\"REC.\"&#REF!)&\" || '</\"&#REF!&\">');\"","v":{"$error":"#REF!"}},null,{"$f":"\"DECODE(C_T.\"&#REF!&\", 0, NULL, C_T.\"&#REF!&\") AS \"&#REF!&\",\"","v":{"$error":"#REF!"}}]
[{"$f":"\"HTP.P('<\"&#REF!&\">' || \"&IF(MID(#REF!,1,4)=\"STUB\",\"NULL\",\"REC.\"&#REF!)&\" || '</\"&#REF!&\">');\"","v":{"$error":"#REF!"}},null,{"$f":"\"DECODE(C_T.\"&#REF!&\", 0, NULL, C_T.\"&#REF!&\") AS \"&#REF!&\",\"","v":{"$error":"#REF!"}}]
[{"$f":"\"HTP.P('<\"&#REF!&\">' || \"&IF(MID(#REF!,1,4)=\"STUB\",\"NULL\",\"REC.\"&#REF!)&\" || '</\"&#REF!&\">');\"","v":{"$error":"#REF!"}},null,{"$f":"\"DECODE(C_T.\"&#REF!&\", 0, NULL, C_T.\"&#REF!&\") AS \"&#REF!&\",\"","v":{"$error":"#REF!"}}]
[{"$f":"\"HTP.P('<\"&#REF!&\">' || \"&IF(MID(#REF!,1,4)=\"STUB\",\"NULL\",\"REC.\"&#REF!)&\" || '</\"&#REF!&\">');\"","v":{"$error":"#REF!"}},null,{"$f":"\"DECODE(C_T.\"&#REF!&\", 0, NULL, C_T.\"&#REF!&\") AS \"&#REF!&\",\"","v":{"$error":"#REF!"}}]
[{"$f":"\"HTP.P('<\"&#REF!&\">' || \"&IF(MID(#REF!,1,4)=\"STUB\",\"NULL\",\"REC.\"&#REF!)&\" || '</\"&#REF!&\">');\"","v":{"$error":"#REF!"}},null,{"$f":"\"DECODE(C_T.\"&#REF!&\", 0, NULL, C_T.\"&#REF!&\") AS \"&#REF!&\",\"","v":{"$error":"#REF!"}}]
[{"$f":"\"HTP.P('<\"&#REF!&\">' || \"&IF(MID(#REF!,1,4)=\"STUB\",\"NULL\",\"REC.\"&#REF!)&\" || '</\"&#REF!&\">');\"","v":{"$error":"#REF!"}},null,{"$f":"\"DECODE(C_T.\"&#REF!&\", 0, NULL, C_T.\"&#REF!&\") AS \"&#REF!&\",\"","v":{"$error":"#REF!"}}]
[{"$f":"\"HTP.P('<\"&#REF!&\">' || \"&IF(MID(#REF!,1,4)=\"STUB\",\"NULL\",\"REC.\"&#REF!)&\" || '</\"&#REF!&\">');\"","v":{"$error":"#REF!"}},null,{"$f":"\"DECODE(C_T.\"&#REF!&\", 0, NULL, C_T.\"&#REF!&\") AS \"&#REF!&\",\"","v":{"$error":"#REF!"}}]
[{"$f":"\"HTP.P('<\"&#REF!&\">' || \"&IF(MID(#REF!,1,4)=\"STUB\",\"NULL\",\"REC.\"&#REF!)&\" || '</\"&#REF!&\">');\"","v":{"$error":"#REF!"}},null,{"$f":"\"DECODE(C_T.\"&#REF!&\", 0, NULL, C_T.\"&#REF!&\") AS \"&#REF!&\",\"","v":{"$error":"#REF!"}}]
[{"$f":"\"HTP.P('<\"&#REF!&\">' || \"&IF(MID(#REF!,1,4)=\"STUB\",\"NULL\",\"REC.\"&#REF!)&\" || '</\"&#REF!&\">');\"","v":{"$error":"#REF!"}},null,{"$f":"\"DECODE(C_T.\"&#REF!&\", 0, NULL, C_T.\"&#REF!&\") AS \"&#REF!&\",\"","v":{"$error":"#REF!"}}]
[{"$f":"\"HTP.P('<\"&#REF!&\">' || \"&IF(MID(#REF!,1,4)=\"STUB\",\"NULL\",\"REC.\"&#REF!)&\" || '</\"&#REF!&\">');\"","v":{"$error":"#REF!"}},null,{"$f":"\"DECODE(C_T.\"&#REF!&\", 0, NULL, C_T.\"&#REF!&\") AS \"&#REF!&\",\"","v":{"$error":"#REF!"}}]
[{"$f":"\"HTP.P('<\"&#REF!&\">' || \"&IF(MID(#REF!,1,4)=\"STUB\",\"NULL\",\"REC.\"&#REF!)&\" || '</\"&#REF!&\">');\"","v":{"$error":"#REF!"}},null,{"$f":"\"DECODE(C_T.\"&#REF!&\", 0, NULL, C_T.\"&#REF!&\") AS \"&#REF!&\",\"","v":{"$error":"#REF!"}}]
[{"$f":"\"HTP.P('<\"&#REF!&\">' || \"&IF(MID(#REF!,1,4)=\"STUB\",\"NULL\",\"REC.\"&#REF!)&\" || '</\"&#REF!&\">');\"","v":{"$error":"#REF!"}},null,{"$f":"\"DECODE(C_T.\"&#REF!&\", 0, NULL, C_T.\"&#REF!&\") AS \"&#REF!&\",\"","v":{"$error":"#REF!"}}]
[{"$f":"\"HTP.P('<\"&#REF!&\">' || \"&IF(MID(#REF!,1,4)=\"STUB\",\"NULL\",\"REC.\"&#REF!)&\" || '</\"&#REF!&\">');\"","v":{"$error":"#REF!"}},null,{"$f":"\"DECODE(C_T.\"&#REF!&\", 0, NULL, C_T.\"&#REF!&\") AS \"&#REF!&\",\"","v":{"$error":"#REF!"}}]
[{"$f":"\"HTP.P('<\"&#REF!&\">' || \"&IF(MID(#REF!,1,4)=\"STUB\",\"NULL\",\"REC.\"&#REF!)&\" || '</\"&#REF!&\">');\"","v":{"$error":"#REF!"}},null,{"$f":"\"DECODE(C_T.\"&#REF!&\", 0, NULL, C_T.\"&#REF!&\") AS \"&#REF!&\",\"","v":{"$error":"#REF!"}}]
[{"$f":"\"HTP.P('<\"&#REF!&\">' || \"&IF(MID(#REF!,1,4)=\"STUB\",\"NULL\",\"REC.\"&#REF!)&\" || '</\"&#REF!&\">');\"","v":{"$error":"#REF!"}},null,{"$f":"\"DECODE(C_T.\"&#REF!&\", 0, NULL, C_T.\"&#REF!&\") AS \"&#REF!&\",\"","v":{"$error":"#REF!"}}]
[{"$f":"\"HTP.P('<\"&#REF!&\">' || \"&IF(MID(#REF!,1,4)=\"STUB\",\"NULL\",\"REC.\"&#REF!)&\" || '</\"&#REF!&\">');\"","v":{"$error":"#REF!"}},null,{"$f":"\"DECODE(C_T.\"&#REF!&\", 0, NULL, C_T.\"&#REF!&\") AS \"&#REF!&\",\"","v":{"$error":"#REF!"}}]
[{"$f":"\"HTP.P('<\"&#REF!&\">' || \"&IF(MID(#REF!,1,4)=\"STUB\",\"NULL\",\"REC.\"&#REF!)&\" || '</\"&#REF!&\">');\"","v":{"$error":"#REF!"}},null,{"$f":"\"DECODE(C_T.\"&#REF!&\", 0, NULL, C_T.\"&#REF!&\") AS \"&#REF!&\",\"","v":{"$error":"#REF!"}}]
[{"$f":"\"HTP.P('<\"&#REF!&\">' || \"&IF(MID(#REF!,1,4)=\"STUB\",\"NULL\",\"REC.\"&#REF!)&\" || '</\"&#REF!&\">');\"","v":{"$error":"#REF!"}},null,{"$f":"\"DECODE(C_T.\"&#REF!&\", 0, NULL, C_T.\"&#REF!&\") AS \"&#REF!&\",\"","v":{"$error":"#REF!"}}]
[{"$f":"\"HTP.P('<\"&#REF!&\">' || \"&IF(MID(#REF!,1,4)=\"STUB\",\"NULL\",\"REC.\"&#REF!)&\" || '</\"&#REF!&\">');\"","v":{"$error":"#REF!"}},null,{"$f":"\"DECODE(C_T.\"&#REF!&\", 0, NULL, C_T.\"&#REF!&\") AS \"&#REF!&\",\"","v":{"$error":"#REF!"}}]
[{"$f":"\"HTP.P('<\"&#REF!&\">' || \"&IF(MID(#REF!,1,4)=\"STUB\",\"NULL\",\"REC.\"&#REF!)&\" || '</\"&#REF!&\">');\"","v":{"$error":"#REF!"}},null,{"$f":"\"DECODE(C_T.\"&#REF!&\", 0, NULL, C_T.\"&#REF!&\") AS \"&#REF!&\",\"","v":{"$error":"#REF!"}}]
[{"$f":"\"HTP.P('<\"&#REF!&\">' || \"&IF(MID(#REF!,1,4)=\"STUB\",\"NULL\",\"REC.\"&#REF!)&\" || '</\"&#REF!&\">');\"","v":{"$error":"#REF!"}},null,{"$f":"\"DECODE(C_T.\"&#REF!&\", 0, NULL, C_T.\"&#REF!&\") AS \"&#REF!&\",\"","v":{"$error":"#REF!"}}]
[{"$f":"\"HTP.P('<\"&#REF!&\">' || \"&IF(MID(#REF!,1,4)=\"STUB\",\"NULL\",\"REC.\"&#REF!)&\" || '</\"&#REF!&\">');\"","v":{"$error":"#REF!"}},null,{"$f":"\"DECODE(C_T.\"&#REF!&\", 0, NULL, C_T.\"&#REF!&\") AS \"&#REF!&\",\"","v":{"$error":"#REF!"}}]
[{"$f":"\"HTP.P('<\"&#REF!&\">' || \"&IF(MID(#REF!,1,4)=\"STUB\",\"NULL\",\"REC.\"&#REF!)&\" || '</\"&#REF!&\">');\"","v":{"$error":"#REF!"}},null,{"$f":"\"DECODE(C_T.\"&#REF!&\", 0, NULL, C_T.\"&#REF!&\") AS \"&#REF!&\",\"","v":{"$error":"#REF!"}}]
[{"$f":"\"HTP.P('<\"&#REF!&\">' || \"&IF(MID(#REF!,1,4)=\"STUB\",\"NULL\",\"REC.\"&#REF!)&\" || '</\"&#REF!&\">');\"","v":{"$error":"#REF!"}},null,{"$f":"\"DECODE(C_T.\"&#REF!&\", 0, NULL, C_T.\"&#REF!&\") AS \"&#REF!&\",\"","v":{"$error":"#REF!"}}]
[{"$f":"\"HTP.P('<\"&#REF!&\">' || \"&IF(MID(#REF!,1,4)=\"STUB\",\"NULL\",\"REC.\"&#REF!)&\" || '</\"&#REF!&\">');\"","v":{"$error":"#REF!"}},null,{"$f":"\"DECODE(C_T.\"&#REF!&\", 0, NULL, C_T.\"&#REF!&\") AS \"&#REF!&\",\"","v":{"$error":"#REF!"}}]
[{"$f":"\"HTP.P('<\"&#REF!&\">' || \"&IF(MID(#REF!,1,4)=\"STUB\",\"NULL\",\"REC.\"&#REF!)&\" || '</\"&#REF!&\">');\"","v":{"$error":"#REF!"}},null,{"$f":"\"DECODE(C_T.\"&#REF!&\", 0, NULL, C_T.\"&#REF!&\") AS \"&#REF!&\",\"","v":{"$error":"#REF!"}}]
[{"$f":"\"HTP.P('<\"&#REF!&\">' || \"&IF(MID(#REF!,1,4)=\"STUB\",\"NULL\",\"REC.\"&#REF!)&\" || '</\"&#REF!&\">');\"","v":{"$error":"#REF!"}},null,{"$f":"\"DECODE(C_T.\"&#REF!&\", 0, NULL, C_T.\"&#REF!&\") AS \"&#REF!&\",\"","v":{"$error":"#REF!"}}]
[{"$f":"\"HTP.P('<\"&#REF!&\">' || \"&IF(MID(#REF!,1,4)=\"STUB\",\"NULL\",\"REC.\"&#REF!)&\" || '</\"&#REF!&\">');\"","v":{"$error":"#REF!"}},null,{"$f":"\"DECODE(C_T.\"&#REF!&\", 0, NULL, C_T.\"&#REF!&\") AS \"&#REF!&\",\"","v":{"$error":"#REF!"}}]
[{"$f":"\"HTP.P('<\"&#REF!&\">' || \"&IF(MID(#REF!,1,4)=\"STUB\",\"NULL\",\"REC.\"&#REF!)&\" || '</\"&#REF!&\">');\"","v":{"$error":"#REF!"}},null,{"$f":"\"DECODE(C_T.\"&#REF!&\", 0, NULL, C_T.\"&#REF!&\") AS \"&#REF!&\",\"","v":{"$error":"#REF!"}}]
[{"$f":"\"HTP.P('<\"&#REF!&\">' || \"&IF(MID(#REF!,1,4)=\"STUB\",\"NULL\",\"REC.\"&#REF!)&\" || '</\"&#REF!&\">');\"","v":{"$error":"#REF!"}},null,{"$f":"\"DECODE(C_T.\"&#REF!&\", 0, NULL, C_T.\"&#REF!&\") AS \"&#REF!&\",\"","v":{"$error":"#REF!"}}]
[{"$f":"\"HTP.P('<\"&#REF!&\">' || \"&IF(MID(#REF!,1,4)=\"STUB\",\"NULL\",\"REC.\"&#REF!)&\" || '</\"&#REF!&\">');\"","v":{"$error":"#REF!"}},null,{"$f":"\"DECODE(C_T.\"&#REF!&\", 0, NULL, C_T.\"&#REF!&\") AS \"&#REF!&\",\"","v":{"$error":"#REF!"}}]
[{"$f":"\"HTP.P('<\"&#REF!&\">' || \"&IF(MID(#REF!,1,4)=\"STUB\",\"NULL\",\"REC.\"&#REF!)&\" || '</\"&#REF!&\">');\"","v":{"$error":"#REF!"}},null,{"$f":"\"DECODE(C_T.\"&#REF!&\", 0, NULL, C_T.\"&#REF!&\") AS \"&#REF!&\",\"","v":{"$error":"#REF!"}}]
[{"$f":"\"HTP.P('<\"&#REF!&\">' || \"&IF(MID(#REF!,1,4)=\"STUB\",\"NULL\",\"REC.\"&#REF!)&\" || '</\"&#REF!&\">');\"","v":{"$error":"#REF!"}},null,{"$f":"\"DECODE(C_T.\"&#REF!&\", 0, NULL, C_T.\"&#REF!&\") AS \"&#REF!&\",\"","v":{"$error":"#REF!"}}]
[{"$f":"\"HTP.P('<\"&#REF!&\">' || \"&IF(MID(#REF!,1,4)=\"STUB\",\"NULL\",\"REC.\"&#REF!)&\" || '</\"&#REF!&\">');\"","v":{"$error":"#REF!"}},null,{"$f":"\"DECODE(C_T.\"&#REF!&\", 0, NULL, C_T.\"&#REF!&\") AS \"&#REF!&\",\"","v":{"$error":"#REF!"}}]
[{"$f":"\"HTP.P('<\"&#REF!&\">' || \"&IF(MID(#REF!,1,4)=\"STUB\",\"NULL\",\"REC.\"&#REF!)&\" || '</\"&#REF!&\">');\"","v":{"$error":"#REF!"}},null,{"$f":"\"DECODE(C_T.\"&#REF!&\", 0, NULL, C_T.\"&#REF!&\") AS \"&#REF!&\",\"","v":{"$error":"#REF!"}}]
[{"$f":"\"HTP.P('<\"&#REF!&\">' || \"&IF(MID(#REF!,1,4)=\"STUB\",\"NULL\",\"REC.\"&#REF!)&\" || '</\"&#REF!&\">');\"","v":{"$error":"#REF!"}},null,{"$f":"\"DECODE(C_T.\"&#REF!&\", 0, NULL, C_T.\"&#REF!&\") AS \"&#REF!&\",\"","v":{"$error":"#REF!"}}]
[{"$f":"\"HTP.P('<\"&#REF!&\">' || \"&IF(MID(#REF!,1,4)=\"STUB\",\"NULL\",\"REC.\"&#REF!)&\" || '</\"&#REF!&\">');\"","v":{"$error":"#REF!"}},null,{"$f":"\"DECODE(C_T.\"&#REF!&\", 0, NULL, C_T.\"&#REF!&\") AS \"&#REF!&\",\"","v":{"$error":"#REF!"}}]
[{"$f":"\"HTP.P('<\"&#REF!&\">' || \"&IF(MID(#REF!,1,4)=\"STUB\",\"NULL\",\"REC.\"&#REF!)&\" || '</\"&#REF!&\">');\"","v":{"$error":"#REF!"}},null,{"$f":"\"DECODE(C_T.\"&#REF!&\", 0, NULL, C_T.\"&#REF!&\") AS \"&#REF!&\",\"","v":{"$error":"#REF!"}}]
[{"$f":"\"HTP.P('<\"&#REF!&\">' || \"&IF(MID(#REF!,1,4)=\"STUB\",\"NULL\",\"REC.\"&#REF!)&\" || '</\"&#REF!&\">');\"","v":{"$error":"#REF!"}},null,{"$f":"\"DECODE(C_T.\"&#REF!&\", 0, NULL, C_T.\"&#REF!&\") AS \"&#REF!&\",\"","v":{"$error":"#REF!"}}]
[{"$f":"\"HTP.P('<\"&#REF!&\">' || \"&IF(MID(#REF!,1,4)=\"STUB\",\"NULL\",\"REC.\"&#REF!)&\" || '</\"&#REF!&\">');\"","v":{"$error":"#REF!"}},null,{"$f":"\"DECODE(C_T.\"&#REF!&\", 0, NULL, C_T.\"&#REF!&\") AS \"&#REF!&\",\"","v":{"$error":"#REF!"}}]
[{"$f":"\"HTP.P('<\"&#REF!&\">' || \"&IF(MID(#REF!,1,4)=\"STUB\",\"NULL\",\"REC.\"&#REF!)&\" || '</\"&#REF!&\">');\"","v":{"$error":"#REF!"}},null,{"$f":"\"DECODE(C_T.\"&#REF!&\", 0, NULL, C_T.\"&#REF!&\") AS \"&#REF!&\",\"","v":{"$error":"#REF!"}}]
[{"$f":"\"HTP.P('<\"&#REF!&\">' || \"&IF(MID(#REF!,1,4)=\"STUB\",\"NULL\",\"REC.\"&#REF!)&\" || '</\"&#REF!&\">');\"","v":{"$error":"#REF!"}},null,{"$f":"\"DECODE(C_T.\"&#REF!&\", 0, NULL, C_T.\"&#REF!&\") AS \"&#REF!&\",\"","v":{"$error":"#REF!"}}]
[{"$f":"\"HTP.P('<\"&#REF!&\">' || \"&IF(MID(#REF!,1,4)=\"STUB\",\"NULL\",\"REC.\"&#REF!)&\" || '</\"&#REF!&\">');\"","v":{"$error":"#REF!"}},null,{"$f":"\"DECODE(C_T.\"&#REF!&\", 0, NULL, C_T.\"&#REF!&\") AS \"&#REF!&\",\"","v":{"$error":"#REF!"}}]
[{"$f":"\"HTP.P('<\"&#REF!&\">' || \"&IF(MID(#REF!,1,4)=\"STUB\",\"NULL\",\"REC.\"&#REF!)&\" || '</\"&#REF!&\">');\"","v":{"$error":"#REF!"}},null,{"$f":"\"DECODE(C_T.\"&#REF!&\", 0, NULL, C_T.\"&#REF!&\") AS \"&#REF!&\",\"","v":{"$error":"#REF!"}}]
[{"$f":"\"HTP.P('<\"&#REF!&\">' || \"&IF(MID(#REF!,1,4)=\"STUB\",\"NULL\",\"REC.\"&#REF!)&\" || '</\"&#REF!&\">');\"","v":{"$error":"#REF!"}},null,{"$f":"\"DECODE(C_T.\"&#REF!&\", 0, NULL, C_T.\"&#REF!&\") AS \"&#REF!&\",\"","v":{"$error":"#REF!"}}]
[{"$f":"\"HTP.P('<\"&#REF!&\">' || \"&IF(MID(#REF!,1,4)=\"STUB\",\"NULL\",\"REC.\"&#REF!)&\" || '</\"&#REF!&\">');\"","v":{"$error":"#REF!"}},null,{"$f":"\"DECODE(C_T.\"&#REF!&\", 0, NULL, C_T.\"&#REF!&\") AS \"&#REF!&\",\"","v":{"$error":"#REF!"}}]
[{"$f":"\"HTP.P('<\"&#REF!&\">' || \"&IF(MID(#REF!,1,4)=\"STUB\",\"NULL\",\"REC.\"&#REF!)&\" || '</\"&#REF!&\">');\"","v":{"$error":"#REF!"}},null,{"$f":"\"DECODE(C_T.\"&#REF!&\", 0, NULL, C_T.\"&#REF!&\") AS \"&#REF!&\",\"","v":{"$error":"#REF!"}}]
[{"$f":"\"HTP.P('<\"&#REF!&\">' || \"&IF(MID(#REF!,1,4)=\"STUB\",\"NULL\",\"REC.\"&#REF!)&\" || '</\"&#REF!&\">');\"","v":{"$error":"#REF!"}},null,{"$f":"\"DECODE(C_T.\"&#REF!&\", 0, NULL, C_T.\"&#REF!&\") AS \"&#REF!&\",\"","v":{"$error":"#REF!"}}]
[{"$f":"\"HTP.P('<\"&#REF!&\">' || \"&IF(MID(#REF!,1,4)=\"STUB\",\"NULL\",\"REC.\"&#REF!)&\" || '</\"&#REF!&\">');\"","v":{"$error":"#REF!"}},null,{"$f":"\"DECODE(C_T.\"&#REF!&\", 0, NULL, C_T.\"&#REF!&\") AS \"&#REF!&\",\"","v":{"$error":"#REF!"}}]
[{"$f":"\"HTP.P('<\"&#REF!&\">' || \"&IF(MID(#REF!,1,4)=\"STUB\",\"NULL\",\"REC.\"&#REF!)&\" || '</\"&#REF!&\">');\"","v":{"$error":"#REF!"}},null,{"$f":"\"DECODE(C_T.\"&#REF!&\", 0, NULL, C_T.\"&#REF!&\") AS \"&#REF!&\",\"","v":{"$error":"#REF!"}}]
[{"$f":"\"HTP.P('<\"&#REF!&\">' || \"&IF(MID(#REF!,1,4)=\"STUB\",\"NULL\",\"REC.\"&#REF!)&\" || '</\"&#REF!&\">');\"","v":{"$error":"#REF!"}},null,{"$f":"\"DECODE(C_T.\"&#REF!&\", 0, NULL, C_T.\"&#REF!&\") AS \"&#REF!&\",\"","v":{"$error":"#REF!"}}]
[{"$f":"\"HTP.P('<\"&#REF!&\">' || \"&IF(MID(#REF!,1,4)=\"STUB\",\"NULL\",\"REC.\"&#REF!)&\" || '</\"&#REF!&\">');\"","v":{"$error":"#REF!"}},null,{"$f":"\"DECODE(C_T.\"&#REF!&\", 0, NULL, C_T.\"&#REF!&\") AS \"&#REF!&\",\"","v":{"$error":"#REF!"}}]
[{"$f":"\"HTP.P('<\"&#REF!&\">' || \"&IF(MID(#REF!,1,4)=\"STUB\",\"NULL\",\"REC.\"&#REF!)&\" || '</\"&#REF!&\">');\"","v":{"$error":"#REF!"}},null,{"$f":"\"DECODE(C_T.\"&#REF!&\", 0, NULL, C_T.\"&#REF!&\") AS \"&#REF!&\",\"","v":{"$error":"#REF!"}}]
[{"$f":"\"HTP.P('<\"&#REF!&\">' || \"&IF(MID(#REF!,1,4)=\"STUB\",\"NULL\",\"REC.\"&#REF!)&\" || '</\"&#REF!&\">');\"","v":{"$error":"#REF!"}},null,{"$f":"\"DECODE(C_T.\"&#REF!&\", 0, NULL, C_T.\"&#REF!&\") AS \"&#REF!&\",\"","v":{"$error":"#REF!"}}]
[{"$f":"\"HTP.P('<\"&#REF!&\">' || \"&IF(MID(#REF!,1,4)=\"STUB\",\"NULL\",\"REC.\"&#REF!)&\" || '</\"&#REF!&\">');\"","v":{"$error":"#REF!"}},null,{"$f":"\"DECODE(C_T.\"&#REF!&\", 0, NULL, C_T.\"&#REF!&\") AS \"&#REF!&\",\"","v":{"$error":"#REF!"}}]
[{"$f":"\"HTP.P('<\"&#REF!&\">' || \"&IF(MID(#REF!,1,4)=\"STUB\",\"NULL\",\"REC.\"&#REF!)&\" || '</\"&#REF!&\">');\"","v":{"$error":"#REF!"}},null,{"$f":"\"DECODE(C_T.\"&#REF!&\", 0, NULL, C_T.\"&#REF!&\") AS \"&#REF!&\",\"","v":{"$error":"#REF!"}}]
[{"$f":"\"HTP.P('<\"&#REF!&\">' || \"&IF(MID(#REF!,1,4)=\"STUB\",\"NULL\",\"REC.\"&#REF!)&\" || '</\"&#REF!&\">');\"","v":{"$error":"#REF!"}},null,{"$f":"\"DECODE(C_T.\"&#REF!&\", 0, NULL, C_T.\"&#REF!&\") AS \"&#REF!&\",\"","v":{"$error":"#REF!"}}]
[{"$f":"\"HTP.P('<\"&#REF!&\">' || \"&IF(MID(#REF!,1,4)=\"STUB\",\"NULL\",\"REC.\"&#REF!)&\" || '</\"&#REF!&\">');\"","v":{"$error":"#REF!"}},null,{"$f":"\"DECODE(C_T.\"&#REF!&\", 0, NULL, C_T.\"&#REF!&\") AS \"&#REF!&\",\"","v":{"$error":"#REF!"}}]
[{"$f":"\"HTP.P('<\"&#REF!&\">' || \"&IF(MID(#REF!,1,4)=\"STUB\",\"NULL\",\"REC.\"&#REF!)&\" || '</\"&#REF!&\">');\"","v":{"$error":"#REF!"}},null,{"$f":"\"DECODE(C_T.\"&#REF!&\", 0, NULL, C_T.\"&#REF!&\") AS \"&#REF!&\",\"","v":{"$error":"#REF!"}}]
[{"$f":"\"HTP.P('<\"&#REF!&\">' || \"&IF(MID(#REF!,1,4)=\"STUB\",\"NULL\",\"REC.\"&#REF!)&\" || '</\"&#REF!&\">');\"","v":{"$error":"#REF!"}},null,{"$f":"\"DECODE(C_T.\"&#REF!&\", 0, NULL, C_T.\"&#REF!&\") AS \"&#REF!&\",\"","v":{"$error":"#REF!"}}]
[{"$f":"\"HTP.P('<\"&#REF!&\">' || \"&IF(MID(#REF!,1,4)=\"STUB\",\"NULL\",\"REC.\"&#REF!)&\" || '</\"&#REF!&\">');\"","v":{"$error":"#REF!"}},null,{"$f":"\"DECODE(C_T.\"&#REF!&\", 0, NULL, C_T.\"&#REF!&\") AS \"&#REF!&\",\"","v":{"$error":"#REF!"}}]
[{"$f":"\"HTP.P('<\"&#REF!&\">' || \"&IF(MID(#REF!,1,4)=\"STUB\",\"NULL\",\"REC.\"&#REF!)&\" || '</\"&#REF!&\">');\"","v":{"$error":"#REF!"}},null,{"$f":"\"DECODE(C_T.\"&#REF!&\", 0, NULL, C_T.\"&#REF!&\") AS \"&#REF!&\",\"","v":{"$error":"#REF!"}}]
[{"$f":"\"HTP.P('<\"&#REF!&\">' || \"&IF(MID(#REF!,1,4)=\"STUB\",\"NULL\",\"REC.\"&#REF!)&\" || '</\"&#REF!&\">');\"","v":{"$error":"#REF!"}},null,{"$f":"\"DECODE(C_T.\"&#REF!&\", 0, NULL, C_T.\"&#REF!&\") AS \"&#REF!&\",\"","v":{"$error":"#REF!"}}]
[{"$f":"\"HTP.P('<\"&#REF!&\">' || \"&IF(MID(#REF!,1,4)=\"STUB\",\"NULL\",\"REC.\"&#REF!)&\" || '</\"&#REF!&\">');\"","v":{"$error":"#REF!"}},null,{"$f":"\"DECODE(C_T.\"&#REF!&\", 0, NULL, C_T.\"&#REF!&\") AS \"&#REF!&\",\"","v":{"$error":"#REF!"}}]
[{"$f":"\"HTP.P('<\"&#REF!&\">' || \"&IF(MID(#REF!,1,4)=\"STUB\",\"NULL\",\"REC.\"&#REF!)&\" || '</\"&#REF!&\">');\"","v":{"$error":"#REF!"}},null,{"$f":"\"DECODE(C_T.\"&#REF!&\", 0, NULL, C_T.\"&#REF!&\") AS \"&#REF!&\",\"","v":{"$error":"#REF!"}}]
[{"$f":"\"HTP.P('<\"&#REF!&\">' || \"&IF(MID(#REF!,1,4)=\"STUB\",\"NULL\",\"REC.\"&#REF!)&\" || '</\"&#REF!&\">');\"","v":{"$error":"#REF!"}},null,{"$f":"\"DECODE(C_T.\"&#REF!&\", 0, NULL, C_T.\"&#REF!&\") AS \"&#REF!&\",\"","v":{"$error":"#REF!"}}]
[{"$f":"\"HTP.P('<\"&#REF!&\">' || \"&IF(MID(#REF!,1,4)=\"STUB\",\"NULL\",\"REC.\"&#REF!)&\" || '</\"&#REF!&\">');\"","v":{"$error":"#REF!"}},null,{"$f":"\"DECODE(C_T.\"&#REF!&\", 0, NULL, C_T.\"&#REF!&\") AS \"&#REF!&\",\"","v":{"$error":"#REF!"}}]
[{"$f":"\"HTP.P('<\"&#REF!&\">' || \"&IF(MID(#REF!,1,4)=\"STUB\",\"NULL\",\"REC.\"&#REF!)&\" || '</\"&#REF!&\">');\"","v":{"$error":"#REF!"}},null,{"$f":"\"DECODE(C_T.\"&#REF!&\", 0, NULL, C_T.\"&#REF!&\") AS \"&#REF!&\",\"","v":{"$error":"#REF!"}}]
[{"$f":"\"HTP.P('<\"&#REF!&\">' || \"&IF(MID(#REF!,1,4)=\"STUB\",\"NULL\",\"REC.\"&#REF!)&\" || '</\"&#REF!&\">');\"","v":{"$error":"#REF!"}},null,{"$f":"\"DECODE(C_T.\"&#REF!&\", 0, NULL, C_T.\"&#REF!&\") AS \"&#REF!&\",\"","v":{"$error":"#REF!"}}]
[{"$f":"\"HTP.P('<\"&#REF!&\">' || \"&IF(MID(#REF!,1,4)=\"STUB\",\"NULL\",\"REC.\"&#REF!)&\" || '</\"&#REF!&\">');\"","v":{"$error":"#REF!"}},null,{"$f":"\"DECODE(C_T.\"&#REF!&\", 0, NULL, C_T.\"&#REF!&\") AS \"&#REF!&\",\"","v":{"$error":"#REF!"}}]
[{"$f":"\"HTP.P('<\"&#REF!&\">' || \"&IF(MID(#REF!,1,4)=\"STUB\",\"NULL\",\"REC.\"&#REF!)&\" || '</\"&#REF!&\">');\"","v":{"$error":"#REF!"}},null,{"$f":"\"DECODE(C_T.\"&#REF!&\", 0, NULL, C_T.\"&#REF!&\") AS \"&#REF!&\",\"","v":{"$error":"#REF!"}}]
[{"$f":"\"HTP.P('<\"&#REF!&\">' || \"&IF(MID(#REF!,1,4)=\"STUB\",\"NULL\",\"REC.\"&#REF!)&\" || '</\"&#REF!&\">');\"","v":{"$error":"#REF!"}},null,{"$f":"\"DECODE(C_T.\"&#REF!&\", 0, NULL, C_T.\"&#REF!&\") AS \"&#REF!&\",\"","v":{"$error":"#REF!"}}]
[{"$f":"\"HTP.P('<\"&#REF!&\">' || \"&IF(MID(#REF!,1,4)=\"STUB\",\"NULL\",\"REC.\"&#REF!)&\" || '</\"&#REF!&\">');\"","v":{"$error":"#REF!"}},null,{"$f":"\"DECODE(C_T.\"&#REF!&\", 0, NULL, C_T.\"&#REF!&\") AS \"&#REF!&\",\"","v":{"$error":"#REF!"}}]
[{"$f":"\"HTP.P('<\"&#REF!&\">' || \"&IF(MID(#REF!,1,4)=\"STUB\",\"NULL\",\"REC.\"&#REF!)&\" || '</\"&#REF!&\">');\"","v":{"$error":"#REF!"}},null,{"$f":"\"DECODE(C_T.\"&#REF!&\", 0, NULL, C_T.\"&#REF!&\") AS \"&#REF!&\",\"","v":{"$error":"#REF!"}}]
[{"$f":"\"HTP.P('<\"&#REF!&\">' || \"&IF(MID(#REF!,1,4)=\"STUB\",\"NULL\",\"REC.\"&#REF!)&\" || '</\"&#REF!&\">');\"","v":{"$error":"#REF!"}},null,{"$f":"\"DECODE(C_T.\"&#REF!&\", 0, NULL, C_T.\"&#REF!&\") AS \"&#REF!&\",\"","v":{"$error":"#REF!"}}]
[{"$f":"\"HTP.P('<\"&#REF!&\">' || \"&IF(MID(#REF!,1,4)=\"STUB\",\"NULL\",\"REC.\"&#REF!)&\" || '</\"&#REF!&\">');\"","v":{"$error":"#REF!"}},null,{"$f":"\"DECODE(C_T.\"&#REF!&\", 0, NULL, C_T.\"&#REF!&\") AS \"&#REF!&\",\"","v":{"$error":"#REF!"}}]
[{"$f":"\"HTP.P('<\"&#REF!&\">' || \"&IF(MID(#REF!,1,4)=\"STUB\",\"NULL\",\"REC.\"&#REF!)&\" || '</\"&#REF!&\">');\"","v":{"$error":"#REF!"}},null,{"$f":"\"DECODE(C_T.\"&#REF!&\", 0, NULL, C_T.\"&#REF!&\") AS \"&#REF!&\",\"","v":{"$error":"#REF!"}}]
[{"$f":"\"HTP.P('<\"&#REF!&\">' || \"&IF(MID(#REF!,1,4)=\"STUB\",\"NULL\",\"REC.\"&#REF!)&\" || '</\"&#REF!&\">');\"","v":{"$error":"#REF!"}},null,{"$f":"\"DECODE(C_T.\"&#REF!&\", 0, NULL, C_T.\"&#REF!&\") AS \"&#REF!&\",\"","v":{"$error":"#REF!"}}]
[{"$f":"\"HTP.P('<\"&#REF!&\">' || \"&IF(MID(#REF!,1,4)=\"STUB\",\"NULL\",\"REC.\"&#REF!)&\" || '</\"&#REF!&\">');\"","v":{"$error":"#REF!"}},null,{"$f":"\"DECODE(C_T.\"&#REF!&\", 0, NULL, C_T.\"&#REF!&\") AS \"&#REF!&\",\"","v":{"$error":"#REF!"}}]
[{"$f":"\"HTP.P('<\"&#REF!&\">' || \"&IF(MID(#REF!,1,4)=\"STUB\",\"NULL\",\"REC.\"&#REF!)&\" || '</\"&#REF!&\">');\"","v":{"$error":"#REF!"}},null,{"$f":"\"DECODE(C_T.\"&#REF!&\", 0, NULL, C_T.\"&#REF!&\") AS \"&#REF!&\",\"","v":{"$error":"#REF!"}}]
[]
[]
[]
[]
[]
[]
[{"$f":"\"HTP.P('<\"&#REF!&\">' || \"&IF(MID(#REF!,1,6)=\"L_STUB\",\"NULL\",\"REC.\"&#REF!)&\" || '</\"&#REF!&\">');\"","v":{"$error":"#REF!"}},null,{"$f":"\"DECODE(C_T.\"&#REF!&\", 0, NULL, C_T.\"&#REF!&\") AS \"&#REF!&\",\"","v":{"$error":"#REF!"}}]
[{"$f":"\"HTP.P('<\"&#REF!&\">' || \"&IF(MID(#REF!,1,6)=\"L_STUB\",\"NULL\",\"REC.\"&#REF!)&\" || '</\"&#REF!&\">');\"","v":{"$error":"#REF!"}},null,{"$f":"\"DECODE(C_T.\"&#REF!&\", 0, NULL, C_T.\"&#REF!&\") AS \"&#REF!&\",\"","v":{"$error":"#REF!"}}]
[{"$f":"\"HTP.P('<\"&#REF!&\">' || \"&IF(MID(#REF!,1,6)=\"L_STUB\",\"NULL\",\"REC.\"&#REF!)&\" || '</\"&#REF!&\">');\"","v":{"$error":"#REF!"}},null,{"$f":"\"DECODE(C_T.\"&#REF!&\", 0, NULL, C_T.\"&#REF!&\") AS \"&#REF!&\",\"","v":{"$error":"#REF!"}}]
[{"$f":"\"HTP.P('<\"&#REF!&\">' || \"&IF(MID(#REF!,1,6)=\"L_STUB\",\"NULL\",\"REC.\"&#REF!)&\" || '</\"&#REF!&\">');\"","v":{"$error":"#REF!"}},null,{"$f":"\"DECODE(C_T.\"&#REF!&\", 0, NULL, C_T.\"&#REF!&\") AS \"&#REF!&\",\"","v":{"$error":"#REF!"}}]
[{"$f":"\"HTP.P('<\"&#REF!&\">' || \"&IF(MID(#REF!,1,6)=\"L_STUB\",\"NULL\",\"REC.\"&#REF!)&\" || '</\"&#REF!&\">');\"","v":{"$error":"#REF!"}},null,{"$f":"\"DECODE(C_T.\"&#REF!&\", 0, NULL, C_T.\"&#REF!&\") AS \"&#REF!&\",\"","v":{"$error":"#REF!"}}]
[{"$f":"\"HTP.P('<\"&#REF!&\">' || \"&IF(MID(#REF!,1,6)=\"L_STUB\",\"NULL\",\"REC.\"&#REF!)&\" || '</\"&#REF!&\">');\"","v":{"$error":"#REF!"}},null,{"$f":"\"DECODE(C_T.\"&#REF!&\", 0, NULL, C_T.\"&#REF!&\") AS \"&#REF!&\",\"","v":{"$error":"#REF!"}}]
[{"$f":"\"HTP.P('<\"&#REF!&\">' || \"&IF(MID(#REF!,1,6)=\"L_STUB\",\"NULL\",\"REC.\"&#REF!)&\" || '</\"&#REF!&\">');\"","v":{"$error":"#REF!"}},null,{"$f":"\"DECODE(C_T.\"&#REF!&\", 0, NULL, C_T.\"&#REF!&\") AS \"&#REF!&\",\"","v":{"$error":"#REF!"}}]
[{"$f":"\"HTP.P('<\"&#REF!&\">' || \"&IF(MID(#REF!,1,6)=\"L_STUB\",\"NULL\",\"REC.\"&#REF!)&\" || '</\"&#REF!&\">');\"","v":{"$error":"#REF!"}},null,{"$f":"\"DECODE(C_T.\"&#REF!&\", 0, NULL, C_T.\"&#REF!&\") AS \"&#REF!&\",\"","v":{"$error":"#REF!"}}]
[{"$f":"\"HTP.P('<\"&#REF!&\">' || \"&IF(MID(#REF!,1,6)=\"L_STUB\",\"NULL\",\"REC.\"&#REF!)&\" || '</\"&#REF!&\">');\"","v":{"$error":"#REF!"}},null,{"$f":"\"DECODE(C_T.\"&#REF!&\", 0, NULL, C_T.\"&#REF!&\") AS \"&#REF!&\",\"","v":{"$error":"#REF!"}}]
[{"$f":"\"HTP.P('<\"&#REF!&\">' || \"&IF(MID(#REF!,1,6)=\"L_STUB\",\"NULL\",\"REC.\"&#REF!)&\" || '</\"&#REF!&\">');\"","v":{"$error":"#REF!"}},null,{"$f":"\"DECODE(C_T.\"&#REF!&\", 0, NULL, C_T.\"&#REF!&\") AS \"&#REF!&\",\"","v":{"$error":"#REF!"}}]
[{"$f":"\"HTP.P('<\"&#REF!&\">' || \"&IF(MID(#REF!,1,6)=\"L_STUB\",\"NULL\",\"REC.\"&#REF!)&\" || '</\"&#REF!&\">');\"","v":{"$error":"#REF!"}},null,{"$f":"\"DECODE(C_T.\"&#REF!&\", 0, NULL, C_T.\"&#REF!&\") AS \"&#REF!&\",\"","v":{"$error":"#REF!"}}]
[{"$f":"\"HTP.P('<\"&#REF!&\">' || \"&IF(MID(#REF!,1,6)=\"L_STUB\",\"NULL\",\"REC.\"&#REF!)&\" || '</\"&#REF!&\">');\"","v":{"$error":"#REF!"}},null,{"$f":"\"DECODE(C_T.\"&#REF!&\", 0, NULL, C_T.\"&#REF!&\") AS \"&#REF!&\",\"","v":{"$error":"#REF!"}}]
[{"$f":"\"HTP.P('<\"&#REF!&\">' || \"&IF(MID(#REF!,1,6)=\"L_STUB\",\"NULL\",\"REC.\"&#REF!)&\" || '</\"&#REF!&\">');\"","v":{"$error":"#REF!"}},null,{"$f":"\"DECODE(C_T.\"&#REF!&\", 0, NULL, C_T.\"&#REF!&\") AS \"&#REF!&\",\"","v":{"$error":"#REF!"}}]
[{"$f":"\"HTP.P('<\"&#REF!&\">' || \"&IF(MID(#REF!,1,6)=\"L_STUB\",\"NULL\",\"REC.\"&#REF!)&\" || '</\"&#REF!&\">');\"","v":{"$error":"#REF!"}},null,{"$f":"\"DECODE(C_T.\"&#REF!&\", 0, NULL, C_T.\"&#REF!&\") AS \"&#REF!&\",\"","v":{"$error":"#REF!"}}]
[{"$f":"\"HTP.P('<\"&#REF!&\">' || \"&IF(MID(#REF!,1,6)=\"L_STUB\",\"NULL\",\"REC.\"&#REF!)&\" || '</\"&#REF!&\">');\"","v":{"$error":"#REF!"}},null,{"$f":"\"DECODE(C_T.\"&#REF!&\", 0, NULL, C_T.\"&#REF!&\") AS \"&#REF!&\",\"","v":{"$error":"#REF!"}}]
[{"$f":"\"HTP.P('<\"&#REF!&\">' || \"&IF(MID(#REF!,1,6)=\"L_STUB\",\"NULL\",\"REC.\"&#REF!)&\" || '</\"&#REF!&\">');\"","v":{"$error":"#REF!"}},null,{"$f":"\"DECODE(C_T.\"&#REF!&\", 0, NULL, C_T.\"&#REF!&\") AS \"&#REF!&\",\"","v":{"$error":"#REF!"}}]
[{"$f":"\"HTP.P('<\"&#REF!&\">' || \"&IF(MID(#REF!,1,6)=\"L_STUB\",\"NULL\",\"REC.\"&#REF!)&\" || '</\"&#REF!&\">');\"","v":{"$error":"#REF!"}},null,{"$f":"\"DECODE(C_T.\"&#REF!&\", 0, NULL, C_T.\"&#REF!&\") AS \"&#REF!&\",\"","v":{"$error":"#REF!"}}]
[{"$f":"\"HTP.P('<\"&#REF!&\">' || \"&IF(MID(#REF!,1,6)=\"L_STUB\",\"NULL\",\"REC.\"&#REF!)&\" || '</\"&#REF!&\">');\"","v":{"$error":"#REF!"}},null,{"$f":"\"DECODE(C_T.\"&#REF!&\", 0, NULL, C_T.\"&#REF!&\") AS \"&#REF!&\",\"","v":{"$error":"#REF!"}}]
[{"$f":"\"HTP.P('<\"&#REF!&\">' || \"&IF(MID(#REF!,1,6)=\"L_STUB\",\"NULL\",\"REC.\"&#REF!)&\" || '</\"&#REF!&\">');\"","v":{"$error":"#REF!"}},null,{"$f":"\"DECODE(C_T.\"&#REF!&\", 0, NULL, C_T.\"&#REF!&\") AS \"&#REF!&\",\"","v":{"$error":"#REF!"}}]
[{"$f":"\"HTP.P('<\"&#REF!&\">' || \"&IF(MID(#REF!,1,6)=\"L_STUB\",\"NULL\",\"REC.\"&#REF!)&\" || '</\"&#REF!&\">');\"","v":{"$error":"#REF!"}},null,{"$f":"\"DECODE(C_T.\"&#REF!&\", 0, NULL, C_T.\"&#REF!&\") AS \"&#REF!&\",\"","v":{"$error":"#REF!"}}]
[{"$f":"\"HTP.P('<\"&#REF!&\">' || \"&IF(MID(#REF!,1,6)=\"L_STUB\",\"NULL\",\"REC.\"&#REF!)&\" || '</\"&#REF!&\">');\"","v":{"$error":"#REF!"}},null,{"$f":"\"DECODE(C_T.\"&#REF!&\", 0, NULL, C_T.\"&#REF!&\") AS \"&#REF!&\",\"","v":{"$error":"#REF!"}}]
[{"$f":"\"HTP.P('<\"&#REF!&\">' || \"&IF(MID(#REF!,1,6)=\"L_STUB\",\"NULL\",\"REC.\"&#REF!)&\" || '</\"&#REF!&\">');\"","v":{"$error":"#REF!"}},null,{"$f":"\"DECODE(C_T.\"&#REF!&\", 0, NULL, C_T.\"&#REF!&\") AS \"&#REF!&\",\"","v":{"$error":"#REF!"}}]
[{"$f":"\"HTP.P('<\"&#REF!&\">' || \"&IF(MID(#REF!,1,6)=\"L_STUB\",\"NULL\",\"REC.\"&#REF!)&\" || '</\"&#REF!&\">');\"","v":{"$error":"#REF!"}},null,{"$f":"\"DECODE(C_T.\"&#REF!&\", 0, NULL, C_T.\"&#REF!&\") AS \"&#REF!&\",\"","v":{"$error":"#REF!"}}]
[{"$f":"\"HTP.P('<\"&#REF!&\">' || \"&IF(MID(#REF!,1,6)=\"L_STUB\",\"NULL\",\"REC.\"&#REF!)&\" || '</\"&#REF!&\">');\"","v":{"$error":"#REF!"}},null,{"$f":"\"DECODE(C_T.\"&#REF!&\", 0, NULL, C_T.\"&#REF!&\") AS \"&#REF!&\",\"","v":{"$error":"#REF!"}}]
[{"$f":"\"HTP.P('<\"&#REF!&\">' || \"&IF(MID(#REF!,1,6)=\"L_STUB\",\"NULL\",\"REC.\"&#REF!)&\" || '</\"&#REF!&\">');\"","v":{"$error":"#REF!"}},null,{"$f":"\"DECODE(C_T.\"&#REF!&\", 0, NULL, C_T.\"&#REF!&\") AS \"&#REF!&\",\"","v":{"$error":"#REF!"}}]
[{"$f":"\"HTP.P('<\"&#REF!&\">' || \"&IF(MID(#REF!,1,6)=\"L_STUB\",\"NULL\",\"REC.\"&#REF!)&\" || '</\"&#REF!&\">');\"","v":{"$error":"#REF!"}},null,{"$f":"\"DECODE(C_T.\"&#REF!&\", 0, NULL, C_T.\"&#REF!&\") AS \"&#REF!&\",\"","v":{"$error":"#REF!"}}]
[{"$f":"\"HTP.P('<\"&#REF!&\">' || \"&IF(MID(#REF!,1,6)=\"L_STUB\",\"NULL\",\"REC.\"&#REF!)&\" || '</\"&#REF!&\">');\"","v":{"$error":"#REF!"}},null,{"$f":"\"DECODE(C_T.\"&#REF!&\", 0, NULL, C_T.\"&#REF!&\") AS \"&#REF!&\",\"","v":{"$error":"#REF!"}}]
[{"$f":"\"HTP.P('<\"&#REF!&\">' || \"&IF(MID(#REF!,1,6)=\"L_STUB\",\"NULL\",\"REC.\"&#REF!)&\" || '</\"&#REF!&\">');\"","v":{"$error":"#REF!"}},null,{"$f":"\"DECODE(C_T.\"&#REF!&\", 0, NULL, C_T.\"&#REF!&\") AS \"&#REF!&\",\"","v":{"$error":"#REF!"}}]
[{"$f":"\"HTP.P('<\"&#REF!&\">' || \"&IF(MID(#REF!,1,6)=\"L_STUB\",\"NULL\",\"REC.\"&#REF!)&\" || '</\"&#REF!&\">');\"","v":{"$error":"#REF!"}},null,{"$f":"\"DECODE(C_T.\"&#REF!&\", 0, NULL, C_T.\"&#REF!&\") AS \"&#REF!&\",\"","v":{"$error":"#REF!"}}]
[{"$f":"\"HTP.P('<\"&#REF!&\">' || \"&IF(MID(#REF!,1,6)=\"L_STUB\",\"NULL\",\"REC.\"&#REF!)&\" || '</\"&#REF!&\">');\"","v":{"$error":"#REF!"}},null,{"$f":"\"DECODE(C_T.\"&#REF!&\", 0, NULL, C_T.\"&#REF!&\") AS \"&#REF!&\",\"","v":{"$error":"#REF!"}}]
[{"$f":"\"HTP.P('<\"&#REF!&\">' || \"&IF(MID(#REF!,1,6)=\"L_STUB\",\"NULL\",\"REC.\"&#REF!)&\" || '</\"&#REF!&\">');\"","v":{"$error":"#REF!"}},null,{"$f":"\"DECODE(C_T.\"&#REF!&\", 0, NULL, C_T.\"&#REF!&\") AS \"&#REF!&\",\"","v":{"$error":"#REF!"}}]
[{"$f":"\"HTP.P('<\"&#REF!&\">' || \"&IF(MID(#REF!,1,6)=\"L_STUB\",\"NULL\",\"REC.\"&#REF!)&\" || '</\"&#REF!&\">');\"","v":{"$error":"#REF!"}},null,{"$f":"\"DECODE(C_T.\"&#REF!&\", 0, NULL, C_T.\"&#REF!&\") AS \"&#REF!&\",\"","v":{"$error":"#REF!"}}]
[{"$f":"\"HTP.P('<\"&#REF!&\">' || \"&IF(MID(#REF!,1,6)=\"L_STUB\",\"NULL\",\"REC.\"&#REF!)&\" || '</\"&#REF!&\">');\"","v":{"$error":"#REF!"}},null,{"$f":"\"DECODE(C_T.\"&#REF!&\", 0, NULL, C_T.\"&#REF!&\") AS \"&#REF!&\",\"","v":{"$error":"#REF!"}}]
[{"$f":"\"HTP.P('<\"&#REF!&\">' || \"&IF(MID(#REF!,1,6)=\"L_STUB\",\"NULL\",\"REC.\"&#REF!)&\" || '</\"&#REF!&\">');\"","v":{"$error":"#REF!"}},null,{"$f":"\"DECODE(C_T.\"&#REF!&\", 0, NULL, C_T.\"&#REF!&\") AS \"&#REF!&\",\"","v":{"$error":"#REF!"}}]
[{"$f":"\"HTP.P('<\"&#REF!&\">' || \"&IF(MID(#REF!,1,6)=\"L_STUB\",\"NULL\",\"REC.\"&#REF!)&\" || '</\"&#REF!&\">');\"","v":{"$error":"#REF!"}},null,{"$f":"\"DECODE(C_T.\"&#REF!&\", 0, NULL, C_T.\"&#REF!&\") AS \"&#REF!&\",\"","v":{"$error":"#REF!"}}]
[{"$f":"\"HTP.P('<\"&#REF!&\">' || \"&IF(MID(#REF!,1,6)=\"L_STUB\",\"NULL\",\"REC.\"&#REF!)&\" || '</\"&#REF!&\">');\"","v":{"$error":"#REF!"}},null,{"$f":"\"DECODE(C_T.\"&#REF!&\", 0, NULL, C_T.\"&#REF!&\") AS \"&#REF!&\",\"","v":{"$error":"#REF!"}}]
[{"$f":"\"HTP.P('<\"&#REF!&\">' || \"&IF(MID(#REF!,1,6)=\"L_STUB\",\"NULL\",\"REC.\"&#REF!)&\" || '</\"&#REF!&\">');\"","v":{"$error":"#REF!"}},null,{"$f":"\"DECODE(C_T.\"&#REF!&\", 0, NULL, C_T.\"&#REF!&\") AS \"&#REF!&\",\"","v":{"$error":"#REF!"}}]
[{"$f":"\"HTP.P('<\"&#REF!&\">' || \"&IF(MID(#REF!,1,6)=\"L_STUB\",\"NULL\",\"REC.\"&#REF!)&\" || '</\"&#REF!&\">');\"","v":{"$error":"#REF!"}},null,{"$f":"\"DECODE(C_T.\"&#REF!&\", 0, NULL, C_T.\"&#REF!&\") AS \"&#REF!&\",\"","v":{"$error":"#REF!"}}]
[{"$f":"\"HTP.P('<\"&#REF!&\">' || \"&IF(MID(#REF!,1,6)=\"L_STUB\",\"NULL\",\"REC.\"&#REF!)&\" || '</\"&#REF!&\">');\"","v":{"$error":"#REF!"}},null,{"$f":"\"DECODE(C_T.\"&#REF!&\", 0, NULL, C_T.\"&#REF!&\") AS \"&#REF!&\",\"","v":{"$error":"#REF!"}}]
[{"$f":"\"HTP.P('<\"&#REF!&\">' || \"&IF(MID(#REF!,1,6)=\"L_STUB\",\"NULL\",\"REC.\"&#REF!)&\" || '</\"&#REF!&\">');\"","v":{"$error":"#REF!"}},null,{"$f":"\"DECODE(C_T.\"&#REF!&\", 0, NULL, C_T.\"&#REF!&\") AS \"&#REF!&\",\"","v":{"$error":"#REF!"}}]
[{"$f":"\"HTP.P('<\"&#REF!&\">' || \"&IF(MID(#REF!,1,6)=\"L_STUB\",\"NULL\",\"REC.\"&#REF!)&\" || '</\"&#REF!&\">');\"","v":{"$error":"#REF!"}},null,{"$f":"\"DECODE(C_T.\"&#REF!&\", 0, NULL, C_T.\"&#REF!&\") AS \"&#REF!&\",\"","v":{"$error":"#REF!"}}]
[{"$f":"\"HTP.P('<\"&#REF!&\">' || \"&IF(MID(#REF!,1,6)=\"L_STUB\",\"NULL\",\"REC.\"&#REF!)&\" || '</\"&#REF!&\">');\"","v":{"$error":"#REF!"}},null,{"$f":"\"DECODE(C_T.\"&#REF!&\", 0, NULL, C_T.\"&#REF!&\") AS \"&#REF!&\",\"","v":{"$error":"#REF!"}}]
[{"$f":"\"HTP.P('<\"&#REF!&\">' || \"&IF(MID(#REF!,1,6)=\"L_STUB\",\"NULL\",\"REC.\"&#REF!)&\" || '</\"&#REF!&\">');\"","v":{"$error":"#REF!"}},null,{"$f":"\"DECODE(C_T.\"&#REF!&\", 0, NULL, C_T.\"&#REF!&\") AS \"&#REF!&\",\"","v":{"$error":"#REF!"}}]
[{"$f":"\"HTP.P('<\"&#REF!&\">' || \"&IF(MID(#REF!,1,6)=\"L_STUB\",\"NULL\",\"REC.\"&#REF!)&\" || '</\"&#REF!&\">');\"","v":{"$error":"#REF!"}},null,{"$f":"\"DECODE(C_T.\"&#REF!&\", 0, NULL, C_T.\"&#REF!&\") AS \"&#REF!&\",\"","v":{"$error":"#REF!"}}]
[{"$f":"\"HTP.P('<\"&#REF!&\">' || \"&IF(MID(#REF!,1,6)=\"L_STUB\",\"NULL\",\"REC.\"&#REF!)&\" || '</\"&#REF!&\">');\"","v":{"$error":"#REF!"}},null,{"$f":"\"DECODE(C_T.\"&#REF!&\", 0, NULL, C_T.\"&#REF!&\") AS \"&#REF!&\",\"","v":{"$error":"#REF!"}}]
[{"$f":"\"HTP.P('<\"&#REF!&\">' || \"&IF(MID(#REF!,1,6)=\"L_STUB\",\"NULL\",\"REC.\"&#REF!)&\" || '</\"&#REF!&\">');\"","v":{"$error":"#REF!"}},null,{"$f":"\"DECODE(C_T.\"&#REF!&\", 0, NULL, C_T.\"&#REF!&\") AS \"&#REF!&\",\"","v":{"$error":"#REF!"}}]
[{"$f":"\"HTP.P('<\"&#REF!&\">' || \"&IF(MID(#REF!,1,6)=\"L_STUB\",\"NULL\",\"REC.\"&#REF!)&\" || '</\"&#REF!&\">');\"","v":{"$error":"#REF!"}},null,{"$f":"\"DECODE(C_T.\"&#REF!&\", 0, NULL, C_T.\"&#REF!&\") AS \"&#REF!&\",\"","v":{"$error":"#REF!"}}]
[{"$f":"\"HTP.P('<\"&#REF!&\">' || \"&IF(MID(#REF!,1,6)=\"L_STUB\",\"NULL\",\"REC.\"&#REF!)&\" || '</\"&#REF!&\">');\"","v":{"$error":"#REF!"}},null,{"$f":"\"DECODE(C_T.\"&#REF!&\", 0, NULL, C_T.\"&#REF!&\") AS \"&#REF!&\",\"","v":{"$error":"#REF!"}}]
[{"$f":"\"HTP.P('<\"&#REF!&\">' || \"&IF(MID(#REF!,1,6)=\"L_STUB\",\"NULL\",\"REC.\"&#REF!)&\" || '</\"&#REF!&\">');\"","v":{"$error":"#REF!"}},null,{"$f":"\"DECODE(C_T.\"&#REF!&\", 0, NULL, C_T.\"&#REF!&\") AS \"&#REF!&\",\"","v":{"$error":"#REF!"}}]
[{"$f":"\"HTP.P('<\"&#REF!&\">' || \"&IF(MID(#REF!,1,6)=\"L_STUB\",\"NULL\",\"REC.\"&#REF!)&\" || '</\"&#REF!&\">');\"","v":{"$error":"#REF!"}},null,{"$f":"\"DECODE(C_T.\"&#REF!&\", 0, NULL, C_T.\"&#REF!&\") AS \"&#REF!&\",\"","v":{"$error":"#REF!"}}]
[{"$f":"\"HTP.P('<\"&#REF!&\">' || \"&IF(MID(#REF!,1,6)=\"L_STUB\",\"NULL\",\"REC.\"&#REF!)&\" || '</\"&#REF!&\">');\"","v":{"$error":"#REF!"}},null,{"$f":"\"DECODE(C_T.\"&#REF!&\", 0, NULL, C_T.\"&#REF!&\") AS \"&#REF!&\",\"","v":{"$error":"#REF!"}}]
[{"$f":"\"HTP.P('<\"&#REF!&\">' || \"&IF(MID(#REF!,1,6)=\"L_STUB\",\"NULL\",\"REC.\"&#REF!)&\" || '</\"&#REF!&\">');\"","v":{"$error":"#REF!"}},null,{"$f":"\"DECODE(C_T.\"&#REF!&\", 0, NULL, C_T.\"&#REF!&\") AS \"&#REF!&\",\"","v":{"$error":"#REF!"}}]
[{"$f":"\"HTP.P('<\"&#REF!&\">' || \"&IF(MID(#REF!,1,6)=\"L_STUB\",\"NULL\",\"REC.\"&#REF!)&\" || '</\"&#REF!&\">');\"","v":{"$error":"#REF!"}},null,{"$f":"\"DECODE(C_T.\"&#REF!&\", 0, NULL, C_T.\"&#REF!&\") AS \"&#REF!&\",\"","v":{"$error":"#REF!"}}]
[{"$f":"\"HTP.P('<\"&#REF!&\">' || \"&IF(MID(#REF!,1,6)=\"L_STUB\",\"NULL\",\"REC.\"&#REF!)&\" || '</\"&#REF!&\">');\"","v":{"$error":"#REF!"}},null,{"$f":"\"DECODE(C_T.\"&#REF!&\", 0, NULL, C_T.\"&#REF!&\") AS \"&#REF!&\",\"","v":{"$error":"#REF!"}}]
[{"$f":"\"HTP.P('<\"&#REF!&\">' || \"&IF(MID(#REF!,1,6)=\"L_STUB\",\"NULL\",\"REC.\"&#REF!)&\" || '</\"&#REF!&\">');\"","v":{"$error":"#REF!"}},null,{"$f":"\"DECODE(C_T.\"&#REF!&\", 0, NULL, C_T.\"&#REF!&\") AS \"&#REF!&\",\"","v":{"$error":"#REF!"}}]
[{"$f":"\"HTP.P('<\"&#REF!&\">' || \"&IF(MID(#REF!,1,6)=\"L_STUB\",\"NULL\",\"REC.\"&#REF!)&\" || '</\"&#REF!&\">');\"","v":{"$error":"#REF!"}},null,{"$f":"\"DECODE(C_T.\"&#REF!&\", 0, NULL, C_T.\"&#REF!&\") AS \"&#REF!&\",\"","v":{"$error":"#REF!"}}]
[{"$f":"\"HTP.P('<\"&#REF!&\">' || \"&IF(MID(#REF!,1,6)=\"L_STUB\",\"NULL\",\"REC.\"&#REF!)&\" || '</\"&#REF!&\">');\"","v":{"$error":"#REF!"}},null,{"$f":"\"DECODE(C_T.\"&#REF!&\", 0, NULL, C_T.\"&#REF!&\") AS \"&#REF!&\",\"","v":{"$error":"#REF!"}}]
[{"$f":"\"HTP.P('<\"&#REF!&\">' || \"&IF(MID(#REF!,1,6)=\"L_STUB\",\"NULL\",\"REC.\"&#REF!)&\" || '</\"&#REF!&\">');\"","v":{"$error":"#REF!"}},null,{"$f":"\"DECODE(C_T.\"&#REF!&\", 0, NULL, C_T.\"&#REF!&\") AS \"&#REF!&\",\"","v":{"$error":"#REF!"}}]
[{"$f":"\"HTP.P('<\"&#REF!&\">' || \"&IF(MID(#REF!,1,6)=\"L_STUB\",\"NULL\",\"REC.\"&#REF!)&\" || '</\"&#REF!&\">');\"","v":{"$error":"#REF!"}},null,{"$f":"\"DECODE(C_T.\"&#REF!&\", 0, NULL, C_T.\"&#REF!&\") AS \"&#REF!&\",\"","v":{"$error":"#REF!"}}]
[{"$f":"\"HTP.P('<\"&#REF!&\">' || \"&IF(MID(#REF!,1,6)=\"L_STUB\",\"NULL\",\"REC.\"&#REF!)&\" || '</\"&#REF!&\">');\"","v":{"$error":"#REF!"}},null,{"$f":"\"DECODE(C_T.\"&#REF!&\", 0, NULL, C_T.\"&#REF!&\") AS \"&#REF!&\",\"","v":{"$error":"#REF!"}}]
[{"$f":"\"HTP.P('<\"&#REF!&\">' || \"&IF(MID(#REF!,1,6)=\"L_STUB\",\"NULL\",\"REC.\"&#REF!)&\" || '</\"&#REF!&\">');\"","v":{"$error":"#REF!"}},null,{"$f":"\"DECODE(C_T.\"&#REF!&\", 0, NULL, C_T.\"&#REF!&\") AS \"&#REF!&\",\"","v":{"$error":"#REF!"}}]
[{"$f":"\"HTP.P('<\"&#REF!&\">' || \"&IF(MID(#REF!,1,6)=\"L_STUB\",\"NULL\",\"REC.\"&#REF!)&\" || '</\"&#REF!&\">');\"","v":{"$error":"#REF!"}},null,{"$f":"\"DECODE(C_T.\"&#REF!&\", 0, NULL, C_T.\"&#REF!&\") AS \"&#REF!&\",\"","v":{"$error":"#REF!"}}]
[{"$f":"\"HTP.P('<\"&#REF!&\">' || \"&IF(MID(#REF!,1,6)=\"L_STUB\",\"NULL\",\"REC.\"&#REF!)&\" || '</\"&#REF!&\">');\"","v":{"$error":"#REF!"}},null,{"$f":"\"DECODE(C_T.\"&#REF!&\", 0, NULL, C_T.\"&#REF!&\") AS \"&#REF!&\",\"","v":{"$error":"#REF!"}}]
[{"$f":"\"HTP.P('<\"&#REF!&\">' || \"&IF(MID(#REF!,1,6)=\"L_STUB\",\"NULL\",\"REC.\"&#REF!)&\" || '</\"&#REF!&\">');\"","v":{"$error":"#REF!"}},null,{"$f":"\"DECODE(C_T.\"&#REF!&\", 0, NULL, C_T.\"&#REF!&\") AS \"&#REF!&\",\"","v":{"$error":"#REF!"}}]
[{"$f":"\"HTP.P('<\"&#REF!&\">' || \"&IF(MID(#REF!,1,6)=\"L_STUB\",\"NULL\",\"REC.\"&#REF!)&\" || '</\"&#REF!&\">');\"","v":{"$error":"#REF!"}},null,{"$f":"\"DECODE(C_T.\"&#REF!&\", 0, NULL, C_T.\"&#REF!&\") AS \"&#REF!&\",\"","v":{"$error":"#REF!"}}]
[{"$f":"\"HTP.P('<\"&#REF!&\">' || \"&IF(MID(#REF!,1,6)=\"L_STUB\",\"NULL\",\"REC.\"&#REF!)&\" || '</\"&#REF!&\">');\"","v":{"$error":"#REF!"}},null,{"$f":"\"DECODE(C_T.\"&#REF!&\", 0, NULL, C_T.\"&#REF!&\") AS \"&#REF!&\",\"","v":{"$error":"#REF!"}}]
[{"$f":"\"HTP.P('<\"&#REF!&\">' || \"&IF(MID(#REF!,1,6)=\"L_STUB\",\"NULL\",\"REC.\"&#REF!)&\" || '</\"&#REF!&\">');\"","v":{"$error":"#REF!"}},null,{"$f":"\"DECODE(C_T.\"&#REF!&\", 0, NULL, C_T.\"&#REF!&\") AS \"&#REF!&\",\"","v":{"$error":"#REF!"}}]
[{"$f":"\"HTP.P('<\"&#REF!&\">' || \"&IF(MID(#REF!,1,6)=\"L_STUB\",\"NULL\",\"REC.\"&#REF!)&\" || '</\"&#REF!&\">');\"","v":{"$error":"#REF!"}},null,{"$f":"\"DECODE(C_T.\"&#REF!&\", 0, NULL, C_T.\"&#REF!&\") AS \"&#REF!&\",\"","v":{"$error":"#REF!"}}]
[{"$f":"\"HTP.P('<\"&#REF!&\">' || \"&IF(MID(#REF!,1,6)=\"L_STUB\",\"NULL\",\"REC.\"&#REF!)&\" || '</\"&#REF!&\">');\"","v":{"$error":"#REF!"}},null,{"$f":"\"DECODE(C_T.\"&#REF!&\", 0, NULL, C_T.\"&#REF!&\") AS \"&#REF!&\",\"","v":{"$error":"#REF!"}}]
[{"$f":"\"HTP.P('<\"&#REF!&\">' || \"&IF(MID(#REF!,1,6)=\"L_STUB\",\"NULL\",\"REC.\"&#REF!)&\" || '</\"&#REF!&\">');\"","v":{"$error":"#REF!"}},null,{"$f":"\"DECODE(C_T.\"&#REF!&\", 0, NULL, C_T.\"&#REF!&\") AS \"&#REF!&\",\"","v":{"$error":"#REF!"}}]
[{"$f":"\"HTP.P('<\"&#REF!&\">' || \"&IF(MID(#REF!,1,6)=\"L_STUB\",\"NULL\",\"REC.\"&#REF!)&\" || '</\"&#REF!&\">');\"","v":{"$error":"#REF!"}},null,{"$f":"\"DECODE(C_T.\"&#REF!&\", 0, NULL, C_T.\"&#REF!&\") AS \"&#REF!&\",\"","v":{"$error":"#REF!"}}]
[{"$f":"\"HTP.P('<\"&#REF!&\">' || \"&IF(MID(#REF!,1,6)=\"L_STUB\",\"NULL\",\"REC.\"&#REF!)&\" || '</\"&#REF!&\">');\"","v":{"$error":"#REF!"}},null,{"$f":"\"DECODE(C_T.\"&#REF!&\", 0, NULL, C_T.\"&#REF!&\") AS \"&#REF!&\",\"","v":{"$error":"#REF!"}}]
[{"$f":"\"HTP.P('<\"&#REF!&\">' || \"&IF(MID(#REF!,1,6)=\"L_STUB\",\"NULL\",\"REC.\"&#REF!)&\" || '</\"&#REF!&\">');\"","v":{"$error":"#REF!"}},null,{"$f":"\"DECODE(C_T.\"&#REF!&\", 0, NULL, C_T.\"&#REF!&\") AS \"&#REF!&\",\"","v":{"$error":"#REF!"}}]
[{"$f":"\"HTP.P('<\"&#REF!&\">' || \"&IF(MID(#REF!,1,6)=\"L_STUB\",\"NULL\",\"REC.\"&#REF!)&\" || '</\"&#REF!&\">');\"","v":{"$error":"#REF!"}},null,{"$f":"\"DECODE(C_T.\"&#REF!&\", 0, NULL, C_T.\"&#REF!&\") AS \"&#REF!&\",\"","v":{"$error":"#REF!"}}]
[{"$f":"\"HTP.P('<\"&#REF!&\">' || \"&IF(MID(#REF!,1,6)=\"L_STUB\",\"NULL\",\"REC.\"&#REF!)&\" || '</\"&#REF!&\">');\"","v":{"$error":"#REF!"}},null,{"$f":"\"DECODE(C_T.\"&#REF!&\", 0, NULL, C_T.\"&#REF!&\") AS \"&#REF!&\",\"","v":{"$error":"#REF!"}}]
[{"$f":"\"HTP.P('<\"&#REF!&\">' || \"&IF(MID(#REF!,1,6)=\"L_STUB\",\"NULL\",\"REC.\"&#REF!)&\" || '</\"&#REF!&\">');\"","v":{"$error":"#REF!"}},null,{"$f":"\"DECODE(C_T.\"&#REF!&\", 0, NULL, C_T.\"&#REF!&\") AS \"&#REF!&\",\"","v":{"$error":"#REF!"}}]
[{"$f":"\"HTP.P('<\"&#REF!&\">' || \"&IF(MID(#REF!,1,6)=\"L_STUB\",\"NULL\",\"REC.\"&#REF!)&\" || '</\"&#REF!&\">');\"","v":{"$error":"#REF!"}},null,{"$f":"\"DECODE(C_T.\"&#REF!&\", 0, NULL, C_T.\"&#REF!&\") AS \"&#REF!&\",\"","v":{"$error":"#REF!"}}]
[{"$f":"\"HTP.P('<\"&#REF!&\">' || \"&IF(MID(#REF!,1,6)=\"L_STUB\",\"NULL\",\"REC.\"&#REF!)&\" || '</\"&#REF!&\">');\"","v":{"$error":"#REF!"}},null,{"$f":"\"DECODE(C_T.\"&#REF!&\", 0, NULL, C_T.\"&#REF!&\") AS \"&#REF!&\",\"","v":{"$error":"#REF!"}}]
[{"$f":"\"HTP.P('<\"&#REF!&\">' || \"&IF(MID(#REF!,1,6)=\"L_STUB\",\"NULL\",\"REC.\"&#REF!)&\" || '</\"&#REF!&\">');\"","v":{"$error":"#REF!"}},null,{"$f":"\"DECODE(C_T.\"&#REF!&\", 0, NULL, C_T.\"&#REF!&\") AS \"&#REF!&\",\"","v":{"$error":"#REF!"}}]
[{"$f":"\"HTP.P('<\"&#REF!&\">' || \"&IF(MID(#REF!,1,6)=\"L_STUB\",\"NULL\",\"REC.\"&#REF!)&\" || '</\"&#REF!&\">');\"","v":{"$error":"#REF!"}},null,{"$f":"\"DECODE(C_T.\"&#REF!&\", 0, NULL, C_T.\"&#REF!&\") AS \"&#REF!&\",\"","v":{"$error":"#REF!"}}]
[{"$f":"\"HTP.P('<\"&#REF!&\">' || \"&IF(MID(#REF!,1,6)=\"L_STUB\",\"NULL\",\"REC.\"&#REF!)&\" || '</\"&#REF!&\">');\"","v":{"$error":"#REF!"}},null,{"$f":"\"DECODE(C_T.\"&#REF!&\", 0, NULL, C_T.\"&#REF!&\") AS \"&#REF!&\",\"","v":{"$error":"#REF!"}}]
[{"$f":"\"HTP.P('<\"&#REF!&\">' || \"&IF(MID(#REF!,1,6)=\"L_STUB\",\"NULL\",\"REC.\"&#REF!)&\" || '</\"&#REF!&\">');\"","v":{"$error":"#REF!"}},null,{"$f":"\"DECODE(C_T.\"&#REF!&\", 0, NULL, C_T.\"&#REF!&\") AS \"&#REF!&\",\"","v":{"$error":"#REF!"}}]
[{"$f":"\"HTP.P('<\"&#REF!&\">' || \"&IF(MID(#REF!,1,6)=\"L_STUB\",\"NULL\",\"REC.\"&#REF!)&\" || '</\"&#REF!&\">');\"","v":{"$error":"#REF!"}},null,{"$f":"\"DECODE(C_T.\"&#REF!&\", 0, NULL, C_T.\"&#REF!&\") AS \"&#REF!&\",\"","v":{"$error":"#REF!"}}]
[{"$f":"\"HTP.P('<\"&#REF!&\">' || \"&IF(MID(#REF!,1,6)=\"L_STUB\",\"NULL\",\"REC.\"&#REF!)&\" || '</\"&#REF!&\">');\"","v":{"$error":"#REF!"}},null,{"$f":"\"DECODE(C_T.\"&#REF!&\", 0, NULL, C_T.\"&#REF!&\") AS \"&#REF!&\",\"","v":{"$error":"#REF!"}}]
[{"$f":"\"HTP.P('<\"&#REF!&\">' || \"&IF(MID(#REF!,1,6)=\"L_STUB\",\"NULL\",\"REC.\"&#REF!)&\" || '</\"&#REF!&\">');\"","v":{"$error":"#REF!"}},null,{"$f":"\"DECODE(C_T.\"&#REF!&\", 0, NULL, C_T.\"&#REF!&\") AS \"&#REF!&\",\"","v":{"$error":"#REF!"}}]
[{"$f":"\"HTP.P('<\"&#REF!&\">' || \"&IF(MID(#REF!,1,6)=\"L_STUB\",\"NULL\",\"REC.\"&#REF!)&\" || '</\"&#REF!&\">');\"","v":{"$error":"#REF!"}},null,{"$f":"\"DECODE(C_T.\"&#REF!&\", 0, NULL, C_T.\"&#REF!&\") AS \"&#REF!&\",\"","v":{"$error":"#REF!"}}]
[{"$f":"\"HTP.P('<\"&#REF!&\">' || \"&IF(MID(#REF!,1,6)=\"L_STUB\",\"NULL\",\"REC.\"&#REF!)&\" || '</\"&#REF!&\">');\"","v":{"$error":"#REF!"}},null,{"$f":"\"DECODE(C_T.\"&#REF!&\", 0, NULL, C_T.\"&#REF!&\") AS \"&#REF!&\",\"","v":{"$error":"#REF!"}}]
[{"$f":"\"HTP.P('<\"&#REF!&\">' || \"&IF(MID(#REF!,1,6)=\"L_STUB\",\"NULL\",\"REC.\"&#REF!)&\" || '</\"&#REF!&\">');\"","v":{"$error":"#REF!"}},null,{"$f":"\"DECODE(C_T.\"&#REF!&\", 0, NULL, C_T.\"&#REF!&\") AS \"&#REF!&\",\"","v":{"$error":"#REF!"}}]
[{"$f":"\"HTP.P('<\"&#REF!&\">' || \"&IF(MID(#REF!,1,6)=\"L_STUB\",\"NULL\",\"REC.\"&#REF!)&\" || '</\"&#REF!&\">');\"","v":{"$error":"#REF!"}},null,{"$f":"\"DECODE(C_T.\"&#REF!&\", 0, NULL, C_T.\"&#REF!&\") AS \"&#REF!&\",\"","v":{"$error":"#REF!"}}]
[{"$f":"\"HTP.P('<\"&#REF!&\">' || \"&IF(MID(#REF!,1,6)=\"L_STUB\",\"NULL\",\"REC.\"&#REF!)&\" || '</\"&#REF!&\">');\"","v":{"$error":"#REF!"}},null,{"$f":"\"DECODE(C_T.\"&#REF!&\", 0, NULL, C_T.\"&#REF!&\") AS \"&#REF!&\",\"","v":{"$error":"#REF!"}}]
[{"$f":"\"HTP.P('<\"&#REF!&\">' || \"&IF(MID(#REF!,1,6)=\"L_STUB\",\"NULL\",\"REC.\"&#REF!)&\" || '</\"&#REF!&\">');\"","v":{"$error":"#REF!"}},null,{"$f":"\"DECODE(C_T.\"&#REF!&\", 0, NULL, C_T.\"&#REF!&\") AS \"&#REF!&\",\"","v":{"$error":"#REF!"}}]
[{"$f":"\"HTP.P('<\"&#REF!&\">' || \"&IF(MID(#REF!,1,6)=\"L_STUB\",\"NULL\",\"REC.\"&#REF!)&\" || '</\"&#REF!&\">');\"","v":{"$error":"#REF!"}},null,{"$f":"\"DECODE(C_T.\"&#REF!&\", 0, NULL, C_T.\"&#REF!&\") AS \"&#REF!&\",\"","v":{"$error":"#REF!"}}]
[{"$f":"\"HTP.P('<\"&#REF!&\">' || \"&IF(MID(#REF!,1,6)=\"L_STUB\",\"NULL\",\"REC.\"&#REF!)&\" || '</\"&#REF!&\">');\"","v":{"$error":"#REF!"}},null,{"$f":"\"DECODE(C_T.\"&#REF!&\", 0, NULL, C_T.\"&#REF!&\") AS \"&#REF!&\",\"","v":{"$error":"#REF!"}}]
[{"$f":"\"HTP.P('<\"&#REF!&\">' || \"&IF(MID(#REF!,1,6)=\"L_STUB\",\"NULL\",\"REC.\"&#REF!)&\" || '</\"&#REF!&\">');\"","v":{"$error":"#REF!"}},null,{"$f":"\"DECODE(C_T.\"&#REF!&\", 0, NULL, C_T.\"&#REF!&\") AS \"&#REF!&\",\"","v":{"$error":"#REF!"}}]
[{"$f":"\"HTP.P('<\"&#REF!&\">' || \"&IF(MID(#REF!,1,6)=\"L_STUB\",\"NULL\",\"REC.\"&#REF!)&\" || '</\"&#REF!&\">');\"","v":{"$error":"#REF!"}},null,{"$f":"\"DECODE(C_T.\"&#REF!&\", 0, NULL, C_T.\"&#REF!&\") AS \"&#REF!&\",\"","v":{"$error":"#REF!"}}]
[{"$f":"\"HTP.P('<\"&#REF!&\">' || \"&IF(MID(#REF!,1,6)=\"L_STUB\",\"NULL\",\"REC.\"&#REF!)&\" || '</\"&#REF!&\">');\"","v":{"$error":"#REF!"}},null,{"$f":"\"DECODE(C_T.\"&#REF!&\", 0, NULL, C_T.\"&#REF!&\") AS \"&#REF!&\",\"","v":{"$error":"#REF!"}}]
[{"$f":"\"HTP.P('<\"&#REF!&\">' || \"&IF(MID(#REF!,1,6)=\"L_STUB\",\"NULL\",\"REC.\"&#REF!)&\" || '</\"&#REF!&\">');\"","v":{"$error":"#REF!"}},null,{"$f":"\"DECODE(C_T.\"&#REF!&\", 0, NULL, C_T.\"&#REF!&\") AS \"&#REF!&\",\"","v":{"$error":"#REF!"}}]
[{"$f":"\"HTP.P('<\"&#REF!&\">' || \"&IF(MID(#REF!,1,6)=\"L_STUB\",\"NULL\",\"REC.\"&#REF!)&\" || '</\"&#REF!&\">');\"","v":{"$error":"#REF!"}},null,{"$f":"\"DECODE(C_T.\"&#REF!&\", 0, NULL, C_T.\"&#REF!&\") AS \"&#REF!&\",\"","v":{"$error":"#REF!"}}]
[{"$f":"\"HTP.P('<\"&#REF!&\">' || \"&IF(MID(#REF!,1,6)=\"L_STUB\",\"NULL\",\"REC.\"&#REF!)&\" || '</\"&#REF!&\">');\"","v":{"$error":"#REF!"}},null,{"$f":"\"DECODE(C_T.\"&#REF!&\", 0, NULL, C_T.\"&#REF!&\") AS \"&#REF!&\",\"","v":{"$error":"#REF!"}}]
[{"$f":"\"HTP.P('<\"&#REF!&\">' || \"&IF(MID(#REF!,1,6)=\"L_STUB\",\"NULL\",\"REC.\"&#REF!)&\" || '</\"&#REF!&\">');\"","v":{"$error":"#REF!"}},null,{"$f":"\"DECODE(C_T.\"&#REF!&\", 0, NULL, C_T.\"&#REF!&\") AS \"&#REF!&\",\"","v":{"$error":"#REF!"}}]
[{"$f":"\"HTP.P('<\"&#REF!&\">' || \"&IF(MID(#REF!,1,6)=\"L_STUB\",\"NULL\",\"REC.\"&#REF!)&\" || '</\"&#REF!&\">');\"","v":{"$error":"#REF!"}},null,{"$f":"\"DECODE(C_T.\"&#REF!&\", 0, NULL, C_T.\"&#REF!&\") AS \"&#REF!&\",\"","v":{"$error":"#REF!"}}]
[{"$f":"\"HTP.P('<\"&#REF!&\">' || \"&IF(MID(#REF!,1,6)=\"L_STUB\",\"NULL\",\"REC.\"&#REF!)&\" || '</\"&#REF!&\">');\"","v":{"$error":"#REF!"}},null,{"$f":"\"DECODE(C_T.\"&#REF!&\", 0, NULL, C_T.\"&#REF!&\") AS \"&#REF!&\",\"","v":{"$error":"#REF!"}}]
[{"$f":"\"HTP.P('<\"&#REF!&\">' || \"&IF(MID(#REF!,1,6)=\"L_STUB\",\"NULL\",\"REC.\"&#REF!)&\" || '</\"&#REF!&\">');\"","v":{"$error":"#REF!"}},null,{"$f":"\"DECODE(C_T.\"&#REF!&\", 0, NULL, C_T.\"&#REF!&\") AS \"&#REF!&\",\"","v":{"$error":"#REF!"}}]
[{"$f":"\"HTP.P('<\"&#REF!&\">' || \"&IF(MID(#REF!,1,6)=\"L_STUB\",\"NULL\",\"REC.\"&#REF!)&\" || '</\"&#REF!&\">');\"","v":{"$error":"#REF!"}},null,{"$f":"\"DECODE(C_T.\"&#REF!&\", 0, NULL, C_T.\"&#REF!&\") AS \"&#REF!&\",\"","v":{"$error":"#REF!"}}]
[{"$f":"\"HTP.P('<\"&#REF!&\">' || \"&IF(MID(#REF!,1,6)=\"L_STUB\",\"NULL\",\"REC.\"&#REF!)&\" || '</\"&#REF!&\">');\"","v":{"$error":"#REF!"}},null,{"$f":"\"DECODE(C_T.\"&#REF!&\", 0, NULL, C_T.\"&#REF!&\") AS \"&#REF!&\",\"","v":{"$error":"#REF!"}}]
[{"$f":"\"HTP.P('<\"&#REF!&\">' || \"&IF(MID(#REF!,1,6)=\"L_STUB\",\"NULL\",\"REC.\"&#REF!)&\" || '</\"&#REF!&\">');\"","v":{"$error":"#REF!"}},null,{"$f":"\"DECODE(C_T.\"&#REF!&\", 0, NULL, C_T.\"&#REF!&\") AS \"&#REF!&\",\"","v":{"$error":"#REF!"}}]
[{"$f":"\"HTP.P('<\"&#REF!&\">' || \"&IF(MID(#REF!,1,6)=\"L_STUB\",\"NULL\",\"REC.\"&#REF!)&\" || '</\"&#REF!&\">');\"","v":{"$error":"#REF!"}},null,{"$f":"\"DECODE(C_T.\"&#REF!&\", 0, NULL, C_T.\"&#REF!&\") AS \"&#REF!&\",\"","v":{"$error":"#REF!"}}]
[{"$f":"\"HTP.P('<\"&#REF!&\">' || \"&IF(MID(#REF!,1,6)=\"L_STUB\",\"NULL\",\"REC.\"&#REF!)&\" || '</\"&#REF!&\">');\"","v":{"$error":"#REF!"}},null,{"$f":"\"DECODE(C_T.\"&#REF!&\", 0, NULL, C_T.\"&#REF!&\") AS \"&#REF!&\",\"","v":{"$error":"#REF!"}}]
[{"$f":"\"HTP.P('<\"&#REF!&\">' || \"&IF(MID(#REF!,1,6)=\"L_STUB\",\"NULL\",\"REC.\"&#REF!)&\" || '</\"&#REF!&\">');\"","v":{"$error":"#REF!"}},null,{"$f":"\"DECODE(C_T.\"&#REF!&\", 0, NULL, C_T.\"&#REF!&\") AS \"&#REF!&\",\"","v":{"$error":"#REF!"}}]
[{"$f":"\"HTP.P('<\"&#REF!&\">' || \"&IF(MID(#REF!,1,6)=\"L_STUB\",\"NULL\",\"REC.\"&#REF!)&\" || '</\"&#REF!&\">');\"","v":{"$error":"#REF!"}},null,{"$f":"\"DECODE(C_T.\"&#REF!&\", 0, NULL, C_T.\"&#REF!&\") AS \"&#REF!&\",\"","v":{"$error":"#REF!"}}]
[{"$f":"\"HTP.P('<\"&#REF!&\">' || \"&IF(MID(#REF!,1,6)=\"L_STUB\",\"NULL\",\"REC.\"&#REF!)&\" || '</\"&#REF!&\">');\"","v":{"$error":"#REF!"}},null,{"$f":"\"DECODE(C_T.\"&#REF!&\", 0, NULL, C_T.\"&#REF!&\") AS \"&#REF!&\",\"","v":{"$error":"#REF!"}}]
[]
[]
[]
[]
[]
[]
[{"$f":"\"HTP.P('<\"&#REF!&\">' || \"&IF(MID(#REF!,1,6)=\"L_STUB\",\"NULL\",\"REC.\"&#REF!)&\" || '</\"&#REF!&\">');\"","v":{"$error":"#REF!"}},null,{"$f":"\"DECODE(C_T.\"&#REF!&\", 0, NULL, C_T.\"&#REF!&\") AS \"&#REF!&\",\"","v":{"$error":"#REF!"}}]
[{"$f":"\"HTP.P('<\"&#REF!&\">' || \"&IF(MID(#REF!,1,6)=\"L_STUB\",\"NULL\",\"REC.\"&#REF!)&\" || '</\"&#REF!&\">');\"","v":{"$error":"#REF!"}},null,{"$f":"\"DECODE(C_T.\"&#REF!&\", 0, NULL, C_T.\"&#REF!&\") AS \"&#REF!&\",\"","v":{"$error":"#REF!"}}]
[{"$f":"\"HTP.P('<\"&#REF!&\">' || \"&IF(MID(#REF!,1,6)=\"L_STUB\",\"NULL\",\"REC.\"&#REF!)&\" || '</\"&#REF!&\">');\"","v":{"$error":"#REF!"}},null,{"$f":"\"DECODE(C_T.\"&#REF!&\", 0, NULL, C_T.\"&#REF!&\") AS \"&#REF!&\",\"","v":{"$error":"#REF!"}}]
[{"$f":"\"HTP.P('<\"&#REF!&\">' || \"&IF(MID(#REF!,1,6)=\"L_STUB\",\"NULL\",\"REC.\"&#REF!)&\" || '</\"&#REF!&\">');\"","v":{"$error":"#REF!"}},null,{"$f":"\"DECODE(C_T.\"&#REF!&\", 0, NULL, C_T.\"&#REF!&\") AS \"&#REF!&\",\"","v":{"$error":"#REF!"}}]
[{"$f":"\"HTP.P('<\"&#REF!&\">' || \"&IF(MID(#REF!,1,6)=\"L_STUB\",\"NULL\",\"REC.\"&#REF!)&\" || '</\"&#REF!&\">');\"","v":{"$error":"#REF!"}},null,{"$f":"\"DECODE(C_T.\"&#REF!&\", 0, NULL, C_T.\"&#REF!&\") AS \"&#REF!&\",\"","v":{"$error":"#REF!"}}]
[{"$f":"\"HTP.P('<\"&#REF!&\">' || \"&IF(MID(#REF!,1,6)=\"L_STUB\",\"NULL\",\"REC.\"&#REF!)&\" || '</\"&#REF!&\">');\"","v":{"$error":"#REF!"}},null,{"$f":"\"DECODE(C_T.\"&#REF!&\", 0, NULL, C_T.\"&#REF!&\") AS \"&#REF!&\",\"","v":{"$error":"#REF!"}}]
[{"$f":"\"HTP.P('<\"&#REF!&\">' || \"&IF(MID(#REF!,1,6)=\"L_STUB\",\"NULL\",\"REC.\"&#REF!)&\" || '</\"&#REF!&\">');\"","v":{"$error":"#REF!"}},null,{"$f":"\"DECODE(C_T.\"&#REF!&\", 0, NULL, C_T.\"&#REF!&\") AS \"&#REF!&\",\"","v":{"$error":"#REF!"}}]
[{"$f":"\"HTP.P('<\"&#REF!&\">' || \"&IF(MID(#REF!,1,6)=\"L_STUB\",\"NULL\",\"REC.\"&#REF!)&\" || '</\"&#REF!&\">');\"","v":{"$error":"#REF!"}},null,{"$f":"\"DECODE(C_T.\"&#REF!&\", 0, NULL, C_T.\"&#REF!&\") AS \"&#REF!&\",\"","v":{"$error":"#REF!"}}]
[{"$f":"\"HTP.P('<\"&#REF!&\">' || \"&IF(MID(#REF!,1,6)=\"L_STUB\",\"NULL\",\"REC.\"&#REF!)&\" || '</\"&#REF!&\">');\"","v":{"$error":"#REF!"}},null,{"$f":"\"DECODE(C_T.\"&#REF!&\", 0, NULL, C_T.\"&#REF!&\") AS \"&#REF!&\",\"","v":{"$error":"#REF!"}}]
[{"$f":"\"HTP.P('<\"&#REF!&\">' || \"&IF(MID(#REF!,1,6)=\"L_STUB\",\"NULL\",\"REC.\"&#REF!)&\" || '</\"&#REF!&\">');\"","v":{"$error":"#REF!"}},null,{"$f":"\"DECODE(C_T.\"&#REF!&\", 0, NULL, C_T.\"&#REF!&\") AS \"&#REF!&\",\"","v":{"$error":"#REF!"}}]
[{"$f":"\"HTP.P('<\"&#REF!&\">' || \"&IF(MID(#REF!,1,6)=\"L_STUB\",\"NULL\",\"REC.\"&#REF!)&\" || '</\"&#REF!&\">');\"","v":{"$error":"#REF!"}},null,{"$f":"\"DECODE(C_T.\"&#REF!&\", 0, NULL, C_T.\"&#REF!&\") AS \"&#REF!&\",\"","v":{"$error":"#REF!"}}]
[{"$f":"\"HTP.P('<\"&#REF!&\">' || \"&IF(MID(#REF!,1,6)=\"L_STUB\",\"NULL\",\"REC.\"&#REF!)&\" || '</\"&#REF!&\">');\"","v":{"$error":"#REF!"}},null,{"$f":"\"DECODE(C_T.\"&#REF!&\", 0, NULL, C_T.\"&#REF!&\") AS \"&#REF!&\",\"","v":{"$error":"#REF!"}}]
[{"$f":"\"HTP.P('<\"&#REF!&\">' || \"&IF(MID(#REF!,1,6)=\"L_STUB\",\"NULL\",\"REC.\"&#REF!)&\" || '</\"&#REF!&\">');\"","v":{"$error":"#REF!"}},null,{"$f":"\"DECODE(C_T.\"&#REF!&\", 0, NULL, C_T.\"&#REF!&\") AS \"&#REF!&\",\"","v":{"$error":"#REF!"}}]
[{"$f":"\"HTP.P('<\"&#REF!&\">' || \"&IF(MID(#REF!,1,6)=\"L_STUB\",\"NULL\",\"REC.\"&#REF!)&\" || '</\"&#REF!&\">');\"","v":{"$error":"#REF!"}},null,{"$f":"\"DECODE(C_T.\"&#REF!&\", 0, NULL, C_T.\"&#REF!&\") AS \"&#REF!&\",\"","v":{"$error":"#REF!"}}]
[{"$f":"\"HTP.P('<\"&#REF!&\">' || \"&IF(MID(#REF!,1,6)=\"L_STUB\",\"NULL\",\"REC.\"&#REF!)&\" || '</\"&#REF!&\">');\"","v":{"$error":"#REF!"}},null,{"$f":"\"DECODE(C_T.\"&#REF!&\", 0, NULL, C_T.\"&#REF!&\") AS \"&#REF!&\",\"","v":{"$error":"#REF!"}}]
[{"$f":"\"HTP.P('<\"&#REF!&\">' || \"&IF(MID(#REF!,1,6)=\"L_STUB\",\"NULL\",\"REC.\"&#REF!)&\" || '</\"&#REF!&\">');\"","v":{"$error":"#REF!"}},null,{"$f":"\"DECODE(C_T.\"&#REF!&\", 0, NULL, C_T.\"&#REF!&\") AS \"&#REF!&\",\"","v":{"$error":"#REF!"}}]
[{"$f":"\"HTP.P('<\"&#REF!&\">' || \"&IF(MID(#REF!,1,6)=\"L_STUB\",\"NULL\",\"REC.\"&#REF!)&\" || '</\"&#REF!&\">');\"","v":{"$error":"#REF!"}},null,{"$f":"\"DECODE(C_T.\"&#REF!&\", 0, NULL, C_T.\"&#REF!&\") AS \"&#REF!&\",\"","v":{"$error":"#REF!"}}]
[{"$f":"\"HTP.P('<\"&#REF!&\">' || \"&IF(MID(#REF!,1,6)=\"L_STUB\",\"NULL\",\"REC.\"&#REF!)&\" || '</\"&#REF!&\">');\"","v":{"$error":"#REF!"}},null,{"$f":"\"DECODE(C_T.\"&#REF!&\", 0, NULL, C_T.\"&#REF!&\") AS \"&#REF!&\",\"","v":{"$error":"#REF!"}}]
[{"$f":"\"HTP.P('<\"&#REF!&\">' || \"&IF(MID(#REF!,1,6)=\"L_STUB\",\"NULL\",\"REC.\"&#REF!)&\" || '</\"&#REF!&\">');\"","v":{"$error":"#REF!"}},null,{"$f":"\"DECODE(C_T.\"&#REF!&\", 0, NULL, C_T.\"&#REF!&\") AS \"&#REF!&\",\"","v":{"$error":"#REF!"}}]
[{"$f":"\"HTP.P('<\"&#REF!&\">' || \"&IF(MID(#REF!,1,6)=\"L_STUB\",\"NULL\",\"REC.\"&#REF!)&\" || '</\"&#REF!&\">');\"","v":{"$error":"#REF!"}},null,{"$f":"\"DECODE(C_T.\"&#REF!&\", 0, NULL, C_T.\"&#REF!&\") AS \"&#REF!&\",\"","v":{"$error":"#REF!"}}]
[{"$f":"\"HTP.P('<\"&#REF!&\">' || \"&IF(MID(#REF!,1,6)=\"L_STUB\",\"NULL\",\"REC.\"&#REF!)&\" || '</\"&#REF!&\">');\"","v":{"$error":"#REF!"}},null,{"$f":"\"DECODE(C_T.\"&#REF!&\", 0, NULL, C_T.\"&#REF!&\") AS \"&#REF!&\",\"","v":{"$error":"#REF!"}}]
[{"$f":"\"HTP.P('<\"&#REF!&\">' || \"&IF(MID(#REF!,1,6)=\"L_STUB\",\"NULL\",\"REC.\"&#REF!)&\" || '</\"&#REF!&\">');\"","v":{"$error":"#REF!"}},null,{"$f":"\"DECODE(C_T.\"&#REF!&\", 0, NULL, C_T.\"&#REF!&\") AS \"&#REF!&\",\"","v":{"$error":"#REF!"}}]
[{"$f":"\"HTP.P('<\"&#REF!&\">' || \"&IF(MID(#REF!,1,6)=\"L_STUB\",\"NULL\",\"REC.\"&#REF!)&\" || '</\"&#REF!&\">');\"","v":{"$error":"#REF!"}},null,{"$f":"\"DECODE(C_T.\"&#REF!&\", 0, NULL, C_T.\"&#REF!&\") AS \"&#REF!&\",\"","v":{"$error":"#REF!"}}]
[{"$f":"\"HTP.P('<\"&#REF!&\">' || \"&IF(MID(#REF!,1,6)=\"L_STUB\",\"NULL\",\"REC.\"&#REF!)&\" || '</\"&#REF!&\">');\"","v":{"$error":"#REF!"}},null,{"$f":"\"DECODE(C_T.\"&#REF!&\", 0, NULL, C_T.\"&#REF!&\") AS \"&#REF!&\",\"","v":{"$error":"#REF!"}}]
[{"$f":"\"HTP.P('<\"&#REF!&\">' || \"&IF(MID(#REF!,1,6)=\"L_STUB\",\"NULL\",\"REC.\"&#REF!)&\" || '</\"&#REF!&\">');\"","v":{"$error":"#REF!"}},null,{"$f":"\"DECODE(C_T.\"&#REF!&\", 0, NULL, C_T.\"&#REF!&\") AS \"&#REF!&\",\"","v":{"$error":"#REF!"}}]
[{"$f":"\"HTP.P('<\"&#REF!&\">' || \"&IF(MID(#REF!,1,6)=\"L_STUB\",\"NULL\",\"REC.\"&#REF!)&\" || '</\"&#REF!&\">');\"","v":{"$error":"#REF!"}},null,{"$f":"\"DECODE(C_T.\"&#REF!&\", 0, NULL, C_T.\"&#REF!&\") AS \"&#REF!&\",\"","v":{"$error":"#REF!"}}]
[{"$f":"\"HTP.P('<\"&#REF!&\">' || \"&IF(MID(#REF!,1,6)=\"L_STUB\",\"NULL\",\"REC.\"&#REF!)&\" || '</\"&#REF!&\">');\"","v":{"$error":"#REF!"}},null,{"$f":"\"DECODE(C_T.\"&#REF!&\", 0, NULL, C_T.\"&#REF!&\") AS \"&#REF!&\",\"","v":{"$error":"#REF!"}}]
[{"$f":"\"HTP.P('<\"&#REF!&\">' || \"&IF(MID(#REF!,1,6)=\"L_STUB\",\"NULL\",\"REC.\"&#REF!)&\" || '</\"&#REF!&\">');\"","v":{"$error":"#REF!"}},null,{"$f":"\"DECODE(C_T.\"&#REF!&\", 0, NULL, C_T.\"&#REF!&\") AS \"&#REF!&\",\"","v":{"$error":"#REF!"}}]
[{"$f":"\"HTP.P('<\"&#REF!&\">' || \"&IF(MID(#REF!,1,6)=\"L_STUB\",\"NULL\",\"REC.\"&#REF!)&\" || '</\"&#REF!&\">');\"","v":{"$error":"#REF!"}},null,{"$f":"\"DECODE(C_T.\"&#REF!&\", 0, NULL, C_T.\"&#REF!&\") AS \"&#REF!&\",\"","v":{"$error":"#REF!"}}]
[{"$f":"\"HTP.P('<\"&#REF!&\">' || \"&IF(MID(#REF!,1,6)=\"L_STUB\",\"NULL\",\"REC.\"&#REF!)&\" || '</\"&#REF!&\">');\"","v":{"$error":"#REF!"}},null,{"$f":"\"DECODE(C_T.\"&#REF!&\", 0, NULL, C_T.\"&#REF!&\") AS \"&#REF!&\",\"","v":{"$error":"#REF!"}}]
[{"$f":"\"HTP.P('<\"&#REF!&\">' || \"&IF(MID(#REF!,1,6)=\"L_STUB\",\"NULL\",\"REC.\"&#REF!)&\" || '</\"&#REF!&\">');\"","v":{"$error":"#REF!"}},null,{"$f":"\"DECODE(C_T.\"&#REF!&\", 0, NULL, C_T.\"&#REF!&\") AS \"&#REF!&\",\"","v":{"$error":"#REF!"}}]
[{"$f":"\"HTP.P('<\"&#REF!&\">' || \"&IF(MID(#REF!,1,6)=\"L_STUB\",\"NULL\",\"REC.\"&#REF!)&\" || '</\"&#REF!&\">');\"","v":{"$error":"#REF!"}},null,{"$f":"\"DECODE(C_T.\"&#REF!&\", 0, NULL, C_T.\"&#REF!&\") AS \"&#REF!&\",\"","v":{"$error":"#REF!"}}]
[{"$f":"\"HTP.P('<\"&#REF!&\">' || \"&IF(MID(#REF!,1,6)=\"L_STUB\",\"NULL\",\"REC.\"&#REF!)&\" || '</\"&#REF!&\">');\"","v":{"$error":"#REF!"}},null,{"$f":"\"DECODE(C_T.\"&#REF!&\", 0, NULL, C_T.\"&#REF!&\") AS \"&#REF!&\",\"","v":{"$error":"#REF!"}}]
[{"$f":"\"HTP.P('<\"&#REF!&\">' || \"&IF(MID(#REF!,1,6)=\"L_STUB\",\"NULL\",\"REC.\"&#REF!)&\" || '</\"&#REF!&\">');\"","v":{"$error":"#REF!"}},null,{"$f":"\"DECODE(C_T.\"&#REF!&\", 0, NULL, C_T.\"&#REF!&\") AS \"&#REF!&\",\"","v":{"$error":"#REF!"}}]
[{"$f":"\"HTP.P('<\"&#REF!&\">' || \"&IF(MID(#REF!,1,6)=\"L_STUB\",\"NULL\",\"REC.\"&#REF!)&\" || '</\"&#REF!&\">');\"","v":{"$error":"#REF!"}},null,{"$f":"\"DECODE(C_T.\"&#REF!&\", 0, NULL, C_T.\"&#REF!&\") AS \"&#REF!&\",\"","v":{"$error":"#REF!"}}]
[{"$f":"\"HTP.P('<\"&#REF!&\">' || \"&IF(MID(#REF!,1,6)=\"L_STUB\",\"NULL\",\"REC.\"&#REF!)&\" || '</\"&#REF!&\">');\"","v":{"$error":"#REF!"}},null,{"$f":"\"DECODE(C_T.\"&#REF!&\", 0, NULL, C_T.\"&#REF!&\") AS \"&#REF!&\",\"","v":{"$error":"#REF!"}}]
[{"$f":"\"HTP.P('<\"&#REF!&\">' || \"&IF(MID(#REF!,1,6)=\"L_STUB\",\"NULL\",\"REC.\"&#REF!)&\" || '</\"&#REF!&\">');\"","v":{"$error":"#REF!"}},null,{"$f":"\"DECODE(C_T.\"&#REF!&\", 0, NULL, C_T.\"&#REF!&\") AS \"&#REF!&\",\"","v":{"$error":"#REF!"}}]
[{"$f":"\"HTP.P('<\"&#REF!&\">' || \"&IF(MID(#REF!,1,6)=\"L_STUB\",\"NULL\",\"REC.\"&#REF!)&\" || '</\"&#REF!&\">');\"","v":{"$error":"#REF!"}},null,{"$f":"\"DECODE(C_T.\"&#REF!&\", 0, NULL, C_T.\"&#REF!&\") AS \"&#REF!&\",\"","v":{"$error":"#REF!"}}]
[{"$f":"\"HTP.P('<\"&#REF!&\">' || \"&IF(MID(#REF!,1,6)=\"L_STUB\",\"NULL\",\"REC.\"&#REF!)&\" || '</\"&#REF!&\">');\"","v":{"$error":"#REF!"}},null,{"$f":"\"DECODE(C_T.\"&#REF!&\", 0, NULL, C_T.\"&#REF!&\") AS \"&#REF!&\",\"","v":{"$error":"#REF!"}}]
[{"$f":"\"HTP.P('<\"&#REF!&\">' || \"&IF(MID(#REF!,1,6)=\"L_STUB\",\"NULL\",\"REC.\"&#REF!)&\" || '</\"&#REF!&\">');\"","v":{"$error":"#REF!"}},null,{"$f":"\"DECODE(C_T.\"&#REF!&\", 0, NULL, C_T.\"&#REF!&\") AS \"&#REF!&\",\"","v":{"$error":"#REF!"}}]
[{"$f":"\"HTP.P('<\"&#REF!&\">' || \"&IF(MID(#REF!,1,6)=\"L_STUB\",\"NULL\",\"REC.\"&#REF!)&\" || '</\"&#REF!&\">');\"","v":{"$error":"#REF!"}},null,{"$f":"\"DECODE(C_T.\"&#REF!&\", 0, NULL, C_T.\"&#REF!&\") AS \"&#REF!&\",\"","v":{"$error":"#REF!"}}]
[{"$f":"\"HTP.P('<\"&#REF!&\">' || \"&IF(MID(#REF!,1,6)=\"L_STUB\",\"NULL\",\"REC.\"&#REF!)&\" || '</\"&#REF!&\">');\"","v":{"$error":"#REF!"}},null,{"$f":"\"DECODE(C_T.\"&#REF!&\", 0, NULL, C_T.\"&#REF!&\") AS \"&#REF!&\",\"","v":{"$error":"#REF!"}}]
[{"$f":"\"HTP.P('<\"&#REF!&\">' || \"&IF(MID(#REF!,1,6)=\"L_STUB\",\"NULL\",\"REC.\"&#REF!)&\" || '</\"&#REF!&\">');\"","v":{"$error":"#REF!"}},null,{"$f":"\"DECODE(C_T.\"&#REF!&\", 0, NULL, C_T.\"&#REF!&\") AS \"&#REF!&\",\"","v":{"$error":"#REF!"}}]
[{"$f":"\"HTP.P('<\"&#REF!&\">' || \"&IF(MID(#REF!,1,6)=\"L_STUB\",\"NULL\",\"REC.\"&#REF!)&\" || '</\"&#REF!&\">');\"","v":{"$error":"#REF!"}},null,{"$f":"\"DECODE(C_T.\"&#REF!&\", 0, NULL, C_T.\"&#REF!&\") AS \"&#REF!&\",\"","v":{"$error":"#REF!"}}]
[{"$f":"\"HTP.P('<\"&#REF!&\">' || \"&IF(MID(#REF!,1,6)=\"L_STUB\",\"NULL\",\"REC.\"&#REF!)&\" || '</\"&#REF!&\">');\"","v":{"$error":"#REF!"}},null,{"$f":"\"DECODE(C_T.\"&#REF!&\", 0, NULL, C_T.\"&#REF!&\") AS \"&#REF!&\",\"","v":{"$error":"#REF!"}}]
[{"$f":"\"HTP.P('<\"&#REF!&\">' || \"&IF(MID(#REF!,1,6)=\"L_STUB\",\"NULL\",\"REC.\"&#REF!)&\" || '</\"&#REF!&\">');\"","v":{"$error":"#REF!"}},null,{"$f":"\"DECODE(C_T.\"&#REF!&\", 0, NULL, C_T.\"&#REF!&\") AS \"&#REF!&\",\"","v":{"$error":"#REF!"}}]
[{"$f":"\"HTP.P('<\"&#REF!&\">' || \"&IF(MID(#REF!,1,6)=\"L_STUB\",\"NULL\",\"REC.\"&#REF!)&\" || '</\"&#REF!&\">');\"","v":{"$error":"#REF!"}},null,{"$f":"\"DECODE(C_T.\"&#REF!&\", 0, NULL, C_T.\"&#REF!&\") AS \"&#REF!&\",\"","v":{"$error":"#REF!"}}]
[{"$f":"\"HTP.P('<\"&#REF!&\">' || \"&IF(MID(#REF!,1,6)=\"L_STUB\",\"NULL\",\"REC.\"&#REF!)&\" || '</\"&#REF!&\">');\"","v":{"$error":"#REF!"}},null,{"$f":"\"DECODE(C_T.\"&#REF!&\", 0, NULL, C_T.\"&#REF!&\") AS \"&#REF!&\",\"","v":{"$error":"#REF!"}}]
[{"$f":"\"HTP.P('<\"&#REF!&\">' || \"&IF(MID(#REF!,1,6)=\"L_STUB\",\"NULL\",\"REC.\"&#REF!)&\" || '</\"&#REF!&\">');\"","v":{"$error":"#REF!"}},null,{"$f":"\"DECODE(C_T.\"&#REF!&\", 0, NULL, C_T.\"&#REF!&\") AS \"&#REF!&\",\"","v":{"$error":"#REF!"}}]
[{"$f":"\"HTP.P('<\"&#REF!&\">' || \"&IF(MID(#REF!,1,6)=\"L_STUB\",\"NULL\",\"REC.\"&#REF!)&\" || '</\"&#REF!&\">');\"","v":{"$error":"#REF!"}},null,{"$f":"\"DECODE(C_T.\"&#REF!&\", 0, NULL, C_T.\"&#REF!&\") AS \"&#REF!&\",\"","v":{"$error":"#REF!"}}]
[{"$f":"\"HTP.P('<\"&#REF!&\">' || \"&IF(MID(#REF!,1,6)=\"L_STUB\",\"NULL\",\"REC.\"&#REF!)&\" || '</\"&#REF!&\">');\"","v":{"$error":"#REF!"}},null,{"$f":"\"DECODE(C_T.\"&#REF!&\", 0, NULL, C_T.\"&#REF!&\") AS \"&#REF!&\",\"","v":{"$error":"#REF!"}}]
[{"$f":"\"HTP.P('<\"&#REF!&\">' || \"&IF(MID(#REF!,1,6)=\"L_STUB\",\"NULL\",\"REC.\"&#REF!)&\" || '</\"&#REF!&\">');\"","v":{"$error":"#REF!"}},null,{"$f":"\"DECODE(C_T.\"&#REF!&\", 0, NULL, C_T.\"&#REF!&\") AS \"&#REF!&\",\"","v":{"$error":"#REF!"}}]
[{"$f":"\"HTP.P('<\"&#REF!&\">' || \"&IF(MID(#REF!,1,6)=\"L_STUB\",\"NULL\",\"REC.\"&#REF!)&\" || '</\"&#REF!&\">');\"","v":{"$error":"#REF!"}},null,{"$f":"\"DECODE(C_T.\"&#REF!&\", 0, NULL, C_T.\"&#REF!&\") AS \"&#REF!&\",\"","v":{"$error":"#REF!"}}]
[{"$f":"\"HTP.P('<\"&#REF!&\">' || \"&IF(MID(#REF!,1,6)=\"L_STUB\",\"NULL\",\"REC.\"&#REF!)&\" || '</\"&#REF!&\">');\"","v":{"$error":"#REF!"}},null,{"$f":"\"DECODE(C_T.\"&#REF!&\", 0, NULL, C_T.\"&#REF!&\") AS \"&#REF!&\",\"","v":{"$error":"#REF!"}}]
[{"$f":"\"HTP.P('<\"&#REF!&\">' || \"&IF(MID(#REF!,1,6)=\"L_STUB\",\"NULL\",\"REC.\"&#REF!)&\" || '</\"&#REF!&\">');\"","v":{"$error":"#REF!"}},null,{"$f":"\"DECODE(C_T.\"&#REF!&\", 0, NULL, C_T.\"&#REF!&\") AS \"&#REF!&\",\"","v":{"$error":"#REF!"}}]
[{"$f":"\"HTP.P('<\"&#REF!&\">' || \"&IF(MID(#REF!,1,6)=\"L_STUB\",\"NULL\",\"REC.\"&#REF!)&\" || '</\"&#REF!&\">');\"","v":{"$error":"#REF!"}},null,{"$f":"\"DECODE(C_T.\"&#REF!&\", 0, NULL, C_T.\"&#REF!&\") AS \"&#REF!&\",\"","v":{"$error":"#REF!"}}]
[{"$f":"\"HTP.P('<\"&#REF!&\">' || \"&IF(MID(#REF!,1,6)=\"L_STUB\",\"NULL\",\"REC.\"&#REF!)&\" || '</\"&#REF!&\">');\"","v":{"$error":"#REF!"}},null,{"$f":"\"DECODE(C_T.\"&#REF!&\", 0, NULL, C_T.\"&#REF!&\") AS \"&#REF!&\",\"","v":{"$error":"#REF!"}}]
[{"$f":"\"HTP.P('<\"&#REF!&\">' || \"&IF(MID(#REF!,1,6)=\"L_STUB\",\"NULL\",\"REC.\"&#REF!)&\" || '</\"&#REF!&\">');\"","v":{"$error":"#REF!"}},null,{"$f":"\"DECODE(C_T.\"&#REF!&\", 0, NULL, C_T.\"&#REF!&\") AS \"&#REF!&\",\"","v":{"$error":"#REF!"}}]
[{"$f":"\"HTP.P('<\"&#REF!&\">' || \"&IF(MID(#REF!,1,6)=\"L_STUB\",\"NULL\",\"REC.\"&#REF!)&\" || '</\"&#REF!&\">');\"","v":{"$error":"#REF!"}},null,{"$f":"\"DECODE(C_T.\"&#REF!&\", 0, NULL, C_T.\"&#REF!&\") AS \"&#REF!&\",\"","v":{"$error":"#REF!"}}]
[{"$f":"\"HTP.P('<\"&#REF!&\">' || \"&IF(MID(#REF!,1,6)=\"L_STUB\",\"NULL\",\"REC.\"&#REF!)&\" || '</\"&#REF!&\">');\"","v":{"$error":"#REF!"}},null,{"$f":"\"DECODE(C_T.\"&#REF!&\", 0, NULL, C_T.\"&#REF!&\") AS \"&#REF!&\",\"","v":{"$error":"#REF!"}}]
[{"$f":"\"HTP.P('<\"&#REF!&\">' || \"&IF(MID(#REF!,1,6)=\"L_STUB\",\"NULL\",\"REC.\"&#REF!)&\" || '</\"&#REF!&\">');\"","v":{"$error":"#REF!"}},null,{"$f":"\"DECODE(C_T.\"&#REF!&\", 0, NULL, C_T.\"&#REF!&\") AS \"&#REF!&\",\"","v":{"$error":"#REF!"}}]
[{"$f":"\"HTP.P('<\"&#REF!&\">' || \"&IF(MID(#REF!,1,6)=\"L_STUB\",\"NULL\",\"REC.\"&#REF!)&\" || '</\"&#REF!&\">');\"","v":{"$error":"#REF!"}},null,{"$f":"\"DECODE(C_T.\"&#REF!&\", 0, NULL, C_T.\"&#REF!&\") AS \"&#REF!&\",\"","v":{"$error":"#REF!"}}]
[{"$f":"\"HTP.P('<\"&#REF!&\">' || \"&IF(MID(#REF!,1,6)=\"L_STUB\",\"NULL\",\"REC.\"&#REF!)&\" || '</\"&#REF!&\">');\"","v":{"$error":"#REF!"}},null,{"$f":"\"DECODE(C_T.\"&#REF!&\", 0, NULL, C_T.\"&#REF!&\") AS \"&#REF!&\",\"","v":{"$error":"#REF!"}}]
[{"$f":"\"HTP.P('<\"&#REF!&\">' || \"&IF(MID(#REF!,1,6)=\"L_STUB\",\"NULL\",\"REC.\"&#REF!)&\" || '</\"&#REF!&\">');\"","v":{"$error":"#REF!"}},null,{"$f":"\"DECODE(C_T.\"&#REF!&\", 0, NULL, C_T.\"&#REF!&\") AS \"&#REF!&\",\"","v":{"$error":"#REF!"}}]
[{"$f":"\"HTP.P('<\"&#REF!&\">' || \"&IF(MID(#REF!,1,6)=\"L_STUB\",\"NULL\",\"REC.\"&#REF!)&\" || '</\"&#REF!&\">');\"","v":{"$error":"#REF!"}},null,{"$f":"\"DECODE(C_T.\"&#REF!&\", 0, NULL, C_T.\"&#REF!&\") AS \"&#REF!&\",\"","v":{"$error":"#REF!"}}]
[{"$f":"\"HTP.P('<\"&#REF!&\">' || \"&IF(MID(#REF!,1,6)=\"L_STUB\",\"NULL\",\"REC.\"&#REF!)&\" || '</\"&#REF!&\">');\"","v":{"$error":"#REF!"}},null,{"$f":"\"DECODE(C_T.\"&#REF!&\", 0, NULL, C_T.\"&#REF!&\") AS \"&#REF!&\",\"","v":{"$error":"#REF!"}}]
[{"$f":"\"HTP.P('<\"&#REF!&\">' || \"&IF(MID(#REF!,1,6)=\"L_STUB\",\"NULL\",\"REC.\"&#REF!)&\" || '</\"&#REF!&\">');\"","v":{"$error":"#REF!"}},null,{"$f":"\"DECODE(C_T.\"&#REF!&\", 0, NULL, C_T.\"&#REF!&\") AS \"&#REF!&\",\"","v":{"$error":"#REF!"}}]
[{"$f":"\"HTP.P('<\"&#REF!&\">' || \"&IF(MID(#REF!,1,6)=\"L_STUB\",\"NULL\",\"REC.\"&#REF!)&\" || '</\"&#REF!&\">');\"","v":{"$error":"#REF!"}},null,{"$f":"\"DECODE(C_T.\"&#REF!&\", 0, NULL, C_T.\"&#REF!&\") AS \"&#REF!&\",\"","v":{"$error":"#REF!"}}]
[{"$f":"\"HTP.P('<\"&#REF!&\">' || \"&IF(MID(#REF!,1,6)=\"L_STUB\",\"NULL\",\"REC.\"&#REF!)&\" || '</\"&#REF!&\">');\"","v":{"$error":"#REF!"}},null,{"$f":"\"DECODE(C_T.\"&#REF!&\", 0, NULL, C_T.\"&#REF!&\") AS \"&#REF!&\",\"","v":{"$error":"#REF!"}}]
[{"$f":"\"HTP.P('<\"&#REF!&\">' || \"&IF(MID(#REF!,1,6)=\"L_STUB\",\"NULL\",\"REC.\"&#REF!)&\" || '</\"&#REF!&\">');\"","v":{"$error":"#REF!"}},null,{"$f":"\"DECODE(C_T.\"&#REF!&\", 0, NULL, C_T.\"&#REF!&\") AS \"&#REF!&\",\"","v":{"$error":"#REF!"}}]
[]
[]
[]
[]
[]
[]
[{"$f":"\"HTP.P('<\"&#REF!&\">' || \"&IF(MID(#REF!,1,6)=\"L_STUB\",\"NULL\",\"REC.\"&#REF!)&\" || '</\"&#REF!&\">');\"","v":{"$error":"#REF!"}},null,{"$f":"\"DECODE(C_T.\"&#REF!&\", 0, NULL, C_T.\"&#REF!&\") AS \"&#REF!&\",\"","v":{"$error":"#REF!"}}]
[{"$f":"\"HTP.P('<\"&#REF!&\">' || \"&IF(MID(#REF!,1,6)=\"L_STUB\",\"NULL\",\"REC.\"&#REF!)&\" || '</\"&#REF!&\">');\"","v":{"$error":"#REF!"}},null,{"$f":"\"DECODE(C_T.\"&#REF!&\", 0, NULL, C_T.\"&#REF!&\") AS \"&#REF!&\",\"","v":{"$error":"#REF!"}}]
[{"$f":"\"HTP.P('<\"&#REF!&\">' || \"&IF(MID(#REF!,1,6)=\"L_STUB\",\"NULL\",\"REC.\"&#REF!)&\" || '</\"&#REF!&\">');\"","v":{"$error":"#REF!"}},null,{"$f":"\"DECODE(C_T.\"&#REF!&\", 0, NULL, C_T.\"&#REF!&\") AS \"&#REF!&\",\"","v":{"$error":"#REF!"}}]
[{"$f":"\"HTP.P('<\"&#REF!&\">' || \"&IF(MID(#REF!,1,6)=\"L_STUB\",\"NULL\",\"REC.\"&#REF!)&\" || '</\"&#REF!&\">');\"","v":{"$error":"#REF!"}},null,{"$f":"\"DECODE(C_T.\"&#REF!&\", 0, NULL, C_T.\"&#REF!&\") AS \"&#REF!&\",\"","v":{"$error":"#REF!"}}]
[{"$f":"\"HTP.P('<\"&#REF!&\">' || \"&IF(MID(#REF!,1,6)=\"L_STUB\",\"NULL\",\"REC.\"&#REF!)&\" || '</\"&#REF!&\">');\"","v":{"$error":"#REF!"}},null,{"$f":"\"DECODE(C_T.\"&#REF!&\", 0, NULL, C_T.\"&#REF!&\") AS \"&#REF!&\",\"","v":{"$error":"#REF!"}}]
[{"$f":"\"HTP.P('<\"&#REF!&\">' || \"&IF(MID(#REF!,1,6)=\"L_STUB\",\"NULL\",\"REC.\"&#REF!)&\" || '</\"&#REF!&\">');\"","v":{"$error":"#REF!"}},null,{"$f":"\"DECODE(C_T.\"&#REF!&\", 0, NULL, C_T.\"&#REF!&\") AS \"&#REF!&\",\"","v":{"$error":"#REF!"}}]
[{"$f":"\"HTP.P('<\"&#REF!&\">' || \"&IF(MID(#REF!,1,6)=\"L_STUB\",\"NULL\",\"REC.\"&#REF!)&\" || '</\"&#REF!&\">');\"","v":{"$error":"#REF!"}},null,{"$f":"\"DECODE(C_T.\"&#REF!&\", 0, NULL, C_T.\"&#REF!&\") AS \"&#REF!&\",\"","v":{"$error":"#REF!"}}]
[{"$f":"\"HTP.P('<\"&#REF!&\">' || \"&IF(MID(#REF!,1,6)=\"L_STUB\",\"NULL\",\"REC.\"&#REF!)&\" || '</\"&#REF!&\">');\"","v":{"$error":"#REF!"}},null,{"$f":"\"DECODE(C_T.\"&#REF!&\", 0, NULL, C_T.\"&#REF!&\") AS \"&#REF!&\",\"","v":{"$error":"#REF!"}}]
[{"$f":"\"HTP.P('<\"&#REF!&\">' || \"&IF(MID(#REF!,1,6)=\"L_STUB\",\"NULL\",\"REC.\"&#REF!)&\" || '</\"&#REF!&\">');\"","v":{"$error":"#REF!"}},null,{"$f":"\"DECODE(C_T.\"&#REF!&\", 0, NULL, C_T.\"&#REF!&\") AS \"&#REF!&\",\"","v":{"$error":"#REF!"}}]
[{"$f":"\"HTP.P('<\"&#REF!&\">' || \"&IF(MID(#REF!,1,6)=\"L_STUB\",\"NULL\",\"REC.\"&#REF!)&\" || '</\"&#REF!&\">');\"","v":{"$error":"#REF!"}},null,{"$f":"\"DECODE(C_T.\"&#REF!&\", 0, NULL, C_T.\"&#REF!&\") AS \"&#REF!&\",\"","v":{"$error":"#REF!"}}]
[{"$f":"\"HTP.P('<\"&#REF!&\">' || \"&IF(MID(#REF!,1,6)=\"L_STUB\",\"NULL\",\"REC.\"&#REF!)&\" || '</\"&#REF!&\">');\"","v":{"$error":"#REF!"}},null,{"$f":"\"DECODE(C_T.\"&#REF!&\", 0, NULL, C_T.\"&#REF!&\") AS \"&#REF!&\",\"","v":{"$error":"#REF!"}}]
[{"$f":"\"HTP.P('<\"&#REF!&\">' || \"&IF(MID(#REF!,1,6)=\"L_STUB\",\"NULL\",\"REC.\"&#REF!)&\" || '</\"&#REF!&\">');\"","v":{"$error":"#REF!"}},null,{"$f":"\"DECODE(C_T.\"&#REF!&\", 0, NULL, C_T.\"&#REF!&\") AS \"&#REF!&\",\"","v":{"$error":"#REF!"}}]
[{"$f":"\"HTP.P('<\"&#REF!&\">' || \"&IF(MID(#REF!,1,6)=\"L_STUB\",\"NULL\",\"REC.\"&#REF!)&\" || '</\"&#REF!&\">');\"","v":{"$error":"#REF!"}},null,{"$f":"\"DECODE(C_T.\"&#REF!&\", 0, NULL, C_T.\"&#REF!&\") AS \"&#REF!&\",\"","v":{"$error":"#REF!"}}]
[{"$f":"\"HTP.P('<\"&#REF!&\">' || \"&IF(MID(#REF!,1,6)=\"L_STUB\",\"NULL\",\"REC.\"&#REF!)&\" || '</\"&#REF!&\">');\"","v":{"$error":"#REF!"}},null,{"$f":"\"DECODE(C_T.\"&#REF!&\", 0, NULL, C_T.\"&#REF!&\") AS \"&#REF!&\",\"","v":{"$error":"#REF!"}}]
[{"$f":"\"HTP.P('<\"&#REF!&\">' || \"&IF(MID(#REF!,1,6)=\"L_STUB\",\"NULL\",\"REC.\"&#REF!)&\" || '</\"&#REF!&\">');\"","v":{"$error":"#REF!"}},null,{"$f":"\"DECODE(C_T.\"&#REF!&\", 0, NULL, C_T.\"&#REF!&\") AS \"&#REF!&\",\"","v":{"$error":"#REF!"}}]
[{"$f":"\"HTP.P('<\"&#REF!&\">' || \"&IF(MID(#REF!,1,6)=\"L_STUB\",\"NULL\",\"REC.\"&#REF!)&\" || '</\"&#REF!&\">');\"","v":{"$error":"#REF!"}},null,{"$f":"\"DECODE(C_T.\"&#REF!&\", 0, NULL, C_T.\"&#REF!&\") AS \"&#REF!&\",\"","v":{"$error":"#REF!"}}]
[{"$f":"\"HTP.P('<\"&#REF!&\">' || \"&IF(MID(#REF!,1,6)=\"L_STUB\",\"NULL\",\"REC.\"&#REF!)&\" || '</\"&#REF!&\">');\"","v":{"$error":"#REF!"}},null,{"$f":"\"DECODE(C_T.\"&#REF!&\", 0, NULL, C_T.\"&#REF!&\") AS \"&#REF!&\",\"","v":{"$error":"#REF!"}}]
[{"$f":"\"HTP.P('<\"&#REF!&\">' || \"&IF(MID(#REF!,1,6)=\"L_STUB\",\"NULL\",\"REC.\"&#REF!)&\" || '</\"&#REF!&\">');\"","v":{"$error":"#REF!"}},null,{"$f":"\"DECODE(C_T.\"&#REF!&\", 0, NULL, C_T.\"&#REF!&\") AS \"&#REF!&\",\"","v":{"$error":"#REF!"}}]
[{"$f":"\"HTP.P('<\"&#REF!&\">' || \"&IF(MID(#REF!,1,6)=\"L_STUB\",\"NULL\",\"REC.\"&#REF!)&\" || '</\"&#REF!&\">');\"","v":{"$error":"#REF!"}},null,{"$f":"\"DECODE(C_T.\"&#REF!&\", 0, NULL, C_T.\"&#REF!&\") AS \"&#REF!&\",\"","v":{"$error":"#REF!"}}]
[{"$f":"\"HTP.P('<\"&#REF!&\">' || \"&IF(MID(#REF!,1,6)=\"L_STUB\",\"NULL\",\"REC.\"&#REF!)&\" || '</\"&#REF!&\">');\"","v":{"$error":"#REF!"}},null,{"$f":"\"DECODE(C_T.\"&#REF!&\", 0, NULL, C_T.\"&#REF!&\") AS \"&#REF!&\",\"","v":{"$error":"#REF!"}}]
[{"$f":"\"HTP.P('<\"&#REF!&\">' || \"&IF(MID(#REF!,1,6)=\"L_STUB\",\"NULL\",\"REC.\"&#REF!)&\" || '</\"&#REF!&\">');\"","v":{"$error":"#REF!"}},null,{"$f":"\"DECODE(C_T.\"&#REF!&\", 0, NULL, C_T.\"&#REF!&\") AS \"&#REF!&\",\"","v":{"$error":"#REF!"}}]
[{"$f":"\"HTP.P('<\"&#REF!&\">' || \"&IF(MID(#REF!,1,6)=\"L_STUB\",\"NULL\",\"REC.\"&#REF!)&\" || '</\"&#REF!&\">');\"","v":{"$error":"#REF!"}},null,{"$f":"\"DECODE(C_T.\"&#REF!&\", 0, NULL, C_T.\"&#REF!&\") AS \"&#REF!&\",\"","v":{"$error":"#REF!"}}]
[{"$f":"\"HTP.P('<\"&#REF!&\">' || \"&IF(MID(#REF!,1,6)=\"L_STUB\",\"NULL\",\"REC.\"&#REF!)&\" || '</\"&#REF!&\">');\"","v":{"$error":"#REF!"}},null,{"$f":"\"DECODE(C_T.\"&#REF!&\", 0, NULL, C_T.\"&#REF!&\") AS \"&#REF!&\",\"","v":{"$error":"#REF!"}}]
[{"$f":"\"HTP.P('<\"&#REF!&\">' || \"&IF(MID(#REF!,1,6)=\"L_STUB\",\"NULL\",\"REC.\"&#REF!)&\" || '</\"&#REF!&\">');\"","v":{"$error":"#REF!"}},null,{"$f":"\"DECODE(C_T.\"&#REF!&\", 0, NULL, C_T.\"&#REF!&\") AS \"&#REF!&\",\"","v":{"$error":"#REF!"}}]
[{"$f":"\"HTP.P('<\"&#REF!&\">' || \"&IF(MID(#REF!,1,6)=\"L_STUB\",\"NULL\",\"REC.\"&#REF!)&\" || '</\"&#REF!&\">');\"","v":{"$error":"#REF!"}},null,{"$f":"\"DECODE(C_T.\"&#REF!&\", 0, NULL, C_T.\"&#REF!&\") AS \"&#REF!&\",\"","v":{"$error":"#REF!"}}]
[{"$f":"\"HTP.P('<\"&#REF!&\">' || \"&IF(MID(#REF!,1,6)=\"L_STUB\",\"NULL\",\"REC.\"&#REF!)&\" || '</\"&#REF!&\">');\"","v":{"$error":"#REF!"}},null,{"$f":"\"DECODE(C_T.\"&#REF!&\", 0, NULL, C_T.\"&#REF!&\") AS \"&#REF!&\",\"","v":{"$error":"#REF!"}}]
[{"$f":"\"HTP.P('<\"&#REF!&\">' || \"&IF(MID(#REF!,1,6)=\"L_STUB\",\"NULL\",\"REC.\"&#REF!)&\" || '</\"&#REF!&\">');\"","v":{"$error":"#REF!"}},null,{"$f":"\"DECODE(C_T.\"&#REF!&\", 0, NULL, C_T.\"&#REF!&\") AS \"&#REF!&\",\"","v":{"$error":"#REF!"}}]
[{"$f":"\"HTP.P('<\"&#REF!&\">' || \"&IF(MID(#REF!,1,6)=\"L_STUB\",\"NULL\",\"REC.\"&#REF!)&\" || '</\"&#REF!&\">');\"","v":{"$error":"#REF!"}},null,{"$f":"\"DECODE(C_T.\"&#REF!&\", 0, NULL, C_T.\"&#REF!&\") AS \"&#REF!&\",\"","v":{"$error":"#REF!"}}]
[{"$f":"\"HTP.P('<\"&#REF!&\">' || \"&IF(MID(#REF!,1,6)=\"L_STUB\",\"NULL\",\"REC.\"&#REF!)&\" || '</\"&#REF!&\">');\"","v":{"$error":"#REF!"}},null,{"$f":"\"DECODE(C_T.\"&#REF!&\", 0, NULL, C_T.\"&#REF!&\") AS \"&#REF!&\",\"","v":{"$error":"#REF!"}}]
[{"$f":"\"HTP.P('<\"&#REF!&\">' || \"&IF(MID(#REF!,1,6)=\"L_STUB\",\"NULL\",\"REC.\"&#REF!)&\" || '</\"&#REF!&\">');\"","v":{"$error":"#REF!"}},null,{"$f":"\"DECODE(C_T.\"&#REF!&\", 0, NULL, C_T.\"&#REF!&\") AS \"&#REF!&\",\"","v":{"$error":"#REF!"}}]
[{"$f":"\"HTP.P('<\"&#REF!&\">' || \"&IF(MID(#REF!,1,6)=\"L_STUB\",\"NULL\",\"REC.\"&#REF!)&\" || '</\"&#REF!&\">');\"","v":{"$error":"#REF!"}},null,{"$f":"\"DECODE(C_T.\"&#REF!&\", 0, NULL, C_T.\"&#REF!&\") AS \"&#REF!&\",\"","v":{"$error":"#REF!"}}]
[{"$f":"\"HTP.P('<\"&#REF!&\">' || \"&IF(MID(#REF!,1,6)=\"L_STUB\",\"NULL\",\"REC.\"&#REF!)&\" || '</\"&#REF!&\">');\"","v":{"$error":"#REF!"}},null,{"$f":"\"DECODE(C_T.\"&#REF!&\", 0, NULL, C_T.\"&#REF!&\") AS \"&#REF!&\",\"","v":{"$error":"#REF!"}}]
[{"$f":"\"HTP.P('<\"&#REF!&\">' || \"&IF(MID(#REF!,1,6)=\"L_STUB\",\"NULL\",\"REC.\"&#REF!)&\" || '</\"&#REF!&\">');\"","v":{"$error":"#REF!"}},null,{"$f":"\"DECODE(C_T.\"&#REF!&\", 0, NULL, C_T.\"&#REF!&\") AS \"&#REF!&\",\"","v":{"$error":"#REF!"}}]
[{"$f":"\"HTP.P('<\"&#REF!&\">' || \"&IF(MID(#REF!,1,6)=\"L_STUB\",\"NULL\",\"REC.\"&#REF!)&\" || '</\"&#REF!&\">');\"","v":{"$error":"#REF!"}},null,{"$f":"\"DECODE(C_T.\"&#REF!&\", 0, NULL, C_T.\"&#REF!&\") AS \"&#REF!&\",\"","v":{"$error":"#REF!"}}]
[{"$f":"\"HTP.P('<\"&#REF!&\">' || \"&IF(MID(#REF!,1,6)=\"L_STUB\",\"NULL\",\"REC.\"&#REF!)&\" || '</\"&#REF!&\">');\"","v":{"$error":"#REF!"}},null,{"$f":"\"DECODE(C_T.\"&#REF!&\", 0, NULL, C_T.\"&#REF!&\") AS \"&#REF!&\",\"","v":{"$error":"#REF!"}}]
[{"$f":"\"HTP.P('<\"&#REF!&\">' || \"&IF(MID(#REF!,1,6)=\"L_STUB\",\"NULL\",\"REC.\"&#REF!)&\" || '</\"&#REF!&\">');\"","v":{"$error":"#REF!"}},null,{"$f":"\"DECODE(C_T.\"&#REF!&\", 0, NULL, C_T.\"&#REF!&\") AS \"&#REF!&\",\"","v":{"$error":"#REF!"}}]
[]
[]
[]
[]
[]
[]
[{"$f":"\"HTP.P('<\"&#REF!&\">' || \"&IF(MID(#REF!,1,6)=\"L_STUB\",\"NULL\",\"REC.\"&#REF!)&\" || '</\"&#REF!&\">');\"","v":{"$error":"#REF!"}},null,{"$f":"\"DECODE(C_T.\"&#REF!&\", 0, NULL, C_T.\"&#REF!&\") AS \"&#REF!&\",\"","v":{"$error":"#REF!"}}]
[{"$f":"\"HTP.P('<\"&#REF!&\">' || \"&IF(MID(#REF!,1,6)=\"L_STUB\",\"NULL\",\"REC.\"&#REF!)&\" || '</\"&#REF!&\">');\"","v":{"$error":"#REF!"}},null,{"$f":"\"DECODE(C_T.\"&#REF!&\", 0, NULL, C_T.\"&#REF!&\") AS \"&#REF!&\",\"","v":{"$error":"#REF!"}}]
[{"$f":"\"HTP.P('<\"&#REF!&\">' || \"&IF(MID(#REF!,1,6)=\"L_STUB\",\"NULL\",\"REC.\"&#REF!)&\" || '</\"&#REF!&\">');\"","v":{"$error":"#REF!"}},null,{"$f":"\"DECODE(C_T.\"&#REF!&\", 0, NULL, C_T.\"&#REF!&\") AS \"&#REF!&\",\"","v":{"$error":"#REF!"}}]
[{"$f":"\"HTP.P('<\"&#REF!&\">' || \"&IF(MID(#REF!,1,6)=\"L_STUB\",\"NULL\",\"REC.\"&#REF!)&\" || '</\"&#REF!&\">');\"","v":{"$error":"#REF!"}},null,{"$f":"\"DECODE(C_T.\"&#REF!&\", 0, NULL, C_T.\"&#REF!&\") AS \"&#REF!&\",\"","v":{"$error":"#REF!"}}]
[{"$f":"\"HTP.P('<\"&#REF!&\">' || \"&IF(MID(#REF!,1,6)=\"L_STUB\",\"NULL\",\"REC.\"&#REF!)&\" || '</\"&#REF!&\">');\"","v":{"$error":"#REF!"}},null,{"$f":"\"DECODE(C_T.\"&#REF!&\", 0, NULL, C_T.\"&#REF!&\") AS \"&#REF!&\",\"","v":{"$error":"#REF!"}}]
[{"$f":"\"HTP.P('<\"&#REF!&\">' || \"&IF(MID(#REF!,1,6)=\"L_STUB\",\"NULL\",\"REC.\"&#REF!)&\" || '</\"&#REF!&\">');\"","v":{"$error":"#REF!"}},null,{"$f":"\"DECODE(C_T.\"&#REF!&\", 0, NULL, C_T.\"&#REF!&\") AS \"&#REF!&\",\"","v":{"$error":"#REF!"}}]
[{"$f":"\"HTP.P('<\"&#REF!&\">' || \"&IF(MID(#REF!,1,6)=\"L_STUB\",\"NULL\",\"REC.\"&#REF!)&\" || '</\"&#REF!&\">');\"","v":{"$error":"#REF!"}},null,{"$f":"\"DECODE(C_T.\"&#REF!&\", 0, NULL, C_T.\"&#REF!&\") AS \"&#REF!&\",\"","v":{"$error":"#REF!"}}]
[{"$f":"\"HTP.P('<\"&#REF!&\">' || \"&IF(MID(#REF!,1,6)=\"L_STUB\",\"NULL\",\"REC.\"&#REF!)&\" || '</\"&#REF!&\">');\"","v":{"$error":"#REF!"}},null,{"$f":"\"DECODE(C_T.\"&#REF!&\", 0, NULL, C_T.\"&#REF!&\") AS \"&#REF!&\",\"","v":{"$error":"#REF!"}}]
[{"$f":"\"HTP.P('<\"&#REF!&\">' || \"&IF(MID(#REF!,1,6)=\"L_STUB\",\"NULL\",\"REC.\"&#REF!)&\" || '</\"&#REF!&\">');\"","v":{"$error":"#REF!"}},null,{"$f":"\"DECODE(C_T.\"&#REF!&\", 0, NULL, C_T.\"&#REF!&\") AS \"&#REF!&\",\"","v":{"$error":"#REF!"}}]
[{"$f":"\"HTP.P('<\"&#REF!&\">' || \"&IF(MID(#REF!,1,6)=\"L_STUB\",\"NULL\",\"REC.\"&#REF!)&\" || '</\"&#REF!&\">');\"","v":{"$error":"#REF!"}},null,{"$f":"\"DECODE(C_T.\"&#REF!&\", 0, NULL, C_T.\"&#REF!&\") AS \"&#REF!&\",\"","v":{"$error":"#REF!"}}]
[{"$f":"\"HTP.P('<\"&#REF!&\">' || \"&IF(MID(#REF!,1,6)=\"L_STUB\",\"NULL\",\"REC.\"&#REF!)&\" || '</\"&#REF!&\">');\"","v":{"$error":"#REF!"}},null,{"$f":"\"DECODE(C_T.\"&#REF!&\", 0, NULL, C_T.\"&#REF!&\") AS \"&#REF!&\",\"","v":{"$error":"#REF!"}}]
[{"$f":"\"HTP.P('<\"&#REF!&\">' || \"&IF(MID(#REF!,1,6)=\"L_STUB\",\"NULL\",\"REC.\"&#REF!)&\" || '</\"&#REF!&\">');\"","v":{"$error":"#REF!"}},null,{"$f":"\"DECODE(C_T.\"&#REF!&\", 0, NULL, C_T.\"&#REF!&\") AS \"&#REF!&\",\"","v":{"$error":"#REF!"}}]
[{"$f":"\"HTP.P('<\"&#REF!&\">' || \"&IF(MID(#REF!,1,6)=\"L_STUB\",\"NULL\",\"REC.\"&#REF!)&\" || '</\"&#REF!&\">');\"","v":{"$error":"#REF!"}},null,{"$f":"\"DECODE(C_T.\"&#REF!&\", 0, NULL, C_T.\"&#REF!&\") AS \"&#REF!&\",\"","v":{"$error":"#REF!"}}]
[{"$f":"\"HTP.P('<\"&#REF!&\">' || \"&IF(MID(#REF!,1,6)=\"L_STUB\",\"NULL\",\"REC.\"&#REF!)&\" || '</\"&#REF!&\">');\"","v":{"$error":"#REF!"}},null,{"$f":"\"DECODE(C_T.\"&#REF!&\", 0, NULL, C_T.\"&#REF!&\") AS \"&#REF!&\",\"","v":{"$error":"#REF!"}}]
[{"$f":"\"HTP.P('<\"&#REF!&\">' || \"&IF(MID(#REF!,1,6)=\"L_STUB\",\"NULL\",\"REC.\"&#REF!)&\" || '</\"&#REF!&\">');\"","v":{"$error":"#REF!"}},null,{"$f":"\"DECODE(C_T.\"&#REF!&\", 0, NULL, C_T.\"&#REF!&\") AS \"&#REF!&\",\"","v":{"$error":"#REF!"}}]
[{"$f":"\"HTP.P('<\"&#REF!&\">' || \"&IF(MID(#REF!,1,6)=\"L_STUB\",\"NULL\",\"REC.\"&#REF!)&\" || '</\"&#REF!&\">');\"","v":{"$error":"#REF!"}},null,{"$f":"\"DECODE(C_T.\"&#REF!&\", 0, NULL, C_T.\"&#REF!&\") AS \"&#REF!&\",\"","v":{"$error":"#REF!"}}]
[{"$f":"\"HTP.P('<\"&#REF!&\">' || \"&IF(MID(#REF!,1,6)=\"L_STUB\",\"NULL\",\"REC.\"&#REF!)&\" || '</\"&#REF!&\">');\"","v":{"$error":"#REF!"}},null,{"$f":"\"DECODE(C_T.\"&#REF!&\", 0, NULL, C_T.\"&#REF!&\") AS \"&#REF!&\",\"","v":{"$error":"#REF!"}}]
[{"$f":"\"HTP.P('<\"&#REF!&\">' || \"&IF(MID(#REF!,1,6)=\"L_STUB\",\"NULL\",\"REC.\"&#REF!)&\" || '</\"&#REF!&\">');\"","v":{"$error":"#REF!"}},null,{"$f":"\"DECODE(C_T.\"&#REF!&\", 0, NULL, C_T.\"&#REF!&\") AS \"&#REF!&\",\"","v":{"$error":"#REF!"}}]
[{"$f":"\"HTP.P('<\"&#REF!&\">' || \"&IF(MID(#REF!,1,6)=\"L_STUB\",\"NULL\",\"REC.\"&#REF!)&\" || '</\"&#REF!&\">');\"","v":{"$error":"#REF!"}},null,{"$f":"\"DECODE(C_T.\"&#REF!&\", 0, NULL, C_T.\"&#REF!&\") AS \"&#REF!&\",\"","v":{"$error":"#REF!"}}]
[{"$f":"\"HTP.P('<\"&#REF!&\">' || \"&IF(MID(#REF!,1,6)=\"L_STUB\",\"NULL\",\"REC.\"&#REF!)&\" || '</\"&#REF!&\">');\"","v":{"$error":"#REF!"}},null,{"$f":"\"DECODE(C_T.\"&#REF!&\", 0, NULL, C_T.\"&#REF!&\") AS \"&#REF!&\",\"","v":{"$error":"#REF!"}}]
[{"$f":"\"HTP.P('<\"&#REF!&\">' || \"&IF(MID(#REF!,1,6)=\"L_STUB\",\"NULL\",\"REC.\"&#REF!)&\" || '</\"&#REF!&\">');\"","v":{"$error":"#REF!"}},null,{"$f":"\"DECODE(C_T.\"&#REF!&\", 0, NULL, C_T.\"&#REF!&\") AS \"&#REF!&\",\"","v":{"$error":"#REF!"}}]
[{"$f":"\"HTP.P('<\"&#REF!&\">' || \"&IF(MID(#REF!,1,6)=\"L_STUB\",\"NULL\",\"REC.\"&#REF!)&\" || '</\"&#REF!&\">');\"","v":{"$error":"#REF!"}},null,{"$f":"\"DECODE(C_T.\"&#REF!&\", 0, NULL, C_T.\"&#REF!&\") AS \"&#REF!&\",\"","v":{"$error":"#REF!"}}]
[{"$f":"\"HTP.P('<\"&#REF!&\">' || \"&IF(MID(#REF!,1,6)=\"L_STUB\",\"NULL\",\"REC.\"&#REF!)&\" || '</\"&#REF!&\">');\"","v":{"$error":"#REF!"}},null,{"$f":"\"DECODE(C_T.\"&#REF!&\", 0, NULL, C_T.\"&#REF!&\") AS \"&#REF!&\",\"","v":{"$error":"#REF!"}}]
[{"$f":"\"HTP.P('<\"&#REF!&\">' || \"&IF(MID(#REF!,1,6)=\"L_STUB\",\"NULL\",\"REC.\"&#REF!)&\" || '</\"&#REF!&\">');\"","v":{"$error":"#REF!"}},null,{"$f":"\"DECODE(C_T.\"&#REF!&\", 0, NULL, C_T.\"&#REF!&\") AS \"&#REF!&\",\"","v":{"$error":"#REF!"}}]
[{"$f":"\"HTP.P('<\"&#REF!&\">' || \"&IF(MID(#REF!,1,6)=\"L_STUB\",\"NULL\",\"REC.\"&#REF!)&\" || '</\"&#REF!&\">');\"","v":{"$error":"#REF!"}},null,{"$f":"\"DECODE(C_T.\"&#REF!&\", 0, NULL, C_T.\"&#REF!&\") AS \"&#REF!&\",\"","v":{"$error":"#REF!"}}]
[{"$f":"\"HTP.P('<\"&#REF!&\">' || \"&IF(MID(#REF!,1,6)=\"L_STUB\",\"NULL\",\"REC.\"&#REF!)&\" || '</\"&#REF!&\">');\"","v":{"$error":"#REF!"}},null,{"$f":"\"DECODE(C_T.\"&#REF!&\", 0, NULL, C_T.\"&#REF!&\") AS \"&#REF!&\",\"","v":{"$error":"#REF!"}}]
[{"$f":"\"HTP.P('<\"&#REF!&\">' || \"&IF(MID(#REF!,1,6)=\"L_STUB\",\"NULL\",\"REC.\"&#REF!)&\" || '</\"&#REF!&\">');\"","v":{"$error":"#REF!"}},null,{"$f":"\"DECODE(C_T.\"&#REF!&\", 0, NULL, C_T.\"&#REF!&\") AS \"&#REF!&\",\"","v":{"$error":"#REF!"}}]
[{"$f":"\"HTP.P('<\"&#REF!&\">' || \"&IF(MID(#REF!,1,6)=\"L_STUB\",\"NULL\",\"REC.\"&#REF!)&\" || '</\"&#REF!&\">');\"","v":{"$error":"#REF!"}},null,{"$f":"\"DECODE(C_T.\"&#REF!&\", 0, NULL, C_T.\"&#REF!&\") AS \"&#REF!&\",\"","v":{"$error":"#REF!"}}]
[{"$f":"\"HTP.P('<\"&#REF!&\">' || \"&IF(MID(#REF!,1,6)=\"L_STUB\",\"NULL\",\"REC.\"&#REF!)&\" || '</\"&#REF!&\">');\"","v":{"$error":"#REF!"}},null,{"$f":"\"DECODE(C_T.\"&#REF!&\", 0, NULL, C_T.\"&#REF!&\") AS \"&#REF!&\",\"","v":{"$error":"#REF!"}}]
[{"$f":"\"HTP.P('<\"&#REF!&\">' || \"&IF(MID(#REF!,1,6)=\"L_STUB\",\"NULL\",\"REC.\"&#REF!)&\" || '</\"&#REF!&\">');\"","v":{"$error":"#REF!"}},null,{"$f":"\"DECODE(C_T.\"&#REF!&\", 0, NULL, C_T.\"&#REF!&\") AS \"&#REF!&\",\"","v":{"$error":"#REF!"}}]
[{"$f":"\"HTP.P('<\"&#REF!&\">' || \"&IF(MID(#REF!,1,6)=\"L_STUB\",\"NULL\",\"REC.\"&#REF!)&\" || '</\"&#REF!&\">');\"","v":{"$error":"#REF!"}},null,{"$f":"\"DECODE(C_T.\"&#REF!&\", 0, NULL, C_T.\"&#REF!&\") AS \"&#REF!&\",\"","v":{"$error":"#REF!"}}]
[{"$f":"\"HTP.P('<\"&#REF!&\">' || \"&IF(MID(#REF!,1,6)=\"L_STUB\",\"NULL\",\"REC.\"&#REF!)&\" || '</\"&#REF!&\">');\"","v":{"$error":"#REF!"}},null,{"$f":"\"DECODE(C_T.\"&#REF!&\", 0, NULL, C_T.\"&#REF!&\") AS \"&#REF!&\",\"","v":{"$error":"#REF!"}}]
[{"$f":"\"HTP.P('<\"&#REF!&\">' || \"&IF(MID(#REF!,1,6)=\"L_STUB\",\"NULL\",\"REC.\"&#REF!)&\" || '</\"&#REF!&\">');\"","v":{"$error":"#REF!"}},null,{"$f":"\"DECODE(C_T.\"&#REF!&\", 0, NULL, C_T.\"&#REF!&\") AS \"&#REF!&\",\"","v":{"$error":"#REF!"}}]
[{"$f":"\"HTP.P('<\"&#REF!&\">' || \"&IF(MID(#REF!,1,6)=\"L_STUB\",\"NULL\",\"REC.\"&#REF!)&\" || '</\"&#REF!&\">');\"","v":{"$error":"#REF!"}},null,{"$f":"\"DECODE(C_T.\"&#REF!&\", 0, NULL, C_T.\"&#REF!&\") AS \"&#REF!&\",\"","v":{"$error":"#REF!"}}]
[{"$f":"\"HTP.P('<\"&#REF!&\">' || \"&IF(MID(#REF!,1,6)=\"L_STUB\",\"NULL\",\"REC.\"&#REF!)&\" || '</\"&#REF!&\">');\"","v":{"$error":"#REF!"}},null,{"$f":"\"DECODE(C_T.\"&#REF!&\", 0, NULL, C_T.\"&#REF!&\") AS \"&#REF!&\",\"","v":{"$error":"#REF!"}}]
[{"$f":"\"HTP.P('<\"&#REF!&\">' || \"&IF(MID(#REF!,1,6)=\"L_STUB\",\"NULL\",\"REC.\"&#REF!)&\" || '</\"&#REF!&\">');\"","v":{"$error":"#REF!"}},null,{"$f":"\"DECODE(C_T.\"&#REF!&\", 0, NULL, C_T.\"&#REF!&\") AS \"&#REF!&\",\"","v":{"$error":"#REF!"}}]
[]
[]
[]
[]
[]
[]
[{"$f":"\"HTP.P('<\"&#REF!&\">' || \"&IF(MID(#REF!,1,6)=\"L_STUB\",\"NULL\",\"REC.\"&#REF!)&\" || '</\"&#REF!&\">');\"","v":{"$error":"#REF!"}},null,{"$f":"\"DECODE(C_T.\"&#REF!&\", 0, NULL, C_T.\"&#REF!&\") AS \"&#REF!&\",\"","v":{"$error":"#REF!"}}]
[{"$f":"\"HTP.P('<\"&#REF!&\">' || \"&IF(MID(#REF!,1,6)=\"L_STUB\",\"NULL\",\"REC.\"&#REF!)&\" || '</\"&#REF!&\">');\"","v":{"$error":"#REF!"}},null,{"$f":"\"DECODE(C_T.\"&#REF!&\", 0, NULL, C_T.\"&#REF!&\") AS \"&#REF!&\",\"","v":{"$error":"#REF!"}}]
[{"$f":"\"HTP.P('<\"&#REF!&\">' || \"&IF(MID(#REF!,1,6)=\"L_STUB\",\"NULL\",\"REC.\"&#REF!)&\" || '</\"&#REF!&\">');\"","v":{"$error":"#REF!"}},null,{"$f":"\"DECODE(C_T.\"&#REF!&\", 0, NULL, C_T.\"&#REF!&\") AS \"&#REF!&\",\"","v":{"$error":"#REF!"}}]
[{"$f":"\"HTP.P('<\"&#REF!&\">' || \"&IF(MID(#REF!,1,6)=\"L_STUB\",\"NULL\",\"REC.\"&#REF!)&\" || '</\"&#REF!&\">');\"","v":{"$error":"#REF!"}},null,{"$f":"\"DECODE(C_T.\"&#REF!&\", 0, NULL, C_T.\"&#REF!&\") AS \"&#REF!&\",\"","v":{"$error":"#REF!"}}]
[{"$f":"\"HTP.P('<\"&#REF!&\">' || \"&IF(MID(#REF!,1,6)=\"L_STUB\",\"NULL\",\"REC.\"&#REF!)&\" || '</\"&#REF!&\">');\"","v":{"$error":"#REF!"}},null,{"$f":"\"DECODE(C_T.\"&#REF!&\", 0, NULL, C_T.\"&#REF!&\") AS \"&#REF!&\",\"","v":{"$error":"#REF!"}}]
[{"$f":"\"HTP.P('<\"&#REF!&\">' || \"&IF(MID(#REF!,1,6)=\"L_STUB\",\"NULL\",\"REC.\"&#REF!)&\" || '</\"&#REF!&\">');\"","v":{"$error":"#REF!"}},null,{"$f":"\"DECODE(C_T.\"&#REF!&\", 0, NULL, C_T.\"&#REF!&\") AS \"&#REF!&\",\"","v":{"$error":"#REF!"}}]
[{"$f":"\"HTP.P('<\"&#REF!&\">' || \"&IF(MID(#REF!,1,6)=\"L_STUB\",\"NULL\",\"REC.\"&#REF!)&\" || '</\"&#REF!&\">');\"","v":{"$error":"#REF!"}},null,{"$f":"\"DECODE(C_T.\"&#REF!&\", 0, NULL, C_T.\"&#REF!&\") AS \"&#REF!&\",\"","v":{"$error":"#REF!"}}]
[{"$f":"\"HTP.P('<\"&#REF!&\">' || \"&IF(MID(#REF!,1,6)=\"L_STUB\",\"NULL\",\"REC.\"&#REF!)&\" || '</\"&#REF!&\">');\"","v":{"$error":"#REF!"}},null,{"$f":"\"DECODE(C_T.\"&#REF!&\", 0, NULL, C_T.\"&#REF!&\") AS \"&#REF!&\",\"","v":{"$error":"#REF!"}}]
[{"$f":"\"HTP.P('<\"&#REF!&\">' || \"&IF(MID(#REF!,1,6)=\"L_STUB\",\"NULL\",\"REC.\"&#REF!)&\" || '</\"&#REF!&\">');\"","v":{"$error":"#REF!"}},null,{"$f":"\"DECODE(C_T.\"&#REF!&\", 0, NULL, C_T.\"&#REF!&\") AS \"&#REF!&\",\"","v":{"$error":"#REF!"}}]
[{"$f":"\"HTP.P('<\"&#REF!&\">' || \"&IF(MID(#REF!,1,6)=\"L_STUB\",\"NULL\",\"REC.\"&#REF!)&\" || '</\"&#REF!&\">');\"","v":{"$error":"#REF!"}},null,{"$f":"\"DECODE(C_T.\"&#REF!&\", 0, NULL, C_T.\"&#REF!&\") AS \"&#REF!&\",\"","v":{"$error":"#REF!"}}]
[{"$f":"\"HTP.P('<\"&#REF!&\">' || \"&IF(MID(#REF!,1,6)=\"L_STUB\",\"NULL\",\"REC.\"&#REF!)&\" || '</\"&#REF!&\">');\"","v":{"$error":"#REF!"}},null,{"$f":"\"DECODE(C_T.\"&#REF!&\", 0, NULL, C_T.\"&#REF!&\") AS \"&#REF!&\",\"","v":{"$error":"#REF!"}}]
[{"$f":"\"HTP.P('<\"&#REF!&\">' || \"&IF(MID(#REF!,1,6)=\"L_STUB\",\"NULL\",\"REC.\"&#REF!)&\" || '</\"&#REF!&\">');\"","v":{"$error":"#REF!"}},null,{"$f":"\"DECODE(C_T.\"&#REF!&\", 0, NULL, C_T.\"&#REF!&\") AS \"&#REF!&\",\"","v":{"$error":"#REF!"}}]
[{"$f":"\"HTP.P('<\"&#REF!&\">' || \"&IF(MID(#REF!,1,6)=\"L_STUB\",\"NULL\",\"REC.\"&#REF!)&\" || '</\"&#REF!&\">');\"","v":{"$error":"#REF!"}},null,{"$f":"\"DECODE(C_T.\"&#REF!&\", 0, NULL, C_T.\"&#REF!&\") AS \"&#REF!&\",\"","v":{"$error":"#REF!"}}]
[{"$f":"\"HTP.P('<\"&#REF!&\">' || \"&IF(MID(#REF!,1,6)=\"L_STUB\",\"NULL\",\"REC.\"&#REF!)&\" || '</\"&#REF!&\">');\"","v":{"$error":"#REF!"}},null,{"$f":"\"DECODE(C_T.\"&#REF!&\", 0, NULL, C_T.\"&#REF!&\") AS \"&#REF!&\",\"","v":{"$error":"#REF!"}}]
[{"$f":"\"HTP.P('<\"&#REF!&\">' || \"&IF(MID(#REF!,1,6)=\"L_STUB\",\"NULL\",\"REC.\"&#REF!)&\" || '</\"&#REF!&\">');\"","v":{"$error":"#REF!"}},null,{"$f":"\"DECODE(C_T.\"&#REF!&\", 0, NULL, C_T.\"&#REF!&\") AS \"&#REF!&\",\"","v":{"$error":"#REF!"}}]
[{"$f":"\"HTP.P('<\"&#REF!&\">' || \"&IF(MID(#REF!,1,6)=\"L_STUB\",\"NULL\",\"REC.\"&#REF!)&\" || '</\"&#REF!&\">');\"","v":{"$error":"#REF!"}},null,{"$f":"\"DECODE(C_T.\"&#REF!&\", 0, NULL, C_T.\"&#REF!&\") AS \"&#REF!&\",\"","v":{"$error":"#REF!"}}]
[{"$f":"\"HTP.P('<\"&#REF!&\">' || \"&IF(MID(#REF!,1,6)=\"L_STUB\",\"NULL\",\"REC.\"&#REF!)&\" || '</\"&#REF!&\">');\"","v":{"$error":"#REF!"}},null,{"$f":"\"DECODE(C_T.\"&#REF!&\", 0, NULL, C_T.\"&#REF!&\") AS \"&#REF!&\",\"","v":{"$error":"#REF!"}}]
[{"$f":"\"HTP.P('<\"&#REF!&\">' || \"&IF(MID(#REF!,1,6)=\"L_STUB\",\"NULL\",\"REC.\"&#REF!)&\" || '</\"&#REF!&\">');\"","v":{"$error":"#REF!"}},null,{"$f":"\"DECODE(C_T.\"&#REF!&\", 0, NULL, C_T.\"&#REF!&\") AS \"&#REF!&\",\"","v":{"$error":"#REF!"}}]
[{"$f":"\"HTP.P('<\"&#REF!&\">' || \"&IF(MID(#REF!,1,6)=\"L_STUB\",\"NULL\",\"REC.\"&#REF!)&\" || '</\"&#REF!&\">');\"","v":{"$error":"#REF!"}},null,{"$f":"\"DECODE(C_T.\"&#REF!&\", 0, NULL, C_T.\"&#REF!&\") AS \"&#REF!&\",\"","v":{"$error":"#REF!"}}]
[{"$f":"\"HTP.P('<\"&#REF!&\">' || \"&IF(MID(#REF!,1,6)=\"L_STUB\",\"NULL\",\"REC.\"&#REF!)&\" || '</\"&#REF!&\">');\"","v":{"$error":"#REF!"}},null,{"$f":"\"DECODE(C_T.\"&#REF!&\", 0, NULL, C_T.\"&#REF!&\") AS \"&#REF!&\",\"","v":{"$error":"#REF!"}}]
[{"$f":"\"HTP.P('<\"&#REF!&\">' || \"&IF(MID(#REF!,1,6)=\"L_STUB\",\"NULL\",\"REC.\"&#REF!)&\" || '</\"&#REF!&\">');\"","v":{"$error":"#REF!"}},null,{"$f":"\"DECODE(C_T.\"&#REF!&\", 0, NULL, C_T.\"&#REF!&\") AS \"&#REF!&\",\"","v":{"$error":"#REF!"}}]
[{"$f":"\"HTP.P('<\"&#REF!&\">' || \"&IF(MID(#REF!,1,6)=\"L_STUB\",\"NULL\",\"REC.\"&#REF!)&\" || '</\"&#REF!&\">');\"","v":{"$error":"#REF!"}},null,{"$f":"\"DECODE(C_T.\"&#REF!&\", 0, NULL, C_T.\"&#REF!&\") AS \"&#REF!&\",\"","v":{"$error":"#REF!"}}]
[{"$f":"\"HTP.P('<\"&#REF!&\">' || \"&IF(MID(#REF!,1,6)=\"L_STUB\",\"NULL\",\"REC.\"&#REF!)&\" || '</\"&#REF!&\">');\"","v":{"$error":"#REF!"}},null,{"$f":"\"DECODE(C_T.\"&#REF!&\", 0, NULL, C_T.\"&#REF!&\") AS \"&#REF!&\",\"","v":{"$error":"#REF!"}}]
[{"$f":"\"HTP.P('<\"&#REF!&\">' || \"&IF(MID(#REF!,1,6)=\"L_STUB\",\"NULL\",\"REC.\"&#REF!)&\" || '</\"&#REF!&\">');\"","v":{"$error":"#REF!"}},null,{"$f":"\"DECODE(C_T.\"&#REF!&\", 0, NULL, C_T.\"&#REF!&\") AS \"&#REF!&\",\"","v":{"$error":"#REF!"}}]
[{"$f":"\"HTP.P('<\"&#REF!&\">' || \"&IF(MID(#REF!,1,6)=\"L_STUB\",\"NULL\",\"REC.\"&#REF!)&\" || '</\"&#REF!&\">');\"","v":{"$error":"#REF!"}},null,{"$f":"\"DECODE(C_T.\"&#REF!&\", 0, NULL, C_T.\"&#REF!&\") AS \"&#REF!&\",\"","v":{"$error":"#REF!"}}]
[{"$f":"\"HTP.P('<\"&#REF!&\">' || \"&IF(MID(#REF!,1,6)=\"L_STUB\",\"NULL\",\"REC.\"&#REF!)&\" || '</\"&#REF!&\">');\"","v":{"$error":"#REF!"}},null,{"$f":"\"DECODE(C_T.\"&#REF!&\", 0, NULL, C_T.\"&#REF!&\") AS \"&#REF!&\",\"","v":{"$error":"#REF!"}}]
[{"$f":"\"HTP.P('<\"&#REF!&\">' || \"&IF(MID(#REF!,1,6)=\"L_STUB\",\"NULL\",\"REC.\"&#REF!)&\" || '</\"&#REF!&\">');\"","v":{"$error":"#REF!"}},null,{"$f":"\"DECODE(C_T.\"&#REF!&\", 0, NULL, C_T.\"&#REF!&\") AS \"&#REF!&\",\"","v":{"$error":"#REF!"}}]
[{"$f":"\"HTP.P('<\"&#REF!&\">' || \"&IF(MID(#REF!,1,6)=\"L_STUB\",\"NULL\",\"REC.\"&#REF!)&\" || '</\"&#REF!&\">');\"","v":{"$error":"#REF!"}},null,{"$f":"\"DECODE(C_T.\"&#REF!&\", 0, NULL, C_T.\"&#REF!&\") AS \"&#REF!&\",\"","v":{"$error":"#REF!"}}]
[{"$f":"\"HTP.P('<\"&#REF!&\">' || \"&IF(MID(#REF!,1,6)=\"L_STUB\",\"NULL\",\"REC.\"&#REF!)&\" || '</\"&#REF!&\">');\"","v":{"$error":"#REF!"}},null,{"$f":"\"DECODE(C_T.\"&#REF!&\", 0, NULL, C_T.\"&#REF!&\") AS \"&#REF!&\",\"","v":{"$error":"#REF!"}}]
[{"$f":"\"HTP.P('<\"&#REF!&\">' || \"&IF(MID(#REF!,1,6)=\"L_STUB\",\"NULL\",\"REC.\"&#REF!)&\" || '</\"&#REF!&\">');\"","v":{"$error":"#REF!"}},null,{"$f":"\"DECODE(C_T.\"&#REF!&\", 0, NULL, C_T.\"&#REF!&\") AS \"&#REF!&\",\"","v":{"$error":"#REF!"}}]
[{"$f":"\"HTP.P('<\"&#REF!&\">' || \"&IF(MID(#REF!,1,6)=\"L_STUB\",\"NULL\",\"REC.\"&#REF!)&\" || '</\"&#REF!&\">');\"","v":{"$error":"#REF!"}},null,{"$f":"\"DECODE(C_T.\"&#REF!&\", 0, NULL, C_T.\"&#REF!&\") AS \"&#REF!&\",\"","v":{"$error":"#REF!"}}]
[{"$f":"\"HTP.P('<\"&#REF!&\">' || \"&IF(MID(#REF!,1,6)=\"L_STUB\",\"NULL\",\"REC.\"&#REF!)&\" || '</\"&#REF!&\">');\"","v":{"$error":"#REF!"}},null,{"$f":"\"DECODE(C_T.\"&#REF!&\", 0, NULL, C_T.\"&#REF!&\") AS \"&#REF!&\",\"","v":{"$error":"#REF!"}}]
[{"$f":"\"HTP.P('<\"&#REF!&\">' || \"&IF(MID(#REF!,1,6)=\"L_STUB\",\"NULL\",\"REC.\"&#REF!)&\" || '</\"&#REF!&\">');\"","v":{"$error":"#REF!"}},null,{"$f":"\"DECODE(C_T.\"&#REF!&\", 0, NULL, C_T.\"&#REF!&\") AS \"&#REF!&\",\"","v":{"$error":"#REF!"}}]
[{"$f":"\"HTP.P('<\"&#REF!&\">' || \"&IF(MID(#REF!,1,6)=\"L_STUB\",\"NULL\",\"REC.\"&#REF!)&\" || '</\"&#REF!&\">');\"","v":{"$error":"#REF!"}},null,{"$f":"\"DECODE(C_T.\"&#REF!&\", 0, NULL, C_T.\"&#REF!&\") AS \"&#REF!&\",\"","v":{"$error":"#REF!"}}]
[{"$f":"\"HTP.P('<\"&#REF!&\">' || \"&IF(MID(#REF!,1,6)=\"L_STUB\",\"NULL\",\"REC.\"&#REF!)&\" || '</\"&#REF!&\">');\"","v":{"$error":"#REF!"}},null,{"$f":"\"DECODE(C_T.\"&#REF!&\", 0, NULL, C_T.\"&#REF!&\") AS \"&#REF!&\",\"","v":{"$error":"#REF!"}}]
[{"$f":"\"HTP.P('<\"&#REF!&\">' || \"&IF(MID(#REF!,1,6)=\"L_STUB\",\"NULL\",\"REC.\"&#REF!)&\" || '</\"&#REF!&\">');\"","v":{"$error":"#REF!"}},null,{"$f":"\"DECODE(C_T.\"&#REF!&\", 0, NULL, C_T.\"&#REF!&\") AS \"&#REF!&\",\"","v":{"$error":"#REF!"}}]
[]
[]
[]
[]
[]
[]
[{"$f":"\"HTP.P('<\"&#REF!&\">' || \"&IF(MID(#REF!,1,6)=\"L_STUB\",\"NULL\",\"REC.\"&#REF!)&\" || '</\"&#REF!&\">');\"","v":{"$error":"#REF!"}},null,{"$f":"\"DECODE(C_T.\"&#REF!&\", 0, NULL, C_T.\"&#REF!&\") AS \"&#REF!&\",\"","v":{"$error":"#REF!"}}]
[{"$f":"\"HTP.P('<\"&#REF!&\">' || \"&IF(MID(#REF!,1,6)=\"L_STUB\",\"NULL\",\"REC.\"&#REF!)&\" || '</\"&#REF!&\">');\"","v":{"$error":"#REF!"}},null,{"$f":"\"DECODE(C_T.\"&#REF!&\", 0, NULL, C_T.\"&#REF!&\") AS \"&#REF!&\",\"","v":{"$error":"#REF!"}}]
[{"$f":"\"HTP.P('<\"&#REF!&\">' || \"&IF(MID(#REF!,1,6)=\"L_STUB\",\"NULL\",\"REC.\"&#REF!)&\" || '</\"&#REF!&\">');\"","v":{"$error":"#REF!"}},null,{"$f":"\"DECODE(C_T.\"&#REF!&\", 0, NULL, C_T.\"&#REF!&\") AS \"&#REF!&\",\"","v":{"$error":"#REF!"}}]
[{"$f":"\"HTP.P('<\"&#REF!&\">' || \"&IF(MID(#REF!,1,6)=\"L_STUB\",\"NULL\",\"REC.\"&#REF!)&\" || '</\"&#REF!&\">');\"","v":{"$error":"#REF!"}},null,{"$f":"\"DECODE(C_T.\"&#REF!&\", 0, NULL, C_T.\"&#REF!&\") AS \"&#REF!&\",\"","v":{"$error":"#REF!"}}]
[{"$f":"\"HTP.P('<\"&#REF!&\">' || \"&IF(MID(#REF!,1,6)=\"L_STUB\",\"NULL\",\"REC.\"&#REF!)&\" || '</\"&#REF!&\">');\"","v":{"$error":"#REF!"}},null,{"$f":"\"DECODE(C_T.\"&#REF!&\", 0, NULL, C_T.\"&#REF!&\") AS \"&#REF!&\",\"","v":{"$error":"#REF!"}}]
[{"$f":"\"HTP.P('<\"&#REF!&\">' || \"&IF(MID(#REF!,1,6)=\"L_STUB\",\"NULL\",\"REC.\"&#REF!)&\" || '</\"&#REF!&\">');\"","v":{"$error":"#REF!"}},null,{"$f":"\"DECODE(C_T.\"&#REF!&\", 0, NULL, C_T.\"&#REF!&\") AS \"&#REF!&\",\"","v":{"$error":"#REF!"}}]
[{"$f":"\"HTP.P('<\"&#REF!&\">' || \"&IF(MID(#REF!,1,6)=\"L_STUB\",\"NULL\",\"REC.\"&#REF!)&\" || '</\"&#REF!&\">');\"","v":{"$error":"#REF!"}},null,{"$f":"\"DECODE(C_T.\"&#REF!&\", 0, NULL, C_T.\"&#REF!&\") AS \"&#REF!&\",\"","v":{"$error":"#REF!"}}]
[{"$f":"\"HTP.P('<\"&#REF!&\">' || \"&IF(MID(#REF!,1,6)=\"L_STUB\",\"NULL\",\"REC.\"&#REF!)&\" || '</\"&#REF!&\">');\"","v":{"$error":"#REF!"}},null,{"$f":"\"DECODE(C_T.\"&#REF!&\", 0, NULL, C_T.\"&#REF!&\") AS \"&#REF!&\",\"","v":{"$error":"#REF!"}}]
[{"$f":"\"HTP.P('<\"&#REF!&\">' || \"&IF(MID(#REF!,1,6)=\"L_STUB\",\"NULL\",\"REC.\"&#REF!)&\" || '</\"&#REF!&\">');\"","v":{"$error":"#REF!"}},null,{"$f":"\"DECODE(C_T.\"&#REF!&\", 0, NULL, C_T.\"&#REF!&\") AS \"&#REF!&\",\"","v":{"$error":"#REF!"}}]
[{"$f":"\"HTP.P('<\"&#REF!&\">' || \"&IF(MID(#REF!,1,6)=\"L_STUB\",\"NULL\",\"REC.\"&#REF!)&\" || '</\"&#REF!&\">');\"","v":{"$error":"#REF!"}},null,{"$f":"\"DECODE(C_T.\"&#REF!&\", 0, NULL, C_T.\"&#REF!&\") AS \"&#REF!&\",\"","v":{"$error":"#REF!"}}]
[{"$f":"\"HTP.P('<\"&#REF!&\">' || \"&IF(MID(#REF!,1,6)=\"L_STUB\",\"NULL\",\"REC.\"&#REF!)&\" || '</\"&#REF!&\">');\"","v":{"$error":"#REF!"}},null,{"$f":"\"DECODE(C_T.\"&#REF!&\", 0, NULL, C_T.\"&#REF!&\") AS \"&#REF!&\",\"","v":{"$error":"#REF!"}}]
[{"$f":"\"HTP.P('<\"&#REF!&\">' || \"&IF(MID(#REF!,1,6)=\"L_STUB\",\"NULL\",\"REC.\"&#REF!)&\" || '</\"&#REF!&\">');\"","v":{"$error":"#REF!"}},null,{"$f":"\"DECODE(C_T.\"&#REF!&\", 0, NULL, C_T.\"&#REF!&\") AS \"&#REF!&\",\"","v":{"$error":"#REF!"}}]
[{"$f":"\"HTP.P('<\"&#REF!&\">' || \"&IF(MID(#REF!,1,6)=\"L_STUB\",\"NULL\",\"REC.\"&#REF!)&\" || '</\"&#REF!&\">');\"","v":{"$error":"#REF!"}},null,{"$f":"\"DECODE(C_T.\"&#REF!&\", 0, NULL, C_T.\"&#REF!&\") AS \"&#REF!&\",\"","v":{"$error":"#REF!"}}]
[{"$f":"\"HTP.P('<\"&#REF!&\">' || \"&IF(MID(#REF!,1,6)=\"L_STUB\",\"NULL\",\"REC.\"&#REF!)&\" || '</\"&#REF!&\">');\"","v":{"$error":"#REF!"}},null,{"$f":"\"DECODE(C_T.\"&#REF!&\", 0, NULL, C_T.\"&#REF!&\") AS \"&#REF!&\",\"","v":{"$error":"#REF!"}}]
[{"$f":"\"HTP.P('<\"&#REF!&\">' || \"&IF(MID(#REF!,1,6)=\"L_STUB\",\"NULL\",\"REC.\"&#REF!)&\" || '</\"&#REF!&\">');\"","v":{"$error":"#REF!"}},null,{"$f":"\"DECODE(C_T.\"&#REF!&\", 0, NULL, C_T.\"&#REF!&\") AS \"&#REF!&\",\"","v":{"$error":"#REF!"}}]
[{"$f":"\"HTP.P('<\"&#REF!&\">' || \"&IF(MID(#REF!,1,6)=\"L_STUB\",\"NULL\",\"REC.\"&#REF!)&\" || '</\"&#REF!&\">');\"","v":{"$error":"#REF!"}},null,{"$f":"\"DECODE(C_T.\"&#REF!&\", 0, NULL, C_T.\"&#REF!&\") AS \"&#REF!&\",\"","v":{"$error":"#REF!"}}]
[{"$f":"\"HTP.P('<\"&#REF!&\">' || \"&IF(MID(#REF!,1,6)=\"L_STUB\",\"NULL\",\"REC.\"&#REF!)&\" || '</\"&#REF!&\">');\"","v":{"$error":"#REF!"}},null,{"$f":"\"DECODE(C_T.\"&#REF!&\", 0, NULL, C_T.\"&#REF!&\") AS \"&#REF!&\",\"","v":{"$error":"#REF!"}}]
[{"$f":"\"HTP.P('<\"&#REF!&\">' || \"&IF(MID(#REF!,1,6)=\"L_STUB\",\"NULL\",\"REC.\"&#REF!)&\" || '</\"&#REF!&\">');\"","v":{"$error":"#REF!"}},null,{"$f":"\"DECODE(C_T.\"&#REF!&\", 0, NULL, C_T.\"&#REF!&\") AS \"&#REF!&\",\"","v":{"$error":"#REF!"}}]
[{"$f":"\"HTP.P('<\"&#REF!&\">' || \"&IF(MID(#REF!,1,6)=\"L_STUB\",\"NULL\",\"REC.\"&#REF!)&\" || '</\"&#REF!&\">');\"","v":{"$error":"#REF!"}},null,{"$f":"\"DECODE(C_T.\"&#REF!&\", 0, NULL, C_T.\"&#REF!&\") AS \"&#REF!&\",\"","v":{"$error":"#REF!"}}]
[{"$f":"\"HTP.P('<\"&#REF!&\">' || \"&IF(MID(#REF!,1,6)=\"L_STUB\",\"NULL\",\"REC.\"&#REF!)&\" || '</\"&#REF!&\">');\"","v":{"$error":"#REF!"}},null,{"$f":"\"DECODE(C_T.\"&#REF!&\", 0, NULL, C_T.\"&#REF!&\") AS \"&#REF!&\",\"","v":{"$error":"#REF!"}}]
[{"$f":"\"HTP.P('<\"&#REF!&\">' || \"&IF(MID(#REF!,1,6)=\"L_STUB\",\"NULL\",\"REC.\"&#REF!)&\" || '</\"&#REF!&\">');\"","v":{"$error":"#REF!"}},null,{"$f":"\"DECODE(C_T.\"&#REF!&\", 0, NULL, C_T.\"&#REF!&\") AS \"&#REF!&\",\"","v":{"$error":"#REF!"}}]
[{"$f":"\"HTP.P('<\"&#REF!&\">' || \"&IF(MID(#REF!,1,6)=\"L_STUB\",\"NULL\",\"REC.\"&#REF!)&\" || '</\"&#REF!&\">');\"","v":{"$error":"#REF!"}},null,{"$f":"\"DECODE(C_T.\"&#REF!&\", 0, NULL, C_T.\"&#REF!&\") AS \"&#REF!&\",\"","v":{"$error":"#REF!"}}]
[{"$f":"\"HTP.P('<\"&#REF!&\">' || \"&IF(MID(#REF!,1,6)=\"L_STUB\",\"NULL\",\"REC.\"&#REF!)&\" || '</\"&#REF!&\">');\"","v":{"$error":"#REF!"}},null,{"$f":"\"DECODE(C_T.\"&#REF!&\", 0, NULL, C_T.\"&#REF!&\") AS \"&#REF!&\",\"","v":{"$error":"#REF!"}}]
[{"$f":"\"HTP.P('<\"&#REF!&\">' || \"&IF(MID(#REF!,1,6)=\"L_STUB\",\"NULL\",\"REC.\"&#REF!)&\" || '</\"&#REF!&\">');\"","v":{"$error":"#REF!"}},null,{"$f":"\"DECODE(C_T.\"&#REF!&\", 0, NULL, C_T.\"&#REF!&\") AS \"&#REF!&\",\"","v":{"$error":"#REF!"}}]
[{"$f":"\"HTP.P('<\"&#REF!&\">' || \"&IF(MID(#REF!,1,6)=\"L_STUB\",\"NULL\",\"REC.\"&#REF!)&\" || '</\"&#REF!&\">');\"","v":{"$error":"#REF!"}},null,{"$f":"\"DECODE(C_T.\"&#REF!&\", 0, NULL, C_T.\"&#REF!&\") AS \"&#REF!&\",\"","v":{"$error":"#REF!"}}]
[{"$f":"\"HTP.P('<\"&#REF!&\">' || \"&IF(MID(#REF!,1,6)=\"L_STUB\",\"NULL\",\"REC.\"&#REF!)&\" || '</\"&#REF!&\">');\"","v":{"$error":"#REF!"}},null,{"$f":"\"DECODE(C_T.\"&#REF!&\", 0, NULL, C_T.\"&#REF!&\") AS \"&#REF!&\",\"","v":{"$error":"#REF!"}}]

{"sheet":"TECH_HORISONTAL","index":4,"n_rows":24,"n_cols":20,"rows_kept":24,"cut":false,"hidden":true,"merged":[[19,0,19,1],[22,0,22,1],[1,0,1,1],[4,0,4,1],[7,0,7,1],[10,0,10,1],[13,0,13,1],[16,0,16,1]]}
[]
["ENR_INCOME_GEN_ADD_RANGE"]
[null,null,"×",{"$f":"\"1.2.\"&N3","v":"1.2.TBD"},null,"тыс.кВт*ч",30,{"$f":"SUM(I3:L3)","v":0},null,null,null,null,null,"TBD",null,null,null,null,null,"DYNAMIC.ENR.INCOME.GEN"]
[]
["ENR_INCOME_NON_NET_ADD_RANGE"]
[null,null,"×",{"$f":"\"1.3.\"&N6","v":"1.3.TBD"},null,"тыс.кВт*ч","230",{"$f":"SUM(I6:L6)","v":0},null,null,null,null,null,"TBD",null,null,null,null,null,"DYNAMIC.ENR.INCOME.NON.NET"]
[]
["ENR_INCOME_ADJACENT_NET_ADD_RANGE"]
[null,null,"×",{"$f":"\"1.4.\"&N9","v":"1.4.TBD"},null,"тыс.кВт*ч","430",{"$f":"SUM(I9:L9)","v":0},null,null,null,null,null,"TBD",null,null,null,null,null,"DYNAMIC.ENR.INCOME.ADJACENT.NET"]
[]
["ENR_OUTCOME_ADJACENT_NET_ADD_RANGE"]
[null,null,"×",{"$f":"\"4.3.\"&N12","v":"4.3.TBD"},null,"тыс.кВт*ч","750",{"$f":"SUM(I12:L12)","v":0},null,null,null,null,null,"TBD",null,null,null,null,null,"DYNAMIC.ENR.OUTCOME.ADJACENT.NET"]
[]
["PWR_INCOME_GEN_ADD_RANGE"]
[null,null,"×",{"$f":"\"12.2.\"&N15","v":"12.2.TBD"},null,"МВт","1060",{"$f":"SUM(I15:L15)","v":0},null,null,null,null,null,"TBD",null,null,null,null,null,"DYNAMIC.PWR.INCOME.GEN"]
[]
["PWR_INCOME_NON_NET_ADD_RANGE"]
[null,null,"×",{"$f":"\"12.3.\"&N18","v":"12.3.TBD"},null,"МВт","1260",{"$f":"SUM(I18:L18)","v":0},null,null,null,null,null,"TBD",null,null,null,null,null,"DYNAMIC.PWR.INCOME.NON.NET"]
[]
["PWR_INCOME_ADJACENT_NET_ADD_RANGE"]
[null,null,"×",{"$f":"\"12.4.\"&N21","v":"12.4.TBD"},null,"МВт","1460",{"$f":"SUM(I21:L21)","v":0},null,null,null,null,null,"TBD",null,null,null,null,null,"DYNAMIC.PWR.INCOME.ADJACENT.NET"]
[]
["PWR_OUTCOME_ADJACENT_NET_ADD_RANGE"]
[null,null,"×",{"$f":"\"15.3.\"&N24","v":"15.3.TBD"},null,"МВт","1780",{"$f":"SUM(I24:L24)","v":0},null,null,null,null,null,"TBD",null,null,null,null,null,"DYNAMIC.PWR.OUTCOME.ADJACENT.NET"]

{"sheet":"DICTIONARIES","index":5,"n_rows":55,"n_cols":5,"rows_kept":55,"cut":false,"hidden":true,"merged":[]}
[null,"Наименование списка / параметра","Элемент списка / значение параметра"]
[null,"DIC_NAME","DIC_VALUE","YEAR_NAME","MONTH_NAME"]
[null,"NO_JUSTIFICATION_REPORT_TILL_DATE_APR","2024-05-27 23:59:59",2024,"ALL"]
[null,"NO_JUSTIFICATION_REPORT_TILL_DATE_AUG","2024-09-25 23:59:59",2024,"ALL"]
[null,"NO_JUSTIFICATION_REPORT_TILL_DATE_DEC","2025-01-27 23:59:59",2024,"ALL"]
[null,"NO_JUSTIFICATION_REPORT_TILL_DATE_FEB","2024-03-25 23:59:59",2024,"ALL"]
[null,"NO_JUSTIFICATION_REPORT_TILL_DATE_JAN","2024-02-26 23:59:59",2024,"ALL"]
[null,"NO_JUSTIFICATION_REPORT_TILL_DATE_JUL","2024-08-26 23:59:59",2024,"ALL"]
[null,"NO_JUSTIFICATION_REPORT_TILL_DATE_JUN","2024-07-25 23:59:59",2024,"ALL"]
[null,"NO_JUSTIFICATION_REPORT_TILL_DATE_MAR","2024-04-25 23:59:59",2024,"ALL"]
[null,"NO_JUSTIFICATION_REPORT_TILL_DATE_MAY","2024-06-25 23:59:59",2024,"ALL"]
[null,"NO_JUSTIFICATION_REPORT_TILL_DATE_NOV","2024-12-25 23:59:59",2024,"ALL"]
[null,"NO_JUSTIFICATION_REPORT_TILL_DATE_OCT","2024-11-25 23:59:59",2024,"ALL"]
[null,"NO_JUSTIFICATION_REPORT_TILL_DATE_SEP","2024-10-25 23:59:59",2024,"ALL"]
[null,"NO_JUSTIFICATION_REPORT_TILL_DATE_TTL","2025-02-17 23:59:59",2024,"ALL"]
[null,"REPORT_EXISTENCE_STATUS","ERROR",2024,"ALL"]
[null,"REPORT_MONTH_ABSENCE","(M01)Y(M02)Y(M03)Y(M04)Y(M05)Y(M06)Y(M07)Y(M08)Y(M09)Y(M10)Y(M11)Y(M12)Y",2024,"ALL"]
[null,"VDET_LIST","ГП",2024,"ALL"]
[null,"VDET_LIST","ГП :: Комбинированная выработка",2024,"ALL"]
[null,"VDET_LIST","ГП :: Комбинированная выработка :: Некомбинированная выработка",2024,"ALL"]
[null,"VDET_LIST","ГП :: Некомбинированная выработка",2024,"ALL"]
[null,"VDET_LIST","Комбинированная выработка",2024,"ALL"]
[null,"VDET_LIST","Комбинированная выработка :: Некомбинированная выработка",2024,"ALL"]
[null,"VDET_LIST","Некомбинированная выработка",2024,"ALL"]
[null,"VDET_LIST","Нерегулируемый сбыт",2024,"ALL"]
[null,"VDET_LIST","Нерегулируемый сбыт :: ГП",2024,"ALL"]
[null,"VDET_LIST","Нерегулируемый сбыт :: ГП :: Комбинированная выработка :: Некомбинированная выработка",2024,"ALL"]
[null,"VDET_LIST","Нерегулируемый сбыт :: Комбинированная выработка",2024,"ALL"]
[null,"VDET_LIST","Нерегулируемый сбыт :: Комбинированная выработка :: Некомбинированная выработка",2024,"ALL"]
[null,"VDET_LIST","Нерегулируемый сбыт :: Некомбинированная выработка",2024,"ALL"]
[null,"VDET_LIST","РСО",2024,"ALL"]
[null,"VDET_LIST","РСО :: ГП",2024,"ALL"]
[null,"VDET_LIST","РСО :: ГП :: Комбинированная выработка",2024,"ALL"]
[null,"VDET_LIST","РСО :: ГП :: Комбинированная выработка :: Некомбинированная выработка",2024,"ALL"]
[null,"VDET_LIST","РСО :: ГП :: Некомбинированная выработка",2024,"ALL"]
[null,"VDET_LIST","РСО :: Комбинированная выработка",2024,"ALL"]
[null,"VDET_LIST","РСО :: Комбинированная выработка :: Некомбинированная выработка",2024,"ALL"]
[null,"VDET_LIST","РСО :: Некомбинированная выработка",2024,"ALL"]
[null,"VDET_LIST","РСО :: Нерегулируемый сбыт",2024,"ALL"]
[null,"VDET_LIST","РСО :: Нерегулируемый сбыт :: ГП",2024,"ALL"]
[null,"VDET_LIST","РСО :: Нерегулируемый сбыт :: ГП :: Комбинированная выработка :: Некомбинированная выработка",2024,"ALL"]
[null,"VDET_LIST","РСО :: Нерегулируемый сбыт :: ГП :: Некомбинированная выработка",2024,"ALL"]
[null,"VDET_LIST","РСО :: Нерегулируемый сбыт :: Комбинированная выработка",2024,"ALL"]
[null,"VDET_LIST","РСО :: Нерегулируемый сбыт :: Комбинированная выработка :: Некомбинированная выработка",2024,"ALL"]
[null,"VDET_LIST","РСО :: Нерегулируемый сбыт :: Некомбинированная выработка",2024,"ALL"]
[null,"VDET_LIST","Региональная генерация",2024,"ALL"]
[null,"VDET_LIST","Сбытовая компания",2024,"ALL"]
[null,"VDET_LIST","Сетевая компания",2024,"ALL"]
[null,"VDET_LIST","Станция - поставщик ЭЭ",2024,"ALL"]
[null,"VDET_LIST","ФСК",2024,"ALL"]
[null,"VDET_LIST","ФСК :: РСО",2024,"ALL"]
[null,"VDET_LIST","ФСК :: РСО :: Некомбинированная выработка",2024,"ALL"]
[null,"VDET_LIST","ФСК :: РСО :: Нерегулируемый сбыт",2024,"ALL"]
[null,"VDET_LIST","ФСК :: РСО :: Нерегулируемый сбыт :: Комбинированная выработка :: Некомбинированная выработка",2024,"ALL"]
[null,"VDET_LIST","ЭСО",2024,"ALL"]

{"sheet":"AUTHORIZATION","index":6,"n_rows":2,"n_cols":2,"rows_kept":2,"cut":false,"hidden":true,"merged":[]}
["L1","L2"]
["ACCESS GRANTED","YOgEFjopMwxdVAwUFJmpfHTTAkzxsWJqmkWzpGPTWvTglrAvoShhHUIYzfCxGxgz178i236i213i18, 194i226i26i82C04481B289A82E848E4FD7F3D5C6DE819dFEBd2407t56t03t918537000"]

{"sheet":"REESTR_ORG","index":7,"n_rows":181,"n_cols":139,"rows_kept":181,"cut":false,"hidden":true,"merged":[]}
[null,null,null,null,null,null,null,null,null,null,null,null,null,null,null,null,null,null,null,null,null,null,null,null,null,null,null,null,null,null,null,null,null,null,null,null,null,null,null,null,null,null,null,null,null,null,null,null,null,null,null,null,null,null,null,null,null,null,null,null,null,null,null,null,null,null,null,null,null,null,null,null,null,null,null,null,null,null,null,null,null,null,null,null,null,null,null,null,null,null,null,null,null,null,null,null,null,null,null,null,null,null,null,null,null,null,null,null,null,null,null,null,null,null,null,null,null,null,null,null,"№","НСРФ","Муниципальный район","ОКТМР","Муниципальное образование","ОКТМО","RST_ORG_ID","Наименование ЮЛ / ИП","ИНН","КПП","ОГРН","Дата создания ЮЛ / ИП","Дата ликвидации ЮЛ / ИП","Дата начала ВД","Дата окончания ВД","Вид деятельности","ВД (PATH)","ВД (OBSOLETE)","Является регулируемой"]
[null,null,null,null,null,null,null,null,null,null,null,null,null,null,null,null,null,null,null,null,null,null,null,null,null,null,null,null,null,null,null,null,null,null,null,null,null,null,null,null,null,null,null,null,null,null,null,null,null,null,null,null,null,null,null,null,null,null,null,null,null,null,null,null,null,null,null,null,null,null,null,null,null,null,null,null,null,null,null,null,null,null,null,null,null,null,null,null,null,null,null,null,null,null,null,null,null,null,null,null,null,null,null,null,null,null,null,null,null,null,null,null,null,null,null,null,null,null,null,null,"NUMBER","REGION","MR","OKTMR","MO","OKTMO","RST_ORG_ID","ORG","INN","KPP","OGRN","ORG_SD","ORG_ED","VDET_SD","VDET_ED","VDET_LIST","VDET_FULL_LIST","VDET","HAS_TARIFF"]
[null,null,null,null,null,null,null,null,null,null,null,null,null,null,null,null,null,null,null,null,null,null,null,null,null,null,null,null,null,null,null,null,null,null,null,null,null,null,null,null,null,null,null,null,null,null,null,null,null,null,null,null,null,null,null,null,null,null,null,null,null,null,null,null,null,null,null,null,null,null,null,null,null,null,null,null,null,null,null,null,null,null,null,null,null,null,null,null,null,null,null,null,null,null,null,null,null,null,null,null,null,null,null,null,null,null,null,null,null,null,null,null,null,null,null,null,null,null,null,null,null,"Тюменская область",null,null,null,null,26361252,"АО \"Аэропорт Белоярский\"","8611002077","861101001","1028601522036",null,null,null,null,"РСО","/Электроэнергетика/Передача ЭЭ/РСО",null,"Y"]
[null,null,null,null,null,null,null,null,null,null,null,null,null,null,null,null,null,null,null,null,null,null,null,null,null,null,null,null,null,null,null,null,null,null,null,null,null,null,null,null,null,null,null,null,null,null,null,null,null,null,null,null,null,null,null,null,null,null,null,null,null,null,null,null,null,null,null,null,null,null,null,null,null,null,null,null,null,null,null,null,null,null,null,null,null,null,null,null,null,null,null,null,null,null,null,null,null,null,null,null,null,null,null,null,null,null,null,null,null,null,null,null,null,null,null,null,null,null,null,null,null,"Тюменская область",null,null,null,null,26320038,"АО \"Аэропорт Рощино\"","7204660086","720301001","1027200783070",null,null,null,null,"РСО","/Электроэнергетика/Передача ЭЭ/РСО",null,"Y"]
[null,null,null,null,null,null,null,null,null,null,null,null,null,null,null,null,null,null,null,null,null,null,null,null,null,null,null,null,null,null,null,null,null,null,null,null,null,null,null,null,null,null,null,null,null,null,null,null,null,null,null,null,null,null,null,null,null,null,null,null,null,null,null,null,null,null,null,null,null,null,null,null,null,null,null,null,null,null,null,null,null,null,null,null,null,null,null,null,null,null,null,null,null,null,null,null,null,null,null,null,null,null,null,null,null,null,null,null,null,null,null,null,null,null,null,null,null,null,null,null,null,"Тюменская область",null,null,null,null,26361211,"АО \"Аэропорт Сургут\"","8602060523","860201001","1028600603998","1997-09-04",null,null,null,"РСО","/Электроэнергетика/Передача ЭЭ/РСО",null,"Y"]
[null,null,null,null,null,null,null,null,null,null,null,null,null,null,null,null,null,null,null,null,null,null,null,null,null,null,null,null,null,null,null,null,null,null,null,null,null,null,null,null,null,null,null,null,null,null,null,null,null,null,null,null,null,null,null,null,null,null,null,null,null,null,null,null,null,null,null,null,null,null,null,null,null,null,null,null,null,null,null,null,null,null,null,null,null,null,null,null,null,null,null,null,null,null,null,null,null,null,null,null,null,null,null,null,null,null,null,null,null,null,null,null,null,null,null,null,null,null,null,null,null,"Тюменская область",null,null,null,null,26320069,"АО \"Аэропорт Урай\"","8606010379","860601001","1058600100327",null,null,null,null,"РСО","/Электроэнергетика/Передача ЭЭ/РСО",null,"Y"]
[null,null,null,null,null,null,null,null,null,null,null,null,null,null,null,null,null,null,null,null,null,null,null,null,null,null,null,null,null,null,null,null,null,null,null,null,null,null,null,null,null,null,null,null,null,null,null,null,null,null,null,null,null,null,null,null,null,null,null,null,null,null,null,null,null,null,null,null,null,null,null,null,null,null,null,null,null,null,null,null,null,null,null,null,null,null,null,null,null,null,null,null,null,null,null,null,null,null,null,null,null,null,null,null,null,null,null,null,null,null,null,null,null,null,null,null,null,null,null,null,null,"Тюменская область",null,null,null,null,31077487,"АО \"БЕРЕЗКАГАЗ ЮГРА\"","8601036768","860101001","1088601002511","2008-10-31",null,null,null,"Некомбинированная выработка","/Электроэнергетика/Производство ЭЭ/Некомбинированная выработка",null,"Y"]
[null,null,null,null,null,null,null,null,null,null,null,null,null,null,null,null,null,null,null,null,null,null,null,null,null,null,null,null,null,null,null,null,null,null,null,null,null,null,null,null,null,null,null,null,null,null,null,null,null,null,null,null,null,null,null,null,null,null,null,null,null,null,null,null,null,null,null,null,null,null,null,null,null,null,null,null,null,null,null,null,null,null,null,null,null,null,null,null,null,null,null,null,null,null,null,null,null,null,null,null,null,null,null,null,null,null,null,null,null,null,null,null,null,null,null,null,null,null,null,null,null,"Тюменская область",null,null,null,null,31438264,"АО \"БерезкаГаз Обь\"","8601036750","860101001","1088601002522","2008-10-30",null,null,null,"Некомбинированная выработка","/Электроэнергетика/Производство ЭЭ/Некомбинированная выработка",null,"Y"]
[null,null,null,null,null,null,null,null,null,null,null,null,null,null,null,null,null,null,null,null,null,null,null,null,null,null,null,null,null,null,null,null,null,null,null,null,null,null,null,null,null,null,null,null,null,null,null,null,null,null,null,null,null,null,null,null,null,null,null,null,null,null,null,null,null,null,null,null,null,null,null,null,null,null,null,null,null,null,null,null,null,null,null,null,null,null,null,null,null,null,null,null,null,null,null,null,null,null,null,null,null,null,null,null,null,null,null,null,null,null,null,null,null,null,null,null,null,null,null,null,null,"Тюменская область",null,null,null,null,26320052,"АО \"Варьеганэнергонефть\"","8609003059","860901001","1028601465683",null,null,null,null,"РСО","/Электроэнергетика/Передача ЭЭ/РСО",null,"Y"]
[null,null,null,null,null,null,null,null,null,null,null,null,null,null,null,null,null,null,null,null,null,null,null,null,null,null,null,null,null,null,null,null,null,null,null,null,null,null,null,null,null,null,null,null,null,null,null,null,null,null,null,null,null,null,null,null,null,null,null,null,null,null,null,null,null,null,null,null,null,null,null,null,null,null,null,null,null,null,null,null,null,null,null,null,null,null,null,null,null,null,null,null,null,null,null,null,null,null,null,null,null,null,null,null,null,null,null,null,null,null,null,null,null,null,null,null,null,null,null,null,null,"Тюменская область",null,null,null,null,26405782,"АО \"Вынгапуровский тепловодоканал\"","8905045443","890501001","1098905000622","2009-04-14",null,null,null,"РСО","/Электроэнергетика/Передача ЭЭ/РСО",null,"Y"]
[null,null,null,null,null,null,null,null,null,null,null,null,null,null,null,null,null,null,null,null,null,null,null,null,null,null,null,null,null,null,null,null,null,null,null,null,null,null,null,null,null,null,null,null,null,null,null,null,null,null,null,null,null,null,null,null,null,null,null,null,null,null,null,null,null,null,null,null,null,null,null,null,null,null,null,null,null,null,null,null,null,null,null,null,null,null,null,null,null,null,null,null,null,null,null,null,null,null,null,null,null,null,null,null,null,null,null,null,null,null,null,null,null,null,null,null,null,null,null,null,null,"Тюменская область",null,null,null,null,26522777,"АО \"Газпром энергосбыт Тюмень\"","8602067215","860201001","1058602102415","2005-07-01",null,null,null,"Нерегулируемый сбыт :: ГП","/Электроэнергетика/Сбыт ЭЭ/Нерегулируемый сбыт :: /Электроэнергетика/Сбыт ЭЭ/ГП",null,"Y"]
[null,null,null,null,null,null,null,null,null,null,null,null,null,null,null,null,null,null,null,null,null,null,null,null,null,null,null,null,null,null,null,null,null,null,null,null,null,null,null,null,null,null,null,null,null,null,null,null,null,null,null,null,null,null,null,null,null,null,null,null,null,null,null,null,null,null,null,null,null,null,null,null,null,null,null,null,null,null,null,null,null,null,null,null,null,null,null,null,null,null,null,null,null,null,null,null,null,null,null,null,null,null,null,null,null,null,null,null,null,null,null,null,null,null,null,null,null,null,null,null,null,"Тюменская область",null,null,null,null,26318885,"АО \"Газпром энергосбыт\"","7705750968","772901001","5067746436731",null,null,null,null,"Нерегулируемый сбыт :: Комбинированная выработка","/Электроэнергетика/Сбыт ЭЭ/Нерегулируемый сбыт :: /Электроэнергетика/Производство ЭЭ/Комбинированная выработка",null,"Y"]
[null,null,null,null,null,null,null,null,null,null,null,null,null,null,null,null,null,null,null,null,null,null,null,null,null,null,null,null,null,null,null,null,null,null,null,null,null,null,null,null,null,null,null,null,null,null,null,null,null,null,null,null,null,null,null,null,null,null,null,null,null,null,null,null,null,null,null,null,null,null,null,null,null,null,null,null,null,null,null,null,null,null,null,null,null,null,null,null,null,null,null,null,null,null,null,null,null,null,null,null,null,null,null,null,null,null,null,null,null,null,null,null,null,null,null,null,null,null,null,null,null,"Тюменская область",null,null,null,null,26320074,"АО \"Городские электрические сети\"","8603004190","860301001","1028600957538","1995-12-18",null,null,null,"РСО","/Электроэнергетика/Передача ЭЭ/РСО",null,"Y"]
[null,null,null,null,null,null,null,null,null,null,null,null,null,null,null,null,null,null,null,null,null,null,null,null,null,null,null,null,null,null,null,null,null,null,null,null,null,null,null,null,null,null,null,null,null,null,null,null,null,null,null,null,null,null,null,null,null,null,null,null,null,null,null,null,null,null,null,null,null,null,null,null,null,null,null,null,null,null,null,null,null,null,null,null,null,null,null,null,null,null,null,null,null,null,null,null,null,null,null,null,null,null,null,null,null,null,null,null,null,null,null,null,null,null,null,null,null,null,null,null,null,"Тюменская область",null,null,null,null,31209858,"АО \"Губкинские городские электрические сети\"","8911015126","891101001","1188901002718","2018-07-02",null,null,null,"РСО","/Электроэнергетика/Передача ЭЭ/РСО",null,"Y"]
[null,null,null,null,null,null,null,null,null,null,null,null,null,null,null,null,null,null,null,null,null,null,null,null,null,null,null,null,null,null,null,null,null,null,null,null,null,null,null,null,null,null,null,null,null,null,null,null,null,null,null,null,null,null,null,null,null,null,null,null,null,null,null,null,null,null,null,null,null,null,null,null,null,null,null,null,null,null,null,null,null,null,null,null,null,null,null,null,null,null,null,null,null,null,null,null,null,null,null,null,null,null,null,null,null,null,null,null,null,null,null,null,null,null,null,null,null,null,null,null,null,"Тюменская область",null,null,null,null,26448590,"АО \"ЕЭСнК\"","7727232575","997650001","1027727016350","2012-12-09",null,null,null,"Нерегулируемый сбыт","/Электроэнергетика/Сбыт ЭЭ/Нерегулируемый сбыт",null,"Y"]
[null,null,null,null,null,null,null,null,null,null,null,null,null,null,null,null,null,null,null,null,null,null,null,null,null,null,null,null,null,null,null,null,null,null,null,null,null,null,null,null,null,null,null,null,null,null,null,null,null,null,null,null,null,null,null,null,null,null,null,null,null,null,null,null,null,null,null,null,null,null,null,null,null,null,null,null,null,null,null,null,null,null,null,null,null,null,null,null,null,null,null,null,null,null,null,null,null,null,null,null,null,null,null,null,null,null,null,null,null,null,null,null,null,null,null,null,null,null,null,null,null,"Тюменская область",null,null,null,null,28145546,"АО \"ИНТЕР РАО - Электрогенерация\"","7704784450","862450001","1117746460358","2011-06-15",null,null,null,"Некомбинированная выработка","/Электроэнергетика/Производство ЭЭ/Некомбинированная выработка",null,"Y"]
[null,null,null,null,null,null,null,null,null,null,null,null,null,null,null,null,null,null,null,null,null,null,null,null,null,null,null,null,null,null,null,null,null,null,null,null,null,null,null,null,null,null,null,null,null,null,null,null,null,null,null,null,null,null,null,null,null,null,null,null,null,null,null,null,null,null,null,null,null,null,null,null,null,null,null,null,null,null,null,null,null,null,null,null,null,null,null,null,null,null,null,null,null,null,null,null,null,null,null,null,null,null,null,null,null,null,null,null,null,null,null,null,null,null,null,null,null,null,null,null,null,"Тюменская область",null,null,null,null,26318876,"АО \"Мосэнергосбыт\"","7736520080","997650001","1057746557329",null,null,null,null,"Нерегулируемый сбыт","/Электроэнергетика/Сбыт ЭЭ/Нерегулируемый сбыт",null,"Y"]
[null,null,null,null,null,null,null,null,null,null,null,null,null,null,null,null,null,null,null,null,null,null,null,null,null,null,null,null,null,null,null,null,null,null,null,null,null,null,null,null,null,null,null,null,null,null,null,null,null,null,null,null,null,null,null,null,null,null,null,null,null,null,null,null,null,null,null,null,null,null,null,null,null,null,null,null,null,null,null,null,null,null,null,null,null,null,null,null,null,null,null,null,null,null,null,null,null,null,null,null,null,null,null,null,null,null,null,null,null,null,null,null,null,null,null,null,null,null,null,null,null,"Тюменская область",null,null,null,null,26405742,"АО \"Муравленковское предприятие городских электрических сетей\"","8905063058","890501001","1168901056653",null,null,null,null,"РСО","/Электроэнергетика/Передача ЭЭ/РСО",null,"Y"]
[null,null,null,null,null,null,null,null,null,null,null,null,null,null,null,null,null,null,null,null,null,null,null,null,null,null,null,null,null,null,null,null,null,null,null,null,null,null,null,null,null,null,null,null,null,null,null,null,null,null,null,null,null,null,null,null,null,null,null,null,null,null,null,null,null,null,null,null,null,null,null,null,null,null,null,null,null,null,null,null,null,null,null,null,null,null,null,null,null,null,null,null,null,null,null,null,null,null,null,null,null,null,null,null,null,null,null,null,null,null,null,null,null,null,null,null,null,null,null,null,null,"Тюменская область",null,null,null,null,26535108,"АО \"ННК-Нижневартовское нефтегазодобывающее предприятие\"","8603089941","997250001","1028600944250",null,null,null,null,"РСО","/Электроэнергетика/Передача ЭЭ/РСО",null,"Y"]
[null,null,null,null,null,null,null,null,null,null,null,null,null,null,null,null,null,null,null,null,null,null,null,null,null,null,null,null,null,null,null,null,null,null,null,null,null,null,null,null,null,null,null,null,null,null,null,null,null,null,null,null,null,null,null,null,null,null,null,null,null,null,null,null,null,null,null,null,null,null,null,null,null,null,null,null,null,null,null,null,null,null,null,null,null,null,null,null,null,null,null,null,null,null,null,null,null,null,null,null,null,null,null,null,null,null,null,null,null,null,null,null,null,null,null,null,null,null,null,null,null,"Тюменская область",null,null,null,null,27095280,"АО \"ННК-Энерго\"","2722080626","272201001","1082722013110",null,null,null,null,"Нерегулируемый сбыт","/Электроэнергетика/Сбыт ЭЭ/Нерегулируемый сбыт",null,"Y"]
[null,null,null,null,null,null,null,null,null,null,null,null,null,null,null,null,null,null,null,null,null,null,null,null,null,null,null,null,null,null,null,null,null,null,null,null,null,null,null,null,null,null,null,null,null,null,null,null,null,null,null,null,null,null,null,null,null,null,null,null,null,null,null,null,null,null,null,null,null,null,null,null,null,null,null,null,null,null,null,null,null,null,null,null,null,null,null,null,null,null,null,null,null,null,null,null,null,null,null,null,null,null,null,null,null,null,null,null,null,null,null,null,null,null,null,null,null,null,null,null,null,"Тюменская область",null,null,null,null,26590793,"АО \"Надымское авиапредприятие\"","8903025610","890301001","1068903001265",null,null,null,null,"РСО","/Электроэнергетика/Передача ЭЭ/РСО",null,"Y"]
[null,null,null,null,null,null,null,null,null,null,null,null,null,null,null,null,null,null,null,null,null,null,null,null,null,null,null,null,null,null,null,null,null,null,null,null,null,null,null,null,null,null,null,null,null,null,null,null,null,null,null,null,null,null,null,null,null,null,null,null,null,null,null,null,null,null,null,null,null,null,null,null,null,null,null,null,null,null,null,null,null,null,null,null,null,null,null,null,null,null,null,null,null,null,null,null,null,null,null,null,null,null,null,null,null,null,null,null,null,null,null,null,null,null,null,null,null,null,null,null,null,"Тюменская область",null,null,null,null,26319041,"АО \"Новосибирскэнергосбыт\"","5407025576","997650001","1065407151127",null,null,null,null,"Нерегулируемый сбыт","/Электроэнергетика/Сбыт ЭЭ/Нерегулируемый сбыт",null,"Y"]
[null,null,null,null,null,null,null,null,null,null,null,null,null,null,null,null,null,null,null,null,null,null,null,null,null,null,null,null,null,null,null,null,null,null,null,null,null,null,null,null,null,null,null,null,null,null,null,null,null,null,null,null,null,null,null,null,null,null,null,null,null,null,null,null,null,null,null,null,null,null,null,null,null,null,null,null,null,null,null,null,null,null,null,null,null,null,null,null,null,null,null,null,null,null,null,null,null,null,null,null,null,null,null,null,null,null,null,null,null,null,null,null,null,null,null,null,null,null,null,null,null,"Тюменская область",null,null,null,null,26361326,"АО \"Новоуренгойский ОАО\"","8904045602","890401001","1048900319412",null,null,null,null,"РСО","/Электроэнергетика/Передача ЭЭ/РСО",null,"Y"]
[null,null,null,null,null,null,null,null,null,null,null,null,null,null,null,null,null,null,null,null,null,null,null,null,null,null,null,null,null,null,null,null,null,null,null,null,null,null,null,null,null,null,null,null,null,null,null,null,null,null,null,null,null,null,null,null,null,null,null,null,null,null,null,null,null,null,null,null,null,null,null,null,null,null,null,null,null,null,null,null,null,null,null,null,null,null,null,null,null,null,null,null,null,null,null,null,null,null,null,null,null,null,null,null,null,null,null,null,null,null,null,null,null,null,null,null,null,null,null,null,null,"Тюменская область",null,null,null,null,28143476,"АО \"НордЭнерджиСистемс\"","8903032551","720301001","1128903001281","2012-11-12",null,null,null,"РСО","/Электроэнергетика/Передача ЭЭ/РСО",null,"Y"]
[null,null,null,null,null,null,null,null,null,null,null,null,null,null,null,null,null,null,null,null,null,null,null,null,null,null,null,null,null,null,null,null,null,null,null,null,null,null,null,null,null,null,null,null,null,null,null,null,null,null,null,null,null,null,null,null,null,null,null,null,null,null,null,null,null,null,null,null,null,null,null,null,null,null,null,null,null,null,null,null,null,null,null,null,null,null,null,null,null,null,null,null,null,null,null,null,null,null,null,null,null,null,null,null,null,null,null,null,null,null,null,null,null,null,null,null,null,null,null,null,null,"Тюменская область",null,null,null,null,26617350,"АО \"Оборонэнергосбыт\"","7704731218","773043001","1097746448315","2010-03-23","2024-02-12",null,null,"Нерегулируемый сбыт","/Электроэнергетика/Сбыт ЭЭ/Нерегулируемый сбыт",null,"Y"]
[null,null,null,null,null,null,null,null,null,null,null,null,null,null,null,null,null,null,null,null,null,null,null,null,null,null,null,null,null,null,null,null,null,null,null,null,null,null,null,null,null,null,null,null,null,null,null,null,null,null,null,null,null,null,null,null,null,null,null,null,null,null,null,null,null,null,null,null,null,null,null,null,null,null,null,null,null,null,null,null,null,null,null,null,null,null,null,null,null,null,null,null,null,null,null,null,null,null,null,null,null,null,null,null,null,null,null,null,null,null,null,null,null,null,null,null,null,null,null,null,null,"Тюменская область",null,null,null,null,26375346,"АО \"Птицефабрика \"Боровская\"","7224008030","722401001","1027200875965",null,null,null,null,"РСО","/Электроэнергетика/Передача ЭЭ/РСО",null,"Y"]
[null,null,null,null,null,null,null,null,null,null,null,null,null,null,null,null,null,null,null,null,null,null,null,null,null,null,null,null,null,null,null,null,null,null,null,null,null,null,null,null,null,null,null,null,null,null,null,null,null,null,null,null,null,null,null,null,null,null,null,null,null,null,null,null,null,null,null,null,null,null,null,null,null,null,null,null,null,null,null,null,null,null,null,null,null,null,null,null,null,null,null,null,null,null,null,null,null,null,null,null,null,null,null,null,null,null,null,null,null,null,null,null,null,null,null,null,null,null,null,null,null,"Тюменская область",null,null,null,null,28903717,"АО \"РСК Ямала\"","8901008899","890101001","1148901001094","2014-09-15","2024-01-31",null,null,"РСО","/Электроэнергетика/Передача ЭЭ/РСО",null,"Y"]
[null,null,null,null,null,null,null,null,null,null,null,null,null,null,null,null,null,null,null,null,null,null,null,null,null,null,null,null,null,null,null,null,null,null,null,null,null,null,null,null,null,null,null,null,null,null,null,null,null,null,null,null,null,null,null,null,null,null,null,null,null,null,null,null,null,null,null,null,null,null,null,null,null,null,null,null,null,null,null,null,null,null,null,null,null,null,null,null,null,null,null,null,null,null,null,null,null,null,null,null,null,null,null,null,null,null,null,null,null,null,null,null,null,null,null,null,null,null,null,null,null,"Тюменская область",null,null,null,null,26522781,"АО \"Россети Тюмень\"","8602060185","997650001","1028600587399",null,null,null,null,"РСО","/Электроэнергетика/Передача ЭЭ/РСО",null,"Y"]
[null,null,null,null,null,null,null,null,null,null,null,null,null,null,null,null,null,null,null,null,null,null,null,null,null,null,null,null,null,null,null,null,null,null,null,null,null,null,null,null,null,null,null,null,null,null,null,null,null,null,null,null,null,null,null,null,null,null,null,null,null,null,null,null,null,null,null,null,null,null,null,null,null,null,null,null,null,null,null,null,null,null,null,null,null,null,null,null,null,null,null,null,null,null,null,null,null,null,null,null,null,null,null,null,null,null,null,null,null,null,null,null,null,null,null,null,null,null,null,null,null,"Тюменская область",null,null,null,null,26320020,"АО \"СУЭНКО\"","7205011944","720301001","1027201233620",null,null,null,null,"РСО :: Нерегулируемый сбыт :: Комбинированная выработка :: Некомбинированная выработка","/Электроэнергетика/Передача ЭЭ/РСО :: /Электроэнергетика/Сбыт ЭЭ/Нерегулируемый сбыт :: /Электроэнергетика/Производство ЭЭ/Комбинированная выработка :: /Электроэнергетика/Производство ЭЭ/Некомбинированная выработка",null,"Y"]
[null,null,null,null,null,null,null,null,null,null,null,null,null,null,null,null,null,null,null,null,null,null,null,null,null,null,null,null,null,null,null,null,null,null,null,null,null,null,null,null,null,null,null,null,null,null,null,null,null,null,null,null,null,null,null,null,null,null,null,null,null,null,null,null,null,null,null,null,null,null,null,null,null,null,null,null,null,null,null,null,null,null,null,null,null,null,null,null,null,null,null,null,null,null,null,null,null,null,null,null,null,null,null,null,null,null,null,null,null,null,null,null,null,null,null,null,null,null,null,null,null,"Тюменская область",null,null,null,null,26361309,"АО \"Салехардэнерго\"","8901030855","890101001","1158901001434",null,null,null,null,"ГП","/Электроэнергетика/Сбыт ЭЭ/ГП",null,"Y"]
[null,null,null,null,null,null,null,null,null,null,null,null,null,null,null,null,null,null,null,null,null,null,null,null,null,null,null,null,null,null,null,null,null,null,null,null,null,null,null,null,null,null,null,null,null,null,null,null,null,null,null,null,null,null,null,null,null,null,null,null,null,null,null,null,null,null,null,null,null,null,null,null,null,null,null,null,null,null,null,null,null,null,null,null,null,null,null,null,null,null,null,null,null,null,null,null,null,null,null,null,null,null,null,null,null,null,null,null,null,null,null,null,null,null,null,null,null,null,null,null,null,"Тюменская область",null,null,null,null,26361309,"АО \"Салехардэнерго\"","8901030855","890101001","1158901001434",null,null,null,null,"Нерегулируемый сбыт","/Электроэнергетика/Сбыт ЭЭ/Нерегулируемый сбыт",null,"Y"]
[null,null,null,null,null,null,null,null,null,null,null,null,null,null,null,null,null,null,null,null,null,null,null,null,null,null,null,null,null,null,null,null,null,null,null,null,null,null,null,null,null,null,null,null,null,null,null,null,null,null,null,null,null,null,null,null,null,null,null,null,null,null,null,null,null,null,null,null,null,null,null,null,null,null,null,null,null,null,null,null,null,null,null,null,null,null,null,null,null,null,null,null,null,null,null,null,null,null,null,null,null,null,null,null,null,null,null,null,null,null,null,null,null,null,null,null,null,null,null,null,null,"Тюменская область",null,null,null,null,26535092,"АО \"Самотлорнефтегаз\"","8603089934","997250001","1028600940576",null,null,null,null,"РСО","/Электроэнергетика/Передача ЭЭ/РСО",null,"Y"]
[null,null,null,null,null,null,null,null,null,null,null,null,null,null,null,null,null,null,null,null,null,null,null,null,null,null,null,null,null,null,null,null,null,null,null,null,null,null,null,null,null,null,null,null,null,null,null,null,null,null,null,null,null,null,null,null,null,null,null,null,null,null,null,null,null,null,null,null,null,null,null,null,null,null,null,null,null,null,null,null,null,null,null,null,null,null,null,null,null,null,null,null,null,null,null,null,null,null,null,null,null,null,null,null,null,null,null,null,null,null,null,null,null,null,null,null,null,null,null,null,null,"Тюменская область",null,null,null,null,27662523,"АО \"СибурТюменьГаз\"","7202116628","860301001","1037200611612",null,null,null,null,"Некомбинированная выработка","/Электроэнергетика/Производство ЭЭ/Некомбинированная выработка",null,"Y"]
[null,null,null,null,null,null,null,null,null,null,null,null,null,null,null,null,null,null,null,null,null,null,null,null,null,null,null,null,null,null,null,null,null,null,null,null,null,null,null,null,null,null,null,null,null,null,null,null,null,null,null,null,null,null,null,null,null,null,null,null,null,null,null,null,null,null,null,null,null,null,null,null,null,null,null,null,null,null,null,null,null,null,null,null,null,null,null,null,null,null,null,null,null,null,null,null,null,null,null,null,null,null,null,null,null,null,null,null,null,null,null,null,null,null,null,null,null,null,null,null,null,"Тюменская область",null,null,null,null,26448586,"АО \"Сибурэнергоменеджмент\"","7727276526","366301001","1063667286858",null,null,null,null,"Нерегулируемый сбыт","/Электроэнергетика/Сбыт ЭЭ/Нерегулируемый сбыт",null,"Y"]
[null,null,null,null,null,null,null,null,null,null,null,null,null,null,null,null,null,null,null,null,null,null,null,null,null,null,null,null,null,null,null,null,null,null,null,null,null,null,null,null,null,null,null,null,null,null,null,null,null,null,null,null,null,null,null,null,null,null,null,null,null,null,null,null,null,null,null,null,null,null,null,null,null,null,null,null,null,null,null,null,null,null,null,null,null,null,null,null,null,null,null,null,null,null,null,null,null,null,null,null,null,null,null,null,null,null,null,null,null,null,null,null,null,null,null,null,null,null,null,null,null,"Тюменская область",null,null,null,null,31414903,"АО \"Синэрго\"","6672261117","668501001","1086672003351",null,null,null,null,"Нерегулируемый сбыт","/Электроэнергетика/Сбыт ЭЭ/Нерегулируемый сбыт",null,"Y"]
[null,null,null,null,null,null,null,null,null,null,null,null,null,null,null,null,null,null,null,null,null,null,null,null,null,null,null,null,null,null,null,null,null,null,null,null,null,null,null,null,null,null,null,null,null,null,null,null,null,null,null,null,null,null,null,null,null,null,null,null,null,null,null,null,null,null,null,null,null,null,null,null,null,null,null,null,null,null,null,null,null,null,null,null,null,null,null,null,null,null,null,null,null,null,null,null,null,null,null,null,null,null,null,null,null,null,null,null,null,null,null,null,null,null,null,null,null,null,null,null,null,"Тюменская область",null,null,null,null,26496487,"АО \"Тюменский завод медицинского оборудования и инструментов\"","7203000834","720301001","1027200790198",null,null,null,null,"РСО","/Электроэнергетика/Передача ЭЭ/РСО",null,"Y"]
[null,null,null,null,null,null,null,null,null,null,null,null,null,null,null,null,null,null,null,null,null,null,null,null,null,null,null,null,null,null,null,null,null,null,null,null,null,null,null,null,null,null,null,null,null,null,null,null,null,null,null,null,null,null,null,null,null,null,null,null,null,null,null,null,null,null,null,null,null,null,null,null,null,null,null,null,null,null,null,null,null,null,null,null,null,null,null,null,null,null,null,null,null,null,null,null,null,null,null,null,null,null,null,null,null,null,null,null,null,null,null,null,null,null,null,null,null,null,null,null,null,"Тюменская область",null,null,null,null,26776132,"АО \"Тюменский электромеханический завод\"","7204003108","720301001","1027200813947",null,null,null,null,"РСО","/Электроэнергетика/Передача ЭЭ/РСО",null,"Y"]
[null,null,null,null,null,null,null,null,null,null,null,null,null,null,null,null,null,null,null,null,null,null,null,null,null,null,null,null,null,null,null,null,null,null,null,null,null,null,null,null,null,null,null,null,null,null,null,null,null,null,null,null,null,null,null,null,null,null,null,null,null,null,null,null,null,null,null,null,null,null,null,null,null,null,null,null,null,null,null,null,null,null,null,null,null,null,null,null,null,null,null,null,null,null,null,null,null,null,null,null,null,null,null,null,null,null,null,null,null,null,null,null,null,null,null,null,null,null,null,null,null,"Тюменская область",null,null,null,null,31595865,"АО \"Уренгойская электросетевая компания\"","8904092592","890401001","1228900001220","2022-05-23",null,null,null,"РСО","/Электроэнергетика/Передача ЭЭ/РСО",null,"Y"]
[null,null,null,null,null,null,null,null,null,null,null,null,null,null,null,null,null,null,null,null,null,null,null,null,null,null,null,null,null,null,null,null,null,null,null,null,null,null,null,null,null,null,null,null,null,null,null,null,null,null,null,null,null,null,null,null,null,null,null,null,null,null,null,null,null,null,null,null,null,null,null,null,null,null,null,null,null,null,null,null,null,null,null,null,null,null,null,null,null,null,null,null,null,null,null,null,null,null,null,null,null,null,null,null,null,null,null,null,null,null,null,null,null,null,null,null,null,null,null,null,null,"Тюменская область",null,null,null,null,31670218,"АО \"Ханты-Мансийские городские электрические сети\"","8601073745","860101001","1238600003180",null,null,null,null,"РСО","/Электроэнергетика/Передача ЭЭ/РСО",null,"Y"]
[null,null,null,null,null,null,null,null,null,null,null,null,null,null,null,null,null,null,null,null,null,null,null,null,null,null,null,null,null,null,null,null,null,null,null,null,null,null,null,null,null,null,null,null,null,null,null,null,null,null,null,null,null,null,null,null,null,null,null,null,null,null,null,null,null,null,null,null,null,null,null,null,null,null,null,null,null,null,null,null,null,null,null,null,null,null,null,null,null,null,null,null,null,null,null,null,null,null,null,null,null,null,null,null,null,null,null,null,null,null,null,null,null,null,null,null,null,null,null,null,null,"Тюменская область",null,null,null,null,26576339,"АО \"Черногорэнерго\"","8620001023","860301001","1028600951081","1994-02-09",null,null,null,"РСО","/Электроэнергетика/Передача ЭЭ/РСО",null,"Y"]
[null,null,null,null,null,null,null,null,null,null,null,null,null,null,null,null,null,null,null,null,null,null,null,null,null,null,null,null,null,null,null,null,null,null,null,null,null,null,null,null,null,null,null,null,null,null,null,null,null,null,null,null,null,null,null,null,null,null,null,null,null,null,null,null,null,null,null,null,null,null,null,null,null,null,null,null,null,null,null,null,null,null,null,null,null,null,null,null,null,null,null,null,null,null,null,null,null,null,null,null,null,null,null,null,null,null,null,null,null,null,null,null,null,null,null,null,null,null,null,null,null,"Тюменская область",null,null,null,null,26383121,"АО \"Энерго-Газ-Ноябрьск\"","8905033649","890501001","1048900553206","2004-06-23",null,null,null,"РСО","/Электроэнергетика/Передача ЭЭ/РСО",null,"Y"]
[null,null,null,null,null,null,null,null,null,null,null,null,null,null,null,null,null,null,null,null,null,null,null,null,null,null,null,null,null,null,null,null,null,null,null,null,null,null,null,null,null,null,null,null,null,null,null,null,null,null,null,null,null,null,null,null,null,null,null,null,null,null,null,null,null,null,null,null,null,null,null,null,null,null,null,null,null,null,null,null,null,null,null,null,null,null,null,null,null,null,null,null,null,null,null,null,null,null,null,null,null,null,null,null,null,null,null,null,null,null,null,null,null,null,null,null,null,null,null,null,null,"Тюменская область",null,null,null,null,26500047,"АО \"Энергосбытовая компания \"Восток\"","7705424509","997650001","1037739123696","2001-12-19",null,null,null,"ГП","/Электроэнергетика/Сбыт ЭЭ/ГП",null,"Y"]
[null,null,null,null,null,null,null,null,null,null,null,null,null,null,null,null,null,null,null,null,null,null,null,null,null,null,null,null,null,null,null,null,null,null,null,null,null,null,null,null,null,null,null,null,null,null,null,null,null,null,null,null,null,null,null,null,null,null,null,null,null,null,null,null,null,null,null,null,null,null,null,null,null,null,null,null,null,null,null,null,null,null,null,null,null,null,null,null,null,null,null,null,null,null,null,null,null,null,null,null,null,null,null,null,null,null,null,null,null,null,null,null,null,null,null,null,null,null,null,null,null,"Тюменская область",null,null,null,null,26500047,"АО \"Энергосбытовая компания \"Восток\"","7705424509","997650001","1037739123696","2001-12-19",null,null,null,"Нерегулируемый сбыт","/Электроэнергетика/Сбыт ЭЭ/Нерегулируемый сбыт",null,"Y"]
[null,null,null,null,null,null,null,null,null,null,null,null,null,null,null,null,null,null,null,null,null,null,null,null,null,null,null,null,null,null,null,null,null,null,null,null,null,null,null,null,null,null,null,null,null,null,null,null,null,null,null,null,null,null,null,null,null,null,null,null,null,null,null,null,null,null,null,null,null,null,null,null,null,null,null,null,null,null,null,null,null,null,null,null,null,null,null,null,null,null,null,null,null,null,null,null,null,null,null,null,null,null,null,null,null,null,null,null,null,null,null,null,null,null,null,null,null,null,null,null,null,"Тюменская область",null,null,null,null,26500047,"АО \"Энергосбытовая компания \"Восток\"","7705424509","997650001","1037739123696","2001-12-19",null,null,null,"Нерегулируемый сбыт :: ГП","/Электроэнергетика/Сбыт ЭЭ/Нерегулируемый сбыт :: /Электроэнергетика/Сбыт ЭЭ/ГП",null,"Y"]
[null,null,null,null,null,null,null,null,null,null,null,null,null,null,null,null,null,null,null,null,null,null,null,null,null,null,null,null,null,null,null,null,null,null,null,null,null,null,null,null,null,null,null,null,null,null,null,null,null,null,null,null,null,null,null,null,null,null,null,null,null,null,null,null,null,null,null,null,null,null,null,null,null,null,null,null,null,null,null,null,null,null,null,null,null,null,null,null,null,null,null,null,null,null,null,null,null,null,null,null,null,null,null,null,null,null,null,null,null,null,null,null,null,null,null,null,null,null,null,null,null,"Тюменская область",null,null,null,null,27556259,"АО \"ЮРЭСК\"","8601045152","862450001","1118601002596","2011-01-18",null,null,null,"РСО","/Электроэнергетика/Передача ЭЭ/РСО",null,"Y"]
[null,null,null,null,null,null,null,null,null,null,null,null,null,null,null,null,null,null,null,null,null,null,null,null,null,null,null,null,null,null,null,null,null,null,null,null,null,null,null,null,null,null,null,null,null,null,null,null,null,null,null,null,null,null,null,null,null,null,null,null,null,null,null,null,null,null,null,null,null,null,null,null,null,null,null,null,null,null,null,null,null,null,null,null,null,null,null,null,null,null,null,null,null,null,null,null,null,null,null,null,null,null,null,null,null,null,null,null,null,null,null,null,null,null,null,null,null,null,null,null,null,"Тюменская область",null,null,null,null,26448471,"АО \"ЮТЭК\"","8601022317","862450001","1048600001141","2004-03-12",null,null,null,"ГП","/Электроэнергетика/Сбыт ЭЭ/ГП",null,"Y"]
[null,null,null,null,null,null,null,null,null,null,null,null,null,null,null,null,null,null,null,null,null,null,null,null,null,null,null,null,null,null,null,null,null,null,null,null,null,null,null,null,null,null,null,null,null,null,null,null,null,null,null,null,null,null,null,null,null,null,null,null,null,null,null,null,null,null,null,null,null,null,null,null,null,null,null,null,null,null,null,null,null,null,null,null,null,null,null,null,null,null,null,null,null,null,null,null,null,null,null,null,null,null,null,null,null,null,null,null,null,null,null,null,null,null,null,null,null,null,null,null,null,"Тюменская область",null,null,null,null,26460985,"АО \"ЮТЭК-Региональные сети\"","8601033125","860101001","1078601003788","2007-10-10",null,null,null,"РСО","/Электроэнергетика/Передача ЭЭ/РСО",null,"Y"]
[null,null,null,null,null,null,null,null,null,null,null,null,null,null,null,null,null,null,null,null,null,null,null,null,null,null,null,null,null,null,null,null,null,null,null,null,null,null,null,null,null,null,null,null,null,null,null,null,null,null,null,null,null,null,null,null,null,null,null,null,null,null,null,null,null,null,null,null,null,null,null,null,null,null,null,null,null,null,null,null,null,null,null,null,null,null,null,null,null,null,null,null,null,null,null,null,null,null,null,null,null,null,null,null,null,null,null,null,null,null,null,null,null,null,null,null,null,null,null,null,null,"Тюменская область",null,null,null,null,26318623,"АО \"Югорская энергетическая компания децентрализованной зоны\" (АО \"Юграэнерго\")","8601029263","860101001","1068601011511","2008-08-13",null,null,null,"Некомбинированная выработка","/Электроэнергетика/Производство ЭЭ/Некомбинированная выработка",null,"Y"]
[null,null,null,null,null,null,null,null,null,null,null,null,null,null,null,null,null,null,null,null,null,null,null,null,null,null,null,null,null,null,null,null,null,null,null,null,null,null,null,null,null,null,null,null,null,null,null,null,null,null,null,null,null,null,null,null,null,null,null,null,null,null,null,null,null,null,null,null,null,null,null,null,null,null,null,null,null,null,null,null,null,null,null,null,null,null,null,null,null,null,null,null,null,null,null,null,null,null,null,null,null,null,null,null,null,null,null,null,null,null,null,null,null,null,null,null,null,null,null,null,null,"Тюменская область",null,null,null,null,28856006,"АО \"Юграавиа\"","8601053210","860101001","1148601002109",null,null,null,null,"РСО","/Электроэнергетика/Передача ЭЭ/РСО",null,"Y"]
[null,null,null,null,null,null,null,null,null,null,null,null,null,null,null,null,null,null,null,null,null,null,null,null,null,null,null,null,null,null,null,null,null,null,null,null,null,null,null,null,null,null,null,null,null,null,null,null,null,null,null,null,null,null,null,null,null,null,null,null,null,null,null,null,null,null,null,null,null,null,null,null,null,null,null,null,null,null,null,null,null,null,null,null,null,null,null,null,null,null,null,null,null,null,null,null,null,null,null,null,null,null,null,null,null,null,null,null,null,null,null,null,null,null,null,null,null,null,null,null,null,"Тюменская область",null,null,null,null,31077321,"АО АРКТИКГАЗ","8904056643","890401001","1088900000452","2008-04-18",null,null,null,"Некомбинированная выработка","/Электроэнергетика/Производство ЭЭ/Некомбинированная выработка",null,"Y"]
[null,null,null,null,null,null,null,null,null,null,null,null,null,null,null,null,null,null,null,null,null,null,null,null,null,null,null,null,null,null,null,null,null,null,null,null,null,null,null,null,null,null,null,null,null,null,null,null,null,null,null,null,null,null,null,null,null,null,null,null,null,null,null,null,null,null,null,null,null,null,null,null,null,null,null,null,null,null,null,null,null,null,null,null,null,null,null,null,null,null,null,null,null,null,null,null,null,null,null,null,null,null,null,null,null,null,null,null,null,null,null,null,null,null,null,null,null,null,null,null,null,"Тюменская область",null,null,null,null,26360358,"АО Нижневартовская ГРЭС","8620018330","785150001","1078603011321","2007-12-10",null,null,null,"Комбинированная выработка","/Электроэнергетика/Производство ЭЭ/Комбинированная выработка",null,"Y"]
[null,null,null,null,null,null,null,null,null,null,null,null,null,null,null,null,null,null,null,null,null,null,null,null,null,null,null,null,null,null,null,null,null,null,null,null,null,null,null,null,null,null,null,null,null,null,null,null,null,null,null,null,null,null,null,null,null,null,null,null,null,null,null,null,null,null,null,null,null,null,null,null,null,null,null,null,null,null,null,null,null,null,null,null,null,null,null,null,null,null,null,null,null,null,null,null,null,null,null,null,null,null,null,null,null,null,null,null,null,null,null,null,null,null,null,null,null,null,null,null,null,"Тюменская область",null,null,null,null,27331297,"Акционерное общество \"Оборонэнерго\" - филиал \"Уральский\"","7704726225","667243001","1097746264230",null,null,null,null,"РСО","/Электроэнергетика/Передача ЭЭ/РСО",null,"Y"]
[null,null,null,null,null,null,null,null,null,null,null,null,null,null,null,null,null,null,null,null,null,null,null,null,null,null,null,null,null,null,null,null,null,null,null,null,null,null,null,null,null,null,null,null,null,null,null,null,null,null,null,null,null,null,null,null,null,null,null,null,null,null,null,null,null,null,null,null,null,null,null,null,null,null,null,null,null,null,null,null,null,null,null,null,null,null,null,null,null,null,null,null,null,null,null,null,null,null,null,null,null,null,null,null,null,null,null,null,null,null,null,null,null,null,null,null,null,null,null,null,null,"Тюменская область",null,null,null,null,26516002,"Акционерное общество \"Энергопромышленная компания\", г. Екатеринбург","6661105959","667101001","1026605226053",null,null,null,null,"Нерегулируемый сбыт","/Электроэнергетика/Сбыт ЭЭ/Нерегулируемый сбыт",null,"Y"]
[null,null,null,null,null,null,null,null,null,null,null,null,null,null,null,null,null,null,null,null,null,null,null,null,null,null,null,null,null,null,null,null,null,null,null,null,null,null,null,null,null,null,null,null,null,null,null,null,null,null,null,null,null,null,null,null,null,null,null,null,null,null,null,null,null,null,null,null,null,null,null,null,null,null,null,null,null,null,null,null,null,null,null,null,null,null,null,null,null,null,null,null,null,null,null,null,null,null,null,null,null,null,null,null,null,null,null,null,null,null,null,null,null,null,null,null,null,null,null,null,null,"Тюменская область",null,null,null,null,26826107,"Блокстанции ТЭ","7200000000","720000001","отсутствует",null,null,null,null,"Некомбинированная выработка","/Электроэнергетика/Производство ЭЭ/Некомбинированная выработка",null,"Y"]
[null,null,null,null,null,null,null,null,null,null,null,null,null,null,null,null,null,null,null,null,null,null,null,null,null,null,null,null,null,null,null,null,null,null,null,null,null,null,null,null,null,null,null,null,null,null,null,null,null,null,null,null,null,null,null,null,null,null,null,null,null,null,null,null,null,null,null,null,null,null,null,null,null,null,null,null,null,null,null,null,null,null,null,null,null,null,null,null,null,null,null,null,null,null,null,null,null,null,null,null,null,null,null,null,null,null,null,null,null,null,null,null,null,null,null,null,null,null,null,null,null,"Тюменская область",null,null,null,null,26320019,"ЗАО \" Тюменский приборостроительный завод\"","7203000841","720301001","1027200797403",null,null,null,null,"РСО","/Электроэнергетика/Передача ЭЭ/РСО",null,"Y"]
[null,null,null,null,null,null,null,null,null,null,null,null,null,null,null,null,null,null,null,null,null,null,null,null,null,null,null,null,null,null,null,null,null,null,null,null,null,null,null,null,null,null,null,null,null,null,null,null,null,null,null,null,null,null,null,null,null,null,null,null,null,null,null,null,null,null,null,null,null,null,null,null,null,null,null,null,null,null,null,null,null,null,null,null,null,null,null,null,null,null,null,null,null,null,null,null,null,null,null,null,null,null,null,null,null,null,null,null,null,null,null,null,null,null,null,null,null,null,null,null,null,"Тюменская область",null,null,null,null,26810875,"ЗАО \"Завод \"Сантехкомплект\"","7203039648","720301001","1027200864943","2011-04-18",null,null,null,"Комбинированная выработка","/Электроэнергетика/Производство ЭЭ/Комбинированная выработка",null,"Y"]
[null,null,null,null,null,null,null,null,null,null,null,null,null,null,null,null,null,null,null,null,null,null,null,null,null,null,null,null,null,null,null,null,null,null,null,null,null,null,null,null,null,null,null,null,null,null,null,null,null,null,null,null,null,null,null,null,null,null,null,null,null,null,null,null,null,null,null,null,null,null,null,null,null,null,null,null,null,null,null,null,null,null,null,null,null,null,null,null,null,null,null,null,null,null,null,null,null,null,null,null,null,null,null,null,null,null,null,null,null,null,null,null,null,null,null,null,null,null,null,null,null,"Тюменская область",null,null,null,null,27623111,"ЗАО \"Завод Тюменьремдормаш\"","7204005867","722401001","1027200836288","1996-12-19",null,null,null,"РСО","/Электроэнергетика/Передача ЭЭ/РСО",null,"Y"]
[null,null,null,null,null,null,null,null,null,null,null,null,null,null,null,null,null,null,null,null,null,null,null,null,null,null,null,null,null,null,null,null,null,null,null,null,null,null,null,null,null,null,null,null,null,null,null,null,null,null,null,null,null,null,null,null,null,null,null,null,null,null,null,null,null,null,null,null,null,null,null,null,null,null,null,null,null,null,null,null,null,null,null,null,null,null,null,null,null,null,null,null,null,null,null,null,null,null,null,null,null,null,null,null,null,null,null,null,null,null,null,null,null,null,null,null,null,null,null,null,null,"Тюменская область",null,null,null,null,26375344,"МУП \"Байкаловский ККП\"","7223000825","720601001","1027201296572","2000-06-19",null,null,null,"Некомбинированная выработка","/Электроэнергетика/Производство ЭЭ/Некомбинированная выработка",null,"Y"]
[null,null,null,null,null,null,null,null,null,null,null,null,null,null,null,null,null,null,null,null,null,null,null,null,null,null,null,null,null,null,null,null,null,null,null,null,null,null,null,null,null,null,null,null,null,null,null,null,null,null,null,null,null,null,null,null,null,null,null,null,null,null,null,null,null,null,null,null,null,null,null,null,null,null,null,null,null,null,null,null,null,null,null,null,null,null,null,null,null,null,null,null,null,null,null,null,null,null,null,null,null,null,null,null,null,null,null,null,null,null,null,null,null,null,null,null,null,null,null,null,null,"Тюменская область",null,null,null,null,26640789,"МУП \"Надымские городские электрические сети\"","8903030850","890301001","1108903000910","2010-10-12",null,null,null,"РСО","/Электроэнергетика/Передача ЭЭ/РСО",null,"Y"]
[null,null,null,null,null,null,null,null,null,null,null,null,null,null,null,null,null,null,null,null,null,null,null,null,null,null,null,null,null,null,null,null,null,null,null,null,null,null,null,null,null,null,null,null,null,null,null,null,null,null,null,null,null,null,null,null,null,null,null,null,null,null,null,null,null,null,null,null,null,null,null,null,null,null,null,null,null,null,null,null,null,null,null,null,null,null,null,null,null,null,null,null,null,null,null,null,null,null,null,null,null,null,null,null,null,null,null,null,null,null,null,null,null,null,null,null,null,null,null,null,null,"Тюменская область",null,null,null,null,26508466,"МУП \"Сургутские районные электрические сети\" МО Сургутский район","8617017320","861701001","1028601680645","2002-04-27",null,null,null,"РСО","/Электроэнергетика/Передача ЭЭ/РСО",null,"Y"]
[null,null,null,null,null,null,null,null,null,null,null,null,null,null,null,null,null,null,null,null,null,null,null,null,null,null,null,null,null,null,null,null,null,null,null,null,null,null,null,null,null,null,null,null,null,null,null,null,null,null,null,null,null,null,null,null,null,null,null,null,null,null,null,null,null,null,null,null,null,null,null,null,null,null,null,null,null,null,null,null,null,null,null,null,null,null,null,null,null,null,null,null,null,null,null,null,null,null,null,null,null,null,null,null,null,null,null,null,null,null,null,null,null,null,null,null,null,null,null,null,null,"Тюменская область",null,null,null,null,28496726,"ОАО \"РН-НЯГАНЬНЕФТЕГАЗ\"","8610010727","861001001","1028601496725","2002-09-26",null,null,null,"РСО","/Электроэнергетика/Передача ЭЭ/РСО",null,"Y"]
[null,null,null,null,null,null,null,null,null,null,null,null,null,null,null,null,null,null,null,null,null,null,null,null,null,null,null,null,null,null,null,null,null,null,null,null,null,null,null,null,null,null,null,null,null,null,null,null,null,null,null,null,null,null,null,null,null,null,null,null,null,null,null,null,null,null,null,null,null,null,null,null,null,null,null,null,null,null,null,null,null,null,null,null,null,null,null,null,null,null,null,null,null,null,null,null,null,null,null,null,null,null,null,null,null,null,null,null,null,null,null,null,null,null,null,null,null,null,null,null,null,"Тюменская область",null,null,null,null,26535127,"ОАО \"ТНК-Нягань\"","8610010727","997150001","1028601496725",null,null,null,null,"РСО :: Комбинированная выработка :: Некомбинированная выработка","/Электроэнергетика/Передача ЭЭ/РСО :: /Электроэнергетика/Производство ЭЭ/Комбинированная выработка :: /Электроэнергетика/Производство ЭЭ/Некомбинированная выработка",null,"Y"]
[null,null,null,null,null,null,null,null,null,null,null,null,null,null,null,null,null,null,null,null,null,null,null,null,null,null,null,null,null,null,null,null,null,null,null,null,null,null,null,null,null,null,null,null,null,null,null,null,null,null,null,null,null,null,null,null,null,null,null,null,null,null,null,null,null,null,null,null,null,null,null,null,null,null,null,null,null,null,null,null,null,null,null,null,null,null,null,null,null,null,null,null,null,null,null,null,null,null,null,null,null,null,null,null,null,null,null,null,null,null,null,null,null,null,null,null,null,null,null,null,null,"Тюменская область",null,null,null,null,27094684,"ОАО «ЭСК РусГидро»","7804403972","772801001","1089848039973",null,null,null,null,"Нерегулируемый сбыт","/Электроэнергетика/Сбыт ЭЭ/Нерегулируемый сбыт",null,"Y"]
[null,null,null,null,null,null,null,null,null,null,null,null,null,null,null,null,null,null,null,null,null,null,null,null,null,null,null,null,null,null,null,null,null,null,null,null,null,null,null,null,null,null,null,null,null,null,null,null,null,null,null,null,null,null,null,null,null,null,null,null,null,null,null,null,null,null,null,null,null,null,null,null,null,null,null,null,null,null,null,null,null,null,null,null,null,null,null,null,null,null,null,null,null,null,null,null,null,null,null,null,null,null,null,null,null,null,null,null,null,null,null,null,null,null,null,null,null,null,null,null,null,"Тюменская область",null,null,null,null,26320027,"ОАО ТТК \"КРОСНО\"","7203001250","720301001","1027200806720",null,null,null,null,"РСО","/Электроэнергетика/Передача ЭЭ/РСО",null,"Y"]
[null,null,null,null,null,null,null,null,null,null,null,null,null,null,null,null,null,null,null,null,null,null,null,null,null,null,null,null,null,null,null,null,null,null,null,null,null,null,null,null,null,null,null,null,null,null,null,null,null,null,null,null,null,null,null,null,null,null,null,null,null,null,null,null,null,null,null,null,null,null,null,null,null,null,null,null,null,null,null,null,null,null,null,null,null,null,null,null,null,null,null,null,null,null,null,null,null,null,null,null,null,null,null,null,null,null,null,null,null,null,null,null,null,null,null,null,null,null,null,null,null,"Тюменская область",null,null,null,null,31304593,"ООО \"АГГРЕКО ЕВРАЗИЯ\"","7705838531","720301001","1087746507386","2008-04-14",null,null,null,"Нерегулируемый сбыт","/Электроэнергетика/Сбыт ЭЭ/Нерегулируемый сбыт",null,"Y"]
[null,null,null,null,null,null,null,null,null,null,null,null,null,null,null,null,null,null,null,null,null,null,null,null,null,null,null,null,null,null,null,null,null,null,null,null,null,null,null,null,null,null,null,null,null,null,null,null,null,null,null,null,null,null,null,null,null,null,null,null,null,null,null,null,null,null,null,null,null,null,null,null,null,null,null,null,null,null,null,null,null,null,null,null,null,null,null,null,null,null,null,null,null,null,null,null,null,null,null,null,null,null,null,null,null,null,null,null,null,null,null,null,null,null,null,null,null,null,null,null,null,"Тюменская область",null,null,null,null,28130329,"ООО \"Агентство Интеллект-Сервис\"","7202082778","720301001","1037200562200","2003-01-22",null,null,null,"РСО","/Электроэнергетика/Передача ЭЭ/РСО",null,"Y"]
[null,null,null,null,null,null,null,null,null,null,null,null,null,null,null,null,null,null,null,null,null,null,null,null,null,null,null,null,null,null,null,null,null,null,null,null,null,null,null,null,null,null,null,null,null,null,null,null,null,null,null,null,null,null,null,null,null,null,null,null,null,null,null,null,null,null,null,null,null,null,null,null,null,null,null,null,null,null,null,null,null,null,null,null,null,null,null,null,null,null,null,null,null,null,null,null,null,null,null,null,null,null,null,null,null,null,null,null,null,null,null,null,null,null,null,null,null,null,null,null,null,"Тюменская область",null,null,null,null,26320034,"ООО \"Агропромэнергия\"","7224014468","722401001","1027200866428","2001-01-29",null,null,null,"РСО","/Электроэнергетика/Передача ЭЭ/РСО",null,"Y"]
[null,null,null,null,null,null,null,null,null,null,null,null,null,null,null,null,null,null,null,null,null,null,null,null,null,null,null,null,null,null,null,null,null,null,null,null,null,null,null,null,null,null,null,null,null,null,null,null,null,null,null,null,null,null,null,null,null,null,null,null,null,null,null,null,null,null,null,null,null,null,null,null,null,null,null,null,null,null,null,null,null,null,null,null,null,null,null,null,null,null,null,null,null,null,null,null,null,null,null,null,null,null,null,null,null,null,null,null,null,null,null,null,null,null,null,null,null,null,null,null,null,"Тюменская область",null,null,null,null,31304588,"ООО \"Альянс-Энергджи\" Стрежевской филиал","7709843116","770401001","1097746758163","2009-11-28",null,null,null,"Нерегулируемый сбыт","/Электроэнергетика/Сбыт ЭЭ/Нерегулируемый сбыт",null,"Y"]
[null,null,null,null,null,null,null,null,null,null,null,null,null,null,null,null,null,null,null,null,null,null,null,null,null,null,null,null,null,null,null,null,null,null,null,null,null,null,null,null,null,null,null,null,null,null,null,null,null,null,null,null,null,null,null,null,null,null,null,null,null,null,null,null,null,null,null,null,null,null,null,null,null,null,null,null,null,null,null,null,null,null,null,null,null,null,null,null,null,null,null,null,null,null,null,null,null,null,null,null,null,null,null,null,null,null,null,null,null,null,null,null,null,null,null,null,null,null,null,null,null,"Тюменская область",null,null,null,null,26318820,"ООО \"АтомЭнергоСбыт Бизнес\"","4633017746","772501001","1064633003038",null,null,null,null,"Нерегулируемый сбыт","/Электроэнергетика/Сбыт ЭЭ/Нерегулируемый сбыт",null,"Y"]
[null,null,null,null,null,null,null,null,null,null,null,null,null,null,null,null,null,null,null,null,null,null,null,null,null,null,null,null,null,null,null,null,null,null,null,null,null,null,null,null,null,null,null,null,null,null,null,null,null,null,null,null,null,null,null,null,null,null,null,null,null,null,null,null,null,null,null,null,null,null,null,null,null,null,null,null,null,null,null,null,null,null,null,null,null,null,null,null,null,null,null,null,null,null,null,null,null,null,null,null,null,null,null,null,null,null,null,null,null,null,null,null,null,null,null,null,null,null,null,null,null,"Тюменская область",null,null,null,null,26361261,"ООО \"Аэропорт Советский\"","8615001243","861501001","1028601844204","1999-06-23",null,null,null,"РСО","/Электроэнергетика/Передача ЭЭ/РСО",null,"Y"]
[null,null,null,null,null,null,null,null,null,null,null,null,null,null,null,null,null,null,null,null,null,null,null,null,null,null,null,null,null,null,null,null,null,null,null,null,null,null,null,null,null,null,null,null,null,null,null,null,null,null,null,null,null,null,null,null,null,null,null,null,null,null,null,null,null,null,null,null,null,null,null,null,null,null,null,null,null,null,null,null,null,null,null,null,null,null,null,null,null,null,null,null,null,null,null,null,null,null,null,null,null,null,null,null,null,null,null,null,null,null,null,null,null,null,null,null,null,null,null,null,null,"Тюменская область",null,null,null,null,30942075,"ООО \"Башнефть-Добыча\"","0277106840","025250001","1090280032699","2018-01-01",null,null,null,"Некомбинированная выработка","/Электроэнергетика/Производство ЭЭ/Некомбинированная выработка",null,"Y"]
[null,null,null,null,null,null,null,null,null,null,null,null,null,null,null,null,null,null,null,null,null,null,null,null,null,null,null,null,null,null,null,null,null,null,null,null,null,null,null,null,null,null,null,null,null,null,null,null,null,null,null,null,null,null,null,null,null,null,null,null,null,null,null,null,null,null,null,null,null,null,null,null,null,null,null,null,null,null,null,null,null,null,null,null,null,null,null,null,null,null,null,null,null,null,null,null,null,null,null,null,null,null,null,null,null,null,null,null,null,null,null,null,null,null,null,null,null,null,null,null,null,"Тюменская область",null,null,null,null,30942075,"ООО \"Башнефть-Добыча\"","0277106840","025250001","1090280032699","2018-01-01",null,null,null,"РСО","/Электроэнергетика/Передача ЭЭ/РСО",null,"Y"]
[null,null,null,null,null,null,null,null,null,null,null,null,null,null,null,null,null,null,null,null,null,null,null,null,null,null,null,null,null,null,null,null,null,null,null,null,null,null,null,null,null,null,null,null,null,null,null,null,null,null,null,null,null,null,null,null,null,null,null,null,null,null,null,null,null,null,null,null,null,null,null,null,null,null,null,null,null,null,null,null,null,null,null,null,null,null,null,null,null,null,null,null,null,null,null,null,null,null,null,null,null,null,null,null,null,null,null,null,null,null,null,null,null,null,null,null,null,null,null,null,null,"Тюменская область",null,null,null,null,26583176,"ООО \"Башнефть-Добыча\"","0277106840","027501001","1090280032699",null,null,null,null,"РСО","/Электроэнергетика/Передача ЭЭ/РСО",null,"Y"]
[null,null,null,null,null,null,null,null,null,null,null,null,null,null,null,null,null,null,null,null,null,null,null,null,null,null,null,null,null,null,null,null,null,null,null,null,null,null,null,null,null,null,null,null,null,null,null,null,null,null,null,null,null,null,null,null,null,null,null,null,null,null,null,null,null,null,null,null,null,null,null,null,null,null,null,null,null,null,null,null,null,null,null,null,null,null,null,null,null,null,null,null,null,null,null,null,null,null,null,null,null,null,null,null,null,null,null,null,null,null,null,null,null,null,null,null,null,null,null,null,null,"Тюменская область",null,null,null,null,26405755,"ООО \"Газпром добыча Уренгой\"","8904034784","997250001","1028900628932",null,null,null,null,"РСО :: Комбинированная выработка :: Некомбинированная выработка","/Электроэнергетика/Передача ЭЭ/РСО :: /Электроэнергетика/Производство ЭЭ/Комбинированная выработка :: /Электроэнергетика/Производство ЭЭ/Некомбинированная выработка",null,"Y"]
[null,null,null,null,null,null,null,null,null,null,null,null,null,null,null,null,null,null,null,null,null,null,null,null,null,null,null,null,null,null,null,null,null,null,null,null,null,null,null,null,null,null,null,null,null,null,null,null,null,null,null,null,null,null,null,null,null,null,null,null,null,null,null,null,null,null,null,null,null,null,null,null,null,null,null,null,null,null,null,null,null,null,null,null,null,null,null,null,null,null,null,null,null,null,null,null,null,null,null,null,null,null,null,null,null,null,null,null,null,null,null,null,null,null,null,null,null,null,null,null,null,"Тюменская область",null,null,null,null,26405779,"ООО \"Газпром добыча Ямбург\" Филиал \"Ямбурское районное энергетическое управление\"","8904034777","890401001","1028900624576",null,null,null,null,"Нерегулируемый сбыт","/Электроэнергетика/Сбыт ЭЭ/Нерегулируемый сбыт",null,"Y"]
[null,null,null,null,null,null,null,null,null,null,null,null,null,null,null,null,null,null,null,null,null,null,null,null,null,null,null,null,null,null,null,null,null,null,null,null,null,null,null,null,null,null,null,null,null,null,null,null,null,null,null,null,null,null,null,null,null,null,null,null,null,null,null,null,null,null,null,null,null,null,null,null,null,null,null,null,null,null,null,null,null,null,null,null,null,null,null,null,null,null,null,null,null,null,null,null,null,null,null,null,null,null,null,null,null,null,null,null,null,null,null,null,null,null,null,null,null,null,null,null,null,"Тюменская область",null,null,null,null,26405779,"ООО \"Газпром добыча Ямбург\" Филиал \"Ямбурское районное энергетическое управление\"","8904034777","890401001","1028900624576",null,null,null,null,"Комбинированная выработка :: Некомбинированная выработка","/Электроэнергетика/Производство ЭЭ/Комбинированная выработка :: /Электроэнергетика/Производство ЭЭ/Некомбинированная выработка",null,"Y"]
[null,null,null,null,null,null,null,null,null,null,null,null,null,null,null,null,null,null,null,null,null,null,null,null,null,null,null,null,null,null,null,null,null,null,null,null,null,null,null,null,null,null,null,null,null,null,null,null,null,null,null,null,null,null,null,null,null,null,null,null,null,null,null,null,null,null,null,null,null,null,null,null,null,null,null,null,null,null,null,null,null,null,null,null,null,null,null,null,null,null,null,null,null,null,null,null,null,null,null,null,null,null,null,null,null,null,null,null,null,null,null,null,null,null,null,null,null,null,null,null,null,"Тюменская область",null,null,null,null,26576140,"ООО \"Газпром трансгаз Сургут\"","8617002073","997250001","1028601679314","2002-01-30",null,null,null,"РСО","/Электроэнергетика/Передача ЭЭ/РСО",null,"Y"]
[null,null,null,null,null,null,null,null,null,null,null,null,null,null,null,null,null,null,null,null,null,null,null,null,null,null,null,null,null,null,null,null,null,null,null,null,null,null,null,null,null,null,null,null,null,null,null,null,null,null,null,null,null,null,null,null,null,null,null,null,null,null,null,null,null,null,null,null,null,null,null,null,null,null,null,null,null,null,null,null,null,null,null,null,null,null,null,null,null,null,null,null,null,null,null,null,null,null,null,null,null,null,null,null,null,null,null,null,null,null,null,null,null,null,null,null,null,null,null,null,null,"Тюменская область",null,null,null,null,27753656,"ООО \"Газпром трансгаз Сургут\" Демьянское ЛПУ МГ","8617002073","722503003","1028601679314",null,null,null,null,"РСО","/Электроэнергетика/Передача ЭЭ/РСО",null,"Y"]
[null,null,null,null,null,null,null,null,null,null,null,null,null,null,null,null,null,null,null,null,null,null,null,null,null,null,null,null,null,null,null,null,null,null,null,null,null,null,null,null,null,null,null,null,null,null,null,null,null,null,null,null,null,null,null,null,null,null,null,null,null,null,null,null,null,null,null,null,null,null,null,null,null,null,null,null,null,null,null,null,null,null,null,null,null,null,null,null,null,null,null,null,null,null,null,null,null,null,null,null,null,null,null,null,null,null,null,null,null,null,null,null,null,null,null,null,null,null,null,null,null,"Тюменская область",null,null,null,null,27753726,"ООО \"Газпром трансгаз Сургут\" Ишимское ЛПУ МГ","8617002073","720503001","1028601679314",null,null,null,null,"РСО","/Электроэнергетика/Передача ЭЭ/РСО",null,"Y"]
[null,null,null,null,null,null,null,null,null,null,null,null,null,null,null,null,null,null,null,null,null,null,null,null,null,null,null,null,null,null,null,null,null,null,null,null,null,null,null,null,null,null,null,null,null,null,null,null,null,null,null,null,null,null,null,null,null,null,null,null,null,null,null,null,null,null,null,null,null,null,null,null,null,null,null,null,null,null,null,null,null,null,null,null,null,null,null,null,null,null,null,null,null,null,null,null,null,null,null,null,null,null,null,null,null,null,null,null,null,null,null,null,null,null,null,null,null,null,null,null,null,"Тюменская область",null,null,null,null,27753711,"ООО \"Газпром трансгаз Сургут\" Тобольское ЛПУ МГ","8617002073","720603002","1028601679314",null,null,null,null,"РСО","/Электроэнергетика/Передача ЭЭ/РСО",null,"Y"]
[null,null,null,null,null,null,null,null,null,null,null,null,null,null,null,null,null,null,null,null,null,null,null,null,null,null,null,null,null,null,null,null,null,null,null,null,null,null,null,null,null,null,null,null,null,null,null,null,null,null,null,null,null,null,null,null,null,null,null,null,null,null,null,null,null,null,null,null,null,null,null,null,null,null,null,null,null,null,null,null,null,null,null,null,null,null,null,null,null,null,null,null,null,null,null,null,null,null,null,null,null,null,null,null,null,null,null,null,null,null,null,null,null,null,null,null,null,null,null,null,null,"Тюменская область",null,null,null,null,27753688,"ООО \"Газпром трансгаз Сургут\" Туртасское ЛПУ МГ","8617002073","722503004","1028601679314",null,null,null,null,"РСО","/Электроэнергетика/Передача ЭЭ/РСО",null,"Y"]
[null,null,null,null,null,null,null,null,null,null,null,null,null,null,null,null,null,null,null,null,null,null,null,null,null,null,null,null,null,null,null,null,null,null,null,null,null,null,null,null,null,null,null,null,null,null,null,null,null,null,null,null,null,null,null,null,null,null,null,null,null,null,null,null,null,null,null,null,null,null,null,null,null,null,null,null,null,null,null,null,null,null,null,null,null,null,null,null,null,null,null,null,null,null,null,null,null,null,null,null,null,null,null,null,null,null,null,null,null,null,null,null,null,null,null,null,null,null,null,null,null,"Тюменская область",null,null,null,null,27753714,"ООО \"Газпром трансгаз Сургут\" Ярковское ЛПУ МГ","8617002073","722943001","1028601679314",null,null,null,null,"РСО","/Электроэнергетика/Передача ЭЭ/РСО",null,"Y"]
[null,null,null,null,null,null,null,null,null,null,null,null,null,null,null,null,null,null,null,null,null,null,null,null,null,null,null,null,null,null,null,null,null,null,null,null,null,null,null,null,null,null,null,null,null,null,null,null,null,null,null,null,null,null,null,null,null,null,null,null,null,null,null,null,null,null,null,null,null,null,null,null,null,null,null,null,null,null,null,null,null,null,null,null,null,null,null,null,null,null,null,null,null,null,null,null,null,null,null,null,null,null,null,null,null,null,null,null,null,null,null,null,null,null,null,null,null,null,null,null,null,"Тюменская область",null,null,null,null,26813772,"ООО \"Газпром энергосбыт Брянск\"","8602173527","785150001","1108602007557","2010-10-06",null,null,null,"Нерегулируемый сбыт","/Электроэнергетика/Сбыт ЭЭ/Нерегулируемый сбыт",null,"Y"]
[null,null,null,null,null,null,null,null,null,null,null,null,null,null,null,null,null,null,null,null,null,null,null,null,null,null,null,null,null,null,null,null,null,null,null,null,null,null,null,null,null,null,null,null,null,null,null,null,null,null,null,null,null,null,null,null,null,null,null,null,null,null,null,null,null,null,null,null,null,null,null,null,null,null,null,null,null,null,null,null,null,null,null,null,null,null,null,null,null,null,null,null,null,null,null,null,null,null,null,null,null,null,null,null,null,null,null,null,null,null,null,null,null,null,null,null,null,null,null,null,null,"Тюменская область",null,null,null,null,26405781,"ООО \"Газпромнефть Энергосистемы\"","8905032490","890501001","1038900945973","2003-12-01",null,null,null,"РСО","/Электроэнергетика/Передача ЭЭ/РСО",null,"Y"]
[null,null,null,null,null,null,null,null,null,null,null,null,null,null,null,null,null,null,null,null,null,null,null,null,null,null,null,null,null,null,null,null,null,null,null,null,null,null,null,null,null,null,null,null,null,null,null,null,null,null,null,null,null,null,null,null,null,null,null,null,null,null,null,null,null,null,null,null,null,null,null,null,null,null,null,null,null,null,null,null,null,null,null,null,null,null,null,null,null,null,null,null,null,null,null,null,null,null,null,null,null,null,null,null,null,null,null,null,null,null,null,null,null,null,null,null,null,null,null,null,null,"Тюменская область",null,null,null,null,26637532,"ООО \"Газпромнефть-Хантос\"","8618006063","997250001","1058600001118","2015-02-09",null,null,null,"РСО","/Электроэнергетика/Передача ЭЭ/РСО",null,"Y"]
[null,null,null,null,null,null,null,null,null,null,null,null,null,null,null,null,null,null,null,null,null,null,null,null,null,null,null,null,null,null,null,null,null,null,null,null,null,null,null,null,null,null,null,null,null,null,null,null,null,null,null,null,null,null,null,null,null,null,null,null,null,null,null,null,null,null,null,null,null,null,null,null,null,null,null,null,null,null,null,null,null,null,null,null,null,null,null,null,null,null,null,null,null,null,null,null,null,null,null,null,null,null,null,null,null,null,null,null,null,null,null,null,null,null,null,null,null,null,null,null,null,"Тюменская область",null,null,null,null,26637532,"ООО \"Газпромнефть-Хантос\"","8618006063","997250001","1058600001118","2015-02-09",null,null,null,"Некомбинированная выработка","/Электроэнергетика/Производство ЭЭ/Некомбинированная выработка",null,"Y"]
[null,null,null,null,null,null,null,null,null,null,null,null,null,null,null,null,null,null,null,null,null,null,null,null,null,null,null,null,null,null,null,null,null,null,null,null,null,null,null,null,null,null,null,null,null,null,null,null,null,null,null,null,null,null,null,null,null,null,null,null,null,null,null,null,null,null,null,null,null,null,null,null,null,null,null,null,null,null,null,null,null,null,null,null,null,null,null,null,null,null,null,null,null,null,null,null,null,null,null,null,null,null,null,null,null,null,null,null,null,null,null,null,null,null,null,null,null,null,null,null,null,"Тюменская область",null,null,null,null,26613700,"ООО \"Гарант Энерго\"","7709782777","770901001","1087746321827",null,null,null,null,"Нерегулируемый сбыт","/Электроэнергетика/Сбыт ЭЭ/Нерегулируемый сбыт",null,"Y"]
[null,null,null,null,null,null,null,null,null,null,null,null,null,null,null,null,null,null,null,null,null,null,null,null,null,null,null,null,null,null,null,null,null,null,null,null,null,null,null,null,null,null,null,null,null,null,null,null,null,null,null,null,null,null,null,null,null,null,null,null,null,null,null,null,null,null,null,null,null,null,null,null,null,null,null,null,null,null,null,null,null,null,null,null,null,null,null,null,null,null,null,null,null,null,null,null,null,null,null,null,null,null,null,null,null,null,null,null,null,null,null,null,null,null,null,null,null,null,null,null,null,"Тюменская область",null,null,null,null,31550222,"ООО \"Городские электрические сети\"","8601070751","860101001","1218600000244","2021-01-14",null,null,null,"ГП","/Электроэнергетика/Сбыт ЭЭ/ГП",null,"Y"]
[null,null,null,null,null,null,null,null,null,null,null,null,null,null,null,null,null,null,null,null,null,null,null,null,null,null,null,null,null,null,null,null,null,null,null,null,null,null,null,null,null,null,null,null,null,null,null,null,null,null,null,null,null,null,null,null,null,null,null,null,null,null,null,null,null,null,null,null,null,null,null,null,null,null,null,null,null,null,null,null,null,null,null,null,null,null,null,null,null,null,null,null,null,null,null,null,null,null,null,null,null,null,null,null,null,null,null,null,null,null,null,null,null,null,null,null,null,null,null,null,null,"Тюменская область",null,null,null,null,26320028,"ООО \"ДСК-Энерго\"","7203144385","720301001","1047200559405","2004-02-17",null,null,null,"РСО","/Электроэнергетика/Передача ЭЭ/РСО",null,"Y"]
[null,null,null,null,null,null,null,null,null,null,null,null,null,null,null,null,null,null,null,null,null,null,null,null,null,null,null,null,null,null,null,null,null,null,null,null,null,null,null,null,null,null,null,null,null,null,null,null,null,null,null,null,null,null,null,null,null,null,null,null,null,null,null,null,null,null,null,null,null,null,null,null,null,null,null,null,null,null,null,null,null,null,null,null,null,null,null,null,null,null,null,null,null,null,null,null,null,null,null,null,null,null,null,null,null,null,null,null,null,null,null,null,null,null,null,null,null,null,null,null,null,"Тюменская область",null,null,null,null,30433542,"ООО \"Дорстрой\"","7204080494","720301001","1037200650937","2003-11-13",null,null,null,"РСО","/Электроэнергетика/Передача ЭЭ/РСО",null,"Y"]
[null,null,null,null,null,null,null,null,null,null,null,null,null,null,null,null,null,null,null,null,null,null,null,null,null,null,null,null,null,null,null,null,null,null,null,null,null,null,null,null,null,null,null,null,null,null,null,null,null,null,null,null,null,null,null,null,null,null,null,null,null,null,null,null,null,null,null,null,null,null,null,null,null,null,null,null,null,null,null,null,null,null,null,null,null,null,null,null,null,null,null,null,null,null,null,null,null,null,null,null,null,null,null,null,null,null,null,null,null,null,null,null,null,null,null,null,null,null,null,null,null,"Тюменская область",null,null,null,null,30911713,"ООО \"ЕЭС-Гарант\"","5024173259","502401001","1175024009918","2017-03-01",null,null,null,"Нерегулируемый сбыт","/Электроэнергетика/Сбыт ЭЭ/Нерегулируемый сбыт",null,"Y"]
[null,null,null,null,null,null,null,null,null,null,null,null,null,null,null,null,null,null,null,null,null,null,null,null,null,null,null,null,null,null,null,null,null,null,null,null,null,null,null,null,null,null,null,null,null,null,null,null,null,null,null,null,null,null,null,null,null,null,null,null,null,null,null,null,null,null,null,null,null,null,null,null,null,null,null,null,null,null,null,null,null,null,null,null,null,null,null,null,null,null,null,null,null,null,null,null,null,null,null,null,null,null,null,null,null,null,null,null,null,null,null,null,null,null,null,null,null,null,null,null,null,"Тюменская область",null,null,null,null,31456063,"ООО \"ЗапСибНефтехим\"","1658087524","720601001","1071690035185",null,null,null,null,"Нерегулируемый сбыт","/Электроэнергетика/Сбыт ЭЭ/Нерегулируемый сбыт",null,"Y"]
[null,null,null,null,null,null,null,null,null,null,null,null,null,null,null,null,null,null,null,null,null,null,null,null,null,null,null,null,null,null,null,null,null,null,null,null,null,null,null,null,null,null,null,null,null,null,null,null,null,null,null,null,null,null,null,null,null,null,null,null,null,null,null,null,null,null,null,null,null,null,null,null,null,null,null,null,null,null,null,null,null,null,null,null,null,null,null,null,null,null,null,null,null,null,null,null,null,null,null,null,null,null,null,null,null,null,null,null,null,null,null,null,null,null,null,null,null,null,null,null,null,"Тюменская область",null,null,null,null,31456063,"ООО \"ЗапСибНефтехим\"","1658087524","720601001","1071690035185",null,null,null,null,"Комбинированная выработка","/Электроэнергетика/Производство ЭЭ/Комбинированная выработка",null,"N"]
[null,null,null,null,null,null,null,null,null,null,null,null,null,null,null,null,null,null,null,null,null,null,null,null,null,null,null,null,null,null,null,null,null,null,null,null,null,null,null,null,null,null,null,null,null,null,null,null,null,null,null,null,null,null,null,null,null,null,null,null,null,null,null,null,null,null,null,null,null,null,null,null,null,null,null,null,null,null,null,null,null,null,null,null,null,null,null,null,null,null,null,null,null,null,null,null,null,null,null,null,null,null,null,null,null,null,null,null,null,null,null,null,null,null,null,null,null,null,null,null,null,"Тюменская область",null,null,null,null,26508439,"ООО \"Западно-Малобалыкское\"","8619010665","997150001","1028601789567",null,null,null,null,"РСО :: Комбинированная выработка :: Некомбинированная выработка","/Электроэнергетика/Передача ЭЭ/РСО :: /Электроэнергетика/Производство ЭЭ/Комбинированная выработка :: /Электроэнергетика/Производство ЭЭ/Некомбинированная выработка",null,"Y"]
[null,null,null,null,null,null,null,null,null,null,null,null,null,null,null,null,null,null,null,null,null,null,null,null,null,null,null,null,null,null,null,null,null,null,null,null,null,null,null,null,null,null,null,null,null,null,null,null,null,null,null,null,null,null,null,null,null,null,null,null,null,null,null,null,null,null,null,null,null,null,null,null,null,null,null,null,null,null,null,null,null,null,null,null,null,null,null,null,null,null,null,null,null,null,null,null,null,null,null,null,null,null,null,null,null,null,null,null,null,null,null,null,null,null,null,null,null,null,null,null,null,"Тюменская область",null,null,null,null,28130321,"ООО \"ИНТЕГРУС\"","7202190565","720201001","1087232039949",null,null,null,null,"РСО","/Электроэнергетика/Передача ЭЭ/РСО",null,"Y"]
[null,null,null,null,null,null,null,null,null,null,null,null,null,null,null,null,null,null,null,null,null,null,null,null,null,null,null,null,null,null,null,null,null,null,null,null,null,null,null,null,null,null,null,null,null,null,null,null,null,null,null,null,null,null,null,null,null,null,null,null,null,null,null,null,null,null,null,null,null,null,null,null,null,null,null,null,null,null,null,null,null,null,null,null,null,null,null,null,null,null,null,null,null,null,null,null,null,null,null,null,null,null,null,null,null,null,null,null,null,null,null,null,null,null,null,null,null,null,null,null,null,"Тюменская область",null,null,null,null,26794654,"ООО \"Ижэнергосбыт\"","1834024515","184001001","1021801586762",null,null,null,null,"Нерегулируемый сбыт","/Электроэнергетика/Сбыт ЭЭ/Нерегулируемый сбыт",null,"Y"]
[null,null,null,null,null,null,null,null,null,null,null,null,null,null,null,null,null,null,null,null,null,null,null,null,null,null,null,null,null,null,null,null,null,null,null,null,null,null,null,null,null,null,null,null,null,null,null,null,null,null,null,null,null,null,null,null,null,null,null,null,null,null,null,null,null,null,null,null,null,null,null,null,null,null,null,null,null,null,null,null,null,null,null,null,null,null,null,null,null,null,null,null,null,null,null,null,null,null,null,null,null,null,null,null,null,null,null,null,null,null,null,null,null,null,null,null,null,null,null,null,null,"Тюменская область",null,null,null,null,27855290,"ООО \"Инженерные изыскания\"","1103029229","352801001","1041100670093","2004-01-14",null,null,null,"Нерегулируемый сбыт","/Электроэнергетика/Сбыт ЭЭ/Нерегулируемый сбыт",null,"Y"]
[null,null,null,null,null,null,null,null,null,null,null,null,null,null,null,null,null,null,null,null,null,null,null,null,null,null,null,null,null,null,null,null,null,null,null,null,null,null,null,null,null,null,null,null,null,null,null,null,null,null,null,null,null,null,null,null,null,null,null,null,null,null,null,null,null,null,null,null,null,null,null,null,null,null,null,null,null,null,null,null,null,null,null,null,null,null,null,null,null,null,null,null,null,null,null,null,null,null,null,null,null,null,null,null,null,null,null,null,null,null,null,null,null,null,null,null,null,null,null,null,null,"Тюменская область",null,null,null,null,26804488,"ООО \"КНАУФ ЭНЕРГИЯ\"","7729677594","772901001","1117746197964",null,null,null,null,"Нерегулируемый сбыт","/Электроэнергетика/Сбыт ЭЭ/Нерегулируемый сбыт",null,"Y"]
[null,null,null,null,null,null,null,null,null,null,null,null,null,null,null,null,null,null,null,null,null,null,null,null,null,null,null,null,null,null,null,null,null,null,null,null,null,null,null,null,null,null,null,null,null,null,null,null,null,null,null,null,null,null,null,null,null,null,null,null,null,null,null,null,null,null,null,null,null,null,null,null,null,null,null,null,null,null,null,null,null,null,null,null,null,null,null,null,null,null,null,null,null,null,null,null,null,null,null,null,null,null,null,null,null,null,null,null,null,null,null,null,null,null,null,null,null,null,null,null,null,"Тюменская область",null,null,null,null,31420184,"ООО \"ЛУКОЙЛ-АИК\"","8608059605","860801001","1178617009251","2017-06-01",null,null,null,"Комбинированная выработка :: Некомбинированная выработка","/Электроэнергетика/Производство ЭЭ/Комбинированная выработка :: /Электроэнергетика/Производство ЭЭ/Некомбинированная выработка",null,"Y"]
[null,null,null,null,null,null,null,null,null,null,null,null,null,null,null,null,null,null,null,null,null,null,null,null,null,null,null,null,null,null,null,null,null,null,null,null,null,null,null,null,null,null,null,null,null,null,null,null,null,null,null,null,null,null,null,null,null,null,null,null,null,null,null,null,null,null,null,null,null,null,null,null,null,null,null,null,null,null,null,null,null,null,null,null,null,null,null,null,null,null,null,null,null,null,null,null,null,null,null,null,null,null,null,null,null,null,null,null,null,null,null,null,null,null,null,null,null,null,null,null,null,"Тюменская область",null,null,null,null,26361243,"ООО \"ЛУКОЙЛ-Западная Сибирь\"","8608048498","860602001","1028601441978",null,null,null,null,"Комбинированная выработка :: Некомбинированная выработка","/Электроэнергетика/Производство ЭЭ/Комбинированная выработка :: /Электроэнергетика/Производство ЭЭ/Некомбинированная выработка",null,"Y"]
[null,null,null,null,null,null,null,null,null,null,null,null,null,null,null,null,null,null,null,null,null,null,null,null,null,null,null,null,null,null,null,null,null,null,null,null,null,null,null,null,null,null,null,null,null,null,null,null,null,null,null,null,null,null,null,null,null,null,null,null,null,null,null,null,null,null,null,null,null,null,null,null,null,null,null,null,null,null,null,null,null,null,null,null,null,null,null,null,null,null,null,null,null,null,null,null,null,null,null,null,null,null,null,null,null,null,null,null,null,null,null,null,null,null,null,null,null,null,null,null,null,"Тюменская область",null,null,null,null,26413215,"ООО \"ЛУКОЙЛ-ЭНЕРГОСЕТИ\"","5260230051","525350001","1088607000217",null,null,null,null,"Нерегулируемый сбыт","/Электроэнергетика/Сбыт ЭЭ/Нерегулируемый сбыт",null,"Y"]
[null,null,null,null,null,null,null,null,null,null,null,null,null,null,null,null,null,null,null,null,null,null,null,null,null,null,null,null,null,null,null,null,null,null,null,null,null,null,null,null,null,null,null,null,null,null,null,null,null,null,null,null,null,null,null,null,null,null,null,null,null,null,null,null,null,null,null,null,null,null,null,null,null,null,null,null,null,null,null,null,null,null,null,null,null,null,null,null,null,null,null,null,null,null,null,null,null,null,null,null,null,null,null,null,null,null,null,null,null,null,null,null,null,null,null,null,null,null,null,null,null,"Тюменская область",null,null,null,null,28046959,"ООО \"ЛУКОЙЛ-ЭНЕРГОСЕТИ\"","5260230051","770901001","1088607000217","2013-01-17",null,null,null,"Нерегулируемый сбыт","/Электроэнергетика/Сбыт ЭЭ/Нерегулируемый сбыт",null,"Y"]
[null,null,null,null,null,null,null,null,null,null,null,null,null,null,null,null,null,null,null,null,null,null,null,null,null,null,null,null,null,null,null,null,null,null,null,null,null,null,null,null,null,null,null,null,null,null,null,null,null,null,null,null,null,null,null,null,null,null,null,null,null,null,null,null,null,null,null,null,null,null,null,null,null,null,null,null,null,null,null,null,null,null,null,null,null,null,null,null,null,null,null,null,null,null,null,null,null,null,null,null,null,null,null,null,null,null,null,null,null,null,null,null,null,null,null,null,null,null,null,null,null,"Тюменская область",null,null,null,null,31340189,"ООО \"МСК Энерго\"","7725567512","772901001","1067746494254",null,null,null,null,"Нерегулируемый сбыт","/Электроэнергетика/Сбыт ЭЭ/Нерегулируемый сбыт",null,"Y"]
[null,null,null,null,null,null,null,null,null,null,null,null,null,null,null,null,null,null,null,null,null,null,null,null,null,null,null,null,null,null,null,null,null,null,null,null,null,null,null,null,null,null,null,null,null,null,null,null,null,null,null,null,null,null,null,null,null,null,null,null,null,null,null,null,null,null,null,null,null,null,null,null,null,null,null,null,null,null,null,null,null,null,null,null,null,null,null,null,null,null,null,null,null,null,null,null,null,null,null,null,null,null,null,null,null,null,null,null,null,null,null,null,null,null,null,null,null,null,null,null,null,"Тюменская область",null,null,null,null,31214277,"ООО \"МТС ЭНЕРГО\"","9709006506","772601001","1177746748376","2018-10-24",null,null,null,"Нерегулируемый сбыт","/Электроэнергетика/Сбыт ЭЭ/Нерегулируемый сбыт",null,"Y"]
[null,null,null,null,null,null,null,null,null,null,null,null,null,null,null,null,null,null,null,null,null,null,null,null,null,null,null,null,null,null,null,null,null,null,null,null,null,null,null,null,null,null,null,null,null,null,null,null,null,null,null,null,null,null,null,null,null,null,null,null,null,null,null,null,null,null,null,null,null,null,null,null,null,null,null,null,null,null,null,null,null,null,null,null,null,null,null,null,null,null,null,null,null,null,null,null,null,null,null,null,null,null,null,null,null,null,null,null,null,null,null,null,null,null,null,null,null,null,null,null,null,"Тюменская область",null,null,null,null,28147378,"ООО \"МагнитЭнерго\"","7715902899","231101001","1127746076710",null,null,null,null,"Нерегулируемый сбыт","/Электроэнергетика/Сбыт ЭЭ/Нерегулируемый сбыт",null,"Y"]
[null,null,null,null,null,null,null,null,null,null,null,null,null,null,null,null,null,null,null,null,null,null,null,null,null,null,null,null,null,null,null,null,null,null,null,null,null,null,null,null,null,null,null,null,null,null,null,null,null,null,null,null,null,null,null,null,null,null,null,null,null,null,null,null,null,null,null,null,null,null,null,null,null,null,null,null,null,null,null,null,null,null,null,null,null,null,null,null,null,null,null,null,null,null,null,null,null,null,null,null,null,null,null,null,null,null,null,null,null,null,null,null,null,null,null,null,null,null,null,null,null,"Тюменская область",null,null,null,null,26320065,"ООО \"Мегионэнергонефть\"","8605016890","860501001","1048602900060","2004-01-14",null,null,null,"РСО","/Электроэнергетика/Передача ЭЭ/РСО",null,"Y"]
[null,null,null,null,null,null,null,null,null,null,null,null,null,null,null,null,null,null,null,null,null,null,null,null,null,null,null,null,null,null,null,null,null,null,null,null,null,null,null,null,null,null,null,null,null,null,null,null,null,null,null,null,null,null,null,null,null,null,null,null,null,null,null,null,null,null,null,null,null,null,null,null,null,null,null,null,null,null,null,null,null,null,null,null,null,null,null,null,null,null,null,null,null,null,null,null,null,null,null,null,null,null,null,null,null,null,null,null,null,null,null,null,null,null,null,null,null,null,null,null,null,"Тюменская область",null,null,null,null,26319012,"ООО \"Нижневартовская энергосбытовая компания\"","8603109926","860301001","1038601750472",null,null,null,null,"ГП","/Электроэнергетика/Сбыт ЭЭ/ГП",null,"Y"]
[null,null,null,null,null,null,null,null,null,null,null,null,null,null,null,null,null,null,null,null,null,null,null,null,null,null,null,null,null,null,null,null,null,null,null,null,null,null,null,null,null,null,null,null,null,null,null,null,null,null,null,null,null,null,null,null,null,null,null,null,null,null,null,null,null,null,null,null,null,null,null,null,null,null,null,null,null,null,null,null,null,null,null,null,null,null,null,null,null,null,null,null,null,null,null,null,null,null,null,null,null,null,null,null,null,null,null,null,null,null,null,null,null,null,null,null,null,null,null,null,null,"Тюменская область",null,null,null,null,28953431,"ООО \"Новатэк-Юрхаровнефтегаз\"","8903021599","890401001","1028900578134",null,null,null,null,"Комбинированная выработка :: Некомбинированная выработка","/Электроэнергетика/Производство ЭЭ/Комбинированная выработка :: /Электроэнергетика/Производство ЭЭ/Некомбинированная выработка",null,"Y"]
[null,null,null,null,null,null,null,null,null,null,null,null,null,null,null,null,null,null,null,null,null,null,null,null,null,null,null,null,null,null,null,null,null,null,null,null,null,null,null,null,null,null,null,null,null,null,null,null,null,null,null,null,null,null,null,null,null,null,null,null,null,null,null,null,null,null,null,null,null,null,null,null,null,null,null,null,null,null,null,null,null,null,null,null,null,null,null,null,null,null,null,null,null,null,null,null,null,null,null,null,null,null,null,null,null,null,null,null,null,null,null,null,null,null,null,null,null,null,null,null,null,"Тюменская область",null,null,null,null,31077508,"ООО \"Новоуренгойский газохимический комплекс\"","8904006547","890401001","1028900620264","2002-08-21",null,null,null,"Некомбинированная выработка","/Электроэнергетика/Производство ЭЭ/Некомбинированная выработка",null,"Y"]
[null,null,null,null,null,null,null,null,null,null,null,null,null,null,null,null,null,null,null,null,null,null,null,null,null,null,null,null,null,null,null,null,null,null,null,null,null,null,null,null,null,null,null,null,null,null,null,null,null,null,null,null,null,null,null,null,null,null,null,null,null,null,null,null,null,null,null,null,null,null,null,null,null,null,null,null,null,null,null,null,null,null,null,null,null,null,null,null,null,null,null,null,null,null,null,null,null,null,null,null,null,null,null,null,null,null,null,null,null,null,null,null,null,null,null,null,null,null,null,null,null,"Тюменская область",null,null,null,null,26637523,"ООО \"Ноябрьская ПГЭ\"","8905037499","890501001","1068905007038","2006-04-04",null,null,null,"Комбинированная выработка","/Электроэнергетика/Производство ЭЭ/Комбинированная выработка",null,"Y"]
[null,null,null,null,null,null,null,null,null,null,null,null,null,null,null,null,null,null,null,null,null,null,null,null,null,null,null,null,null,null,null,null,null,null,null,null,null,null,null,null,null,null,null,null,null,null,null,null,null,null,null,null,null,null,null,null,null,null,null,null,null,null,null,null,null,null,null,null,null,null,null,null,null,null,null,null,null,null,null,null,null,null,null,null,null,null,null,null,null,null,null,null,null,null,null,null,null,null,null,null,null,null,null,null,null,null,null,null,null,null,null,null,null,null,null,null,null,null,null,null,null,"Тюменская область",null,null,null,null,26319003,"ООО \"Промэнергосбыт\"","7206036155","720601001","1077206001993",null,null,null,null,"Нерегулируемый сбыт","/Электроэнергетика/Сбыт ЭЭ/Нерегулируемый сбыт",null,"Y"]
[null,null,null,null,null,null,null,null,null,null,null,null,null,null,null,null,null,null,null,null,null,null,null,null,null,null,null,null,null,null,null,null,null,null,null,null,null,null,null,null,null,null,null,null,null,null,null,null,null,null,null,null,null,null,null,null,null,null,null,null,null,null,null,null,null,null,null,null,null,null,null,null,null,null,null,null,null,null,null,null,null,null,null,null,null,null,null,null,null,null,null,null,null,null,null,null,null,null,null,null,null,null,null,null,null,null,null,null,null,null,null,null,null,null,null,null,null,null,null,null,null,"Тюменская область",null,null,null,null,31387166,"ООО \"ПрофСервисТрейд\"","7707820378","771401001","5137746135335","2013-01-29",null,null,null,"Нерегулируемый сбыт","/Электроэнергетика/Сбыт ЭЭ/Нерегулируемый сбыт",null,"Y"]
[null,null,null,null,null,null,null,null,null,null,null,null,null,null,null,null,null,null,null,null,null,null,null,null,null,null,null,null,null,null,null,null,null,null,null,null,null,null,null,null,null,null,null,null,null,null,null,null,null,null,null,null,null,null,null,null,null,null,null,null,null,null,null,null,null,null,null,null,null,null,null,null,null,null,null,null,null,null,null,null,null,null,null,null,null,null,null,null,null,null,null,null,null,null,null,null,null,null,null,null,null,null,null,null,null,null,null,null,null,null,null,null,null,null,null,null,null,null,null,null,null,"Тюменская область",null,null,null,null,26320082,"ООО \"РН - Юганскнефтегаз\"","8604035473","997250001","1058602819538",null,null,null,null,"РСО","/Электроэнергетика/Передача ЭЭ/РСО",null,"Y"]
[null,null,null,null,null,null,null,null,null,null,null,null,null,null,null,null,null,null,null,null,null,null,null,null,null,null,null,null,null,null,null,null,null,null,null,null,null,null,null,null,null,null,null,null,null,null,null,null,null,null,null,null,null,null,null,null,null,null,null,null,null,null,null,null,null,null,null,null,null,null,null,null,null,null,null,null,null,null,null,null,null,null,null,null,null,null,null,null,null,null,null,null,null,null,null,null,null,null,null,null,null,null,null,null,null,null,null,null,null,null,null,null,null,null,null,null,null,null,null,null,null,"Тюменская область",null,null,null,null,26320082,"ООО \"РН - Юганскнефтегаз\"","8604035473","997250001","1058602819538",null,null,null,null,"Некомбинированная выработка","/Электроэнергетика/Производство ЭЭ/Некомбинированная выработка",null,"Y"]
[null,null,null,null,null,null,null,null,null,null,null,null,null,null,null,null,null,null,null,null,null,null,null,null,null,null,null,null,null,null,null,null,null,null,null,null,null,null,null,null,null,null,null,null,null,null,null,null,null,null,null,null,null,null,null,null,null,null,null,null,null,null,null,null,null,null,null,null,null,null,null,null,null,null,null,null,null,null,null,null,null,null,null,null,null,null,null,null,null,null,null,null,null,null,null,null,null,null,null,null,null,null,null,null,null,null,null,null,null,null,null,null,null,null,null,null,null,null,null,null,null,"Тюменская область",null,null,null,null,31077347,"ООО \"РН-Уватнефтегаз\"","7225003194","722501001","1027201295395","2002-11-27",null,null,null,"Некомбинированная выработка","/Электроэнергетика/Производство ЭЭ/Некомбинированная выработка",null,"Y"]
[null,null,null,null,null,null,null,null,null,null,null,null,null,null,null,null,null,null,null,null,null,null,null,null,null,null,null,null,null,null,null,null,null,null,null,null,null,null,null,null,null,null,null,null,null,null,null,null,null,null,null,null,null,null,null,null,null,null,null,null,null,null,null,null,null,null,null,null,null,null,null,null,null,null,null,null,null,null,null,null,null,null,null,null,null,null,null,null,null,null,null,null,null,null,null,null,null,null,null,null,null,null,null,null,null,null,null,null,null,null,null,null,null,null,null,null,null,null,null,null,null,"Тюменская область",null,null,null,null,26416221,"ООО \"РН-Энерго\"","7706525041","997650001","1047796118182","2012-05-02",null,null,null,"Нерегулируемый сбыт","/Электроэнергетика/Сбыт ЭЭ/Нерегулируемый сбыт",null,"Y"]
[null,null,null,null,null,null,null,null,null,null,null,null,null,null,null,null,null,null,null,null,null,null,null,null,null,null,null,null,null,null,null,null,null,null,null,null,null,null,null,null,null,null,null,null,null,null,null,null,null,null,null,null,null,null,null,null,null,null,null,null,null,null,null,null,null,null,null,null,null,null,null,null,null,null,null,null,null,null,null,null,null,null,null,null,null,null,null,null,null,null,null,null,null,null,null,null,null,null,null,null,null,null,null,null,null,null,null,null,null,null,null,null,null,null,null,null,null,null,null,null,null,"Тюменская область",null,null,null,null,28494201,"ООО \"РУСЭНЕРГО\"","4401144416","770501001","1134401010083",null,null,null,null,"Нерегулируемый сбыт","/Электроэнергетика/Сбыт ЭЭ/Нерегулируемый сбыт",null,"Y"]
[null,null,null,null,null,null,null,null,null,null,null,null,null,null,null,null,null,null,null,null,null,null,null,null,null,null,null,null,null,null,null,null,null,null,null,null,null,null,null,null,null,null,null,null,null,null,null,null,null,null,null,null,null,null,null,null,null,null,null,null,null,null,null,null,null,null,null,null,null,null,null,null,null,null,null,null,null,null,null,null,null,null,null,null,null,null,null,null,null,null,null,null,null,null,null,null,null,null,null,null,null,null,null,null,null,null,null,null,null,null,null,null,null,null,null,null,null,null,null,null,null,"Тюменская область",null,null,null,null,30941442,"ООО \"Региональная энергетическая компания\"","7203412147","720301001","1177232006104","2017-03-06",null,null,null,"РСО","/Электроэнергетика/Передача ЭЭ/РСО",null,"Y"]
[null,null,null,null,null,null,null,null,null,null,null,null,null,null,null,null,null,null,null,null,null,null,null,null,null,null,null,null,null,null,null,null,null,null,null,null,null,null,null,null,null,null,null,null,null,null,null,null,null,null,null,null,null,null,null,null,null,null,null,null,null,null,null,null,null,null,null,null,null,null,null,null,null,null,null,null,null,null,null,null,null,null,null,null,null,null,null,null,null,null,null,null,null,null,null,null,null,null,null,null,null,null,null,null,null,null,null,null,null,null,null,null,null,null,null,null,null,null,null,null,null,"Тюменская область",null,null,null,null,26406211,"ООО \"Русэнергоресурс\"","7706288496","770401001","1037706004346",null,null,null,null,"Нерегулируемый сбыт","/Электроэнергетика/Сбыт ЭЭ/Нерегулируемый сбыт",null,"Y"]
[null,null,null,null,null,null,null,null,null,null,null,null,null,null,null,null,null,null,null,null,null,null,null,null,null,null,null,null,null,null,null,null,null,null,null,null,null,null,null,null,null,null,null,null,null,null,null,null,null,null,null,null,null,null,null,null,null,null,null,null,null,null,null,null,null,null,null,null,null,null,null,null,null,null,null,null,null,null,null,null,null,null,null,null,null,null,null,null,null,null,null,null,null,null,null,null,null,null,null,null,null,null,null,null,null,null,null,null,null,null,null,null,null,null,null,null,null,null,null,null,null,"Тюменская область",null,null,null,null,26502786,"ООО \"Русэнергосбыт\"","7706284124","770401001","1027706023058",null,null,null,null,"Нерегулируемый сбыт","/Электроэнергетика/Сбыт ЭЭ/Нерегулируемый сбыт",null,"Y"]
[null,null,null,null,null,null,null,null,null,null,null,null,null,null,null,null,null,null,null,null,null,null,null,null,null,null,null,null,null,null,null,null,null,null,null,null,null,null,null,null,null,null,null,null,null,null,null,null,null,null,null,null,null,null,null,null,null,null,null,null,null,null,null,null,null,null,null,null,null,null,null,null,null,null,null,null,null,null,null,null,null,null,null,null,null,null,null,null,null,null,null,null,null,null,null,null,null,null,null,null,null,null,null,null,null,null,null,null,null,null,null,null,null,null,null,null,null,null,null,null,null,"Тюменская область",null,null,null,null,30433231,"ООО \"СеверСетьРазвитие\"","8901021265","667101001","1088901000825","2008-04-22",null,null,null,"РСО","/Электроэнергетика/Передача ЭЭ/РСО",null,"Y"]
[null,null,null,null,null,null,null,null,null,null,null,null,null,null,null,null,null,null,null,null,null,null,null,null,null,null,null,null,null,null,null,null,null,null,null,null,null,null,null,null,null,null,null,null,null,null,null,null,null,null,null,null,null,null,null,null,null,null,null,null,null,null,null,null,null,null,null,null,null,null,null,null,null,null,null,null,null,null,null,null,null,null,null,null,null,null,null,null,null,null,null,null,null,null,null,null,null,null,null,null,null,null,null,null,null,null,null,null,null,null,null,null,null,null,null,null,null,null,null,null,null,"Тюменская область",null,null,null,null,26637526,"ООО \"Северная ПЛЭС\"","7716605105","890301001","1087746555621",null,null,null,null,"Некомбинированная выработка","/Электроэнергетика/Производство ЭЭ/Некомбинированная выработка",null,"Y"]
[null,null,null,null,null,null,null,null,null,null,null,null,null,null,null,null,null,null,null,null,null,null,null,null,null,null,null,null,null,null,null,null,null,null,null,null,null,null,null,null,null,null,null,null,null,null,null,null,null,null,null,null,null,null,null,null,null,null,null,null,null,null,null,null,null,null,null,null,null,null,null,null,null,null,null,null,null,null,null,null,null,null,null,null,null,null,null,null,null,null,null,null,null,null,null,null,null,null,null,null,null,null,null,null,null,null,null,null,null,null,null,null,null,null,null,null,null,null,null,null,null,"Тюменская область",null,null,null,null,26522789,"ООО \"Северремприбор\"","8602248187","860201001","1058602080525",null,null,null,null,"РСО","/Электроэнергетика/Передача ЭЭ/РСО",null,"Y"]
[null,null,null,null,null,null,null,null,null,null,null,null,null,null,null,null,null,null,null,null,null,null,null,null,null,null,null,null,null,null,null,null,null,null,null,null,null,null,null,null,null,null,null,null,null,null,null,null,null,null,null,null,null,null,null,null,null,null,null,null,null,null,null,null,null,null,null,null,null,null,null,null,null,null,null,null,null,null,null,null,null,null,null,null,null,null,null,null,null,null,null,null,null,null,null,null,null,null,null,null,null,null,null,null,null,null,null,null,null,null,null,null,null,null,null,null,null,null,null,null,null,"Тюменская область",null,null,null,null,31442268,"ООО \"Северсбыт\"","8904076329","890401001","1148904003181","2014-10-16",null,null,null,"Нерегулируемый сбыт","/Электроэнергетика/Сбыт ЭЭ/Нерегулируемый сбыт",null,"Y"]
[null,null,null,null,null,null,null,null,null,null,null,null,null,null,null,null,null,null,null,null,null,null,null,null,null,null,null,null,null,null,null,null,null,null,null,null,null,null,null,null,null,null,null,null,null,null,null,null,null,null,null,null,null,null,null,null,null,null,null,null,null,null,null,null,null,null,null,null,null,null,null,null,null,null,null,null,null,null,null,null,null,null,null,null,null,null,null,null,null,null,null,null,null,null,null,null,null,null,null,null,null,null,null,null,null,null,null,null,null,null,null,null,null,null,null,null,null,null,null,null,null,"Тюменская область",null,null,null,null,31691831,"ООО \"Сибирская сбытовая компания\"","7203439614","720301001","1187232000559","2023-09-01",null,null,null,"Нерегулируемый сбыт","/Электроэнергетика/Сбыт ЭЭ/Нерегулируемый сбыт",null,"Y"]
[null,null,null,null,null,null,null,null,null,null,null,null,null,null,null,null,null,null,null,null,null,null,null,null,null,null,null,null,null,null,null,null,null,null,null,null,null,null,null,null,null,null,null,null,null,null,null,null,null,null,null,null,null,null,null,null,null,null,null,null,null,null,null,null,null,null,null,null,null,null,null,null,null,null,null,null,null,null,null,null,null,null,null,null,null,null,null,null,null,null,null,null,null,null,null,null,null,null,null,null,null,null,null,null,null,null,null,null,null,null,null,null,null,null,null,null,null,null,null,null,null,"Тюменская область",null,null,null,null,26522772,"ООО \"Сибэнергокомплектмонтаж\"","8602253660","860201001","1158602000534",null,null,null,null,"РСО","/Электроэнергетика/Передача ЭЭ/РСО",null,"Y"]
[null,null,null,null,null,null,null,null,null,null,null,null,null,null,null,null,null,null,null,null,null,null,null,null,null,null,null,null,null,null,null,null,null,null,null,null,null,null,null,null,null,null,null,null,null,null,null,null,null,null,null,null,null,null,null,null,null,null,null,null,null,null,null,null,null,null,null,null,null,null,null,null,null,null,null,null,null,null,null,null,null,null,null,null,null,null,null,null,null,null,null,null,null,null,null,null,null,null,null,null,null,null,null,null,null,null,null,null,null,null,null,null,null,null,null,null,null,null,null,null,null,"Тюменская область",null,null,null,null,31077456,"ООО \"Соровскнефть\"","7202170632","720301001","1077203059548","2007-11-30",null,null,null,"Некомбинированная выработка","/Электроэнергетика/Производство ЭЭ/Некомбинированная выработка",null,"Y"]
[null,null,null,null,null,null,null,null,null,null,null,null,null,null,null,null,null,null,null,null,null,null,null,null,null,null,null,null,null,null,null,null,null,null,null,null,null,null,null,null,null,null,null,null,null,null,null,null,null,null,null,null,null,null,null,null,null,null,null,null,null,null,null,null,null,null,null,null,null,null,null,null,null,null,null,null,null,null,null,null,null,null,null,null,null,null,null,null,null,null,null,null,null,null,null,null,null,null,null,null,null,null,null,null,null,null,null,null,null,null,null,null,null,null,null,null,null,null,null,null,null,"Тюменская область",null,null,null,null,26460785,"ООО \"Статус\"","7202153919","720401001","1067203357693",null,null,null,null,"РСО","/Электроэнергетика/Передача ЭЭ/РСО",null,"Y"]
[null,null,null,null,null,null,null,null,null,null,null,null,null,null,null,null,null,null,null,null,null,null,null,null,null,null,null,null,null,null,null,null,null,null,null,null,null,null,null,null,null,null,null,null,null,null,null,null,null,null,null,null,null,null,null,null,null,null,null,null,null,null,null,null,null,null,null,null,null,null,null,null,null,null,null,null,null,null,null,null,null,null,null,null,null,null,null,null,null,null,null,null,null,null,null,null,null,null,null,null,null,null,null,null,null,null,null,null,null,null,null,null,null,null,null,null,null,null,null,null,null,"Тюменская область",null,null,null,null,28130004,"ООО \"Строительно-промышленный комбинат\"","8603214825","860301001","1158603002030",null,null,null,null,"РСО","/Электроэнергетика/Передача ЭЭ/РСО",null,"Y"]
[null,null,null,null,null,null,null,null,null,null,null,null,null,null,null,null,null,null,null,null,null,null,null,null,null,null,null,null,null,null,null,null,null,null,null,null,null,null,null,null,null,null,null,null,null,null,null,null,null,null,null,null,null,null,null,null,null,null,null,null,null,null,null,null,null,null,null,null,null,null,null,null,null,null,null,null,null,null,null,null,null,null,null,null,null,null,null,null,null,null,null,null,null,null,null,null,null,null,null,null,null,null,null,null,null,null,null,null,null,null,null,null,null,null,null,null,null,null,null,null,null,"Тюменская область",null,null,null,null,26522796,"ООО \"Сургутские городские электрические сети\"","8602015464","860201001","1068602153773","2006-07-27",null,null,null,"РСО","/Электроэнергетика/Передача ЭЭ/РСО",null,"Y"]
[null,null,null,null,null,null,null,null,null,null,null,null,null,null,null,null,null,null,null,null,null,null,null,null,null,null,null,null,null,null,null,null,null,null,null,null,null,null,null,null,null,null,null,null,null,null,null,null,null,null,null,null,null,null,null,null,null,null,null,null,null,null,null,null,null,null,null,null,null,null,null,null,null,null,null,null,null,null,null,null,null,null,null,null,null,null,null,null,null,null,null,null,null,null,null,null,null,null,null,null,null,null,null,null,null,null,null,null,null,null,null,null,null,null,null,null,null,null,null,null,null,"Тюменская область",null,null,null,null,26535194,"ООО \"Сургутэнергосбыт\"","8602153048","785150001","1098602003510",null,null,null,null,"Нерегулируемый сбыт","/Электроэнергетика/Сбыт ЭЭ/Нерегулируемый сбыт",null,"Y"]
[null,null,null,null,null,null,null,null,null,null,null,null,null,null,null,null,null,null,null,null,null,null,null,null,null,null,null,null,null,null,null,null,null,null,null,null,null,null,null,null,null,null,null,null,null,null,null,null,null,null,null,null,null,null,null,null,null,null,null,null,null,null,null,null,null,null,null,null,null,null,null,null,null,null,null,null,null,null,null,null,null,null,null,null,null,null,null,null,null,null,null,null,null,null,null,null,null,null,null,null,null,null,null,null,null,null,null,null,null,null,null,null,null,null,null,null,null,null,null,null,null,"Тюменская область",null,null,null,null,30908755,"ООО \"ТРАНССЕТЬ\"","7203395220","720301001","1167232081290","2016-09-07",null,null,null,"РСО","/Электроэнергетика/Передача ЭЭ/РСО",null,"Y"]
[null,null,null,null,null,null,null,null,null,null,null,null,null,null,null,null,null,null,null,null,null,null,null,null,null,null,null,null,null,null,null,null,null,null,null,null,null,null,null,null,null,null,null,null,null,null,null,null,null,null,null,null,null,null,null,null,null,null,null,null,null,null,null,null,null,null,null,null,null,null,null,null,null,null,null,null,null,null,null,null,null,null,null,null,null,null,null,null,null,null,null,null,null,null,null,null,null,null,null,null,null,null,null,null,null,null,null,null,null,null,null,null,null,null,null,null,null,null,null,null,null,"Тюменская область",null,null,null,null,31297392,"ООО \"ТРОЯН\"","7203433010","720301001","1177232030986","2017-10-25",null,null,null,"Нерегулируемый сбыт","/Электроэнергетика/Сбыт ЭЭ/Нерегулируемый сбыт",null,"Y"]
[null,null,null,null,null,null,null,null,null,null,null,null,null,null,null,null,null,null,null,null,null,null,null,null,null,null,null,null,null,null,null,null,null,null,null,null,null,null,null,null,null,null,null,null,null,null,null,null,null,null,null,null,null,null,null,null,null,null,null,null,null,null,null,null,null,null,null,null,null,null,null,null,null,null,null,null,null,null,null,null,null,null,null,null,null,null,null,null,null,null,null,null,null,null,null,null,null,null,null,null,null,null,null,null,null,null,null,null,null,null,null,null,null,null,null,null,null,null,null,null,null,"Тюменская область",null,null,null,null,26320033,"ООО \"Тобольскпромэнергосеть\"","7206032440","720601001","1067206045873","2006-03-30",null,null,null,"РСО","/Электроэнергетика/Передача ЭЭ/РСО",null,"Y"]
[null,null,null,null,null,null,null,null,null,null,null,null,null,null,null,null,null,null,null,null,null,null,null,null,null,null,null,null,null,null,null,null,null,null,null,null,null,null,null,null,null,null,null,null,null,null,null,null,null,null,null,null,null,null,null,null,null,null,null,null,null,null,null,null,null,null,null,null,null,null,null,null,null,null,null,null,null,null,null,null,null,null,null,null,null,null,null,null,null,null,null,null,null,null,null,null,null,null,null,null,null,null,null,null,null,null,null,null,null,null,null,null,null,null,null,null,null,null,null,null,null,"Тюменская область",null,null,null,null,26497668,"ООО \"Транснефтьэнерго\"","7703552167","772301001","1057747096990","2009-07-01",null,null,null,"Нерегулируемый сбыт","/Электроэнергетика/Сбыт ЭЭ/Нерегулируемый сбыт",null,"Y"]
[null,null,null,null,null,null,null,null,null,null,null,null,null,null,null,null,null,null,null,null,null,null,null,null,null,null,null,null,null,null,null,null,null,null,null,null,null,null,null,null,null,null,null,null,null,null,null,null,null,null,null,null,null,null,null,null,null,null,null,null,null,null,null,null,null,null,null,null,null,null,null,null,null,null,null,null,null,null,null,null,null,null,null,null,null,null,null,null,null,null,null,null,null,null,null,null,null,null,null,null,null,null,null,null,null,null,null,null,null,null,null,null,null,null,null,null,null,null,null,null,null,"Тюменская область",null,null,null,null,31509022,"ООО \"ТюменьСеть\"","7203508113","720301001","1207200014230","2020-09-10",null,null,null,"РСО","/Электроэнергетика/Передача ЭЭ/РСО",null,"Y"]
[null,null,null,null,null,null,null,null,null,null,null,null,null,null,null,null,null,null,null,null,null,null,null,null,null,null,null,null,null,null,null,null,null,null,null,null,null,null,null,null,null,null,null,null,null,null,null,null,null,null,null,null,null,null,null,null,null,null,null,null,null,null,null,null,null,null,null,null,null,null,null,null,null,null,null,null,null,null,null,null,null,null,null,null,null,null,null,null,null,null,null,null,null,null,null,null,null,null,null,null,null,null,null,null,null,null,null,null,null,null,null,null,null,null,null,null,null,null,null,null,null,"Тюменская область",null,null,null,null,26320035,"ООО \"Управляющая компания - Тюменские моторостроители\"","7203179282","720301001","1067203328070",null,null,null,null,"РСО","/Электроэнергетика/Передача ЭЭ/РСО",null,"Y"]
[null,null,null,null,null,null,null,null,null,null,null,null,null,null,null,null,null,null,null,null,null,null,null,null,null,null,null,null,null,null,null,null,null,null,null,null,null,null,null,null,null,null,null,null,null,null,null,null,null,null,null,null,null,null,null,null,null,null,null,null,null,null,null,null,null,null,null,null,null,null,null,null,null,null,null,null,null,null,null,null,null,null,null,null,null,null,null,null,null,null,null,null,null,null,null,null,null,null,null,null,null,null,null,null,null,null,null,null,null,null,null,null,null,null,null,null,null,null,null,null,null,"Тюменская область",null,null,null,null,31304544,"ООО \"Черкизово ТЭК\"","7714974474","771001001","1177746151978",null,null,null,null,"Нерегулируемый сбыт","/Электроэнергетика/Сбыт ЭЭ/Нерегулируемый сбыт",null,"Y"]
[null,null,null,null,null,null,null,null,null,null,null,null,null,null,null,null,null,null,null,null,null,null,null,null,null,null,null,null,null,null,null,null,null,null,null,null,null,null,null,null,null,null,null,null,null,null,null,null,null,null,null,null,null,null,null,null,null,null,null,null,null,null,null,null,null,null,null,null,null,null,null,null,null,null,null,null,null,null,null,null,null,null,null,null,null,null,null,null,null,null,null,null,null,null,null,null,null,null,null,null,null,null,null,null,null,null,null,null,null,null,null,null,null,null,null,null,null,null,null,null,null,"Тюменская область",null,null,null,null,31509054,"ООО \"ЭЛЕКОНТ\"","7224046773","722401001","1127232000488","2012-01-12",null,null,null,"РСО","/Электроэнергетика/Передача ЭЭ/РСО",null,"Y"]
[null,null,null,null,null,null,null,null,null,null,null,null,null,null,null,null,null,null,null,null,null,null,null,null,null,null,null,null,null,null,null,null,null,null,null,null,null,null,null,null,null,null,null,null,null,null,null,null,null,null,null,null,null,null,null,null,null,null,null,null,null,null,null,null,null,null,null,null,null,null,null,null,null,null,null,null,null,null,null,null,null,null,null,null,null,null,null,null,null,null,null,null,null,null,null,null,null,null,null,null,null,null,null,null,null,null,null,null,null,null,null,null,null,null,null,null,null,null,null,null,null,"Тюменская область",null,null,null,null,28943648,"ООО \"ЭСК \"Независимость\"","7701383354","770801001","1147746008850","2015-03-25",null,null,null,"Нерегулируемый сбыт","/Электроэнергетика/Сбыт ЭЭ/Нерегулируемый сбыт",null,"Y"]
[null,null,null,null,null,null,null,null,null,null,null,null,null,null,null,null,null,null,null,null,null,null,null,null,null,null,null,null,null,null,null,null,null,null,null,null,null,null,null,null,null,null,null,null,null,null,null,null,null,null,null,null,null,null,null,null,null,null,null,null,null,null,null,null,null,null,null,null,null,null,null,null,null,null,null,null,null,null,null,null,null,null,null,null,null,null,null,null,null,null,null,null,null,null,null,null,null,null,null,null,null,null,null,null,null,null,null,null,null,null,null,null,null,null,null,null,null,null,null,null,null,"Тюменская область",null,null,null,null,26460745,"ООО \"ЭлектроСпецСтрой\"","7224038532","720301001","1087232010656","2008-03-14",null,null,null,"РСО","/Электроэнергетика/Передача ЭЭ/РСО",null,"Y"]
[null,null,null,null,null,null,null,null,null,null,null,null,null,null,null,null,null,null,null,null,null,null,null,null,null,null,null,null,null,null,null,null,null,null,null,null,null,null,null,null,null,null,null,null,null,null,null,null,null,null,null,null,null,null,null,null,null,null,null,null,null,null,null,null,null,null,null,null,null,null,null,null,null,null,null,null,null,null,null,null,null,null,null,null,null,null,null,null,null,null,null,null,null,null,null,null,null,null,null,null,null,null,null,null,null,null,null,null,null,null,null,null,null,null,null,null,null,null,null,null,null,"Тюменская область",null,null,null,null,26639461,"ООО \"Энерго-Лидер\"","7204162073","720401001","1107232041014","2010-11-25",null,null,null,"РСО","/Электроэнергетика/Передача ЭЭ/РСО",null,"Y"]
[null,null,null,null,null,null,null,null,null,null,null,null,null,null,null,null,null,null,null,null,null,null,null,null,null,null,null,null,null,null,null,null,null,null,null,null,null,null,null,null,null,null,null,null,null,null,null,null,null,null,null,null,null,null,null,null,null,null,null,null,null,null,null,null,null,null,null,null,null,null,null,null,null,null,null,null,null,null,null,null,null,null,null,null,null,null,null,null,null,null,null,null,null,null,null,null,null,null,null,null,null,null,null,null,null,null,null,null,null,null,null,null,null,null,null,null,null,null,null,null,null,"Тюменская область",null,null,null,null,31229980,"ООО \"Энергокомплекс\"","7203394515","720301001","1167232080465","2016-08-30",null,null,null,"Нерегулируемый сбыт","/Электроэнергетика/Сбыт ЭЭ/Нерегулируемый сбыт",null,"Y"]
[null,null,null,null,null,null,null,null,null,null,null,null,null,null,null,null,null,null,null,null,null,null,null,null,null,null,null,null,null,null,null,null,null,null,null,null,null,null,null,null,null,null,null,null,null,null,null,null,null,null,null,null,null,null,null,null,null,null,null,null,null,null,null,null,null,null,null,null,null,null,null,null,null,null,null,null,null,null,null,null,null,null,null,null,null,null,null,null,null,null,null,null,null,null,null,null,null,null,null,null,null,null,null,null,null,null,null,null,null,null,null,null,null,null,null,null,null,null,null,null,null,"Тюменская область",null,null,null,null,26360227,"ООО \"Энергонефть Томск\"","7022010799","702201001","1027001619369","2002-10-22",null,null,null,"РСО","/Электроэнергетика/Передача ЭЭ/РСО",null,"Y"]
[null,null,null,null,null,null,null,null,null,null,null,null,null,null,null,null,null,null,null,null,null,null,null,null,null,null,null,null,null,null,null,null,null,null,null,null,null,null,null,null,null,null,null,null,null,null,null,null,null,null,null,null,null,null,null,null,null,null,null,null,null,null,null,null,null,null,null,null,null,null,null,null,null,null,null,null,null,null,null,null,null,null,null,null,null,null,null,null,null,null,null,null,null,null,null,null,null,null,null,null,null,null,null,null,null,null,null,null,null,null,null,null,null,null,null,null,null,null,null,null,null,"Тюменская область",null,null,null,null,26800952,"ООО \"Энергопрогноз\"","3328454924","332801001","1073328008093",null,null,null,null,"Нерегулируемый сбыт","/Электроэнергетика/Сбыт ЭЭ/Нерегулируемый сбыт",null,"Y"]
[null,null,null,null,null,null,null,null,null,null,null,null,null,null,null,null,null,null,null,null,null,null,null,null,null,null,null,null,null,null,null,null,null,null,null,null,null,null,null,null,null,null,null,null,null,null,null,null,null,null,null,null,null,null,null,null,null,null,null,null,null,null,null,null,null,null,null,null,null,null,null,null,null,null,null,null,null,null,null,null,null,null,null,null,null,null,null,null,null,null,null,null,null,null,null,null,null,null,null,null,null,null,null,null,null,null,null,null,null,null,null,null,null,null,null,null,null,null,null,null,null,"Тюменская область",null,null,null,null,28494405,"ООО \"Энергосистема\"","7715887873","770201001","1117746835601",null,null,null,null,"Нерегулируемый сбыт","/Электроэнергетика/Сбыт ЭЭ/Нерегулируемый сбыт",null,"Y"]
[null,null,null,null,null,null,null,null,null,null,null,null,null,null,null,null,null,null,null,null,null,null,null,null,null,null,null,null,null,null,null,null,null,null,null,null,null,null,null,null,null,null,null,null,null,null,null,null,null,null,null,null,null,null,null,null,null,null,null,null,null,null,null,null,null,null,null,null,null,null,null,null,null,null,null,null,null,null,null,null,null,null,null,null,null,null,null,null,null,null,null,null,null,null,null,null,null,null,null,null,null,null,null,null,null,null,null,null,null,null,null,null,null,null,null,null,null,null,null,null,null,"Тюменская область",null,null,null,null,26576132,"ООО «Газпром переработка» в зоне деятельности филиала Завод по стабилизации конденсата имени В.С. Черномырдина","1102054991","860201001","1071102001651",null,null,null,null,"РСО","/Электроэнергетика/Передача ЭЭ/РСО",null,"Y"]
[null,null,null,null,null,null,null,null,null,null,null,null,null,null,null,null,null,null,null,null,null,null,null,null,null,null,null,null,null,null,null,null,null,null,null,null,null,null,null,null,null,null,null,null,null,null,null,null,null,null,null,null,null,null,null,null,null,null,null,null,null,null,null,null,null,null,null,null,null,null,null,null,null,null,null,null,null,null,null,null,null,null,null,null,null,null,null,null,null,null,null,null,null,null,null,null,null,null,null,null,null,null,null,null,null,null,null,null,null,null,null,null,null,null,null,null,null,null,null,null,null,"Тюменская область",null,null,null,null,26522800,"ООО «Газпром энерго» в зоне деятельности Сургутского филиала Общества с ограниченной ответственностью «Газпром энерго»","7736186950","860202001","1027739841370","2005-10-03",null,null,null,"РСО","/Электроэнергетика/Передача ЭЭ/РСО",null,"Y"]
[null,null,null,null,null,null,null,null,null,null,null,null,null,null,null,null,null,null,null,null,null,null,null,null,null,null,null,null,null,null,null,null,null,null,null,null,null,null,null,null,null,null,null,null,null,null,null,null,null,null,null,null,null,null,null,null,null,null,null,null,null,null,null,null,null,null,null,null,null,null,null,null,null,null,null,null,null,null,null,null,null,null,null,null,null,null,null,null,null,null,null,null,null,null,null,null,null,null,null,null,null,null,null,null,null,null,null,null,null,null,null,null,null,null,null,null,null,null,null,null,null,"Тюменская область",null,null,null,null,31044736,"ООО «ЭЛЕК»","8602281868","860201001","1178617021880","2017-11-08",null,null,null,"РСО","/Электроэнергетика/Передача ЭЭ/РСО",null,"Y"]
[null,null,null,null,null,null,null,null,null,null,null,null,null,null,null,null,null,null,null,null,null,null,null,null,null,null,null,null,null,null,null,null,null,null,null,null,null,null,null,null,null,null,null,null,null,null,null,null,null,null,null,null,null,null,null,null,null,null,null,null,null,null,null,null,null,null,null,null,null,null,null,null,null,null,null,null,null,null,null,null,null,null,null,null,null,null,null,null,null,null,null,null,null,null,null,null,null,null,null,null,null,null,null,null,null,null,null,null,null,null,null,null,null,null,null,null,null,null,null,null,null,"Тюменская область",null,null,null,null,31077469,"ООО РУСГАЗСЕРВИС","8601041542","860101001","1108601001497","2010-07-07",null,null,null,"Некомбинированная выработка","/Электроэнергетика/Производство ЭЭ/Некомбинированная выработка",null,"Y"]
[null,null,null,null,null,null,null,null,null,null,null,null,null,null,null,null,null,null,null,null,null,null,null,null,null,null,null,null,null,null,null,null,null,null,null,null,null,null,null,null,null,null,null,null,null,null,null,null,null,null,null,null,null,null,null,null,null,null,null,null,null,null,null,null,null,null,null,null,null,null,null,null,null,null,null,null,null,null,null,null,null,null,null,null,null,null,null,null,null,null,null,null,null,null,null,null,null,null,null,null,null,null,null,null,null,null,null,null,null,null,null,null,null,null,null,null,null,null,null,null,null,"Тюменская область",null,null,null,null,28856547,"ООО СК \"Восток\"","7203304688","720301001","1147232006910","2014-02-10",null,null,null,"РСО","/Электроэнергетика/Передача ЭЭ/РСО",null,"Y"]
[null,null,null,null,null,null,null,null,null,null,null,null,null,null,null,null,null,null,null,null,null,null,null,null,null,null,null,null,null,null,null,null,null,null,null,null,null,null,null,null,null,null,null,null,null,null,null,null,null,null,null,null,null,null,null,null,null,null,null,null,null,null,null,null,null,null,null,null,null,null,null,null,null,null,null,null,null,null,null,null,null,null,null,null,null,null,null,null,null,null,null,null,null,null,null,null,null,null,null,null,null,null,null,null,null,null,null,null,null,null,null,null,null,null,null,null,null,null,null,null,null,"Тюменская область",null,null,null,null,31618899,"ООО ЭСК Новая энергия","7453333057","745301001","1197456057370",null,null,null,null,"Нерегулируемый сбыт","/Электроэнергетика/Сбыт ЭЭ/Нерегулируемый сбыт",null,"Y"]
[null,null,null,null,null,null,null,null,null,null,null,null,null,null,null,null,null,null,null,null,null,null,null,null,null,null,null,null,null,null,null,null,null,null,null,null,null,null,null,null,null,null,null,null,null,null,null,null,null,null,null,null,null,null,null,null,null,null,null,null,null,null,null,null,null,null,null,null,null,null,null,null,null,null,null,null,null,null,null,null,null,null,null,null,null,null,null,null,null,null,null,null,null,null,null,null,null,null,null,null,null,null,null,null,null,null,null,null,null,null,null,null,null,null,null,null,null,null,null,null,null,"Тюменская область",null,null,null,null,26319010,"ООО Энергосбытовая компания \"Аган\",г.Радужный","8609018048","860901001","1048603250410",null,null,null,null,"Нерегулируемый сбыт","/Электроэнергетика/Сбыт ЭЭ/Нерегулируемый сбыт",null,"Y"]
[null,null,null,null,null,null,null,null,null,null,null,null,null,null,null,null,null,null,null,null,null,null,null,null,null,null,null,null,null,null,null,null,null,null,null,null,null,null,null,null,null,null,null,null,null,null,null,null,null,null,null,null,null,null,null,null,null,null,null,null,null,null,null,null,null,null,null,null,null,null,null,null,null,null,null,null,null,null,null,null,null,null,null,null,null,null,null,null,null,null,null,null,null,null,null,null,null,null,null,null,null,null,null,null,null,null,null,null,null,null,null,null,null,null,null,null,null,null,null,null,null,"Тюменская область",null,null,null,null,31289532,"Общество с ограниченной ответственностью «ЛУКОЙЛ-ЭНЕРГОСЕТИ»","5260230051","775050001","1088607000217",null,null,null,null,"Нерегулируемый сбыт","/Электроэнергетика/Сбыт ЭЭ/Нерегулируемый сбыт",null,"Y"]
[null,null,null,null,null,null,null,null,null,null,null,null,null,null,null,null,null,null,null,null,null,null,null,null,null,null,null,null,null,null,null,null,null,null,null,null,null,null,null,null,null,null,null,null,null,null,null,null,null,null,null,null,null,null,null,null,null,null,null,null,null,null,null,null,null,null,null,null,null,null,null,null,null,null,null,null,null,null,null,null,null,null,null,null,null,null,null,null,null,null,null,null,null,null,null,null,null,null,null,null,null,null,null,null,null,null,null,null,null,null,null,null,null,null,null,null,null,null,null,null,null,"Тюменская область",null,null,null,null,27604395,"Общество с ограниченной ответственностью «Энергосбытовая компания»","0275075272","027501001","1110280052651",null,null,null,null,"Нерегулируемый сбыт","/Электроэнергетика/Сбыт ЭЭ/Нерегулируемый сбыт",null,"Y"]
[null,null,null,null,null,null,null,null,null,null,null,null,null,null,null,null,null,null,null,null,null,null,null,null,null,null,null,null,null,null,null,null,null,null,null,null,null,null,null,null,null,null,null,null,null,null,null,null,null,null,null,null,null,null,null,null,null,null,null,null,null,null,null,null,null,null,null,null,null,null,null,null,null,null,null,null,null,null,null,null,null,null,null,null,null,null,null,null,null,null,null,null,null,null,null,null,null,null,null,null,null,null,null,null,null,null,null,null,null,null,null,null,null,null,null,null,null,null,null,null,null,"Тюменская область",null,null,null,null,28140166,"ПАО \"Передвижная энергетика\"","7719019846","890101001","1027700465418","2002-11-28",null,null,null,"Комбинированная выработка","/Электроэнергетика/Производство ЭЭ/Комбинированная выработка",null,"Y"]
[null,null,null,null,null,null,null,null,null,null,null,null,null,null,null,null,null,null,null,null,null,null,null,null,null,null,null,null,null,null,null,null,null,null,null,null,null,null,null,null,null,null,null,null,null,null,null,null,null,null,null,null,null,null,null,null,null,null,null,null,null,null,null,null,null,null,null,null,null,null,null,null,null,null,null,null,null,null,null,null,null,null,null,null,null,null,null,null,null,null,null,null,null,null,null,null,null,null,null,null,null,null,null,null,null,null,null,null,null,null,null,null,null,null,null,null,null,null,null,null,null,"Тюменская область",null,null,null,null,26535149,"ПАО \"Передвижная энергетика\" филиал \"ПЭС Казым\"","7719019846","861102001","1027700465418",null,null,null,null,"Некомбинированная выработка","/Электроэнергетика/Производство ЭЭ/Некомбинированная выработка",null,"Y"]
[null,null,null,null,null,null,null,null,null,null,null,null,null,null,null,null,null,null,null,null,null,null,null,null,null,null,null,null,null,null,null,null,null,null,null,null,null,null,null,null,null,null,null,null,null,null,null,null,null,null,null,null,null,null,null,null,null,null,null,null,null,null,null,null,null,null,null,null,null,null,null,null,null,null,null,null,null,null,null,null,null,null,null,null,null,null,null,null,null,null,null,null,null,null,null,null,null,null,null,null,null,null,null,null,null,null,null,null,null,null,null,null,null,null,null,null,null,null,null,null,null,"Тюменская область",null,null,null,null,28435937,"ПАО \"Передвижная энергетика\" филиал \"ПЭС Уренгой\"","7719019846","890402001","1027700465418",null,null,null,null,"Некомбинированная выработка","/Электроэнергетика/Производство ЭЭ/Некомбинированная выработка",null,"Y"]
[null,null,null,null,null,null,null,null,null,null,null,null,null,null,null,null,null,null,null,null,null,null,null,null,null,null,null,null,null,null,null,null,null,null,null,null,null,null,null,null,null,null,null,null,null,null,null,null,null,null,null,null,null,null,null,null,null,null,null,null,null,null,null,null,null,null,null,null,null,null,null,null,null,null,null,null,null,null,null,null,null,null,null,null,null,null,null,null,null,null,null,null,null,null,null,null,null,null,null,null,null,null,null,null,null,null,null,null,null,null,null,null,null,null,null,null,null,null,null,null,null,"Тюменская область",null,null,null,null,26423513,"ПАО \"Сургутнефтегаз\"","8602060555","997250001","1028600584540","2002-09-18",null,null,null,"РСО :: Некомбинированная выработка","/Электроэнергетика/Передача ЭЭ/РСО :: /Электроэнергетика/Производство ЭЭ/Некомбинированная выработка",null,"Y"]
[null,null,null,null,null,null,null,null,null,null,null,null,null,null,null,null,null,null,null,null,null,null,null,null,null,null,null,null,null,null,null,null,null,null,null,null,null,null,null,null,null,null,null,null,null,null,null,null,null,null,null,null,null,null,null,null,null,null,null,null,null,null,null,null,null,null,null,null,null,null,null,null,null,null,null,null,null,null,null,null,null,null,null,null,null,null,null,null,null,null,null,null,null,null,null,null,null,null,null,null,null,null,null,null,null,null,null,null,null,null,null,null,null,null,null,null,null,null,null,null,null,"Тюменская область",null,null,null,null,26832761,"ПАО \"ФСК - Россети\"","4716016979","773101001","1024701893336",null,null,null,null,"РСО","/Электроэнергетика/Передача ЭЭ/РСО",null,"Y"]
[null,null,null,null,null,null,null,null,null,null,null,null,null,null,null,null,null,null,null,null,null,null,null,null,null,null,null,null,null,null,null,null,null,null,null,null,null,null,null,null,null,null,null,null,null,null,null,null,null,null,null,null,null,null,null,null,null,null,null,null,null,null,null,null,null,null,null,null,null,null,null,null,null,null,null,null,null,null,null,null,null,null,null,null,null,null,null,null,null,null,null,null,null,null,null,null,null,null,null,null,null,null,null,null,null,null,null,null,null,null,null,null,null,null,null,null,null,null,null,null,null,"Тюменская область",null,null,null,null,27954259,"ПАО \"ФСК - Россети\"","4716016979","997450001","1024701893336",null,null,null,null,"РСО","/Электроэнергетика/Передача ЭЭ/РСО",null,"Y"]
[null,null,null,null,null,null,null,null,null,null,null,null,null,null,null,null,null,null,null,null,null,null,null,null,null,null,null,null,null,null,null,null,null,null,null,null,null,null,null,null,null,null,null,null,null,null,null,null,null,null,null,null,null,null,null,null,null,null,null,null,null,null,null,null,null,null,null,null,null,null,null,null,null,null,null,null,null,null,null,null,null,null,null,null,null,null,null,null,null,null,null,null,null,null,null,null,null,null,null,null,null,null,null,null,null,null,null,null,null,null,null,null,null,null,null,null,null,null,null,null,null,"Тюменская область",null,null,null,null,26551662,"ПАО \"Форвард Энерго\"","7203162698","997150001","1058602102437","2006-12-01",null,null,null,"Нерегулируемый сбыт","/Электроэнергетика/Сбыт ЭЭ/Нерегулируемый сбыт",null,"Y"]
[null,null,null,null,null,null,null,null,null,null,null,null,null,null,null,null,null,null,null,null,null,null,null,null,null,null,null,null,null,null,null,null,null,null,null,null,null,null,null,null,null,null,null,null,null,null,null,null,null,null,null,null,null,null,null,null,null,null,null,null,null,null,null,null,null,null,null,null,null,null,null,null,null,null,null,null,null,null,null,null,null,null,null,null,null,null,null,null,null,null,null,null,null,null,null,null,null,null,null,null,null,null,null,null,null,null,null,null,null,null,null,null,null,null,null,null,null,null,null,null,null,"Тюменская область",null,null,null,null,26867519,"ПАО \"Форвард Энерго\"","7203162698","745301001","1058602102437",null,null,null,null,"Комбинированная выработка","/Электроэнергетика/Производство ЭЭ/Комбинированная выработка",null,"Y"]
[null,null,null,null,null,null,null,null,null,null,null,null,null,null,null,null,null,null,null,null,null,null,null,null,null,null,null,null,null,null,null,null,null,null,null,null,null,null,null,null,null,null,null,null,null,null,null,null,null,null,null,null,null,null,null,null,null,null,null,null,null,null,null,null,null,null,null,null,null,null,null,null,null,null,null,null,null,null,null,null,null,null,null,null,null,null,null,null,null,null,null,null,null,null,null,null,null,null,null,null,null,null,null,null,null,null,null,null,null,null,null,null,null,null,null,null,null,null,null,null,null,"Тюменская область",null,null,null,null,26551662,"ПАО \"Форвард Энерго\"","7203162698","997150001","1058602102437","2006-12-01",null,null,null,"Комбинированная выработка","/Электроэнергетика/Производство ЭЭ/Комбинированная выработка",null,"Y"]
[null,null,null,null,null,null,null,null,null,null,null,null,null,null,null,null,null,null,null,null,null,null,null,null,null,null,null,null,null,null,null,null,null,null,null,null,null,null,null,null,null,null,null,null,null,null,null,null,null,null,null,null,null,null,null,null,null,null,null,null,null,null,null,null,null,null,null,null,null,null,null,null,null,null,null,null,null,null,null,null,null,null,null,null,null,null,null,null,null,null,null,null,null,null,null,null,null,null,null,null,null,null,null,null,null,null,null,null,null,null,null,null,null,null,null,null,null,null,null,null,null,"Тюменская область",null,null,null,null,26867636,"ПАО \"Форвард Энерго\" (Няганская ГРЭС)","7203162698","861002001","1058602102437","2011-07-15",null,null,null,"Некомбинированная выработка","/Электроэнергетика/Производство ЭЭ/Некомбинированная выработка",null,"Y"]
[null,null,null,null,null,null,null,null,null,null,null,null,null,null,null,null,null,null,null,null,null,null,null,null,null,null,null,null,null,null,null,null,null,null,null,null,null,null,null,null,null,null,null,null,null,null,null,null,null,null,null,null,null,null,null,null,null,null,null,null,null,null,null,null,null,null,null,null,null,null,null,null,null,null,null,null,null,null,null,null,null,null,null,null,null,null,null,null,null,null,null,null,null,null,null,null,null,null,null,null,null,null,null,null,null,null,null,null,null,null,null,null,null,null,null,null,null,null,null,null,null,"Тюменская область",null,null,null,null,26867527,"ПАО \"Форвард Энерго\" (Тобольская ТЭЦ)","7203162698","720602001","1058602102437","2011-07-21",null,null,null,"Комбинированная выработка","/Электроэнергетика/Производство ЭЭ/Комбинированная выработка",null,"Y"]
[null,null,null,null,null,null,null,null,null,null,null,null,null,null,null,null,null,null,null,null,null,null,null,null,null,null,null,null,null,null,null,null,null,null,null,null,null,null,null,null,null,null,null,null,null,null,null,null,null,null,null,null,null,null,null,null,null,null,null,null,null,null,null,null,null,null,null,null,null,null,null,null,null,null,null,null,null,null,null,null,null,null,null,null,null,null,null,null,null,null,null,null,null,null,null,null,null,null,null,null,null,null,null,null,null,null,null,null,null,null,null,null,null,null,null,null,null,null,null,null,null,"Тюменская область",null,null,null,null,26867627,"ПАО \"Форвард Энерго\" (Тюменская ТЭЦ-1)","7203162698","720302001","1058602102437","2011-07-15",null,null,null,"Комбинированная выработка","/Электроэнергетика/Производство ЭЭ/Комбинированная выработка",null,"Y"]
[null,null,null,null,null,null,null,null,null,null,null,null,null,null,null,null,null,null,null,null,null,null,null,null,null,null,null,null,null,null,null,null,null,null,null,null,null,null,null,null,null,null,null,null,null,null,null,null,null,null,null,null,null,null,null,null,null,null,null,null,null,null,null,null,null,null,null,null,null,null,null,null,null,null,null,null,null,null,null,null,null,null,null,null,null,null,null,null,null,null,null,null,null,null,null,null,null,null,null,null,null,null,null,null,null,null,null,null,null,null,null,null,null,null,null,null,null,null,null,null,null,"Тюменская область",null,null,null,null,27296398,"ПАО \"Юнипро\"","8602067092","860201001","1058602056985",null,null,null,null,"Комбинированная выработка :: Некомбинированная выработка","/Электроэнергетика/Производство ЭЭ/Комбинированная выработка :: /Электроэнергетика/Производство ЭЭ/Некомбинированная выработка",null,"Y"]
[null,null,null,null,null,null,null,null,null,null,null,null,null,null,null,null,null,null,null,null,null,null,null,null,null,null,null,null,null,null,null,null,null,null,null,null,null,null,null,null,null,null,null,null,null,null,null,null,null,null,null,null,null,null,null,null,null,null,null,null,null,null,null,null,null,null,null,null,null,null,null,null,null,null,null,null,null,null,null,null,null,null,null,null,null,null,null,null,null,null,null,null,null,null,null,null,null,null,null,null,null,null,null,null,null,null,null,null,null,null,null,null,null,null,null,null,null,null,null,null,null,"Тюменская область",null,null,null,null,26318617,"ПИИ ОАО \"Газтурбосервис\"","7203078728","720301001","1027200817852",null,null,null,null,"Некомбинированная выработка","/Электроэнергетика/Производство ЭЭ/Некомбинированная выработка",null,"Y"]
[null,null,null,null,null,null,null,null,null,null,null,null,null,null,null,null,null,null,null,null,null,null,null,null,null,null,null,null,null,null,null,null,null,null,null,null,null,null,null,null,null,null,null,null,null,null,null,null,null,null,null,null,null,null,null,null,null,null,null,null,null,null,null,null,null,null,null,null,null,null,null,null,null,null,null,null,null,null,null,null,null,null,null,null,null,null,null,null,null,null,null,null,null,null,null,null,null,null,null,null,null,null,null,null,null,null,null,null,null,null,null,null,null,null,null,null,null,null,null,null,null,"Тюменская область",null,null,null,null,28145914,"Публичное акционерное общество «Славнефть-Мегионнефтегаз»","8605003932","860501001","1028601354088",null,null,null,null,"Некомбинированная выработка","/Электроэнергетика/Производство ЭЭ/Некомбинированная выработка",null,"Y"]
[null,null,null,null,null,null,null,null,null,null,null,null,null,null,null,null,null,null,null,null,null,null,null,null,null,null,null,null,null,null,null,null,null,null,null,null,null,null,null,null,null,null,null,null,null,null,null,null,null,null,null,null,null,null,null,null,null,null,null,null,null,null,null,null,null,null,null,null,null,null,null,null,null,null,null,null,null,null,null,null,null,null,null,null,null,null,null,null,null,null,null,null,null,null,null,null,null,null,null,null,null,null,null,null,null,null,null,null,null,null,null,null,null,null,null,null,null,null,null,null,null,"Тюменская область",null,null,null,null,26319011,"РЭУ  ОАО \"Запсибгазпром\"","7203001796","720345001","1027200821196",null,null,null,null,"Нерегулируемый сбыт","/Электроэнергетика/Сбыт ЭЭ/Нерегулируемый сбыт",null,"Y"]
[null,null,null,null,null,null,null,null,null,null,null,null,null,null,null,null,null,null,null,null,null,null,null,null,null,null,null,null,null,null,null,null,null,null,null,null,null,null,null,null,null,null,null,null,null,null,null,null,null,null,null,null,null,null,null,null,null,null,null,null,null,null,null,null,null,null,null,null,null,null,null,null,null,null,null,null,null,null,null,null,null,null,null,null,null,null,null,null,null,null,null,null,null,null,null,null,null,null,null,null,null,null,null,null,null,null,null,null,null,null,null,null,null,null,null,null,null,null,null,null,null,"Тюменская область",null,null,null,null,31652178,"Свердловский филиал ООО \"Гарант Плюс\"","7709756784","667043001","1077759934284",null,null,null,null,"Нерегулируемый сбыт","/Электроэнергетика/Сбыт ЭЭ/Нерегулируемый сбыт",null,"Y"]
[null,null,null,null,null,null,null,null,null,null,null,null,null,null,null,null,null,null,null,null,null,null,null,null,null,null,null,null,null,null,null,null,null,null,null,null,null,null,null,null,null,null,null,null,null,null,null,null,null,null,null,null,null,null,null,null,null,null,null,null,null,null,null,null,null,null,null,null,null,null,null,null,null,null,null,null,null,null,null,null,null,null,null,null,null,null,null,null,null,null,null,null,null,null,null,null,null,null,null,null,null,null,null,null,null,null,null,null,null,null,null,null,null,null,null,null,null,null,null,null,null,"Тюменская область",null,null,null,null,30906887,"Свердловский филиал ООО \"ЕЭС-Гарант\"","5024173259","667043001","1175024009918",null,null,null,null,"Нерегулируемый сбыт","/Электроэнергетика/Сбыт ЭЭ/Нерегулируемый сбыт",null,"Y"]
[null,null,null,null,null,null,null,null,null,null,null,null,null,null,null,null,null,null,null,null,null,null,null,null,null,null,null,null,null,null,null,null,null,null,null,null,null,null,null,null,null,null,null,null,null,null,null,null,null,null,null,null,null,null,null,null,null,null,null,null,null,null,null,null,null,null,null,null,null,null,null,null,null,null,null,null,null,null,null,null,null,null,null,null,null,null,null,null,null,null,null,null,null,null,null,null,null,null,null,null,null,null,null,null,null,null,null,null,null,null,null,null,null,null,null,null,null,null,null,null,null,"Тюменская область",null,null,null,null,26754796,"Северная дирекция по энергообеспечению - структурное подразделение Трансэнерго - филиала ОАО \"Российские железные дороги\"","7708503727","760445013","1037739877295",null,null,null,null,"РСО","/Электроэнергетика/Передача ЭЭ/РСО",null,"Y"]
[null,null,null,null,null,null,null,null,null,null,null,null,null,null,null,null,null,null,null,null,null,null,null,null,null,null,null,null,null,null,null,null,null,null,null,null,null,null,null,null,null,null,null,null,null,null,null,null,null,null,null,null,null,null,null,null,null,null,null,null,null,null,null,null,null,null,null,null,null,null,null,null,null,null,null,null,null,null,null,null,null,null,null,null,null,null,null,null,null,null,null,null,null,null,null,null,null,null,null,null,null,null,null,null,null,null,null,null,null,null,null,null,null,null,null,null,null,null,null,null,null,"Тюменская область",null,null,null,null,26405743,"Уренгойский филиал ООО \"Газпром энерго\"","7736186950","890402001","1027739841370","2005-10-03",null,null,null,"РСО","/Электроэнергетика/Передача ЭЭ/РСО",null,"Y"]
[null,null,null,null,null,null,null,null,null,null,null,null,null,null,null,null,null,null,null,null,null,null,null,null,null,null,null,null,null,null,null,null,null,null,null,null,null,null,null,null,null,null,null,null,null,null,null,null,null,null,null,null,null,null,null,null,null,null,null,null,null,null,null,null,null,null,null,null,null,null,null,null,null,null,null,null,null,null,null,null,null,null,null,null,null,null,null,null,null,null,null,null,null,null,null,null,null,null,null,null,null,null,null,null,null,null,null,null,null,null,null,null,null,null,null,null,null,null,null,null,null,"Тюменская область",null,null,null,null,26375268,"ФБУ Центр реабилитации СФР \"Тараскуль\"","7204013642","720301001","1027200784654",null,null,null,null,"РСО","/Электроэнергетика/Передача ЭЭ/РСО",null,"Y"]
[null,null,null,null,null,null,null,null,null,null,null,null,null,null,null,null,null,null,null,null,null,null,null,null,null,null,null,null,null,null,null,null,null,null,null,null,null,null,null,null,null,null,null,null,null,null,null,null,null,null,null,null,null,null,null,null,null,null,null,null,null,null,null,null,null,null,null,null,null,null,null,null,null,null,null,null,null,null,null,null,null,null,null,null,null,null,null,null,null,null,null,null,null,null,null,null,null,null,null,null,null,null,null,null,null,null,null,null,null,null,null,null,null,null,null,null,null,null,null,null,null,"Тюменская область",null,null,null,null,26522992,"Филиал \"Уренгойская ГРЭС\" АО \"Интер РАО - Электрогенерация\"","7704784450","890443001","1117746460358","2011-06-15",null,null,null,"Комбинированная выработка","/Электроэнергетика/Производство ЭЭ/Комбинированная выработка",null,"Y"]
[null,null,null,null,null,null,null,null,null,null,null,null,null,null,null,null,null,null,null,null,null,null,null,null,null,null,null,null,null,null,null,null,null,null,null,null,null,null,null,null,null,null,null,null,null,null,null,null,null,null,null,null,null,null,null,null,null,null,null,null,null,null,null,null,null,null,null,null,null,null,null,null,null,null,null,null,null,null,null,null,null,null,null,null,null,null,null,null,null,null,null,null,null,null,null,null,null,null,null,null,null,null,null,null,null,null,null,null,null,null,null,null,null,null,null,null,null,null,null,null,null,"Тюменская область",null,null,null,null,26519983,"Филиал ПАО \"ОГК-2\"- Сургутская ГРЭС-1","2607018122","860202001","1052600002180",null,null,null,null,"Некомбинированная выработка","/Электроэнергетика/Производство ЭЭ/Некомбинированная выработка",null,"Y"]
[null,null,null,null,null,null,null,null,null,null,null,null,null,null,null,null,null,null,null,null,null,null,null,null,null,null,null,null,null,null,null,null,null,null,null,null,null,null,null,null,null,null,null,null,null,null,null,null,null,null,null,null,null,null,null,null,null,null,null,null,null,null,null,null,null,null,null,null,null,null,null,null,null,null,null,null,null,null,null,null,null,null,null,null,null,null,null,null,null,null,null,null,null,null,null,null,null,null,null,null,null,null,null,null,null,null,null,null,null,null,null,null,null,null,null,null,null,null,null,null,null,"Тюменская область",null,null,null,null,26423553,"филиал \"Сургутская ГРЭС-2\" ПАО \"Юнипро\"","8602067092","860202001","1058602056985","2004-03-04",null,null,null,"Комбинированная выработка","/Электроэнергетика/Производство ЭЭ/Комбинированная выработка",null,"Y"]
[null,null,null,null,null,null,null,null,null,null,null,null,null,null,null,null,null,null,null,null,null,null,null,null,null,null,null,null,null,null,null,null,null,null,null,null,null,null,null,null,null,null,null,null,null,null,null,null,null,null,null,null,null,null,null,null,null,null,null,null,null,null,null,null,null,null,null,null,null,null,null,null,null,null,null,null,null,null,null,null,null,null,null,null,null,null,null,null,null,null,null,null,null,null,null,null,null,null,null,null,null,null,null,null,null,null,null,null,null,null,null,null,null,null,null,null,null,null,null,null,null,"Тюменская область",null,null,null,null,26576128,"филиал ОАО \"РЖД\" - Свердловская ж.д. (Сургутская дистанция)","7708503727","860245012","1037739877295",null,null,null,null,"РСО","/Электроэнергетика/Передача ЭЭ/РСО",null,"Y"]
[null,null,null,null,null,null,null,null,null,null,null,null,null,null,null,null,null,null,null,null,null,null,null,null,null,null,null,null,null,null,null,null,null,null,null,null,null,null,null,null,null,null,null,null,null,null,null,null,null,null,null,null,null,null,null,null,null,null,null,null,null,null,null,null,null,null,null,null,null,null,null,null,null,null,null,null,null,null,null,null,null,null,null,null,null,null,null,null,null,null,null,null,null,null,null,null,null,null,null,null,null,null,null,null,null,null,null,null,null,null,null,null,null,null,null,null,null,null,null,null,null,"Тюменская область",null,null,null,null,26794979,"филиал ОАО \"РЖД\"- Свердловская ж.д. (Тюменская дистанция)","7708503727","720445015","1037739877295",null,null,null,null,"РСО","/Электроэнергетика/Передача ЭЭ/РСО",null,"Y"]

{"sheet":"REESTR_MO","index":8,"n_rows":301,"n_cols":6,"rows_kept":301,"cut":false,"hidden":true,"merged":[]}
["МР","МО","ОКТМО","Тип МО","Муниципальный район","Имя диапазона"]
["Абатский муниципальный район","Абатский муниципальный район","71603000","муниципальный район","Абатский муниципальный район","MO_LIST_1"]
["Абатский муниципальный район","Абатское","71603402","сельское поселение","Армизонский муниципальный район","MO_LIST_2"]
["Абатский муниципальный район","Банниковское","71603410","сельское поселение","Аромашевский муниципальный район","MO_LIST_3"]
["Абатский муниципальный район","Болдыревское","71603415","сельское поселение","Бердюжский муниципальный район","MO_LIST_4"]
["Абатский муниципальный район","Коневское","71603430","сельское поселение","Вагайский муниципальный район","MO_LIST_5"]
["Абатский муниципальный район","Ленинское","71603435","сельское поселение","Викуловский муниципальный район","MO_LIST_6"]
["Абатский муниципальный район","Майское","71603440","сельское поселение","Голышмановский","MO_LIST_7"]
["Абатский муниципальный район","Назаровское","71603445","сельское поселение","Город Ишим","MO_LIST_8"]
["Абатский муниципальный район","Ощепковское","71603450","сельское поселение","Исетский муниципальный район","MO_LIST_9"]
["Абатский муниципальный район","Партизанское","71603455","сельское поселение","Ишимский муниципальный район","MO_LIST_10"]
["Абатский муниципальный район","Тушнолобовское","71603460","сельское поселение","Казанский муниципальный район","MO_LIST_11"]
["Абатский муниципальный район","Шевыринское","71603465","сельское поселение","Нижнетавдинский муниципальный район","MO_LIST_12"]
["Армизонский муниципальный район","Армизонский муниципальный район","71605000","муниципальный район","Омутинский муниципальный район","MO_LIST_13"]
["Армизонский муниципальный район","Армизонское","71605405","сельское поселение","Сладковский муниципальный район","MO_LIST_14"]
["Армизонский муниципальный район","Ивановское","71605410","сельское поселение","Сорокинский муниципальный район","MO_LIST_15"]
["Армизонский муниципальный район","Калмакское","71605415","сельское поселение","Тобольский муниципальный район","MO_LIST_16"]
["Армизонский муниципальный район","Капралихинское","71605420","сельское поселение","Тюменский муниципальный район","MO_LIST_17"]
["Армизонский муниципальный район","Красноорловское","71605425","сельское поселение","Уватский муниципальный район","MO_LIST_18"]
["Армизонский муниципальный район","Орловское","71605430","сельское поселение","Упоровский муниципальный район","MO_LIST_19"]
["Армизонский муниципальный район","Прохоровское","71605435","сельское поселение","Юргинский муниципальный район","MO_LIST_20"]
["Армизонский муниципальный район","Раздольское","71605440","сельское поселение","Ялуторовский муниципальный район","MO_LIST_21"]
["Армизонский муниципальный район","Южно-Дубровинское","71605445","сельское поселение","Ярковский муниципальный район","MO_LIST_22"]
["Аромашевский муниципальный район","Аромашевский муниципальный район","71607000","муниципальный район","город Заводоуковск","MO_LIST_23"]
["Аромашевский муниципальный район","Аромашевское","71607405","сельское поселение","город Тобольск","MO_LIST_24"]
["Аромашевский муниципальный район","Кармацкое","71607410","сельское поселение","город Тюмень","MO_LIST_25"]
["Аромашевский муниципальный район","Кротовское","71607415","сельское поселение","город Ялуторовск","MO_LIST_26"]
["Аромашевский муниципальный район","Малиновское","71607420","сельское поселение"]
["Аромашевский муниципальный район","Малоскарединское","71607425","сельское поселение"]
["Аромашевский муниципальный район","Новоберезовское","71607430","сельское поселение"]
["Аромашевский муниципальный район","Новопетровское","71607435","сельское поселение"]
["Аромашевский муниципальный район","Русаковское","71607440","сельское поселение"]
["Аромашевский муниципальный район","Слободчиковское","71607445","сельское поселение"]
["Аромашевский муниципальный район","Сорочкинское","71607450","сельское поселение"]
["Аромашевский муниципальный район","Юрминское","71607455","сельское поселение"]
["Бердюжский муниципальный район","Бердюжский муниципальный район","71610000","муниципальный район"]
["Бердюжский муниципальный район","Бердюжское","71610410","сельское поселение"]
["Бердюжский муниципальный район","Зарословское","71610420","сельское поселение"]
["Бердюжский муниципальный район","Истошинское","71610430","сельское поселение"]
["Бердюжский муниципальный район","Мелехинское","71610440","сельское поселение"]
["Бердюжский муниципальный район","Окуневское","71610450","сельское поселение"]
["Бердюжский муниципальный район","Пегановское","71610460","сельское поселение"]
["Бердюжский муниципальный район","Полозаозерское","71610470","сельское поселение"]
["Бердюжский муниципальный район","Рямовское","71610474","сельское поселение"]
["Бердюжский муниципальный район","Уктузское","71610480","сельское поселение"]
["Вагайский муниципальный район","Аксурское","71613404","сельское поселение"]
["Вагайский муниципальный район","Бегишевское","71613412","сельское поселение"]
["Вагайский муниципальный район","Вагайский муниципальный район","71613000","муниципальный район"]
["Вагайский муниципальный район","Вершинское","71613416","сельское поселение"]
["Вагайский муниципальный район","Дубровинское","71613428","сельское поселение"]
["Вагайский муниципальный район","Зареченское","71613424","сельское поселение"]
["Вагайский муниципальный район","Казанское","71613456","сельское поселение"]
["Вагайский муниципальный район","Карагайское","71613432","сельское поселение"]
["Вагайский муниципальный район","Касьяновское","71613436","сельское поселение"]
["Вагайский муниципальный район","Куларовское","71613444","сельское поселение"]
["Вагайский муниципальный район","Первовагайское","71613460","сельское поселение"]
["Вагайский муниципальный район","Первомайское","71613464","сельское поселение"]
["Вагайский муниципальный район","Птицкое","71613468","сельское поселение"]
["Вагайский муниципальный район","Супринское","71613472","сельское поселение"]
["Вагайский муниципальный район","Тукузское","71613476","сельское поселение"]
["Вагайский муниципальный район","Ушаковское","71613480","сельское поселение"]
["Вагайский муниципальный район","Фатеевское","71613484","сельское поселение"]
["Вагайский муниципальный район","Черноковское","71613488","сельское поселение"]
["Вагайский муниципальный район","Шестовское","71613492","сельское поселение"]
["Вагайский муниципальный район","Шишкинское","71613408","сельское поселение"]
["Викуловский муниципальный район","Балаганское","71615404","сельское поселение"]
["Викуловский муниципальный район","Березинское","71615408","сельское поселение"]
["Викуловский муниципальный район","Викуловский муниципальный район","71615000","муниципальный район"]
["Викуловский муниципальный район","Викуловское","71615412","сельское поселение"]
["Викуловский муниципальный район","Ермаковское","71615416","сельское поселение"]
["Викуловский муниципальный район","Калининское","71615420","сельское поселение"]
["Викуловский муниципальный район","Каргалинское","71615424","сельское поселение"]
["Викуловский муниципальный район","Коточиговское","71615428","сельское поселение"]
["Викуловский муниципальный район","Нововяткинское","71615432","сельское поселение"]
["Викуловский муниципальный район","Озернинское","71615436","сельское поселение"]
["Викуловский муниципальный район","Поддубровинское","71615440","сельское поселение"]
["Викуловский муниципальный район","Рябовское","71615444","сельское поселение"]
["Викуловский муниципальный район","Сартамское","71615448","сельское поселение"]
["Викуловский муниципальный район","Скрипкинское","71615452","сельское поселение"]
["Викуловский муниципальный район","Чуртанское","71615456","сельское поселение"]
["Голышмановский","Голышмановский","71702000","городской округ"]
["Город Ишим","Город Ишим","71705000","городской округ"]
["Исетский муниципальный район","Архангельское","71624403","сельское поселение"]
["Исетский муниципальный район","Бархатовское","71624405","сельское поселение"]
["Исетский муниципальный район","Бобылевское","71624410","сельское поселение"]
["Исетский муниципальный район","Верхнебешкильское","71624415","сельское поселение"]
["Исетский муниципальный район","Верхнеингальское","71624417","сельское поселение"]
["Исетский муниципальный район","Денисовское","71624420","сельское поселение"]
["Исетский муниципальный район","Исетский муниципальный район","71624000","муниципальный район"]
["Исетский муниципальный район","Исетское","71624425","сельское поселение"]
["Исетский муниципальный район","Кировское","71624427","сельское поселение"]
["Исетский муниципальный район","Коммунаровское","71624430","сельское поселение"]
["Исетский муниципальный район","Красновское","71624435","сельское поселение"]
["Исетский муниципальный район","Мининское","71624440","сельское поселение"]
["Исетский муниципальный район","Рассветовское","71624445","сельское поселение"]
["Исетский муниципальный район","Рафайловское","71624450","сельское поселение"]
["Исетский муниципальный район","Слободобешкильское","71624455","сельское поселение"]
["Исетский муниципальный район","Солобоевское","71624460","сельское поселение"]
["Исетский муниципальный район","Шороховское","71624465","сельское поселение"]
["Ишимский муниципальный район","Боровское","71626404","сельское поселение"]
["Ишимский муниципальный район","Бутусовское","71626408","сельское поселение"]
["Ишимский муниципальный район","Второпесьяновское","71626412","сельское поселение"]
["Ишимский муниципальный район","Гагаринское","71626416","сельское поселение"]
["Ишимский муниципальный район","Десятовское","71626420","сельское поселение"]
["Ишимский муниципальный район","Дымковское","71626424","сельское поселение"]
["Ишимский муниципальный район","Ишимский муниципальный район","71626000","муниципальный район"]
["Ишимский муниципальный район","Карасульское","71626428","сельское поселение"]
["Ишимский муниципальный район","Клепиковское","71626432","сельское поселение"]
["Ишимский муниципальный район","Ларихинское","71626436","сельское поселение"]
["Ишимский муниципальный район","Мизоновское","71626440","сельское поселение"]
["Ишимский муниципальный район","Неволинское","71626442","сельское поселение"]
["Ишимский муниципальный район","Новолоктинское","71626444","сельское поселение"]
["Ишимский муниципальный район","Новотравнинское","71626448","сельское поселение"]
["Ишимский муниципальный район","Пахомовское","71626452","сельское поселение"]
["Ишимский муниципальный район","Первопесьяновское","71626456","сельское поселение"]
["Ишимский муниципальный район","Плешковское","71626460","сельское поселение"]
["Ишимский муниципальный район","Прокуткинское","71626464","сельское поселение"]
["Ишимский муниципальный район","Равнецкое","71626468","сельское поселение"]
["Ишимский муниципальный район","Стрехнинское","71626472","сельское поселение"]
["Ишимский муниципальный район","Тоболовское","71626476","сельское поселение"]
["Ишимский муниципальный район","Черемшанское","71626484","сельское поселение"]
["Ишимский муниципальный район","Шаблыкинское","71626488","сельское поселение"]
["Казанский муниципальный район","Афонькинское","71630405","сельское поселение"]
["Казанский муниципальный район","Большеченчерское","71630410","сельское поселение"]
["Казанский муниципальный район","Большеярковское","71630415","сельское поселение"]
["Казанский муниципальный район","Гагарьевское","71630420","сельское поселение"]
["Казанский муниципальный район","Дубынское","71630425","сельское поселение"]
["Казанский муниципальный район","Ильинское","71630430","сельское поселение"]
["Казанский муниципальный район","Казанский муниципальный район","71630000","муниципальный район"]
["Казанский муниципальный район","Казанское","71630432","сельское поселение"]
["Казанский муниципальный район","Огневское","71630435","сельское поселение"]
["Казанский муниципальный район","Пешневское","71630440","сельское поселение"]
["Казанский муниципальный район","Смирновское","71630445","сельское поселение"]
["Казанский муниципальный район","Челюскинское","71630450","сельское поселение"]
["Казанский муниципальный район","Чирковское","71630452","сельское поселение"]
["Казанский муниципальный район","Яровское","71630455","сельское поселение"]
["Нижнетавдинский муниципальный район","Андрюшинское","71632404","сельское поселение"]
["Нижнетавдинский муниципальный район","Антипинское","71632408","сельское поселение"]
["Нижнетавдинский муниципальный район","Березовское","71632412","сельское поселение"]
["Нижнетавдинский муниципальный район","Бухтальское","71632416","сельское поселение"]
["Нижнетавдинский муниципальный район","Велижанское","71632420","сельское поселение"]
["Нижнетавдинский муниципальный район","Искинское","71632428","сельское поселение"]
["Нижнетавдинский муниципальный район","Канашское","71632432","сельское поселение"]
["Нижнетавдинский муниципальный район","Ключевское","71632440","сельское поселение"]
["Нижнетавдинский муниципальный район","Миясское","71632448","сельское поселение"]
["Нижнетавдинский муниципальный район","Нижнетавдинский муниципальный район","71632000","муниципальный район"]
["Нижнетавдинский муниципальный район","Нижнетавдинское","71632450","сельское поселение"]
["Нижнетавдинский муниципальный район","Новоникольское","71632452","сельское поселение"]
["Нижнетавдинский муниципальный район","Новотроицкое","71632456","сельское поселение"]
["Нижнетавдинский муниципальный район","Тавдинское","71632469","сельское поселение"]
["Нижнетавдинский муниципальный район","Тарманское","71632472","сельское поселение"]
["Нижнетавдинский муниципальный район","Тюневское","71632475","сельское поселение"]
["Нижнетавдинский муниципальный район","Черепановское","71632478","сельское поселение"]
["Нижнетавдинский муниципальный район","Чугунаевское","71632482","сельское поселение"]
["Омутинский муниципальный район","Большекрасноярское","71634411","сельское поселение"]
["Омутинский муниципальный район","Вагайское","71634415","сельское поселение"]
["Омутинский муниципальный район","Журавлевское","71634422","сельское поселение"]
["Омутинский муниципальный район","Окуневское","71634444","сельское поселение"]
["Омутинский муниципальный район","Омутинский муниципальный район","71634000","муниципальный район"]
["Омутинский муниципальный район","Омутинское","71634448","сельское поселение"]
["Омутинский муниципальный район","Ситниковское","71634455","сельское поселение"]
["Омутинский муниципальный район","Шабановское","71634466","сельское поселение"]
["Омутинский муниципальный район","Южно-Плетневское","71634477","сельское поселение"]
["Сладковский муниципальный район","Александровское","71636405","сельское поселение"]
["Сладковский муниципальный район","Лопазновское","71636410","сельское поселение"]
["Сладковский муниципальный район","Майское","71636415","сельское поселение"]
["Сладковский муниципальный район","Маслянское","71636420","сельское поселение"]
["Сладковский муниципальный район","Менжинское","71636425","сельское поселение"]
["Сладковский муниципальный район","Никулинское","71636430","сельское поселение"]
["Сладковский муниципальный район","Новоандреевское","71636435","сельское поселение"]
["Сладковский муниципальный район","Сладковский муниципальный район","71636000","муниципальный район"]
["Сладковский муниципальный район","Сладковское","71636445","сельское поселение"]
["Сладковский муниципальный район","Степновское","71636450","сельское поселение"]
["Сладковский муниципальный район","Усовское","71636455","сельское поселение"]
["Сорокинский муниципальный район","Александровское","71638410","сельское поселение"]
["Сорокинский муниципальный район","Ворсихинское","71638420","сельское поселение"]
["Сорокинский муниципальный район","Готопутовское","71638430","сельское поселение"]
["Сорокинский муниципальный район","Знаменщиковское","71638440","сельское поселение"]
["Сорокинский муниципальный район","Пинигинское","71638470","сельское поселение"]
["Сорокинский муниципальный район","Покровское","71638480","сельское поселение"]
["Сорокинский муниципальный район","Сорокинский муниципальный район","71638000","муниципальный район"]
["Сорокинский муниципальный район","Сорокинское","71638490","сельское поселение"]
["Тобольский муниципальный район","Абалакское","71642405","сельское поселение"]
["Тобольский муниципальный район","Ачирское","71642407","сельское поселение"]
["Тобольский муниципальный район","Байкаловское","71642410","сельское поселение"]
["Тобольский муниципальный район","Башковское","71642425","сельское поселение"]
["Тобольский муниципальный район","Булашовское","71642415","сельское поселение"]
["Тобольский муниципальный район","Верхнеаремзянское","71642420","сельское поселение"]
["Тобольский муниципальный район","Ворогушинское","71642430","сельское поселение"]
["Тобольский муниципальный район","Дегтяревское","71642435","сельское поселение"]
["Тобольский муниципальный район","Ермаковское","71642440","сельское поселение"]
["Тобольский муниципальный район","Загваздинское","71642445","сельское поселение"]
["Тобольский муниципальный район","Карачинское","71642450","сельское поселение"]
["Тобольский муниципальный район","Кутарбитское","71642455","сельское поселение"]
["Тобольский муниципальный район","Лайтамакское","71642460","сельское поселение"]
["Тобольский муниципальный район","Малозоркальцевское","71642462","сельское поселение"]
["Тобольский муниципальный район","Надцынское","71642465","сельское поселение"]
["Тобольский муниципальный район","Овсянниковское","71642470","сельское поселение"]
["Тобольский муниципальный район","Полуяновское","71642473","сельское поселение"]
["Тобольский муниципальный район","Прииртышское","71642475","сельское поселение"]
["Тобольский муниципальный район","Санниковское","71642480","сельское поселение"]
["Тобольский муниципальный район","Сетовское","71642482","сельское поселение"]
["Тобольский муниципальный район","Тобольский муниципальный район","71642000","муниципальный район"]
["Тобольский муниципальный район","Ушаровское","71642485","сельское поселение"]
["Тобольский муниципальный район","Хмелевское","71642490","сельское поселение"]
["Тюменский муниципальный район","Андреевское","71644405","сельское поселение"]
["Тюменский муниципальный район","Богандинское","71644410","сельское поселение"]
["Тюменский муниципальный район","Винзилинское","71644416","сельское поселение"]
["Тюменский муниципальный район","Горьковское","71644417","сельское поселение"]
["Тюменский муниципальный район","Ембаевское","71644420","сельское поселение"]
["Тюменский муниципальный район","Каменское","71644425","сельское поселение"]
["Тюменский муниципальный район","Каскаринское","71644430","сельское поселение"]
["Тюменский муниципальный район","Кулаковское","71644440","сельское поселение"]
["Тюменский муниципальный район","Мальковское","71644445","сельское поселение"]
["Тюменский муниципальный район","Московское","71644450","сельское поселение"]
["Тюменский муниципальный район","Муллашинское","71644451","сельское поселение"]
["Тюменский муниципальный район","Наримановское","71644452","сельское поселение"]
["Тюменский муниципальный район","Новотарманское","71644456","сельское поселение"]
["Тюменский муниципальный район","Онохинское","71644458","сельское поселение"]
["Тюменский муниципальный район","Переваловское","71644460","сельское поселение"]
["Тюменский муниципальный район","Салаирское","71644470","сельское поселение"]
["Тюменский муниципальный район","Тюменский муниципальный район","71644000","муниципальный район"]
["Тюменский муниципальный район","Успенское","71644475","сельское поселение"]
["Тюменский муниципальный район","Червишевское","71644480","сельское поселение"]
["Тюменский муниципальный район","Чикчинское","71644485","сельское поселение"]
["Тюменский муниципальный район","поселок Боровский","71644412","сельское поселение"]
["Уватский муниципальный район","Алымское","71648405","сельское поселение"]
["Уватский муниципальный район","Горнослинкинское","71648410","сельское поселение"]
["Уватский муниципальный район","Демьянское","71648415","сельское поселение"]
["Уватский муниципальный район","Ивановское","71648420","сельское поселение"]
["Уватский муниципальный район","Красноярское","71648425","сельское поселение"]
["Уватский муниципальный район","Межселенная территория Уватского муниципального района","71648701","межселенная территория"]
["Уватский муниципальный район","Осинниковское","71648435","сельское поселение"]
["Уватский муниципальный район","Соровое","71648438","сельское поселение"]
["Уватский муниципальный район","Тугаловское","71648440","сельское поселение"]
["Уватский муниципальный район","Туртасское","71648445","сельское поселение"]
["Уватский муниципальный район","Уватский муниципальный район","71648000","муниципальный район"]
["Уватский муниципальный район","Уватское","71648450","сельское поселение"]
["Уватский муниципальный район","Укинское","71648452","сельское поселение"]
["Уватский муниципальный район","Юровское","71648455","сельское поселение"]
["Упоровский муниципальный район","Буньковское","71650405","сельское поселение"]
["Упоровский муниципальный район","Бызовское","71650410","сельское поселение"]
["Упоровский муниципальный район","Видоновское","71650415","сельское поселение"]
["Упоровский муниципальный район","Емуртлинское","71650420","сельское поселение"]
["Упоровский муниципальный район","Ингалинское","71650425","сельское поселение"]
["Упоровский муниципальный район","Коркинское","71650430","сельское поселение"]
["Упоровский муниципальный район","Крашенининское","71650435","сельское поселение"]
["Упоровский муниципальный район","Липихинское","71650440","сельское поселение"]
["Упоровский муниципальный район","Нижнеманайское","71650445","сельское поселение"]
["Упоровский муниципальный район","Пятковское","71650450","сельское поселение"]
["Упоровский муниципальный район","Скородумское","71650455","сельское поселение"]
["Упоровский муниципальный район","Суерское","71650460","сельское поселение"]
["Упоровский муниципальный район","Упоровский муниципальный район","71650000","муниципальный район"]
["Упоровский муниципальный район","Упоровское","71650465","сельское поселение"]
["Упоровский муниципальный район","Чернаковское","71650470","сельское поселение"]
["Юргинский муниципальный район","Агаракское","71653405","сельское поселение"]
["Юргинский муниципальный район","Бушуевское","71653420","сельское поселение"]
["Юргинский муниципальный район","Володинское","71653425","сельское поселение"]
["Юргинский муниципальный район","Зоновское","71653430","сельское поселение"]
["Юргинский муниципальный район","Лабинское","71653440","сельское поселение"]
["Юргинский муниципальный район","Лесное","71653443","сельское поселение"]
["Юргинский муниципальный район","Новотаповское","71653447","сельское поселение"]
["Юргинский муниципальный район","Северо-Плетневское","71653450","сельское поселение"]
["Юргинский муниципальный район","Шипаковское","71653460","сельское поселение"]
["Юргинский муниципальный район","Юргинский муниципальный район","71653000","муниципальный район"]
["Юргинский муниципальный район","Юргинское","71653465","сельское поселение"]
["Ялуторовский муниципальный район","Асланинское","71656405","сельское поселение"]
["Ялуторовский муниципальный район","Беркутское","71656410","сельское поселение"]
["Ялуторовский муниципальный район","Заводопетровское","71656413","сельское поселение"]
["Ялуторовский муниципальный район","Зиновское","71656415","сельское поселение"]
["Ялуторовский муниципальный район","Ивановское","71656420","сельское поселение"]
["Ялуторовский муниципальный район","Карабашское","71656422","сельское поселение"]
["Ялуторовский муниципальный район","Киевское","71656423","сельское поселение"]
["Ялуторовский муниципальный район","Коктюльское","71656425","сельское поселение"]
["Ялуторовский муниципальный район","Новоатьяловское","71656430","сельское поселение"]
["Ялуторовский муниципальный район","Памятнинское","71656435","сельское поселение"]
["Ялуторовский муниципальный район","Петелинское","71656440","сельское поселение"]
["Ялуторовский муниципальный район","Ревдинское","71656445","сельское поселение"]
["Ялуторовский муниципальный район","Сингульское","71656450","сельское поселение"]
["Ялуторовский муниципальный район","Старокавдыкское","71656455","сельское поселение"]
["Ялуторовский муниципальный район","Хохловское","71656460","сельское поселение"]
["Ялуторовский муниципальный район","Ялуторовский муниципальный район","71656000","муниципальный район"]
["Ярковский муниципальный район","Аксаринское","71658405","сельское поселение"]
["Ярковский муниципальный район","Гилевское","71658410","сельское поселение"]
["Ярковский муниципальный район","Дубровинское","71658415","сельское поселение"]
["Ярковский муниципальный район","Иевлевское","71658420","сельское поселение"]
["Ярковский муниципальный район","Караульноярское","71658425","сельское поселение"]
["Ярковский муниципальный район","Маранское","71658430","сельское поселение"]
["Ярковский муниципальный район","Новоалександровское","71658435","сельское поселение"]
["Ярковский муниципальный район","Плехановское","71658440","сельское поселение"]
["Ярковский муниципальный район","Покровское","71658445","сельское поселение"]
["Ярковский муниципальный район","Сорокинское","71658450","сельское поселение"]
["Ярковский муниципальный район","Староалександровское","71658455","сельское поселение"]
["Ярковский муниципальный район","Усальское","71658460","сельское поселение"]
["Ярковский муниципальный район","Щетковское","71658465","сельское поселение"]
["Ярковский муниципальный район","Ярковский муниципальный район","71658000","муниципальный район"]
["Ярковский муниципальный район","Ярковское","71658470","сельское поселение"]
["город Заводоуковск","город Заводоуковск","71703000","городской округ"]
["город Тобольск","город Тобольск","71710000","городской округ"]
["город Тюмень","город Тюмень","71701000","городской округ"]
["город Ялуторовск","город Ялуторовск","71715000","городской округ"]

{"sheet":"EGR_BY_ORGN_DATA","index":9,"n_rows":0,"n_cols":0,"rows_kept":0,"cut":false,"hidden":true,"merged":[]}

{"sheet":"FILE_STORE_DATA","index":10,"n_rows":2,"n_cols":6,"rows_kept":2,"cut":false,"hidden":true,"merged":[]}
[]
[null,"GUID","MIME","EXTENSION","CREATE_DATE","FORCE_ALLOWED"]

{"sheet":"LIST_SUBSIDIARY","index":11,"n_rows":0,"n_cols":0,"rows_kept":0,"cut":false,"hidden":true,"merged":[]}

{"sheet":"LIST_OKOPF","index":12,"n_rows":98,"n_cols":2,"rows_kept":98,"cut":false,"hidden":true,"merged":[]}
["№","Организационно-правовая форма"]
["NUMBER","OKOPF_NAME"]
[null,"1 10 51 | Полные товарищества"]
[null,"1 10 64 | Товарищества на вере (коммандитные товарищества)"]
[null,"1 22 47 | Публичные акционерные общества"]
[null,"1 22 67 | Непубличные акционерные общества"]
[null,"1 23 00 | Общества с ограниченной ответственностью"]
[null,"1 30 00 | Хозяйственные партнерства"]
[null,"1 41 00 | Сельскохозяйственные производственные кооперативы"]
[null,"1 41 53 | Сельскохозяйственные артели (колхозы)"]
[null,"1 41 54 | Рыболовецкие артели (колхозы)"]
[null,"1 41 55 | Кооперативные хозяйства (коопхозы)"]
[null,"1 42 00 | Производственные кооперативы (кроме сельскохозяйственных производственных кооперативов)"]
[null,"1 53 00 | Крестьянские (фермерские) хозяйства"]
[null,"1 90 00 | Прочие юридические лица, являющиеся коммерческими организациями"]
[null,"2 01 01 | Гаражные и гаражно-строительные кооперативы"]
[null,"2 01 02 | Жилищные или жилищно-строительные кооперативы"]
[null,"2 01 03 | Жилищные накопительные кооперативы"]
[null,"2 01 04 | Кредитные потребительские кооперативы"]
[null,"2 01 05 | Кредитные потребительские кооперативы граждан"]
[null,"2 01 06 | Кредитные кооперативы второго уровня"]
[null,"2 01 07 | Потребительские общества"]
[null,"2 01 08 | Общества взаимного страхования"]
[null,"2 01 09 | Сельскохозяйственные потребительские перерабатывающие кооперативы"]
[null,"2 01 10 | Сельскохозяйственные потребительские сбытовые (торговые) кооперативы"]
[null,"2 01 11 | Сельскохозяйственные потребительские обслуживающие кооперативы"]
[null,"2 01 12 | Сельскохозяйственные потребительские снабженческие кооперативы"]
[null,"2 01 15 | Сельскохозяйственные потребительские животноводческие кооперативы"]
[null,"2 01 16 | Сельскохозяйственные потребительские растениеводческие кооперативы"]
[null,"2 01 21 | Фонды проката"]
[null,"2 02 01 | Политические партии"]
[null,"2 02 02 | Профсоюзные организации"]
[null,"2 02 10 | Общественные движения"]
[null,"2 02 11 | Органы общественной самодеятельности"]
[null,"2 02 17 | Территориальные общественные самоуправления"]
[null,"2 06 01 | Ассоциации (союзы) экономического взаимодействия субъектов Российской Федерации"]
[null,"2 06 03 | Советы муниципальных образований субъектов Российской Федерации"]
[null,"2 06 04 | Союзы (ассоциации) кредитных кооперативов"]
[null,"2 06 05 | Союзы (ассоциации) кооперативов"]
[null,"2 06 06 | Союзы (ассоциации) общественных объединений"]
[null,"2 06 07 | Союзы (ассоциации) общин малочисленных народов"]
[null,"2 06 08 | Союзы потребительских обществ"]
[null,"2 06 09 | Адвокатские палаты"]
[null,"2 06 10 | Нотариальные палаты"]
[null,"2 06 11 | Торгово-промышленные палаты"]
[null,"2 06 12 | Объединения работодателей"]
[null,"2 06 13 | Объединения фермерских хозяйств"]
[null,"2 06 14 | Некоммерческие партнерства"]
[null,"2 06 15 | Адвокатские бюро"]
[null,"2 06 16 | Коллегии адвокатов"]
[null,"2 06 19 | Саморегулируемые организации"]
[null,"2 06 20 | Объединения (ассоциации и союзы) благотворительных организаций"]
[null,"2 07 02 | Садоводческие или огороднические некоммерческие товарищества"]
[null,"2 07 16 | Товарищества собственников жилья"]
[null,"2 11 00 | Казачьи общества, внесенные в государственный реестр казачьих обществ в Российской Федерации"]
[null,"2 12 00 | Общины коренных малочисленных народов Российской Федерации"]
[null,"3 00 01 | Представительства юридических лиц"]
[null,"3 00 02 | Филиалы юридических лиц"]
[null,"3 00 03 | Обособленные подразделения юридических лиц"]
[null,"3 00 04 | Структурные подразделения обособленных подразделений юридических лиц"]
[null,"3 00 05 | Паевые инвестиционные фонды"]
[null,"3 00 06 | Простые товарищества"]
[null,"3 00 08 | Районные суды, городские суды, межрайонные суды (районные суды)"]
[null,"4 00 01 | Межправительственные международные организации"]
[null,"4 00 02 | Неправительственные международные организации"]
[null,"5 01 01 | Главы крестьянских (фермерских) хозяйств"]
[null,"5 01 02 | Индивидуальные предприниматели"]
[null,"5 02 01 | Адвокаты, учредившие адвокатский кабинет"]
[null,"5 02 02 | Нотариусы, занимающиеся частной практикой"]
[null,"6 51 41 | Федеральные казенные предприятия"]
[null,"6 51 42 | Казенные предприятия субъектов Российской Федерации"]
[null,"6 51 43 | Муниципальные казенные предприятия"]
[null,"6 52 41 | Федеральные государственные унитарные предприятия"]
[null,"6 52 42 | Государственные унитарные предприятия субъектов Российской Федерации"]
[null,"6 52 43 | Муниципальные унитарные предприятия"]
[null,"7 04 01 | Благотворительные фонды"]
[null,"7 04 02 | Негосударственные пенсионные фонды"]
[null,"7 04 03 | Общественные фонды"]
[null,"7 04 04 | Экологические фонды"]
[null,"7 14 00 | Автономные некоммерческие организации"]
[null,"7 15 00 | Религиозные организации"]
[null,"7 16 01 | Государственные корпорации"]
[null,"7 16 02 | Государственные компании"]
[null,"7 16 10 | Отделения иностранных некоммерческих неправительственных организаций"]
[null,"7 51 01 | Федеральные государственные автономные учреждения"]
[null,"7 51 03 | Федеральные государственные бюджетные учреждения"]
[null,"7 51 04 | Федеральные государственные казенные учреждения"]
[null,"7 51 05 | Государственные внебюджетные фонды Российской Федерации"]
[null,"7 52 01 | Государственные автономные учреждения субъектов Российской Федерации"]
[null,"7 52 03 | Государственные бюджетные учреждения субъектов Российской Федерации"]
[null,"7 52 04 | Государственные казенные учреждения субъектов Российской Федерации"]
[null,"7 53 00 | Государственные академии наук"]
[null,"7 54 01 | Муниципальные автономные учреждения"]
[null,"7 54 03 | Муниципальные бюджетные учреждения"]
[null,"7 54 04 | Муниципальные казенные учреждения"]
[null,"7 55 00 | Частные учреждения"]
[null,"7 55 02 | Благотворительные учреждения"]
[null,"7 55 05 | Общественные учреждения"]

{"sheet":"RPT_STATISTICS","index":13,"n_rows":3,"n_cols":3,"rows_kept":3,"cut":false,"hidden":true,"merged":[]}
["PRD2_NAME","RPT_STATUS","RPT_DATE"]
["Январь","Принят","19.02.2024 09:16:11"]
["Февраль","Принят","20.03.2024 12:10:23"]